Workbook

Sheet SPLASH
S4: THIS WONDERFUL BUTTON WILL AUTOMATICALLY
S5: CREATE IMAGES OF ALL 9 TABLES,
S6: AND SAVE THIS EXCEL SPREADSHEET.

Sheet BSS-1
H2: Do not input or erase anything in Column H, Column K, Column L, or Column M
B6: Last Updated on 10/17/2016 10:43:30 AM
I8: INPUT STATUS HERE
B9: Public Notice of Bike Share Station Applications | K9: Neighborhood | L9: Street | M9: House
B10: Adjacent Address | C10: Site | D10: Size | E10: Bike Docks | F10: Prkg Sps Converted | G10: Permit | H10: Application Status | I10: Status | J10: Date | K10: Sort 1 | L10: Sort 2 | M10: Sort 3
B11: Belltown | H11: =IF(I11="","",IF(J11="",I11,I11&" "&TEXT(J11,"m/d/yyyy"))) ->  | K11: =B11 -> Belltown | L11: 0 | M11: 0
B12: Capitol Hill | K12: =B12 -> Capitol Hill | L12: 0 | M12: 0
B13: Central Business District | K13: =B13 -> Central Business District | L13: 0 | M13: 0
B14: Central District | K14: Central District | L14: 0 | M14: 0
B15: Chinatown/International District | K15: =B15 -> Chinatown/International District | L15: 0 | M15: 0
B16: Eastlake | K16: Eastlake | L16: 0 | M16: 0
B17: First Hill | K17: First Hill | L17: 0 | M17: 0
B18: Pioneer Square | K18: Pioneer Square | L18: 0 | M18: 0
B19: Plaza at Weslake Ave N & Aloha St | C19: Sidewalk | D19: 26'5" x 10' | E19: 16 | F19: 0 | G19: 320365 | I19: Comment Period thru | J19: 2016-09-13 | K19: Plaza at Weslake Ave N & Aloha St
B20: South Lake Union | H20: =IF(I20="","",IF(J20="",I20,I20&" "&TEXT(J20,"m/d/yyyy"))) ->  | K20: South Lake Union | L20: 0 | M20: 0
B21: Univeristy District | H21: =IF(I21="","",IF(J21="",I21,I21&" "&TEXT(J21,"m/d/yyyy"))) ->  | K21: Univeristy District | L21: 0 | M21: 0
B22: Waterfront | H22: =IF(I22="","",IF(J22="",I22,I22&" "&TEXT(J22,"m/d/yyyy"))) ->  | K22: Waterfront | L22: 0 | M22: 0
H23: =IF(I23="","",IF(J23="",I23,I23&" "&TEXT(J23,"m/d/yyyy"))) ->  | L23: =IF(B23="","Z",IF(ISERROR((LEFT(TRIM(LEFT(IF(FIND(" ",TRIM(RIGHT(B23,LEN(B23)-FIND(" ",B23))))<4,TRIM(RIGHT(TRIM(RIGHT(B23,LEN(B23)-FIND(" ",B23))),LEN(TRIM(RIGHT(B23,LEN(B23)-FIND(" ",B23))))-FIND(" ",TRIM(RIGHT(B23,LEN(B23)-FIND(" ",B23)))))),TRIM(RIGHT(B23,LEN(B23)-FIND(" ",B23)))),FIND(" ",IF(FIND(" ",TRIM(RIGHT(B23,LEN(B23)-FIND(" ",B23))))<4,TRIM(RIGHT(TRIM(RIGHT(B23,LEN(B23)-FIND(" ",B23))),LEN(TRIM(RIGHT(B23,LEN(B23)-FIND(" ",B23))))-FIND(" ",TRIM(RIGHT(B23,LEN(B23)-FIND(" ",B23)))))),TRIM(RIGHT(B23,LEN(B23)-FIND(" ",B23))))))),LEN(TRIM(LEFT(IF(FIND(" ",TRIM(RIGHT(B23,LEN(B23)-FIND(" ",B23))))<4,TRIM(RIGHT(TRIM(RIGHT(B23,LEN(B23)-FIND(" ",B23))),LEN(TRIM(RIGHT(B23,LEN(B23)-FIND(" ",B23))))-FIND(" ",TRIM(RIGHT(B23,LEN(B23)-FIND(" ",B23)))))),TRIM(RIGHT(B23,LEN(B23)-FIND(" ",B23)))),FIND(" ",IF(FIND(" ",TRIM(RIGHT(B23,LEN(B23)-FIND(" ",B23))))<4,TRIM(RIGHT(TRIM(RIGHT(B23,LEN(B23)-FIND(" ",B23))),LEN(TRIM(RIGHT(B23,LEN(B23)-FIND(" ",B23))))-FIND(" ",TRIM(RIGHT(B23,LEN(B23)-FIND(" ",B23)))))),TRIM(RIGHT(B23,LEN(B23)-FIND(" ",B23))))))))-2))*1),TRIM(LEFT(IF(FIND(" ",TRIM(RIGHT(B23,LEN(B23)-FIND(" ",B23))))<4,TRIM(RIGHT(TRIM(RIGHT(B23,LEN(B23)-FIND(" ",B23))),LEN(TRIM(RIGHT(B23,LEN(B23)-FIND(" ",B23))))-FIND(" ",TRIM(RIGHT(B23,LEN(B23)-FIND(" ",B23)))))),TRIM(RIGHT(B23,LEN(B23)-FIND(" ",B23)))),FIND(" ",IF(FIND(" ",TRIM(RIGHT(B23,LEN(B23)-FIND(" ",B23))))<4,TRIM(RIGHT(TRIM(RIGHT(B23,LEN(B23)-FIND(" ",B23))),LEN(TRIM(RIGHT(B23,LEN(B23)-FIND(" ",B23))))-FIND(" ",TRIM(RIGHT(B23,LEN(B23)-FIND(" ",B23)))))),TRIM(RIGHT(B23,LEN(B23)-FIND(" ",B23))))))),(LEFT(TRIM(LEFT(IF(FIND(" ",TRIM(RIGHT(B23,LEN(B23)-FIND(" ",B23))))<4,TRIM(RIGHT(TRIM(RIGHT(B23,LEN(B23)-FIND(" ",B23))),LEN(TRIM(RIGHT(B23,LEN(B23)-FIND(" ",B23))))-FIND(" ",TRIM(RIGHT(B23,LEN(B23)-FIND(" ",B23)))))),TRIM(RIGHT(B23,LEN(B23)-FIND(" ",B23)))),FIND(" ",IF(FIND(" ",TRIM(RIGHT(B23,LEN(B23)-FIND(" ",B23))))<4,TRIM(RIGHT(TRIM(RIGHT(B23,LEN(B23)-FIND(" ",B23))),LEN(TRIM(RIGHT(B23,LEN(B23)-FIND(" ",B23))))-FIND(" ",TRIM(RIGHT(B23,LEN(B23)-FIND(" ",B23)))))),TRIM(RIGHT(B23,LEN(B23)-FIND(" ",B23))))))),LEN(TRIM(LEFT(IF(FIND(" ",TRIM(RIGHT(B23,LEN(B23)-FIND(" ",B23))))<4,TRIM(RIGHT(TRIM(RIGHT(B23,LEN(B23)-FIND(" ",B23))),LEN(TRIM(RIGHT(B23,LEN(B23)-FIND(" ",B23))))-FIND(" ",TRIM(RIGHT(B23,LEN(B23)-FIND(" ",B23)))))),TRIM(RIGHT(B23,LEN(B23)-FIND(" ",B23)))),FIND(" ",IF(FIND(" ",TRIM(RIGHT(B23,LEN(B23)-FIND(" ",B23))))<4,TRIM(RIGHT(TRIM(RIGHT(B23,LEN(B23)-FIND(" ",B23))),LEN(TRIM(RIGHT(B23,LEN(B23)-FIND(" ",B23))))-FIND(" ",TRIM(RIGHT(B23,LEN(B23)-FIND(" ",B23)))))),TRIM(RIGHT(B23,LEN(B23)-FIND(" ",B23))))))))-2))*1)) -> Z | M23: =IF(B23="","Z",1*(TRIM(LEFT(B23,FIND(" ",B23))))) -> Z
L24: Z | M24: Z
L25: Z | M25: Z
L26: Z | M26: Z
L27: Z | M27: Z
L28: Z | M28: Z
L29: Z | M29: Z
L30: Z | M30: Z
L31: Z | M31: Z
L32: Z | M32: Z
L33: Z | M33: Z
L34: Z | M34: Z
L35: Z | M35: Z
L36: Z | M36: Z
L37: Z | M37: Z
L38: Z | M38: Z
L39: Z | M39: Z
L40: Z | M40: Z
L41: Z | M41: Z
L42: Z | M42: Z
L43: Z | M43: Z
L44: Z | M44: Z
L45: Z | M45: Z
L46: Z | M46: Z
L47: Z | M47: Z
L48: Z | M48: Z
L49: Z | M49: Z
L50: Z | M50: Z
L51: Z | M51: Z
L52: Z | M52: Z
L53: Z | M53: Z
H54: =IF(I54="","",IF(J54="",I54,I54&" "&TEXT(J54,"m/d/yyyy"))) ->  | L54: =IF(B54="","Z",IF(ISERROR((LEFT(TRIM(LEFT(IF(FIND(" ",TRIM(RIGHT(B54,LEN(B54)-FIND(" ",B54))))<4,TRIM(RIGHT(TRIM(RIGHT(B54,LEN(B54)-FIND(" ",B54))),LEN(TRIM(RIGHT(B54,LEN(B54)-FIND(" ",B54))))-FIND(" ",TRIM(RIGHT(B54,LEN(B54)-FIND(" ",B54)))))),TRIM(RIGHT(B54,LEN(B54)-FIND(" ",B54)))),FIND(" ",IF(FIND(" ",TRIM(RIGHT(B54,LEN(B54)-FIND(" ",B54))))<4,TRIM(RIGHT(TRIM(RIGHT(B54,LEN(B54)-FIND(" ",B54))),LEN(TRIM(RIGHT(B54,LEN(B54)-FIND(" ",B54))))-FIND(" ",TRIM(RIGHT(B54,LEN(B54)-FIND(" ",B54)))))),TRIM(RIGHT(B54,LEN(B54)-FIND(" ",B54))))))),LEN(TRIM(LEFT(IF(FIND(" ",TRIM(RIGHT(B54,LEN(B54)-FIND(" ",B54))))<4,TRIM(RIGHT(TRIM(RIGHT(B54,LEN(B54)-FIND(" ",B54))),LEN(TRIM(RIGHT(B54,LEN(B54)-FIND(" ",B54))))-FIND(" ",TRIM(RIGHT(B54,LEN(B54)-FIND(" ",B54)))))),TRIM(RIGHT(B54,LEN(B54)-FIND(" ",B54)))),FIND(" ",IF(FIND(" ",TRIM(RIGHT(B54,LEN(B54)-FIND(" ",B54))))<4,TRIM(RIGHT(TRIM(RIGHT(B54,LEN(B54)-FIND(" ",B54))),LEN(TRIM(RIGHT(B54,LEN(B54)-FIND(" ",B54))))-FIND(" ",TRIM(RIGHT(B54,LEN(B54)-FIND(" ",B54)))))),TRIM(RIGHT(B54,LEN(B54)-FIND(" ",B54))))))))-2))*1),TRIM(LEFT(IF(FIND(" ",TRIM(RIGHT(B54,LEN(B54)-FIND(" ",B54))))<4,TRIM(RIGHT(TRIM(RIGHT(B54,LEN(B54)-FIND(" ",B54))),LEN(TRIM(RIGHT(B54,LEN(B54)-FIND(" ",B54))))-FIND(" ",TRIM(RIGHT(B54,LEN(B54)-FIND(" ",B54)))))),TRIM(RIGHT(B54,LEN(B54)-FIND(" ",B54)))),FIND(" ",IF(FIND(" ",TRIM(RIGHT(B54,LEN(B54)-FIND(" ",B54))))<4,TRIM(RIGHT(TRIM(RIGHT(B54,LEN(B54)-FIND(" ",B54))),LEN(TRIM(RIGHT(B54,LEN(B54)-FIND(" ",B54))))-FIND(" ",TRIM(RIGHT(B54,LEN(B54)-FIND(" ",B54)))))),TRIM(RIGHT(B54,LEN(B54)-FIND(" ",B54))))))),(LEFT(TRIM(LEFT(IF(FIND(" ",TRIM(RIGHT(B54,LEN(B54)-FIND(" ",B54))))<4,TRIM(RIGHT(TRIM(RIGHT(B54,LEN(B54)-FIND(" ",B54))),LEN(TRIM(RIGHT(B54,LEN(B54)-FIND(" ",B54))))-FIND(" ",TRIM(RIGHT(B54,LEN(B54)-FIND(" ",B54)))))),TRIM(RIGHT(B54,LEN(B54)-FIND(" ",B54)))),FIND(" ",IF(FIND(" ",TRIM(RIGHT(B54,LEN(B54)-FIND(" ",B54))))<4,TRIM(RIGHT(TRIM(RIGHT(B54,LEN(B54)-FIND(" ",B54))),LEN(TRIM(RIGHT(B54,LEN(B54)-FIND(" ",B54))))-FIND(" ",TRIM(RIGHT(B54,LEN(B54)-FIND(" ",B54)))))),TRIM(RIGHT(B54,LEN(B54)-FIND(" ",B54))))))),LEN(TRIM(LEFT(IF(FIND(" ",TRIM(RIGHT(B54,LEN(B54)-FIND(" ",B54))))<4,TRIM(RIGHT(TRIM(RIGHT(B54,LEN(B54)-FIND(" ",B54))),LEN(TRIM(RIGHT(B54,LEN(B54)-FIND(" ",B54))))-FIND(" ",TRIM(RIGHT(B54,LEN(B54)-FIND(" ",B54)))))),TRIM(RIGHT(B54,LEN(B54)-FIND(" ",B54)))),FIND(" ",IF(FIND(" ",TRIM(RIGHT(B54,LEN(B54)-FIND(" ",B54))))<4,TRIM(RIGHT(TRIM(RIGHT(B54,LEN(B54)-FIND(" ",B54))),LEN(TRIM(RIGHT(B54,LEN(B54)-FIND(" ",B54))))-FIND(" ",TRIM(RIGHT(B54,LEN(B54)-FIND(" ",B54)))))),TRIM(RIGHT(B54,LEN(B54)-FIND(" ",B54))))))))-2))*1)) -> Z | M54: =IF(B54="","Z",1*(TRIM(LEFT(B54,FIND(" ",B54))))) -> Z
H55: =IF(I55="","",IF(J55="",I55,I55&" "&TEXT(J55,"m/d/yyyy"))) ->  | L55: =IF(B55="","Z",IF(ISERROR((LEFT(TRIM(LEFT(IF(FIND(" ",TRIM(RIGHT(B55,LEN(B55)-FIND(" ",B55))))<4,TRIM(RIGHT(TRIM(RIGHT(B55,LEN(B55)-FIND(" ",B55))),LEN(TRIM(RIGHT(B55,LEN(B55)-FIND(" ",B55))))-FIND(" ",TRIM(RIGHT(B55,LEN(B55)-FIND(" ",B55)))))),TRIM(RIGHT(B55,LEN(B55)-FIND(" ",B55)))),FIND(" ",IF(FIND(" ",TRIM(RIGHT(B55,LEN(B55)-FIND(" ",B55))))<4,TRIM(RIGHT(TRIM(RIGHT(B55,LEN(B55)-FIND(" ",B55))),LEN(TRIM(RIGHT(B55,LEN(B55)-FIND(" ",B55))))-FIND(" ",TRIM(RIGHT(B55,LEN(B55)-FIND(" ",B55)))))),TRIM(RIGHT(B55,LEN(B55)-FIND(" ",B55))))))),LEN(TRIM(LEFT(IF(FIND(" ",TRIM(RIGHT(B55,LEN(B55)-FIND(" ",B55))))<4,TRIM(RIGHT(TRIM(RIGHT(B55,LEN(B55)-FIND(" ",B55))),LEN(TRIM(RIGHT(B55,LEN(B55)-FIND(" ",B55))))-FIND(" ",TRIM(RIGHT(B55,LEN(B55)-FIND(" ",B55)))))),TRIM(RIGHT(B55,LEN(B55)-FIND(" ",B55)))),FIND(" ",IF(FIND(" ",TRIM(RIGHT(B55,LEN(B55)-FIND(" ",B55))))<4,TRIM(RIGHT(TRIM(RIGHT(B55,LEN(B55)-FIND(" ",B55))),LEN(TRIM(RIGHT(B55,LEN(B55)-FIND(" ",B55))))-FIND(" ",TRIM(RIGHT(B55,LEN(B55)-FIND(" ",B55)))))),TRIM(RIGHT(B55,LEN(B55)-FIND(" ",B55))))))))-2))*1),TRIM(LEFT(IF(FIND(" ",TRIM(RIGHT(B55,LEN(B55)-FIND(" ",B55))))<4,TRIM(RIGHT(TRIM(RIGHT(B55,LEN(B55)-FIND(" ",B55))),LEN(TRIM(RIGHT(B55,LEN(B55)-FIND(" ",B55))))-FIND(" ",TRIM(RIGHT(B55,LEN(B55)-FIND(" ",B55)))))),TRIM(RIGHT(B55,LEN(B55)-FIND(" ",B55)))),FIND(" ",IF(FIND(" ",TRIM(RIGHT(B55,LEN(B55)-FIND(" ",B55))))<4,TRIM(RIGHT(TRIM(RIGHT(B55,LEN(B55)-FIND(" ",B55))),LEN(TRIM(RIGHT(B55,LEN(B55)-FIND(" ",B55))))-FIND(" ",TRIM(RIGHT(B55,LEN(B55)-FIND(" ",B55)))))),TRIM(RIGHT(B55,LEN(B55)-FIND(" ",B55))))))),(LEFT(TRIM(LEFT(IF(FIND(" ",TRIM(RIGHT(B55,LEN(B55)-FIND(" ",B55))))<4,TRIM(RIGHT(TRIM(RIGHT(B55,LEN(B55)-FIND(" ",B55))),LEN(TRIM(RIGHT(B55,LEN(B55)-FIND(" ",B55))))-FIND(" ",TRIM(RIGHT(B55,LEN(B55)-FIND(" ",B55)))))),TRIM(RIGHT(B55,LEN(B55)-FIND(" ",B55)))),FIND(" ",IF(FIND(" ",TRIM(RIGHT(B55,LEN(B55)-FIND(" ",B55))))<4,TRIM(RIGHT(TRIM(RIGHT(B55,LEN(B55)-FIND(" ",B55))),LEN(TRIM(RIGHT(B55,LEN(B55)-FIND(" ",B55))))-FIND(" ",TRIM(RIGHT(B55,LEN(B55)-FIND(" ",B55)))))),TRIM(RIGHT(B55,LEN(B55)-FIND(" ",B55))))))),LEN(TRIM(LEFT(IF(FIND(" ",TRIM(RIGHT(B55,LEN(B55)-FIND(" ",B55))))<4,TRIM(RIGHT(TRIM(RIGHT(B55,LEN(B55)-FIND(" ",B55))),LEN(TRIM(RIGHT(B55,LEN(B55)-FIND(" ",B55))))-FIND(" ",TRIM(RIGHT(B55,LEN(B55)-FIND(" ",B55)))))),TRIM(RIGHT(B55,LEN(B55)-FIND(" ",B55)))),FIND(" ",IF(FIND(" ",TRIM(RIGHT(B55,LEN(B55)-FIND(" ",B55))))<4,TRIM(RIGHT(TRIM(RIGHT(B55,LEN(B55)-FIND(" ",B55))),LEN(TRIM(RIGHT(B55,LEN(B55)-FIND(" ",B55))))-FIND(" ",TRIM(RIGHT(B55,LEN(B55)-FIND(" ",B55)))))),TRIM(RIGHT(B55,LEN(B55)-FIND(" ",B55))))))))-2))*1)) -> Z | M55: =IF(B55="","Z",1*(TRIM(LEFT(B55,FIND(" ",B55))))) -> Z
H56: =IF(I56="","",IF(J56="",I56,I56&" "&TEXT(J56,"m/d/yyyy"))) ->  | L56: =IF(B56="","Z",IF(ISERROR((LEFT(TRIM(LEFT(IF(FIND(" ",TRIM(RIGHT(B56,LEN(B56)-FIND(" ",B56))))<4,TRIM(RIGHT(TRIM(RIGHT(B56,LEN(B56)-FIND(" ",B56))),LEN(TRIM(RIGHT(B56,LEN(B56)-FIND(" ",B56))))-FIND(" ",TRIM(RIGHT(B56,LEN(B56)-FIND(" ",B56)))))),TRIM(RIGHT(B56,LEN(B56)-FIND(" ",B56)))),FIND(" ",IF(FIND(" ",TRIM(RIGHT(B56,LEN(B56)-FIND(" ",B56))))<4,TRIM(RIGHT(TRIM(RIGHT(B56,LEN(B56)-FIND(" ",B56))),LEN(TRIM(RIGHT(B56,LEN(B56)-FIND(" ",B56))))-FIND(" ",TRIM(RIGHT(B56,LEN(B56)-FIND(" ",B56)))))),TRIM(RIGHT(B56,LEN(B56)-FIND(" ",B56))))))),LEN(TRIM(LEFT(IF(FIND(" ",TRIM(RIGHT(B56,LEN(B56)-FIND(" ",B56))))<4,TRIM(RIGHT(TRIM(RIGHT(B56,LEN(B56)-FIND(" ",B56))),LEN(TRIM(RIGHT(B56,LEN(B56)-FIND(" ",B56))))-FIND(" ",TRIM(RIGHT(B56,LEN(B56)-FIND(" ",B56)))))),TRIM(RIGHT(B56,LEN(B56)-FIND(" ",B56)))),FIND(" ",IF(FIND(" ",TRIM(RIGHT(B56,LEN(B56)-FIND(" ",B56))))<4,TRIM(RIGHT(TRIM(RIGHT(B56,LEN(B56)-FIND(" ",B56))),LEN(TRIM(RIGHT(B56,LEN(B56)-FIND(" ",B56))))-FIND(" ",TRIM(RIGHT(B56,LEN(B56)-FIND(" ",B56)))))),TRIM(RIGHT(B56,LEN(B56)-FIND(" ",B56))))))))-2))*1),TRIM(LEFT(IF(FIND(" ",TRIM(RIGHT(B56,LEN(B56)-FIND(" ",B56))))<4,TRIM(RIGHT(TRIM(RIGHT(B56,LEN(B56)-FIND(" ",B56))),LEN(TRIM(RIGHT(B56,LEN(B56)-FIND(" ",B56))))-FIND(" ",TRIM(RIGHT(B56,LEN(B56)-FIND(" ",B56)))))),TRIM(RIGHT(B56,LEN(B56)-FIND(" ",B56)))),FIND(" ",IF(FIND(" ",TRIM(RIGHT(B56,LEN(B56)-FIND(" ",B56))))<4,TRIM(RIGHT(TRIM(RIGHT(B56,LEN(B56)-FIND(" ",B56))),LEN(TRIM(RIGHT(B56,LEN(B56)-FIND(" ",B56))))-FIND(" ",TRIM(RIGHT(B56,LEN(B56)-FIND(" ",B56)))))),TRIM(RIGHT(B56,LEN(B56)-FIND(" ",B56))))))),(LEFT(TRIM(LEFT(IF(FIND(" ",TRIM(RIGHT(B56,LEN(B56)-FIND(" ",B56))))<4,TRIM(RIGHT(TRIM(RIGHT(B56,LEN(B56)-FIND(" ",B56))),LEN(TRIM(RIGHT(B56,LEN(B56)-FIND(" ",B56))))-FIND(" ",TRIM(RIGHT(B56,LEN(B56)-FIND(" ",B56)))))),TRIM(RIGHT(B56,LEN(B56)-FIND(" ",B56)))),FIND(" ",IF(FIND(" ",TRIM(RIGHT(B56,LEN(B56)-FIND(" ",B56))))<4,TRIM(RIGHT(TRIM(RIGHT(B56,LEN(B56)-FIND(" ",B56))),LEN(TRIM(RIGHT(B56,LEN(B56)-FIND(" ",B56))))-FIND(" ",TRIM(RIGHT(B56,LEN(B56)-FIND(" ",B56)))))),TRIM(RIGHT(B56,LEN(B56)-FIND(" ",B56))))))),LEN(TRIM(LEFT(IF(FIND(" ",TRIM(RIGHT(B56,LEN(B56)-FIND(" ",B56))))<4,TRIM(RIGHT(TRIM(RIGHT(B56,LEN(B56)-FIND(" ",B56))),LEN(TRIM(RIGHT(B56,LEN(B56)-FIND(" ",B56))))-FIND(" ",TRIM(RIGHT(B56,LEN(B56)-FIND(" ",B56)))))),TRIM(RIGHT(B56,LEN(B56)-FIND(" ",B56)))),FIND(" ",IF(FIND(" ",TRIM(RIGHT(B56,LEN(B56)-FIND(" ",B56))))<4,TRIM(RIGHT(TRIM(RIGHT(B56,LEN(B56)-FIND(" ",B56))),LEN(TRIM(RIGHT(B56,LEN(B56)-FIND(" ",B56))))-FIND(" ",TRIM(RIGHT(B56,LEN(B56)-FIND(" ",B56)))))),TRIM(RIGHT(B56,LEN(B56)-FIND(" ",B56))))))))-2))*1)) -> Z | M56: =IF(B56="","Z",1*(TRIM(LEFT(B56,FIND(" ",B56))))) -> Z
L57: Z | M57: Z
L58: Z | M58: Z
L59: Z | M59: Z
L60: Z | M60: Z
L61: Z | M61: Z
L62: Z | M62: Z
L63: Z | M63: Z
L64: Z | M64: Z
L65: Z | M65: Z
L66: Z | M66: Z
L67: Z | M67: Z
L68: Z | M68: Z
L69: Z | M69: Z
L70: Z | M70: Z
L71: Z | M71: Z
L72: Z | M72: Z
L73: =IF(B73="","Z",IF(ISERROR((LEFT(TRIM(LEFT(IF(FIND(" ",TRIM(RIGHT(B73,LEN(B73)-FIND(" ",B73))))<4,TRIM(RIGHT(TRIM(RIGHT(B73,LEN(B73)-FIND(" ",B73))),LEN(TRIM(RIGHT(B73,LEN(B73)-FIND(" ",B73))))-FIND(" ",TRIM(RIGHT(B73,LEN(B73)-FIND(" ",B73)))))),TRIM(RIGHT(B73,LEN(B73)-FIND(" ",B73)))),FIND(" ",IF(FIND(" ",TRIM(RIGHT(B73,LEN(B73)-FIND(" ",B73))))<4,TRIM(RIGHT(TRIM(RIGHT(B73,LEN(B73)-FIND(" ",B73))),LEN(TRIM(RIGHT(B73,LEN(B73)-FIND(" ",B73))))-FIND(" ",TRIM(RIGHT(B73,LEN(B73)-FIND(" ",B73)))))),TRIM(RIGHT(B73,LEN(B73)-FIND(" ",B73))))))),LEN(TRIM(LEFT(IF(FIND(" ",TRIM(RIGHT(B73,LEN(B73)-FIND(" ",B73))))<4,TRIM(RIGHT(TRIM(RIGHT(B73,LEN(B73)-FIND(" ",B73))),LEN(TRIM(RIGHT(B73,LEN(B73)-FIND(" ",B73))))-FIND(" ",TRIM(RIGHT(B73,LEN(B73)-FIND(" ",B73)))))),TRIM(RIGHT(B73,LEN(B73)-FIND(" ",B73)))),FIND(" ",IF(FIND(" ",TRIM(RIGHT(B73,LEN(B73)-FIND(" ",B73))))<4,TRIM(RIGHT(TRIM(RIGHT(B73,LEN(B73)-FIND(" ",B73))),LEN(TRIM(RIGHT(B73,LEN(B73)-FIND(" ",B73))))-FIND(" ",TRIM(RIGHT(B73,LEN(B73)-FIND(" ",B73)))))),TRIM(RIGHT(B73,LEN(B73)-FIND(" ",B73))))))))-2))*1),TRIM(LEFT(IF(FIND(" ",TRIM(RIGHT(B73,LEN(B73)-FIND(" ",B73))))<4,TRIM(RIGHT(TRIM(RIGHT(B73,LEN(B73)-FIND(" ",B73))),LEN(TRIM(RIGHT(B73,LEN(B73)-FIND(" ",B73))))-FIND(" ",TRIM(RIGHT(B73,LEN(B73)-FIND(" ",B73)))))),TRIM(RIGHT(B73,LEN(B73)-FIND(" ",B73)))),FIND(" ",IF(FIND(" ",TRIM(RIGHT(B73,LEN(B73)-FIND(" ",B73))))<4,TRIM(RIGHT(TRIM(RIGHT(B73,LEN(B73)-FIND(" ",B73))),LEN(TRIM(RIGHT(B73,LEN(B73)-FIND(" ",B73))))-FIND(" ",TRIM(RIGHT(B73,LEN(B73)-FIND(" ",B73)))))),TRIM(RIGHT(B73,LEN(B73)-FIND(" ",B73))))))),(LEFT(TRIM(LEFT(IF(FIND(" ",TRIM(RIGHT(B73,LEN(B73)-FIND(" ",B73))))<4,TRIM(RIGHT(TRIM(RIGHT(B73,LEN(B73)-FIND(" ",B73))),LEN(TRIM(RIGHT(B73,LEN(B73)-FIND(" ",B73))))-FIND(" ",TRIM(RIGHT(B73,LEN(B73)-FIND(" ",B73)))))),TRIM(RIGHT(B73,LEN(B73)-FIND(" ",B73)))),FIND(" ",IF(FIND(" ",TRIM(RIGHT(B73,LEN(B73)-FIND(" ",B73))))<4,TRIM(RIGHT(TRIM(RIGHT(B73,LEN(B73)-FIND(" ",B73))),LEN(TRIM(RIGHT(B73,LEN(B73)-FIND(" ",B73))))-FIND(" ",TRIM(RIGHT(B73,LEN(B73)-FIND(" ",B73)))))),TRIM(RIGHT(B73,LEN(B73)-FIND(" ",B73))))))),LEN(TRIM(LEFT(IF(FIND(" ",TRIM(RIGHT(B73,LEN(B73)-FIND(" ",B73))))<4,TRIM(RIGHT(TRIM(RIGHT(B73,LEN(B73)-FIND(" ",B73))),LEN(TRIM(RIGHT(B73,LEN(B73)-FIND(" ",B73))))-FIND(" ",TRIM(RIGHT(B73,LEN(B73)-FIND(" ",B73)))))),TRIM(RIGHT(B73,LEN(B73)-FIND(" ",B73)))),FIND(" ",IF(FIND(" ",TRIM(RIGHT(B73,LEN(B73)-FIND(" ",B73))))<4,TRIM(RIGHT(TRIM(RIGHT(B73,LEN(B73)-FIND(" ",B73))),LEN(TRIM(RIGHT(B73,LEN(B73)-FIND(" ",B73))))-FIND(" ",TRIM(RIGHT(B73,LEN(B73)-FIND(" ",B73)))))),TRIM(RIGHT(B73,LEN(B73)-FIND(" ",B73))))))))-2))*1)) -> Z | M73: =IF(B73="","Z",1*(TRIM(LEFT(B73,FIND(" ",B73))))) -> Z
H74: =IF(I74="","",IF(J74="",I74,I74&" "&TEXT(J74,"m/d/yyyy"))) ->  | L74: Z | M74: Z
L75: Z | M75: Z
L76: Z | M76: Z
L77: Z | M77: Z
L78: Z | M78: Z
L79: Z | M79: Z
L80: Z | M80: Z
L81: Z | M81: Z
L82: Z | M82: Z
L83: Z | M83: Z
L84: Z | M84: Z
L85: Z | M85: Z
L86: Z | M86: Z
L87: Z | M87: Z
L88: Z | M88: Z
L89: Z | M89: Z
L90: Z | M90: Z
L91: Z | M91: Z
L92: Z | M92: Z
L93: Z | M93: Z
L94: Z | M94: Z
L95: Z | M95: Z
L96: Z | M96: Z
L97: Z | M97: Z
L98: Z | M98: Z
L99: Z | M99: Z
H100: =IF(I100="","",IF(J100="",I100,I100&" "&TEXT(J100,"m/d/yyyy"))) ->  | L100: Z | M100: Z
L101: Z | M101: Z
L102: Z | M102: Z
L103: Z | M103: Z
L104: Z | M104: Z
L105: =IF(B105="","Z",IF(ISERROR((LEFT(TRIM(LEFT(IF(FIND(" ",TRIM(RIGHT(B105,LEN(B105)-FIND(" ",B105))))<4,TRIM(RIGHT(TRIM(RIGHT(B105,LEN(B105)-FIND(" ",B105))),LEN(TRIM(RIGHT(B105,LEN(B105)-FIND(" ",B105))))-FIND(" ",TRIM(RIGHT(B105,LEN(B105)-FIND(" ",B105)))))),TRIM(RIGHT(B105,LEN(B105)-FIND(" ",B105)))),FIND(" ",IF(FIND(" ",TRIM(RIGHT(B105,LEN(B105)-FIND(" ",B105))))<4,TRIM(RIGHT(TRIM(RIGHT(B105,LEN(B105)-FIND(" ",B105))),LEN(TRIM(RIGHT(B105,LEN(B105)-FIND(" ",B105))))-FIND(" ",TRIM(RIGHT(B105,LEN(B105)-FIND(" ",B105)))))),TRIM(RIGHT(B105,LEN(B105)-FIND(" ",B105))))))),LEN(TRIM(LEFT(IF(FIND(" ",TRIM(RIGHT(B105,LEN(B105)-FIND(" ",B105))))<4,TRIM(RIGHT(TRIM(RIGHT(B105,LEN(B105)-FIND(" ",B105))),LEN(TRIM(RIGHT(B105,LEN(B105)-FIND(" ",B105))))-FIND(" ",TRIM(RIGHT(B105,LEN(B105)-FIND(" ",B105)))))),TRIM(RIGHT(B105,LEN(B105)-FIND(" ",B105)))),FIND(" ",IF(FIND(" ",TRIM(RIGHT(B105,LEN(B105)-FIND(" ",B105))))<4,TRIM(RIGHT(TRIM(RIGHT(B105,LEN(B105)-FIND(" ",B105))),LEN(TRIM(RIGHT(B105,LEN(B105)-FIND(" ",B105))))-FIND(" ",TRIM(RIGHT(B105,LEN(B105)-FIND(" ",B105)))))),TRIM(RIGHT(B105,LEN(B105)-FIND(" ",B105))))))))-2))*1),TRIM(LEFT(IF(FIND(" ",TRIM(RIGHT(B105,LEN(B105)-FIND(" ",B105))))<4,TRIM(RIGHT(TRIM(RIGHT(B105,LEN(B105)-FIND(" ",B105))),LEN(TRIM(RIGHT(B105,LEN(B105)-FIND(" ",B105))))-FIND(" ",TRIM(RIGHT(B105,LEN(B105)-FIND(" ",B105)))))),TRIM(RIGHT(B105,LEN(B105)-FIND(" ",B105)))),FIND(" ",IF(FIND(" ",TRIM(RIGHT(B105,LEN(B105)-FIND(" ",B105))))<4,TRIM(RIGHT(TRIM(RIGHT(B105,LEN(B105)-FIND(" ",B105))),LEN(TRIM(RIGHT(B105,LEN(B105)-FIND(" ",B105))))-FIND(" ",TRIM(RIGHT(B105,LEN(B105)-FIND(" ",B105)))))),TRIM(RIGHT(B105,LEN(B105)-FIND(" ",B105))))))),(LEFT(TRIM(LEFT(IF(FIND(" ",TRIM(RIGHT(B105,LEN(B105)-FIND(" ",B105))))<4,TRIM(RIGHT(TRIM(RIGHT(B105,LEN(B105)-FIND(" ",B105))),LEN(TRIM(RIGHT(B105,LEN(B105)-FIND(" ",B105))))-FIND(" ",TRIM(RIGHT(B105,LEN(B105)-FIND(" ",B105)))))),TRIM(RIGHT(B105,LEN(B105)-FIND(" ",B105)))),FIND(" ",IF(FIND(" ",TRIM(RIGHT(B105,LEN(B105)-FIND(" ",B105))))<4,TRIM(RIGHT(TRIM(RIGHT(B105,LEN(B105)-FIND(" ",B105))),LEN(TRIM(RIGHT(B105,LEN(B105)-FIND(" ",B105))))-FIND(" ",TRIM(RIGHT(B105,LEN(B105)-FIND(" ",B105)))))),TRIM(RIGHT(B105,LEN(B105)-FIND(" ",B105))))))),LEN(TRIM(LEFT(IF(FIND(" ",TRIM(RIGHT(B105,LEN(B105)-FIND(" ",B105))))<4,TRIM(RIGHT(TRIM(RIGHT(B105,LEN(B105)-FIND(" ",B105))),LEN(TRIM(RIGHT(B105,LEN(B105)-FIND(" ",B105))))-FIND(" ",TRIM(RIGHT(B105,LEN(B105)-FIND(" ",B105)))))),TRIM(RIGHT(B105,LEN(B105)-FIND(" ",B105)))),FIND(" ",IF(FIND(" ",TRIM(RIGHT(B105,LEN(B105)-FIND(" ",B105))))<4,TRIM(RIGHT(TRIM(RIGHT(B105,LEN(B105)-FIND(" ",B105))),LEN(TRIM(RIGHT(B105,LEN(B105)-FIND(" ",B105))))-FIND(" ",TRIM(RIGHT(B105,LEN(B105)-FIND(" ",B105)))))),TRIM(RIGHT(B105,LEN(B105)-FIND(" ",B105))))))))-2))*1)) -> Z | M105: =IF(B105="","Z",1*(TRIM(LEFT(B105,FIND(" ",B105))))) -> Z
L106: Z | M106: Z
L107: Z | M107: Z
L108: Z | M108: Z
L109: Z | M109: Z
L110: Z | M110: Z
L111: Z | M111: Z
L112: Z | M112: Z
L113: Z | M113: Z
L114: Z | M114: Z
L115: Z | M115: Z
L116: Z | M116: Z
L117: Z | M117: Z
L118: Z | M118: Z
L119: Z | M119: Z
L120: Z | M120: Z
L121: Z | M121: Z
L122: Z | M122: Z
L123: Z | M123: Z
L124: Z | M124: Z
L125: Z | M125: Z
L126: Z | M126: Z
L127: Z | M127: Z
L128: Z | M128: Z
L129: Z | M129: Z
L130: Z | M130: Z
L131: Z | M131: Z
L132: Z | M132: Z
L133: Z | M133: Z
L134: Z | M134: Z
L135: Z | M135: Z
L136: Z | M136: Z
L137: =IF(B137="","Z",IF(ISERROR((LEFT(TRIM(LEFT(IF(FIND(" ",TRIM(RIGHT(B137,LEN(B137)-FIND(" ",B137))))<4,TRIM(RIGHT(TRIM(RIGHT(B137,LEN(B137)-FIND(" ",B137))),LEN(TRIM(RIGHT(B137,LEN(B137)-FIND(" ",B137))))-FIND(" ",TRIM(RIGHT(B137,LEN(B137)-FIND(" ",B137)))))),TRIM(RIGHT(B137,LEN(B137)-FIND(" ",B137)))),FIND(" ",IF(FIND(" ",TRIM(RIGHT(B137,LEN(B137)-FIND(" ",B137))))<4,TRIM(RIGHT(TRIM(RIGHT(B137,LEN(B137)-FIND(" ",B137))),LEN(TRIM(RIGHT(B137,LEN(B137)-FIND(" ",B137))))-FIND(" ",TRIM(RIGHT(B137,LEN(B137)-FIND(" ",B137)))))),TRIM(RIGHT(B137,LEN(B137)-FIND(" ",B137))))))),LEN(TRIM(LEFT(IF(FIND(" ",TRIM(RIGHT(B137,LEN(B137)-FIND(" ",B137))))<4,TRIM(RIGHT(TRIM(RIGHT(B137,LEN(B137)-FIND(" ",B137))),LEN(TRIM(RIGHT(B137,LEN(B137)-FIND(" ",B137))))-FIND(" ",TRIM(RIGHT(B137,LEN(B137)-FIND(" ",B137)))))),TRIM(RIGHT(B137,LEN(B137)-FIND(" ",B137)))),FIND(" ",IF(FIND(" ",TRIM(RIGHT(B137,LEN(B137)-FIND(" ",B137))))<4,TRIM(RIGHT(TRIM(RIGHT(B137,LEN(B137)-FIND(" ",B137))),LEN(TRIM(RIGHT(B137,LEN(B137)-FIND(" ",B137))))-FIND(" ",TRIM(RIGHT(B137,LEN(B137)-FIND(" ",B137)))))),TRIM(RIGHT(B137,LEN(B137)-FIND(" ",B137))))))))-2))*1),TRIM(LEFT(IF(FIND(" ",TRIM(RIGHT(B137,LEN(B137)-FIND(" ",B137))))<4,TRIM(RIGHT(TRIM(RIGHT(B137,LEN(B137)-FIND(" ",B137))),LEN(TRIM(RIGHT(B137,LEN(B137)-FIND(" ",B137))))-FIND(" ",TRIM(RIGHT(B137,LEN(B137)-FIND(" ",B137)))))),TRIM(RIGHT(B137,LEN(B137)-FIND(" ",B137)))),FIND(" ",IF(FIND(" ",TRIM(RIGHT(B137,LEN(B137)-FIND(" ",B137))))<4,TRIM(RIGHT(TRIM(RIGHT(B137,LEN(B137)-FIND(" ",B137))),LEN(TRIM(RIGHT(B137,LEN(B137)-FIND(" ",B137))))-FIND(" ",TRIM(RIGHT(B137,LEN(B137)-FIND(" ",B137)))))),TRIM(RIGHT(B137,LEN(B137)-FIND(" ",B137))))))),(LEFT(TRIM(LEFT(IF(FIND(" ",TRIM(RIGHT(B137,LEN(B137)-FIND(" ",B137))))<4,TRIM(RIGHT(TRIM(RIGHT(B137,LEN(B137)-FIND(" ",B137))),LEN(TRIM(RIGHT(B137,LEN(B137)-FIND(" ",B137))))-FIND(" ",TRIM(RIGHT(B137,LEN(B137)-FIND(" ",B137)))))),TRIM(RIGHT(B137,LEN(B137)-FIND(" ",B137)))),FIND(" ",IF(FIND(" ",TRIM(RIGHT(B137,LEN(B137)-FIND(" ",B137))))<4,TRIM(RIGHT(TRIM(RIGHT(B137,LEN(B137)-FIND(" ",B137))),LEN(TRIM(RIGHT(B137,LEN(B137)-FIND(" ",B137))))-FIND(" ",TRIM(RIGHT(B137,LEN(B137)-FIND(" ",B137)))))),TRIM(RIGHT(B137,LEN(B137)-FIND(" ",B137))))))),LEN(TRIM(LEFT(IF(FIND(" ",TRIM(RIGHT(B137,LEN(B137)-FIND(" ",B137))))<4,TRIM(RIGHT(TRIM(RIGHT(B137,LEN(B137)-FIND(" ",B137))),LEN(TRIM(RIGHT(B137,LEN(B137)-FIND(" ",B137))))-FIND(" ",TRIM(RIGHT(B137,LEN(B137)-FIND(" ",B137)))))),TRIM(RIGHT(B137,LEN(B137)-FIND(" ",B137)))),FIND(" ",IF(FIND(" ",TRIM(RIGHT(B137,LEN(B137)-FIND(" ",B137))))<4,TRIM(RIGHT(TRIM(RIGHT(B137,LEN(B137)-FIND(" ",B137))),LEN(TRIM(RIGHT(B137,LEN(B137)-FIND(" ",B137))))-FIND(" ",TRIM(RIGHT(B137,LEN(B137)-FIND(" ",B137)))))),TRIM(RIGHT(B137,LEN(B137)-FIND(" ",B137))))))))-2))*1)) -> Z | M137: =IF(B137="","Z",1*(TRIM(LEFT(B137,FIND(" ",B137))))) -> Z
L138: Z | M138: Z
H139: =IF(I139="","",IF(J139="",I139,I139&" "&TEXT(J139,"m/d/yyyy"))) ->  | L139: Z | M139: Z
L140: Z | M140: Z
L141: Z | M141: Z
L142: Z | M142: Z
L143: Z | M143: Z
L144: Z | M144: Z
L145: Z | M145: Z
L146: Z | M146: Z
L147: Z | M147: Z
L148: Z | M148: Z
L149: Z | M149: Z
L150: Z | M150: Z
L151: Z | M151: Z
L152: Z | M152: Z
L153: Z | M153: Z
L154: Z | M154: Z
L155: Z | M155: Z
L156: Z | M156: Z
L157: Z | M157: Z
L158: Z | M158: Z
L159: Z | M159: Z
L160: Z | M160: Z
L161: Z | M161: Z
L162: Z | M162: Z
L163: Z | M163: Z
L164: Z | M164: Z
L165: Z | M165: Z
L166: Z | M166: Z
L167: Z | M167: Z
L168: Z | M168: Z
L169: =IF(B169="","Z",IF(ISERROR((LEFT(TRIM(LEFT(IF(FIND(" ",TRIM(RIGHT(B169,LEN(B169)-FIND(" ",B169))))<4,TRIM(RIGHT(TRIM(RIGHT(B169,LEN(B169)-FIND(" ",B169))),LEN(TRIM(RIGHT(B169,LEN(B169)-FIND(" ",B169))))-FIND(" ",TRIM(RIGHT(B169,LEN(B169)-FIND(" ",B169)))))),TRIM(RIGHT(B169,LEN(B169)-FIND(" ",B169)))),FIND(" ",IF(FIND(" ",TRIM(RIGHT(B169,LEN(B169)-FIND(" ",B169))))<4,TRIM(RIGHT(TRIM(RIGHT(B169,LEN(B169)-FIND(" ",B169))),LEN(TRIM(RIGHT(B169,LEN(B169)-FIND(" ",B169))))-FIND(" ",TRIM(RIGHT(B169,LEN(B169)-FIND(" ",B169)))))),TRIM(RIGHT(B169,LEN(B169)-FIND(" ",B169))))))),LEN(TRIM(LEFT(IF(FIND(" ",TRIM(RIGHT(B169,LEN(B169)-FIND(" ",B169))))<4,TRIM(RIGHT(TRIM(RIGHT(B169,LEN(B169)-FIND(" ",B169))),LEN(TRIM(RIGHT(B169,LEN(B169)-FIND(" ",B169))))-FIND(" ",TRIM(RIGHT(B169,LEN(B169)-FIND(" ",B169)))))),TRIM(RIGHT(B169,LEN(B169)-FIND(" ",B169)))),FIND(" ",IF(FIND(" ",TRIM(RIGHT(B169,LEN(B169)-FIND(" ",B169))))<4,TRIM(RIGHT(TRIM(RIGHT(B169,LEN(B169)-FIND(" ",B169))),LEN(TRIM(RIGHT(B169,LEN(B169)-FIND(" ",B169))))-FIND(" ",TRIM(RIGHT(B169,LEN(B169)-FIND(" ",B169)))))),TRIM(RIGHT(B169,LEN(B169)-FIND(" ",B169))))))))-2))*1),TRIM(LEFT(IF(FIND(" ",TRIM(RIGHT(B169,LEN(B169)-FIND(" ",B169))))<4,TRIM(RIGHT(TRIM(RIGHT(B169,LEN(B169)-FIND(" ",B169))),LEN(TRIM(RIGHT(B169,LEN(B169)-FIND(" ",B169))))-FIND(" ",TRIM(RIGHT(B169,LEN(B169)-FIND(" ",B169)))))),TRIM(RIGHT(B169,LEN(B169)-FIND(" ",B169)))),FIND(" ",IF(FIND(" ",TRIM(RIGHT(B169,LEN(B169)-FIND(" ",B169))))<4,TRIM(RIGHT(TRIM(RIGHT(B169,LEN(B169)-FIND(" ",B169))),LEN(TRIM(RIGHT(B169,LEN(B169)-FIND(" ",B169))))-FIND(" ",TRIM(RIGHT(B169,LEN(B169)-FIND(" ",B169)))))),TRIM(RIGHT(B169,LEN(B169)-FIND(" ",B169))))))),(LEFT(TRIM(LEFT(IF(FIND(" ",TRIM(RIGHT(B169,LEN(B169)-FIND(" ",B169))))<4,TRIM(RIGHT(TRIM(RIGHT(B169,LEN(B169)-FIND(" ",B169))),LEN(TRIM(RIGHT(B169,LEN(B169)-FIND(" ",B169))))-FIND(" ",TRIM(RIGHT(B169,LEN(B169)-FIND(" ",B169)))))),TRIM(RIGHT(B169,LEN(B169)-FIND(" ",B169)))),FIND(" ",IF(FIND(" ",TRIM(RIGHT(B169,LEN(B169)-FIND(" ",B169))))<4,TRIM(RIGHT(TRIM(RIGHT(B169,LEN(B169)-FIND(" ",B169))),LEN(TRIM(RIGHT(B169,LEN(B169)-FIND(" ",B169))))-FIND(" ",TRIM(RIGHT(B169,LEN(B169)-FIND(" ",B169)))))),TRIM(RIGHT(B169,LEN(B169)-FIND(" ",B169))))))),LEN(TRIM(LEFT(IF(FIND(" ",TRIM(RIGHT(B169,LEN(B169)-FIND(" ",B169))))<4,TRIM(RIGHT(TRIM(RIGHT(B169,LEN(B169)-FIND(" ",B169))),LEN(TRIM(RIGHT(B169,LEN(B169)-FIND(" ",B169))))-FIND(" ",TRIM(RIGHT(B169,LEN(B169)-FIND(" ",B169)))))),TRIM(RIGHT(B169,LEN(B169)-FIND(" ",B169)))),FIND(" ",IF(FIND(" ",TRIM(RIGHT(B169,LEN(B169)-FIND(" ",B169))))<4,TRIM(RIGHT(TRIM(RIGHT(B169,LEN(B169)-FIND(" ",B169))),LEN(TRIM(RIGHT(B169,LEN(B169)-FIND(" ",B169))))-FIND(" ",TRIM(RIGHT(B169,LEN(B169)-FIND(" ",B169)))))),TRIM(RIGHT(B169,LEN(B169)-FIND(" ",B169))))))))-2))*1)) -> Z | M169: =IF(B169="","Z",1*(TRIM(LEFT(B169,FIND(" ",B169))))) -> Z
L170: Z | M170: Z
L171: Z | M171: Z
L172: Z | M172: Z
L173: Z | M173: Z
L174: Z | M174: Z
L175: Z | M175: Z
L176: Z | M176: Z
L177: Z | M177: Z
L178: Z | M178: Z
L179: Z | M179: Z
L180: Z | M180: Z
L181: Z | M181: Z
L182: Z | M182: Z
L183: Z | M183: Z
L184: Z | M184: Z
L185: Z | M185: Z
L186: Z | M186: Z
L187: Z | M187: Z
L188: Z | M188: Z
L189: Z | M189: Z
L190: Z | M190: Z
L191: Z | M191: Z
L192: Z | M192: Z
L193: Z | M193: Z
L194: Z | M194: Z
L195: Z | M195: Z
L196: Z | M196: Z
L197: Z | M197: Z
L198: Z | M198: Z
L199: Z | M199: Z
L200: Z | M200: Z
L201: =IF(B201="","Z",IF(ISERROR((LEFT(TRIM(LEFT(IF(FIND(" ",TRIM(RIGHT(B201,LEN(B201)-FIND(" ",B201))))<4,TRIM(RIGHT(TRIM(RIGHT(B201,LEN(B201)-FIND(" ",B201))),LEN(TRIM(RIGHT(B201,LEN(B201)-FIND(" ",B201))))-FIND(" ",TRIM(RIGHT(B201,LEN(B201)-FIND(" ",B201)))))),TRIM(RIGHT(B201,LEN(B201)-FIND(" ",B201)))),FIND(" ",IF(FIND(" ",TRIM(RIGHT(B201,LEN(B201)-FIND(" ",B201))))<4,TRIM(RIGHT(TRIM(RIGHT(B201,LEN(B201)-FIND(" ",B201))),LEN(TRIM(RIGHT(B201,LEN(B201)-FIND(" ",B201))))-FIND(" ",TRIM(RIGHT(B201,LEN(B201)-FIND(" ",B201)))))),TRIM(RIGHT(B201,LEN(B201)-FIND(" ",B201))))))),LEN(TRIM(LEFT(IF(FIND(" ",TRIM(RIGHT(B201,LEN(B201)-FIND(" ",B201))))<4,TRIM(RIGHT(TRIM(RIGHT(B201,LEN(B201)-FIND(" ",B201))),LEN(TRIM(RIGHT(B201,LEN(B201)-FIND(" ",B201))))-FIND(" ",TRIM(RIGHT(B201,LEN(B201)-FIND(" ",B201)))))),TRIM(RIGHT(B201,LEN(B201)-FIND(" ",B201)))),FIND(" ",IF(FIND(" ",TRIM(RIGHT(B201,LEN(B201)-FIND(" ",B201))))<4,TRIM(RIGHT(TRIM(RIGHT(B201,LEN(B201)-FIND(" ",B201))),LEN(TRIM(RIGHT(B201,LEN(B201)-FIND(" ",B201))))-FIND(" ",TRIM(RIGHT(B201,LEN(B201)-FIND(" ",B201)))))),TRIM(RIGHT(B201,LEN(B201)-FIND(" ",B201))))))))-2))*1),TRIM(LEFT(IF(FIND(" ",TRIM(RIGHT(B201,LEN(B201)-FIND(" ",B201))))<4,TRIM(RIGHT(TRIM(RIGHT(B201,LEN(B201)-FIND(" ",B201))),LEN(TRIM(RIGHT(B201,LEN(B201)-FIND(" ",B201))))-FIND(" ",TRIM(RIGHT(B201,LEN(B201)-FIND(" ",B201)))))),TRIM(RIGHT(B201,LEN(B201)-FIND(" ",B201)))),FIND(" ",IF(FIND(" ",TRIM(RIGHT(B201,LEN(B201)-FIND(" ",B201))))<4,TRIM(RIGHT(TRIM(RIGHT(B201,LEN(B201)-FIND(" ",B201))),LEN(TRIM(RIGHT(B201,LEN(B201)-FIND(" ",B201))))-FIND(" ",TRIM(RIGHT(B201,LEN(B201)-FIND(" ",B201)))))),TRIM(RIGHT(B201,LEN(B201)-FIND(" ",B201))))))),(LEFT(TRIM(LEFT(IF(FIND(" ",TRIM(RIGHT(B201,LEN(B201)-FIND(" ",B201))))<4,TRIM(RIGHT(TRIM(RIGHT(B201,LEN(B201)-FIND(" ",B201))),LEN(TRIM(RIGHT(B201,LEN(B201)-FIND(" ",B201))))-FIND(" ",TRIM(RIGHT(B201,LEN(B201)-FIND(" ",B201)))))),TRIM(RIGHT(B201,LEN(B201)-FIND(" ",B201)))),FIND(" ",IF(FIND(" ",TRIM(RIGHT(B201,LEN(B201)-FIND(" ",B201))))<4,TRIM(RIGHT(TRIM(RIGHT(B201,LEN(B201)-FIND(" ",B201))),LEN(TRIM(RIGHT(B201,LEN(B201)-FIND(" ",B201))))-FIND(" ",TRIM(RIGHT(B201,LEN(B201)-FIND(" ",B201)))))),TRIM(RIGHT(B201,LEN(B201)-FIND(" ",B201))))))),LEN(TRIM(LEFT(IF(FIND(" ",TRIM(RIGHT(B201,LEN(B201)-FIND(" ",B201))))<4,TRIM(RIGHT(TRIM(RIGHT(B201,LEN(B201)-FIND(" ",B201))),LEN(TRIM(RIGHT(B201,LEN(B201)-FIND(" ",B201))))-FIND(" ",TRIM(RIGHT(B201,LEN(B201)-FIND(" ",B201)))))),TRIM(RIGHT(B201,LEN(B201)-FIND(" ",B201)))),FIND(" ",IF(FIND(" ",TRIM(RIGHT(B201,LEN(B201)-FIND(" ",B201))))<4,TRIM(RIGHT(TRIM(RIGHT(B201,LEN(B201)-FIND(" ",B201))),LEN(TRIM(RIGHT(B201,LEN(B201)-FIND(" ",B201))))-FIND(" ",TRIM(RIGHT(B201,LEN(B201)-FIND(" ",B201)))))),TRIM(RIGHT(B201,LEN(B201)-FIND(" ",B201))))))))-2))*1)) -> Z | M201: =IF(B201="","Z",1*(TRIM(LEFT(B201,FIND(" ",B201))))) -> Z
L202: Z | M202: Z
H203: =IF(I203="","",IF(J203="",I203,I203&" "&TEXT(J203,"m/d/yyyy"))) ->  | L203: Z | M203: Z
L204: Z | M204: Z
L205: Z | M205: Z
... 4 more rows

Sheet BSS-2
F2: Do not input or erase anything in Column F or Column G
B6: Last Updated on 10/17/2016 10:43:31 AM
B9: Permitted Bike Share Stations | H9: Neighborhoods
B10: Location | C10: Site | D10: Permit | E10: Bike Docks | F10: Sort 2 | G10: Sort 3 | H10: Sort 1
B11: Belltown | F11: 0 | G11: 0 | H11: Belltown
B12: 2137 2nd Ave | C12: On-Street | D12: 236444 | E12: 14 | F12: =IF(B12="","Z",IF(ISERROR((LEFT(TRIM(LEFT(IF(FIND(" ",TRIM(RIGHT(B12,LEN(B12)-FIND(" ",B12))))<4,TRIM(RIGHT(TRIM(RIGHT(B12,LEN(B12)-FIND(" ",B12))),LEN(TRIM(RIGHT(B12,LEN(B12)-FIND(" ",B12))))-FIND(" ",TRIM(RIGHT(B12,LEN(B12)-FIND(" ",B12)))))),TRIM(RIGHT(B12,LEN(B12)-FIND(" ",B12)))),FIND(" ",IF(FIND(" ",TRIM(RIGHT(B12,LEN(B12)-FIND(" ",B12))))<4,TRIM(RIGHT(TRIM(RIGHT(B12,LEN(B12)-FIND(" ",B12))),LEN(TRIM(RIGHT(B12,LEN(B12)-FIND(" ",B12))))-FIND(" ",TRIM(RIGHT(B12,LEN(B12)-FIND(" ",B12)))))),TRIM(RIGHT(B12,LEN(B12)-FIND(" ",B12))))))),LEN(TRIM(LEFT(IF(FIND(" ",TRIM(RIGHT(B12,LEN(B12)-FIND(" ",B12))))<4,TRIM(RIGHT(TRIM(RIGHT(B12,LEN(B12)-FIND(" ",B12))),LEN(TRIM(RIGHT(B12,LEN(B12)-FIND(" ",B12))))-FIND(" ",TRIM(RIGHT(B12,LEN(B12)-FIND(" ",B12)))))),TRIM(RIGHT(B12,LEN(B12)-FIND(" ",B12)))),FIND(" ",IF(FIND(" ",TRIM(RIGHT(B12,LEN(B12)-FIND(" ",B12))))<4,TRIM(RIGHT(TRIM(RIGHT(B12,LEN(B12)-FIND(" ",B12))),LEN(TRIM(RIGHT(B12,LEN(B12)-FIND(" ",B12))))-FIND(" ",TRIM(RIGHT(B12,LEN(B12)-FIND(" ",B12)))))),TRIM(RIGHT(B12,LEN(B12)-FIND(" ",B12))))))))-2))*1),TRIM(LEFT(IF(FIND(" ",TRIM(RIGHT(B12,LEN(B12)-FIND(" ",B12))))<4,TRIM(RIGHT(TRIM(RIGHT(B12,LEN(B12)-FIND(" ",B12))),LEN(TRIM(RIGHT(B12,LEN(B12)-FIND(" ",B12))))-FIND(" ",TRIM(RIGHT(B12,LEN(B12)-FIND(" ",B12)))))),TRIM(RIGHT(B12,LEN(B12)-FIND(" ",B12)))),FIND(" ",IF(FIND(" ",TRIM(RIGHT(B12,LEN(B12)-FIND(" ",B12))))<4,TRIM(RIGHT(TRIM(RIGHT(B12,LEN(B12)-FIND(" ",B12))),LEN(TRIM(RIGHT(B12,LEN(B12)-FIND(" ",B12))))-FIND(" ",TRIM(RIGHT(B12,LEN(B12)-FIND(" ",B12)))))),TRIM(RIGHT(B12,LEN(B12)-FIND(" ",B12))))))),(LEFT(TRIM(LEFT(IF(FIND(" ",TRIM(RIGHT(B12,LEN(B12)-FIND(" ",B12))))<4,TRIM(RIGHT(TRIM(RIGHT(B12,LEN(B12)-FIND(" ",B12))),LEN(TRIM(RIGHT(B12,LEN(B12)-FIND(" ",B12))))-FIND(" ",TRIM(RIGHT(B12,LEN(B12)-FIND(" ",B12)))))),TRIM(RIGHT(B12,LEN(B12)-FIND(" ",B12)))),FIND(" ",IF(FIND(" ",TRIM(RIGHT(B12,LEN(B12)-FIND(" ",B12))))<4,TRIM(RIGHT(TRIM(RIGHT(B12,LEN(B12)-FIND(" ",B12))),LEN(TRIM(RIGHT(B12,LEN(B12)-FIND(" ",B12))))-FIND(" ",TRIM(RIGHT(B12,LEN(B12)-FIND(" ",B12)))))),TRIM(RIGHT(B12,LEN(B12)-FIND(" ",B12))))))),LEN(TRIM(LEFT(IF(FIND(" ",TRIM(RIGHT(B12,LEN(B12)-FIND(" ",B12))))<4,TRIM(RIGHT(TRIM(RIGHT(B12,LEN(B12)-FIND(" ",B12))),LEN(TRIM(RIGHT(B12,LEN(B12)-FIND(" ",B12))))-FIND(" ",TRIM(RIGHT(B12,LEN(B12)-FIND(" ",B12)))))),TRIM(RIGHT(B12,LEN(B12)-FIND(" ",B12)))),FIND(" ",IF(FIND(" ",TRIM(RIGHT(B12,LEN(B12)-FIND(" ",B12))))<4,TRIM(RIGHT(TRIM(RIGHT(B12,LEN(B12)-FIND(" ",B12))),LEN(TRIM(RIGHT(B12,LEN(B12)-FIND(" ",B12))))-FIND(" ",TRIM(RIGHT(B12,LEN(B12)-FIND(" ",B12)))))),TRIM(RIGHT(B12,LEN(B12)-FIND(" ",B12))))))))-2))*1)) -> 2 | G12: =IF(B12="","Z",1*(TRIM(LEFT(B12,FIND(" ",B12))))) -> 2137 | H12: Belltown
B13: 2506 2nd Ave | C13: On-Street | D13: 236442 | E13: 16 | F13: =IF(B13="","Z",IF(ISERROR((LEFT(TRIM(LEFT(IF(FIND(" ",TRIM(RIGHT(B13,LEN(B13)-FIND(" ",B13))))<4,TRIM(RIGHT(TRIM(RIGHT(B13,LEN(B13)-FIND(" ",B13))),LEN(TRIM(RIGHT(B13,LEN(B13)-FIND(" ",B13))))-FIND(" ",TRIM(RIGHT(B13,LEN(B13)-FIND(" ",B13)))))),TRIM(RIGHT(B13,LEN(B13)-FIND(" ",B13)))),FIND(" ",IF(FIND(" ",TRIM(RIGHT(B13,LEN(B13)-FIND(" ",B13))))<4,TRIM(RIGHT(TRIM(RIGHT(B13,LEN(B13)-FIND(" ",B13))),LEN(TRIM(RIGHT(B13,LEN(B13)-FIND(" ",B13))))-FIND(" ",TRIM(RIGHT(B13,LEN(B13)-FIND(" ",B13)))))),TRIM(RIGHT(B13,LEN(B13)-FIND(" ",B13))))))),LEN(TRIM(LEFT(IF(FIND(" ",TRIM(RIGHT(B13,LEN(B13)-FIND(" ",B13))))<4,TRIM(RIGHT(TRIM(RIGHT(B13,LEN(B13)-FIND(" ",B13))),LEN(TRIM(RIGHT(B13,LEN(B13)-FIND(" ",B13))))-FIND(" ",TRIM(RIGHT(B13,LEN(B13)-FIND(" ",B13)))))),TRIM(RIGHT(B13,LEN(B13)-FIND(" ",B13)))),FIND(" ",IF(FIND(" ",TRIM(RIGHT(B13,LEN(B13)-FIND(" ",B13))))<4,TRIM(RIGHT(TRIM(RIGHT(B13,LEN(B13)-FIND(" ",B13))),LEN(TRIM(RIGHT(B13,LEN(B13)-FIND(" ",B13))))-FIND(" ",TRIM(RIGHT(B13,LEN(B13)-FIND(" ",B13)))))),TRIM(RIGHT(B13,LEN(B13)-FIND(" ",B13))))))))-2))*1),TRIM(LEFT(IF(FIND(" ",TRIM(RIGHT(B13,LEN(B13)-FIND(" ",B13))))<4,TRIM(RIGHT(TRIM(RIGHT(B13,LEN(B13)-FIND(" ",B13))),LEN(TRIM(RIGHT(B13,LEN(B13)-FIND(" ",B13))))-FIND(" ",TRIM(RIGHT(B13,LEN(B13)-FIND(" ",B13)))))),TRIM(RIGHT(B13,LEN(B13)-FIND(" ",B13)))),FIND(" ",IF(FIND(" ",TRIM(RIGHT(B13,LEN(B13)-FIND(" ",B13))))<4,TRIM(RIGHT(TRIM(RIGHT(B13,LEN(B13)-FIND(" ",B13))),LEN(TRIM(RIGHT(B13,LEN(B13)-FIND(" ",B13))))-FIND(" ",TRIM(RIGHT(B13,LEN(B13)-FIND(" ",B13)))))),TRIM(RIGHT(B13,LEN(B13)-FIND(" ",B13))))))),(LEFT(TRIM(LEFT(IF(FIND(" ",TRIM(RIGHT(B13,LEN(B13)-FIND(" ",B13))))<4,TRIM(RIGHT(TRIM(RIGHT(B13,LEN(B13)-FIND(" ",B13))),LEN(TRIM(RIGHT(B13,LEN(B13)-FIND(" ",B13))))-FIND(" ",TRIM(RIGHT(B13,LEN(B13)-FIND(" ",B13)))))),TRIM(RIGHT(B13,LEN(B13)-FIND(" ",B13)))),FIND(" ",IF(FIND(" ",TRIM(RIGHT(B13,LEN(B13)-FIND(" ",B13))))<4,TRIM(RIGHT(TRIM(RIGHT(B13,LEN(B13)-FIND(" ",B13))),LEN(TRIM(RIGHT(B13,LEN(B13)-FIND(" ",B13))))-FIND(" ",TRIM(RIGHT(B13,LEN(B13)-FIND(" ",B13)))))),TRIM(RIGHT(B13,LEN(B13)-FIND(" ",B13))))))),LEN(TRIM(LEFT(IF(FIND(" ",TRIM(RIGHT(B13,LEN(B13)-FIND(" ",B13))))<4,TRIM(RIGHT(TRIM(RIGHT(B13,LEN(B13)-FIND(" ",B13))),LEN(TRIM(RIGHT(B13,LEN(B13)-FIND(" ",B13))))-FIND(" ",TRIM(RIGHT(B13,LEN(B13)-FIND(" ",B13)))))),TRIM(RIGHT(B13,LEN(B13)-FIND(" ",B13)))),FIND(" ",IF(FIND(" ",TRIM(RIGHT(B13,LEN(B13)-FIND(" ",B13))))<4,TRIM(RIGHT(TRIM(RIGHT(B13,LEN(B13)-FIND(" ",B13))),LEN(TRIM(RIGHT(B13,LEN(B13)-FIND(" ",B13))))-FIND(" ",TRIM(RIGHT(B13,LEN(B13)-FIND(" ",B13)))))),TRIM(RIGHT(B13,LEN(B13)-FIND(" ",B13))))))))-2))*1)) -> 2 | G13: =IF(B13="","Z",1*(TRIM(LEFT(B13,FIND(" ",B13))))) -> 2506 | H13: Belltown
B14: 2901 3rd Ave | C14: On-Street | D14: 236440 | E14: 18 | F14: =IF(B14="","Z",IF(ISERROR((LEFT(TRIM(LEFT(IF(FIND(" ",TRIM(RIGHT(B14,LEN(B14)-FIND(" ",B14))))<4,TRIM(RIGHT(TRIM(RIGHT(B14,LEN(B14)-FIND(" ",B14))),LEN(TRIM(RIGHT(B14,LEN(B14)-FIND(" ",B14))))-FIND(" ",TRIM(RIGHT(B14,LEN(B14)-FIND(" ",B14)))))),TRIM(RIGHT(B14,LEN(B14)-FIND(" ",B14)))),FIND(" ",IF(FIND(" ",TRIM(RIGHT(B14,LEN(B14)-FIND(" ",B14))))<4,TRIM(RIGHT(TRIM(RIGHT(B14,LEN(B14)-FIND(" ",B14))),LEN(TRIM(RIGHT(B14,LEN(B14)-FIND(" ",B14))))-FIND(" ",TRIM(RIGHT(B14,LEN(B14)-FIND(" ",B14)))))),TRIM(RIGHT(B14,LEN(B14)-FIND(" ",B14))))))),LEN(TRIM(LEFT(IF(FIND(" ",TRIM(RIGHT(B14,LEN(B14)-FIND(" ",B14))))<4,TRIM(RIGHT(TRIM(RIGHT(B14,LEN(B14)-FIND(" ",B14))),LEN(TRIM(RIGHT(B14,LEN(B14)-FIND(" ",B14))))-FIND(" ",TRIM(RIGHT(B14,LEN(B14)-FIND(" ",B14)))))),TRIM(RIGHT(B14,LEN(B14)-FIND(" ",B14)))),FIND(" ",IF(FIND(" ",TRIM(RIGHT(B14,LEN(B14)-FIND(" ",B14))))<4,TRIM(RIGHT(TRIM(RIGHT(B14,LEN(B14)-FIND(" ",B14))),LEN(TRIM(RIGHT(B14,LEN(B14)-FIND(" ",B14))))-FIND(" ",TRIM(RIGHT(B14,LEN(B14)-FIND(" ",B14)))))),TRIM(RIGHT(B14,LEN(B14)-FIND(" ",B14))))))))-2))*1),TRIM(LEFT(IF(FIND(" ",TRIM(RIGHT(B14,LEN(B14)-FIND(" ",B14))))<4,TRIM(RIGHT(TRIM(RIGHT(B14,LEN(B14)-FIND(" ",B14))),LEN(TRIM(RIGHT(B14,LEN(B14)-FIND(" ",B14))))-FIND(" ",TRIM(RIGHT(B14,LEN(B14)-FIND(" ",B14)))))),TRIM(RIGHT(B14,LEN(B14)-FIND(" ",B14)))),FIND(" ",IF(FIND(" ",TRIM(RIGHT(B14,LEN(B14)-FIND(" ",B14))))<4,TRIM(RIGHT(TRIM(RIGHT(B14,LEN(B14)-FIND(" ",B14))),LEN(TRIM(RIGHT(B14,LEN(B14)-FIND(" ",B14))))-FIND(" ",TRIM(RIGHT(B14,LEN(B14)-FIND(" ",B14)))))),TRIM(RIGHT(B14,LEN(B14)-FIND(" ",B14))))))),(LEFT(TRIM(LEFT(IF(FIND(" ",TRIM(RIGHT(B14,LEN(B14)-FIND(" ",B14))))<4,TRIM(RIGHT(TRIM(RIGHT(B14,LEN(B14)-FIND(" ",B14))),LEN(TRIM(RIGHT(B14,LEN(B14)-FIND(" ",B14))))-FIND(" ",TRIM(RIGHT(B14,LEN(B14)-FIND(" ",B14)))))),TRIM(RIGHT(B14,LEN(B14)-FIND(" ",B14)))),FIND(" ",IF(FIND(" ",TRIM(RIGHT(B14,LEN(B14)-FIND(" ",B14))))<4,TRIM(RIGHT(TRIM(RIGHT(B14,LEN(B14)-FIND(" ",B14))),LEN(TRIM(RIGHT(B14,LEN(B14)-FIND(" ",B14))))-FIND(" ",TRIM(RIGHT(B14,LEN(B14)-FIND(" ",B14)))))),TRIM(RIGHT(B14,LEN(B14)-FIND(" ",B14))))))),LEN(TRIM(LEFT(IF(FIND(" ",TRIM(RIGHT(B14,LEN(B14)-FIND(" ",B14))))<4,TRIM(RIGHT(TRIM(RIGHT(B14,LEN(B14)-FIND(" ",B14))),LEN(TRIM(RIGHT(B14,LEN(B14)-FIND(" ",B14))))-FIND(" ",TRIM(RIGHT(B14,LEN(B14)-FIND(" ",B14)))))),TRIM(RIGHT(B14,LEN(B14)-FIND(" ",B14)))),FIND(" ",IF(FIND(" ",TRIM(RIGHT(B14,LEN(B14)-FIND(" ",B14))))<4,TRIM(RIGHT(TRIM(RIGHT(B14,LEN(B14)-FIND(" ",B14))),LEN(TRIM(RIGHT(B14,LEN(B14)-FIND(" ",B14))))-FIND(" ",TRIM(RIGHT(B14,LEN(B14)-FIND(" ",B14)))))),TRIM(RIGHT(B14,LEN(B14)-FIND(" ",B14))))))))-2))*1)) -> 3 | G14: =IF(B14="","Z",1*(TRIM(LEFT(B14,FIND(" ",B14))))) -> 2901 | H14: Belltown
B15: 2200 6th Ave | C15: On-Street | D15: 236443 | E15: 16 | F15: =IF(B15="","Z",IF(ISERROR((LEFT(TRIM(LEFT(IF(FIND(" ",TRIM(RIGHT(B15,LEN(B15)-FIND(" ",B15))))<4,TRIM(RIGHT(TRIM(RIGHT(B15,LEN(B15)-FIND(" ",B15))),LEN(TRIM(RIGHT(B15,LEN(B15)-FIND(" ",B15))))-FIND(" ",TRIM(RIGHT(B15,LEN(B15)-FIND(" ",B15)))))),TRIM(RIGHT(B15,LEN(B15)-FIND(" ",B15)))),FIND(" ",IF(FIND(" ",TRIM(RIGHT(B15,LEN(B15)-FIND(" ",B15))))<4,TRIM(RIGHT(TRIM(RIGHT(B15,LEN(B15)-FIND(" ",B15))),LEN(TRIM(RIGHT(B15,LEN(B15)-FIND(" ",B15))))-FIND(" ",TRIM(RIGHT(B15,LEN(B15)-FIND(" ",B15)))))),TRIM(RIGHT(B15,LEN(B15)-FIND(" ",B15))))))),LEN(TRIM(LEFT(IF(FIND(" ",TRIM(RIGHT(B15,LEN(B15)-FIND(" ",B15))))<4,TRIM(RIGHT(TRIM(RIGHT(B15,LEN(B15)-FIND(" ",B15))),LEN(TRIM(RIGHT(B15,LEN(B15)-FIND(" ",B15))))-FIND(" ",TRIM(RIGHT(B15,LEN(B15)-FIND(" ",B15)))))),TRIM(RIGHT(B15,LEN(B15)-FIND(" ",B15)))),FIND(" ",IF(FIND(" ",TRIM(RIGHT(B15,LEN(B15)-FIND(" ",B15))))<4,TRIM(RIGHT(TRIM(RIGHT(B15,LEN(B15)-FIND(" ",B15))),LEN(TRIM(RIGHT(B15,LEN(B15)-FIND(" ",B15))))-FIND(" ",TRIM(RIGHT(B15,LEN(B15)-FIND(" ",B15)))))),TRIM(RIGHT(B15,LEN(B15)-FIND(" ",B15))))))))-2))*1),TRIM(LEFT(IF(FIND(" ",TRIM(RIGHT(B15,LEN(B15)-FIND(" ",B15))))<4,TRIM(RIGHT(TRIM(RIGHT(B15,LEN(B15)-FIND(" ",B15))),LEN(TRIM(RIGHT(B15,LEN(B15)-FIND(" ",B15))))-FIND(" ",TRIM(RIGHT(B15,LEN(B15)-FIND(" ",B15)))))),TRIM(RIGHT(B15,LEN(B15)-FIND(" ",B15)))),FIND(" ",IF(FIND(" ",TRIM(RIGHT(B15,LEN(B15)-FIND(" ",B15))))<4,TRIM(RIGHT(TRIM(RIGHT(B15,LEN(B15)-FIND(" ",B15))),LEN(TRIM(RIGHT(B15,LEN(B15)-FIND(" ",B15))))-FIND(" ",TRIM(RIGHT(B15,LEN(B15)-FIND(" ",B15)))))),TRIM(RIGHT(B15,LEN(B15)-FIND(" ",B15))))))),(LEFT(TRIM(LEFT(IF(FIND(" ",TRIM(RIGHT(B15,LEN(B15)-FIND(" ",B15))))<4,TRIM(RIGHT(TRIM(RIGHT(B15,LEN(B15)-FIND(" ",B15))),LEN(TRIM(RIGHT(B15,LEN(B15)-FIND(" ",B15))))-FIND(" ",TRIM(RIGHT(B15,LEN(B15)-FIND(" ",B15)))))),TRIM(RIGHT(B15,LEN(B15)-FIND(" ",B15)))),FIND(" ",IF(FIND(" ",TRIM(RIGHT(B15,LEN(B15)-FIND(" ",B15))))<4,TRIM(RIGHT(TRIM(RIGHT(B15,LEN(B15)-FIND(" ",B15))),LEN(TRIM(RIGHT(B15,LEN(B15)-FIND(" ",B15))))-FIND(" ",TRIM(RIGHT(B15,LEN(B15)-FIND(" ",B15)))))),TRIM(RIGHT(B15,LEN(B15)-FIND(" ",B15))))))),LEN(TRIM(LEFT(IF(FIND(" ",TRIM(RIGHT(B15,LEN(B15)-FIND(" ",B15))))<4,TRIM(RIGHT(TRIM(RIGHT(B15,LEN(B15)-FIND(" ",B15))),LEN(TRIM(RIGHT(B15,LEN(B15)-FIND(" ",B15))))-FIND(" ",TRIM(RIGHT(B15,LEN(B15)-FIND(" ",B15)))))),TRIM(RIGHT(B15,LEN(B15)-FIND(" ",B15)))),FIND(" ",IF(FIND(" ",TRIM(RIGHT(B15,LEN(B15)-FIND(" ",B15))))<4,TRIM(RIGHT(TRIM(RIGHT(B15,LEN(B15)-FIND(" ",B15))),LEN(TRIM(RIGHT(B15,LEN(B15)-FIND(" ",B15))))-FIND(" ",TRIM(RIGHT(B15,LEN(B15)-FIND(" ",B15)))))),TRIM(RIGHT(B15,LEN(B15)-FIND(" ",B15))))))))-2))*1)) -> 6 | G15: =IF(B15="","Z",1*(TRIM(LEFT(B15,FIND(" ",B15))))) -> 2200 | H15: Belltown
B16: Capitol Hill | F16: 0 | G16: 0 | H16: Capitol Hill
B17: 527 12th Ave E | C17: On-Street | D17: 236455 | E17: 16 | F17: =IF(B17="","Z",IF(ISERROR((LEFT(TRIM(LEFT(IF(FIND(" ",TRIM(RIGHT(B17,LEN(B17)-FIND(" ",B17))))<4,TRIM(RIGHT(TRIM(RIGHT(B17,LEN(B17)-FIND(" ",B17))),LEN(TRIM(RIGHT(B17,LEN(B17)-FIND(" ",B17))))-FIND(" ",TRIM(RIGHT(B17,LEN(B17)-FIND(" ",B17)))))),TRIM(RIGHT(B17,LEN(B17)-FIND(" ",B17)))),FIND(" ",IF(FIND(" ",TRIM(RIGHT(B17,LEN(B17)-FIND(" ",B17))))<4,TRIM(RIGHT(TRIM(RIGHT(B17,LEN(B17)-FIND(" ",B17))),LEN(TRIM(RIGHT(B17,LEN(B17)-FIND(" ",B17))))-FIND(" ",TRIM(RIGHT(B17,LEN(B17)-FIND(" ",B17)))))),TRIM(RIGHT(B17,LEN(B17)-FIND(" ",B17))))))),LEN(TRIM(LEFT(IF(FIND(" ",TRIM(RIGHT(B17,LEN(B17)-FIND(" ",B17))))<4,TRIM(RIGHT(TRIM(RIGHT(B17,LEN(B17)-FIND(" ",B17))),LEN(TRIM(RIGHT(B17,LEN(B17)-FIND(" ",B17))))-FIND(" ",TRIM(RIGHT(B17,LEN(B17)-FIND(" ",B17)))))),TRIM(RIGHT(B17,LEN(B17)-FIND(" ",B17)))),FIND(" ",IF(FIND(" ",TRIM(RIGHT(B17,LEN(B17)-FIND(" ",B17))))<4,TRIM(RIGHT(TRIM(RIGHT(B17,LEN(B17)-FIND(" ",B17))),LEN(TRIM(RIGHT(B17,LEN(B17)-FIND(" ",B17))))-FIND(" ",TRIM(RIGHT(B17,LEN(B17)-FIND(" ",B17)))))),TRIM(RIGHT(B17,LEN(B17)-FIND(" ",B17))))))))-2))*1),TRIM(LEFT(IF(FIND(" ",TRIM(RIGHT(B17,LEN(B17)-FIND(" ",B17))))<4,TRIM(RIGHT(TRIM(RIGHT(B17,LEN(B17)-FIND(" ",B17))),LEN(TRIM(RIGHT(B17,LEN(B17)-FIND(" ",B17))))-FIND(" ",TRIM(RIGHT(B17,LEN(B17)-FIND(" ",B17)))))),TRIM(RIGHT(B17,LEN(B17)-FIND(" ",B17)))),FIND(" ",IF(FIND(" ",TRIM(RIGHT(B17,LEN(B17)-FIND(" ",B17))))<4,TRIM(RIGHT(TRIM(RIGHT(B17,LEN(B17)-FIND(" ",B17))),LEN(TRIM(RIGHT(B17,LEN(B17)-FIND(" ",B17))))-FIND(" ",TRIM(RIGHT(B17,LEN(B17)-FIND(" ",B17)))))),TRIM(RIGHT(B17,LEN(B17)-FIND(" ",B17))))))),(LEFT(TRIM(LEFT(IF(FIND(" ",TRIM(RIGHT(B17,LEN(B17)-FIND(" ",B17))))<4,TRIM(RIGHT(TRIM(RIGHT(B17,LEN(B17)-FIND(" ",B17))),LEN(TRIM(RIGHT(B17,LEN(B17)-FIND(" ",B17))))-FIND(" ",TRIM(RIGHT(B17,LEN(B17)-FIND(" ",B17)))))),TRIM(RIGHT(B17,LEN(B17)-FIND(" ",B17)))),FIND(" ",IF(FIND(" ",TRIM(RIGHT(B17,LEN(B17)-FIND(" ",B17))))<4,TRIM(RIGHT(TRIM(RIGHT(B17,LEN(B17)-FIND(" ",B17))),LEN(TRIM(RIGHT(B17,LEN(B17)-FIND(" ",B17))))-FIND(" ",TRIM(RIGHT(B17,LEN(B17)-FIND(" ",B17)))))),TRIM(RIGHT(B17,LEN(B17)-FIND(" ",B17))))))),LEN(TRIM(LEFT(IF(FIND(" ",TRIM(RIGHT(B17,LEN(B17)-FIND(" ",B17))))<4,TRIM(RIGHT(TRIM(RIGHT(B17,LEN(B17)-FIND(" ",B17))),LEN(TRIM(RIGHT(B17,LEN(B17)-FIND(" ",B17))))-FIND(" ",TRIM(RIGHT(B17,LEN(B17)-FIND(" ",B17)))))),TRIM(RIGHT(B17,LEN(B17)-FIND(" ",B17)))),FIND(" ",IF(FIND(" ",TRIM(RIGHT(B17,LEN(B17)-FIND(" ",B17))))<4,TRIM(RIGHT(TRIM(RIGHT(B17,LEN(B17)-FIND(" ",B17))),LEN(TRIM(RIGHT(B17,LEN(B17)-FIND(" ",B17))))-FIND(" ",TRIM(RIGHT(B17,LEN(B17)-FIND(" ",B17)))))),TRIM(RIGHT(B17,LEN(B17)-FIND(" ",B17))))))))-2))*1)) -> 12 | G17: =IF(B17="","Z",1*(TRIM(LEFT(B17,FIND(" ",B17))))) -> 527 | H17: Capitol Hill
B18: 1817 12th Ave | C18: On-Street | D18: 236403 | E18: 16 | F18: 12 | G18: 1817 | H18: Capitol Hill
B19: 1601 16th Ave | C19: On-Street | D19: 236404 | E19: 18 | F19: 16 | G19: 1601 | H19: Capitol Hill
B20: 401 Broadway E | C20: Sidewalk | D20: 236399 | E20: 20 | F20: Broadway | G20: 401 | H20: Capitol Hill
B21: 504 E Denny Way | C21: On-Street | D21: 236398 | E21: 16 | F21: Denny | G21: 504 | H21: Capitol Hill
B22: 1500 Harvard Ave | C22: On-Street | D22: 236406 | E22: 16 | F22: Harvard | G22: 1500 | H22: Capitol Hill
B23: 1410 E John St | C23: On-Street | D23: 236402 | E23: 16 | F23: John | G23: 1410 | H23: Capitol Hill
B24: 400 E Pine St | C24: On-Street | D24: 236452 | E24: 14 | F24: Pine | G24: 400 | H24: Capitol Hill
B25: 1110 E Pine St | C25: On-Street | D25: 236405 | E25: 26 | F25: Pine | G25: 1110 | H25: Capitol Hill
B26: 504 E Republican St | C26: On-Street | D26: 236400 | E26: 16 | F26: Republican | G26: 504 | H26: Capitol Hill
B27: 1830 Broadway | C27: Sidewalk | D27: 299442 | E27: 18 | G27: 1830 | H27: Capitol Hill
B28: Central Business District | F28: 0 | G28: 0 | H28: Central Business District
B29: 909 1st Ave | C29: Sidewalk | D29: 236463 | E29: 20 | F29: =IF(B29="","Z",IF(ISERROR((LEFT(TRIM(LEFT(IF(FIND(" ",TRIM(RIGHT(B29,LEN(B29)-FIND(" ",B29))))<4,TRIM(RIGHT(TRIM(RIGHT(B29,LEN(B29)-FIND(" ",B29))),LEN(TRIM(RIGHT(B29,LEN(B29)-FIND(" ",B29))))-FIND(" ",TRIM(RIGHT(B29,LEN(B29)-FIND(" ",B29)))))),TRIM(RIGHT(B29,LEN(B29)-FIND(" ",B29)))),FIND(" ",IF(FIND(" ",TRIM(RIGHT(B29,LEN(B29)-FIND(" ",B29))))<4,TRIM(RIGHT(TRIM(RIGHT(B29,LEN(B29)-FIND(" ",B29))),LEN(TRIM(RIGHT(B29,LEN(B29)-FIND(" ",B29))))-FIND(" ",TRIM(RIGHT(B29,LEN(B29)-FIND(" ",B29)))))),TRIM(RIGHT(B29,LEN(B29)-FIND(" ",B29))))))),LEN(TRIM(LEFT(IF(FIND(" ",TRIM(RIGHT(B29,LEN(B29)-FIND(" ",B29))))<4,TRIM(RIGHT(TRIM(RIGHT(B29,LEN(B29)-FIND(" ",B29))),LEN(TRIM(RIGHT(B29,LEN(B29)-FIND(" ",B29))))-FIND(" ",TRIM(RIGHT(B29,LEN(B29)-FIND(" ",B29)))))),TRIM(RIGHT(B29,LEN(B29)-FIND(" ",B29)))),FIND(" ",IF(FIND(" ",TRIM(RIGHT(B29,LEN(B29)-FIND(" ",B29))))<4,TRIM(RIGHT(TRIM(RIGHT(B29,LEN(B29)-FIND(" ",B29))),LEN(TRIM(RIGHT(B29,LEN(B29)-FIND(" ",B29))))-FIND(" ",TRIM(RIGHT(B29,LEN(B29)-FIND(" ",B29)))))),TRIM(RIGHT(B29,LEN(B29)-FIND(" ",B29))))))))-2))*1),TRIM(LEFT(IF(FIND(" ",TRIM(RIGHT(B29,LEN(B29)-FIND(" ",B29))))<4,TRIM(RIGHT(TRIM(RIGHT(B29,LEN(B29)-FIND(" ",B29))),LEN(TRIM(RIGHT(B29,LEN(B29)-FIND(" ",B29))))-FIND(" ",TRIM(RIGHT(B29,LEN(B29)-FIND(" ",B29)))))),TRIM(RIGHT(B29,LEN(B29)-FIND(" ",B29)))),FIND(" ",IF(FIND(" ",TRIM(RIGHT(B29,LEN(B29)-FIND(" ",B29))))<4,TRIM(RIGHT(TRIM(RIGHT(B29,LEN(B29)-FIND(" ",B29))),LEN(TRIM(RIGHT(B29,LEN(B29)-FIND(" ",B29))))-FIND(" ",TRIM(RIGHT(B29,LEN(B29)-FIND(" ",B29)))))),TRIM(RIGHT(B29,LEN(B29)-FIND(" ",B29))))))),(LEFT(TRIM(LEFT(IF(FIND(" ",TRIM(RIGHT(B29,LEN(B29)-FIND(" ",B29))))<4,TRIM(RIGHT(TRIM(RIGHT(B29,LEN(B29)-FIND(" ",B29))),LEN(TRIM(RIGHT(B29,LEN(B29)-FIND(" ",B29))))-FIND(" ",TRIM(RIGHT(B29,LEN(B29)-FIND(" ",B29)))))),TRIM(RIGHT(B29,LEN(B29)-FIND(" ",B29)))),FIND(" ",IF(FIND(" ",TRIM(RIGHT(B29,LEN(B29)-FIND(" ",B29))))<4,TRIM(RIGHT(TRIM(RIGHT(B29,LEN(B29)-FIND(" ",B29))),LEN(TRIM(RIGHT(B29,LEN(B29)-FIND(" ",B29))))-FIND(" ",TRIM(RIGHT(B29,LEN(B29)-FIND(" ",B29)))))),TRIM(RIGHT(B29,LEN(B29)-FIND(" ",B29))))))),LEN(TRIM(LEFT(IF(FIND(" ",TRIM(RIGHT(B29,LEN(B29)-FIND(" ",B29))))<4,TRIM(RIGHT(TRIM(RIGHT(B29,LEN(B29)-FIND(" ",B29))),LEN(TRIM(RIGHT(B29,LEN(B29)-FIND(" ",B29))))-FIND(" ",TRIM(RIGHT(B29,LEN(B29)-FIND(" ",B29)))))),TRIM(RIGHT(B29,LEN(B29)-FIND(" ",B29)))),FIND(" ",IF(FIND(" ",TRIM(RIGHT(B29,LEN(B29)-FIND(" ",B29))))<4,TRIM(RIGHT(TRIM(RIGHT(B29,LEN(B29)-FIND(" ",B29))),LEN(TRIM(RIGHT(B29,LEN(B29)-FIND(" ",B29))))-FIND(" ",TRIM(RIGHT(B29,LEN(B29)-FIND(" ",B29)))))),TRIM(RIGHT(B29,LEN(B29)-FIND(" ",B29))))))))-2))*1)) -> 1 | G29: =IF(B29="","Z",1*(TRIM(LEFT(B29,FIND(" ",B29))))) -> 909 | H29: Central Business District
B30: 1102 2nd Ave | C30: Sidewalk | D30: 256542 | E30: 18 | F30: 2 | G30: 1102 | H30: Central Business District
B31: 1501 2nd Ave | C31: Sidewalk | D31: 268223 | E31: 18 | F31: 2 | G31: 1501 | H31: Central Business District
B32: 1530 2nd Ave | C32: Sidewalk | D32: 269523 | E32: 20 | F32: 2 | G32: 1530 | H32: Central Business District
B33: 600 4th Ave | C33: Sidewalk | D33: 236465 | E33: 20 | F33: 4 | G33: 600 | H33: Central Business District
B34: 1404 7th Ave | C34: Sidewalk | D34: 256541 | E34: 20 | F34: 7 | G34: 1404 | H34: Central Business District
B35: Chinatown/International District | F35: 0 | G35: 0 | H35: Chinatown/International District
B36: 419 6th Ave S | C36: On-Street | D36: 236468 | E36: 16 | F36: =IF(B36="","Z",IF(ISERROR((LEFT(TRIM(LEFT(IF(FIND(" ",TRIM(RIGHT(B36,LEN(B36)-FIND(" ",B36))))<4,TRIM(RIGHT(TRIM(RIGHT(B36,LEN(B36)-FIND(" ",B36))),LEN(TRIM(RIGHT(B36,LEN(B36)-FIND(" ",B36))))-FIND(" ",TRIM(RIGHT(B36,LEN(B36)-FIND(" ",B36)))))),TRIM(RIGHT(B36,LEN(B36)-FIND(" ",B36)))),FIND(" ",IF(FIND(" ",TRIM(RIGHT(B36,LEN(B36)-FIND(" ",B36))))<4,TRIM(RIGHT(TRIM(RIGHT(B36,LEN(B36)-FIND(" ",B36))),LEN(TRIM(RIGHT(B36,LEN(B36)-FIND(" ",B36))))-FIND(" ",TRIM(RIGHT(B36,LEN(B36)-FIND(" ",B36)))))),TRIM(RIGHT(B36,LEN(B36)-FIND(" ",B36))))))),LEN(TRIM(LEFT(IF(FIND(" ",TRIM(RIGHT(B36,LEN(B36)-FIND(" ",B36))))<4,TRIM(RIGHT(TRIM(RIGHT(B36,LEN(B36)-FIND(" ",B36))),LEN(TRIM(RIGHT(B36,LEN(B36)-FIND(" ",B36))))-FIND(" ",TRIM(RIGHT(B36,LEN(B36)-FIND(" ",B36)))))),TRIM(RIGHT(B36,LEN(B36)-FIND(" ",B36)))),FIND(" ",IF(FIND(" ",TRIM(RIGHT(B36,LEN(B36)-FIND(" ",B36))))<4,TRIM(RIGHT(TRIM(RIGHT(B36,LEN(B36)-FIND(" ",B36))),LEN(TRIM(RIGHT(B36,LEN(B36)-FIND(" ",B36))))-FIND(" ",TRIM(RIGHT(B36,LEN(B36)-FIND(" ",B36)))))),TRIM(RIGHT(B36,LEN(B36)-FIND(" ",B36))))))))-2))*1),TRIM(LEFT(IF(FIND(" ",TRIM(RIGHT(B36,LEN(B36)-FIND(" ",B36))))<4,TRIM(RIGHT(TRIM(RIGHT(B36,LEN(B36)-FIND(" ",B36))),LEN(TRIM(RIGHT(B36,LEN(B36)-FIND(" ",B36))))-FIND(" ",TRIM(RIGHT(B36,LEN(B36)-FIND(" ",B36)))))),TRIM(RIGHT(B36,LEN(B36)-FIND(" ",B36)))),FIND(" ",IF(FIND(" ",TRIM(RIGHT(B36,LEN(B36)-FIND(" ",B36))))<4,TRIM(RIGHT(TRIM(RIGHT(B36,LEN(B36)-FIND(" ",B36))),LEN(TRIM(RIGHT(B36,LEN(B36)-FIND(" ",B36))))-FIND(" ",TRIM(RIGHT(B36,LEN(B36)-FIND(" ",B36)))))),TRIM(RIGHT(B36,LEN(B36)-FIND(" ",B36))))))),(LEFT(TRIM(LEFT(IF(FIND(" ",TRIM(RIGHT(B36,LEN(B36)-FIND(" ",B36))))<4,TRIM(RIGHT(TRIM(RIGHT(B36,LEN(B36)-FIND(" ",B36))),LEN(TRIM(RIGHT(B36,LEN(B36)-FIND(" ",B36))))-FIND(" ",TRIM(RIGHT(B36,LEN(B36)-FIND(" ",B36)))))),TRIM(RIGHT(B36,LEN(B36)-FIND(" ",B36)))),FIND(" ",IF(FIND(" ",TRIM(RIGHT(B36,LEN(B36)-FIND(" ",B36))))<4,TRIM(RIGHT(TRIM(RIGHT(B36,LEN(B36)-FIND(" ",B36))),LEN(TRIM(RIGHT(B36,LEN(B36)-FIND(" ",B36))))-FIND(" ",TRIM(RIGHT(B36,LEN(B36)-FIND(" ",B36)))))),TRIM(RIGHT(B36,LEN(B36)-FIND(" ",B36))))))),LEN(TRIM(LEFT(IF(FIND(" ",TRIM(RIGHT(B36,LEN(B36)-FIND(" ",B36))))<4,TRIM(RIGHT(TRIM(RIGHT(B36,LEN(B36)-FIND(" ",B36))),LEN(TRIM(RIGHT(B36,LEN(B36)-FIND(" ",B36))))-FIND(" ",TRIM(RIGHT(B36,LEN(B36)-FIND(" ",B36)))))),TRIM(RIGHT(B36,LEN(B36)-FIND(" ",B36)))),FIND(" ",IF(FIND(" ",TRIM(RIGHT(B36,LEN(B36)-FIND(" ",B36))))<4,TRIM(RIGHT(TRIM(RIGHT(B36,LEN(B36)-FIND(" ",B36))),LEN(TRIM(RIGHT(B36,LEN(B36)-FIND(" ",B36))))-FIND(" ",TRIM(RIGHT(B36,LEN(B36)-FIND(" ",B36)))))),TRIM(RIGHT(B36,LEN(B36)-FIND(" ",B36))))))))-2))*1)) -> 6 | G36: =IF(B36="","Z",1*(TRIM(LEFT(B36,FIND(" ",B36))))) -> 419 | H36: Chinatown/International District
B37: Eastlake | F37: 0 | G37: 0 | H37: Eastlake
B38: 199 E Blaine St | C38: On-Street | D38: 236410 | E38: 18 | F38: =IF(B38="","Z",IF(ISERROR((LEFT(TRIM(LEFT(IF(FIND(" ",TRIM(RIGHT(B38,LEN(B38)-FIND(" ",B38))))<4,TRIM(RIGHT(TRIM(RIGHT(B38,LEN(B38)-FIND(" ",B38))),LEN(TRIM(RIGHT(B38,LEN(B38)-FIND(" ",B38))))-FIND(" ",TRIM(RIGHT(B38,LEN(B38)-FIND(" ",B38)))))),TRIM(RIGHT(B38,LEN(B38)-FIND(" ",B38)))),FIND(" ",IF(FIND(" ",TRIM(RIGHT(B38,LEN(B38)-FIND(" ",B38))))<4,TRIM(RIGHT(TRIM(RIGHT(B38,LEN(B38)-FIND(" ",B38))),LEN(TRIM(RIGHT(B38,LEN(B38)-FIND(" ",B38))))-FIND(" ",TRIM(RIGHT(B38,LEN(B38)-FIND(" ",B38)))))),TRIM(RIGHT(B38,LEN(B38)-FIND(" ",B38))))))),LEN(TRIM(LEFT(IF(FIND(" ",TRIM(RIGHT(B38,LEN(B38)-FIND(" ",B38))))<4,TRIM(RIGHT(TRIM(RIGHT(B38,LEN(B38)-FIND(" ",B38))),LEN(TRIM(RIGHT(B38,LEN(B38)-FIND(" ",B38))))-FIND(" ",TRIM(RIGHT(B38,LEN(B38)-FIND(" ",B38)))))),TRIM(RIGHT(B38,LEN(B38)-FIND(" ",B38)))),FIND(" ",IF(FIND(" ",TRIM(RIGHT(B38,LEN(B38)-FIND(" ",B38))))<4,TRIM(RIGHT(TRIM(RIGHT(B38,LEN(B38)-FIND(" ",B38))),LEN(TRIM(RIGHT(B38,LEN(B38)-FIND(" ",B38))))-FIND(" ",TRIM(RIGHT(B38,LEN(B38)-FIND(" ",B38)))))),TRIM(RIGHT(B38,LEN(B38)-FIND(" ",B38))))))))-2))*1),TRIM(LEFT(IF(FIND(" ",TRIM(RIGHT(B38,LEN(B38)-FIND(" ",B38))))<4,TRIM(RIGHT(TRIM(RIGHT(B38,LEN(B38)-FIND(" ",B38))),LEN(TRIM(RIGHT(B38,LEN(B38)-FIND(" ",B38))))-FIND(" ",TRIM(RIGHT(B38,LEN(B38)-FIND(" ",B38)))))),TRIM(RIGHT(B38,LEN(B38)-FIND(" ",B38)))),FIND(" ",IF(FIND(" ",TRIM(RIGHT(B38,LEN(B38)-FIND(" ",B38))))<4,TRIM(RIGHT(TRIM(RIGHT(B38,LEN(B38)-FIND(" ",B38))),LEN(TRIM(RIGHT(B38,LEN(B38)-FIND(" ",B38))))-FIND(" ",TRIM(RIGHT(B38,LEN(B38)-FIND(" ",B38)))))),TRIM(RIGHT(B38,LEN(B38)-FIND(" ",B38))))))),(LEFT(TRIM(LEFT(IF(FIND(" ",TRIM(RIGHT(B38,LEN(B38)-FIND(" ",B38))))<4,TRIM(RIGHT(TRIM(RIGHT(B38,LEN(B38)-FIND(" ",B38))),LEN(TRIM(RIGHT(B38,LEN(B38)-FIND(" ",B38))))-FIND(" ",TRIM(RIGHT(B38,LEN(B38)-FIND(" ",B38)))))),TRIM(RIGHT(B38,LEN(B38)-FIND(" ",B38)))),FIND(" ",IF(FIND(" ",TRIM(RIGHT(B38,LEN(B38)-FIND(" ",B38))))<4,TRIM(RIGHT(TRIM(RIGHT(B38,LEN(B38)-FIND(" ",B38))),LEN(TRIM(RIGHT(B38,LEN(B38)-FIND(" ",B38))))-FIND(" ",TRIM(RIGHT(B38,LEN(B38)-FIND(" ",B38)))))),TRIM(RIGHT(B38,LEN(B38)-FIND(" ",B38))))))),LEN(TRIM(LEFT(IF(FIND(" ",TRIM(RIGHT(B38,LEN(B38)-FIND(" ",B38))))<4,TRIM(RIGHT(TRIM(RIGHT(B38,LEN(B38)-FIND(" ",B38))),LEN(TRIM(RIGHT(B38,LEN(B38)-FIND(" ",B38))))-FIND(" ",TRIM(RIGHT(B38,LEN(B38)-FIND(" ",B38)))))),TRIM(RIGHT(B38,LEN(B38)-FIND(" ",B38)))),FIND(" ",IF(FIND(" ",TRIM(RIGHT(B38,LEN(B38)-FIND(" ",B38))))<4,TRIM(RIGHT(TRIM(RIGHT(B38,LEN(B38)-FIND(" ",B38))),LEN(TRIM(RIGHT(B38,LEN(B38)-FIND(" ",B38))))-FIND(" ",TRIM(RIGHT(B38,LEN(B38)-FIND(" ",B38)))))),TRIM(RIGHT(B38,LEN(B38)-FIND(" ",B38))))))))-2))*1)) -> Blaine | G38: =IF(B38="","Z",1*(TRIM(LEFT(B38,FIND(" ",B38))))) -> 199 | H38: Eastlake
B39: 3122 Eastlake Ave E | C39: Sidewalk | D39: 236412 | E39: 18 | F39: =IF(B39="","Z",IF(ISERROR((LEFT(TRIM(LEFT(IF(FIND(" ",TRIM(RIGHT(B39,LEN(B39)-FIND(" ",B39))))<4,TRIM(RIGHT(TRIM(RIGHT(B39,LEN(B39)-FIND(" ",B39))),LEN(TRIM(RIGHT(B39,LEN(B39)-FIND(" ",B39))))-FIND(" ",TRIM(RIGHT(B39,LEN(B39)-FIND(" ",B39)))))),TRIM(RIGHT(B39,LEN(B39)-FIND(" ",B39)))),FIND(" ",IF(FIND(" ",TRIM(RIGHT(B39,LEN(B39)-FIND(" ",B39))))<4,TRIM(RIGHT(TRIM(RIGHT(B39,LEN(B39)-FIND(" ",B39))),LEN(TRIM(RIGHT(B39,LEN(B39)-FIND(" ",B39))))-FIND(" ",TRIM(RIGHT(B39,LEN(B39)-FIND(" ",B39)))))),TRIM(RIGHT(B39,LEN(B39)-FIND(" ",B39))))))),LEN(TRIM(LEFT(IF(FIND(" ",TRIM(RIGHT(B39,LEN(B39)-FIND(" ",B39))))<4,TRIM(RIGHT(TRIM(RIGHT(B39,LEN(B39)-FIND(" ",B39))),LEN(TRIM(RIGHT(B39,LEN(B39)-FIND(" ",B39))))-FIND(" ",TRIM(RIGHT(B39,LEN(B39)-FIND(" ",B39)))))),TRIM(RIGHT(B39,LEN(B39)-FIND(" ",B39)))),FIND(" ",IF(FIND(" ",TRIM(RIGHT(B39,LEN(B39)-FIND(" ",B39))))<4,TRIM(RIGHT(TRIM(RIGHT(B39,LEN(B39)-FIND(" ",B39))),LEN(TRIM(RIGHT(B39,LEN(B39)-FIND(" ",B39))))-FIND(" ",TRIM(RIGHT(B39,LEN(B39)-FIND(" ",B39)))))),TRIM(RIGHT(B39,LEN(B39)-FIND(" ",B39))))))))-2))*1),TRIM(LEFT(IF(FIND(" ",TRIM(RIGHT(B39,LEN(B39)-FIND(" ",B39))))<4,TRIM(RIGHT(TRIM(RIGHT(B39,LEN(B39)-FIND(" ",B39))),LEN(TRIM(RIGHT(B39,LEN(B39)-FIND(" ",B39))))-FIND(" ",TRIM(RIGHT(B39,LEN(B39)-FIND(" ",B39)))))),TRIM(RIGHT(B39,LEN(B39)-FIND(" ",B39)))),FIND(" ",IF(FIND(" ",TRIM(RIGHT(B39,LEN(B39)-FIND(" ",B39))))<4,TRIM(RIGHT(TRIM(RIGHT(B39,LEN(B39)-FIND(" ",B39))),LEN(TRIM(RIGHT(B39,LEN(B39)-FIND(" ",B39))))-FIND(" ",TRIM(RIGHT(B39,LEN(B39)-FIND(" ",B39)))))),TRIM(RIGHT(B39,LEN(B39)-FIND(" ",B39))))))),(LEFT(TRIM(LEFT(IF(FIND(" ",TRIM(RIGHT(B39,LEN(B39)-FIND(" ",B39))))<4,TRIM(RIGHT(TRIM(RIGHT(B39,LEN(B39)-FIND(" ",B39))),LEN(TRIM(RIGHT(B39,LEN(B39)-FIND(" ",B39))))-FIND(" ",TRIM(RIGHT(B39,LEN(B39)-FIND(" ",B39)))))),TRIM(RIGHT(B39,LEN(B39)-FIND(" ",B39)))),FIND(" ",IF(FIND(" ",TRIM(RIGHT(B39,LEN(B39)-FIND(" ",B39))))<4,TRIM(RIGHT(TRIM(RIGHT(B39,LEN(B39)-FIND(" ",B39))),LEN(TRIM(RIGHT(B39,LEN(B39)-FIND(" ",B39))))-FIND(" ",TRIM(RIGHT(B39,LEN(B39)-FIND(" ",B39)))))),TRIM(RIGHT(B39,LEN(B39)-FIND(" ",B39))))))),LEN(TRIM(LEFT(IF(FIND(" ",TRIM(RIGHT(B39,LEN(B39)-FIND(" ",B39))))<4,TRIM(RIGHT(TRIM(RIGHT(B39,LEN(B39)-FIND(" ",B39))),LEN(TRIM(RIGHT(B39,LEN(B39)-FIND(" ",B39))))-FIND(" ",TRIM(RIGHT(B39,LEN(B39)-FIND(" ",B39)))))),TRIM(RIGHT(B39,LEN(B39)-FIND(" ",B39)))),FIND(" ",IF(FIND(" ",TRIM(RIGHT(B39,LEN(B39)-FIND(" ",B39))))<4,TRIM(RIGHT(TRIM(RIGHT(B39,LEN(B39)-FIND(" ",B39))),LEN(TRIM(RIGHT(B39,LEN(B39)-FIND(" ",B39))))-FIND(" ",TRIM(RIGHT(B39,LEN(B39)-FIND(" ",B39)))))),TRIM(RIGHT(B39,LEN(B39)-FIND(" ",B39))))))))-2))*1)) -> Eastlake | G39: =IF(B39="","Z",1*(TRIM(LEFT(B39,FIND(" ",B39))))) -> 3122 | H39: Eastlake
B40: 901 Fairview Ave N | C40: On-Street | D40: 236408 | E40: 16 | F40: =IF(B40="","Z",IF(ISERROR((LEFT(TRIM(LEFT(IF(FIND(" ",TRIM(RIGHT(B40,LEN(B40)-FIND(" ",B40))))<4,TRIM(RIGHT(TRIM(RIGHT(B40,LEN(B40)-FIND(" ",B40))),LEN(TRIM(RIGHT(B40,LEN(B40)-FIND(" ",B40))))-FIND(" ",TRIM(RIGHT(B40,LEN(B40)-FIND(" ",B40)))))),TRIM(RIGHT(B40,LEN(B40)-FIND(" ",B40)))),FIND(" ",IF(FIND(" ",TRIM(RIGHT(B40,LEN(B40)-FIND(" ",B40))))<4,TRIM(RIGHT(TRIM(RIGHT(B40,LEN(B40)-FIND(" ",B40))),LEN(TRIM(RIGHT(B40,LEN(B40)-FIND(" ",B40))))-FIND(" ",TRIM(RIGHT(B40,LEN(B40)-FIND(" ",B40)))))),TRIM(RIGHT(B40,LEN(B40)-FIND(" ",B40))))))),LEN(TRIM(LEFT(IF(FIND(" ",TRIM(RIGHT(B40,LEN(B40)-FIND(" ",B40))))<4,TRIM(RIGHT(TRIM(RIGHT(B40,LEN(B40)-FIND(" ",B40))),LEN(TRIM(RIGHT(B40,LEN(B40)-FIND(" ",B40))))-FIND(" ",TRIM(RIGHT(B40,LEN(B40)-FIND(" ",B40)))))),TRIM(RIGHT(B40,LEN(B40)-FIND(" ",B40)))),FIND(" ",IF(FIND(" ",TRIM(RIGHT(B40,LEN(B40)-FIND(" ",B40))))<4,TRIM(RIGHT(TRIM(RIGHT(B40,LEN(B40)-FIND(" ",B40))),LEN(TRIM(RIGHT(B40,LEN(B40)-FIND(" ",B40))))-FIND(" ",TRIM(RIGHT(B40,LEN(B40)-FIND(" ",B40)))))),TRIM(RIGHT(B40,LEN(B40)-FIND(" ",B40))))))))-2))*1),TRIM(LEFT(IF(FIND(" ",TRIM(RIGHT(B40,LEN(B40)-FIND(" ",B40))))<4,TRIM(RIGHT(TRIM(RIGHT(B40,LEN(B40)-FIND(" ",B40))),LEN(TRIM(RIGHT(B40,LEN(B40)-FIND(" ",B40))))-FIND(" ",TRIM(RIGHT(B40,LEN(B40)-FIND(" ",B40)))))),TRIM(RIGHT(B40,LEN(B40)-FIND(" ",B40)))),FIND(" ",IF(FIND(" ",TRIM(RIGHT(B40,LEN(B40)-FIND(" ",B40))))<4,TRIM(RIGHT(TRIM(RIGHT(B40,LEN(B40)-FIND(" ",B40))),LEN(TRIM(RIGHT(B40,LEN(B40)-FIND(" ",B40))))-FIND(" ",TRIM(RIGHT(B40,LEN(B40)-FIND(" ",B40)))))),TRIM(RIGHT(B40,LEN(B40)-FIND(" ",B40))))))),(LEFT(TRIM(LEFT(IF(FIND(" ",TRIM(RIGHT(B40,LEN(B40)-FIND(" ",B40))))<4,TRIM(RIGHT(TRIM(RIGHT(B40,LEN(B40)-FIND(" ",B40))),LEN(TRIM(RIGHT(B40,LEN(B40)-FIND(" ",B40))))-FIND(" ",TRIM(RIGHT(B40,LEN(B40)-FIND(" ",B40)))))),TRIM(RIGHT(B40,LEN(B40)-FIND(" ",B40)))),FIND(" ",IF(FIND(" ",TRIM(RIGHT(B40,LEN(B40)-FIND(" ",B40))))<4,TRIM(RIGHT(TRIM(RIGHT(B40,LEN(B40)-FIND(" ",B40))),LEN(TRIM(RIGHT(B40,LEN(B40)-FIND(" ",B40))))-FIND(" ",TRIM(RIGHT(B40,LEN(B40)-FIND(" ",B40)))))),TRIM(RIGHT(B40,LEN(B40)-FIND(" ",B40))))))),LEN(TRIM(LEFT(IF(FIND(" ",TRIM(RIGHT(B40,LEN(B40)-FIND(" ",B40))))<4,TRIM(RIGHT(TRIM(RIGHT(B40,LEN(B40)-FIND(" ",B40))),LEN(TRIM(RIGHT(B40,LEN(B40)-FIND(" ",B40))))-FIND(" ",TRIM(RIGHT(B40,LEN(B40)-FIND(" ",B40)))))),TRIM(RIGHT(B40,LEN(B40)-FIND(" ",B40)))),FIND(" ",IF(FIND(" ",TRIM(RIGHT(B40,LEN(B40)-FIND(" ",B40))))<4,TRIM(RIGHT(TRIM(RIGHT(B40,LEN(B40)-FIND(" ",B40))),LEN(TRIM(RIGHT(B40,LEN(B40)-FIND(" ",B40))))-FIND(" ",TRIM(RIGHT(B40,LEN(B40)-FIND(" ",B40)))))),TRIM(RIGHT(B40,LEN(B40)-FIND(" ",B40))))))))-2))*1)) -> Fairview | G40: =IF(B40="","Z",1*(TRIM(LEFT(B40,FIND(" ",B40))))) -> 901 | H40: Eastlake
B41: First Hill | F41: 0 | G41: 0 | H41: First Hill
B42: 800 12th Ave | C42: On-Street | D42: 236469 | E42: 20 | F42: =IF(B42="","Z",IF(ISERROR((LEFT(TRIM(LEFT(IF(FIND(" ",TRIM(RIGHT(B42,LEN(B42)-FIND(" ",B42))))<4,TRIM(RIGHT(TRIM(RIGHT(B42,LEN(B42)-FIND(" ",B42))),LEN(TRIM(RIGHT(B42,LEN(B42)-FIND(" ",B42))))-FIND(" ",TRIM(RIGHT(B42,LEN(B42)-FIND(" ",B42)))))),TRIM(RIGHT(B42,LEN(B42)-FIND(" ",B42)))),FIND(" ",IF(FIND(" ",TRIM(RIGHT(B42,LEN(B42)-FIND(" ",B42))))<4,TRIM(RIGHT(TRIM(RIGHT(B42,LEN(B42)-FIND(" ",B42))),LEN(TRIM(RIGHT(B42,LEN(B42)-FIND(" ",B42))))-FIND(" ",TRIM(RIGHT(B42,LEN(B42)-FIND(" ",B42)))))),TRIM(RIGHT(B42,LEN(B42)-FIND(" ",B42))))))),LEN(TRIM(LEFT(IF(FIND(" ",TRIM(RIGHT(B42,LEN(B42)-FIND(" ",B42))))<4,TRIM(RIGHT(TRIM(RIGHT(B42,LEN(B42)-FIND(" ",B42))),LEN(TRIM(RIGHT(B42,LEN(B42)-FIND(" ",B42))))-FIND(" ",TRIM(RIGHT(B42,LEN(B42)-FIND(" ",B42)))))),TRIM(RIGHT(B42,LEN(B42)-FIND(" ",B42)))),FIND(" ",IF(FIND(" ",TRIM(RIGHT(B42,LEN(B42)-FIND(" ",B42))))<4,TRIM(RIGHT(TRIM(RIGHT(B42,LEN(B42)-FIND(" ",B42))),LEN(TRIM(RIGHT(B42,LEN(B42)-FIND(" ",B42))))-FIND(" ",TRIM(RIGHT(B42,LEN(B42)-FIND(" ",B42)))))),TRIM(RIGHT(B42,LEN(B42)-FIND(" ",B42))))))))-2))*1),TRIM(LEFT(IF(FIND(" ",TRIM(RIGHT(B42,LEN(B42)-FIND(" ",B42))))<4,TRIM(RIGHT(TRIM(RIGHT(B42,LEN(B42)-FIND(" ",B42))),LEN(TRIM(RIGHT(B42,LEN(B42)-FIND(" ",B42))))-FIND(" ",TRIM(RIGHT(B42,LEN(B42)-FIND(" ",B42)))))),TRIM(RIGHT(B42,LEN(B42)-FIND(" ",B42)))),FIND(" ",IF(FIND(" ",TRIM(RIGHT(B42,LEN(B42)-FIND(" ",B42))))<4,TRIM(RIGHT(TRIM(RIGHT(B42,LEN(B42)-FIND(" ",B42))),LEN(TRIM(RIGHT(B42,LEN(B42)-FIND(" ",B42))))-FIND(" ",TRIM(RIGHT(B42,LEN(B42)-FIND(" ",B42)))))),TRIM(RIGHT(B42,LEN(B42)-FIND(" ",B42))))))),(LEFT(TRIM(LEFT(IF(FIND(" ",TRIM(RIGHT(B42,LEN(B42)-FIND(" ",B42))))<4,TRIM(RIGHT(TRIM(RIGHT(B42,LEN(B42)-FIND(" ",B42))),LEN(TRIM(RIGHT(B42,LEN(B42)-FIND(" ",B42))))-FIND(" ",TRIM(RIGHT(B42,LEN(B42)-FIND(" ",B42)))))),TRIM(RIGHT(B42,LEN(B42)-FIND(" ",B42)))),FIND(" ",IF(FIND(" ",TRIM(RIGHT(B42,LEN(B42)-FIND(" ",B42))))<4,TRIM(RIGHT(TRIM(RIGHT(B42,LEN(B42)-FIND(" ",B42))),LEN(TRIM(RIGHT(B42,LEN(B42)-FIND(" ",B42))))-FIND(" ",TRIM(RIGHT(B42,LEN(B42)-FIND(" ",B42)))))),TRIM(RIGHT(B42,LEN(B42)-FIND(" ",B42))))))),LEN(TRIM(LEFT(IF(FIND(" ",TRIM(RIGHT(B42,LEN(B42)-FIND(" ",B42))))<4,TRIM(RIGHT(TRIM(RIGHT(B42,LEN(B42)-FIND(" ",B42))),LEN(TRIM(RIGHT(B42,LEN(B42)-FIND(" ",B42))))-FIND(" ",TRIM(RIGHT(B42,LEN(B42)-FIND(" ",B42)))))),TRIM(RIGHT(B42,LEN(B42)-FIND(" ",B42)))),FIND(" ",IF(FIND(" ",TRIM(RIGHT(B42,LEN(B42)-FIND(" ",B42))))<4,TRIM(RIGHT(TRIM(RIGHT(B42,LEN(B42)-FIND(" ",B42))),LEN(TRIM(RIGHT(B42,LEN(B42)-FIND(" ",B42))))-FIND(" ",TRIM(RIGHT(B42,LEN(B42)-FIND(" ",B42)))))),TRIM(RIGHT(B42,LEN(B42)-FIND(" ",B42))))))))-2))*1)) -> 12 | G42: =IF(B42="","Z",1*(TRIM(LEFT(B42,FIND(" ",B42))))) -> 800 | H42: First Hill
B43: Pioneer Square | F43: 0 | G43: 0 | H43: Pioneer Square
B44: 201 S King St | C44: Sidewalk/Plaza | D44: 236457 | E44: 18 | F44: =IF(B44="","Z",IF(ISERROR((LEFT(TRIM(LEFT(IF(FIND(" ",TRIM(RIGHT(B44,LEN(B44)-FIND(" ",B44))))<4,TRIM(RIGHT(TRIM(RIGHT(B44,LEN(B44)-FIND(" ",B44))),LEN(TRIM(RIGHT(B44,LEN(B44)-FIND(" ",B44))))-FIND(" ",TRIM(RIGHT(B44,LEN(B44)-FIND(" ",B44)))))),TRIM(RIGHT(B44,LEN(B44)-FIND(" ",B44)))),FIND(" ",IF(FIND(" ",TRIM(RIGHT(B44,LEN(B44)-FIND(" ",B44))))<4,TRIM(RIGHT(TRIM(RIGHT(B44,LEN(B44)-FIND(" ",B44))),LEN(TRIM(RIGHT(B44,LEN(B44)-FIND(" ",B44))))-FIND(" ",TRIM(RIGHT(B44,LEN(B44)-FIND(" ",B44)))))),TRIM(RIGHT(B44,LEN(B44)-FIND(" ",B44))))))),LEN(TRIM(LEFT(IF(FIND(" ",TRIM(RIGHT(B44,LEN(B44)-FIND(" ",B44))))<4,TRIM(RIGHT(TRIM(RIGHT(B44,LEN(B44)-FIND(" ",B44))),LEN(TRIM(RIGHT(B44,LEN(B44)-FIND(" ",B44))))-FIND(" ",TRIM(RIGHT(B44,LEN(B44)-FIND(" ",B44)))))),TRIM(RIGHT(B44,LEN(B44)-FIND(" ",B44)))),FIND(" ",IF(FIND(" ",TRIM(RIGHT(B44,LEN(B44)-FIND(" ",B44))))<4,TRIM(RIGHT(TRIM(RIGHT(B44,LEN(B44)-FIND(" ",B44))),LEN(TRIM(RIGHT(B44,LEN(B44)-FIND(" ",B44))))-FIND(" ",TRIM(RIGHT(B44,LEN(B44)-FIND(" ",B44)))))),TRIM(RIGHT(B44,LEN(B44)-FIND(" ",B44))))))))-2))*1),TRIM(LEFT(IF(FIND(" ",TRIM(RIGHT(B44,LEN(B44)-FIND(" ",B44))))<4,TRIM(RIGHT(TRIM(RIGHT(B44,LEN(B44)-FIND(" ",B44))),LEN(TRIM(RIGHT(B44,LEN(B44)-FIND(" ",B44))))-FIND(" ",TRIM(RIGHT(B44,LEN(B44)-FIND(" ",B44)))))),TRIM(RIGHT(B44,LEN(B44)-FIND(" ",B44)))),FIND(" ",IF(FIND(" ",TRIM(RIGHT(B44,LEN(B44)-FIND(" ",B44))))<4,TRIM(RIGHT(TRIM(RIGHT(B44,LEN(B44)-FIND(" ",B44))),LEN(TRIM(RIGHT(B44,LEN(B44)-FIND(" ",B44))))-FIND(" ",TRIM(RIGHT(B44,LEN(B44)-FIND(" ",B44)))))),TRIM(RIGHT(B44,LEN(B44)-FIND(" ",B44))))))),(LEFT(TRIM(LEFT(IF(FIND(" ",TRIM(RIGHT(B44,LEN(B44)-FIND(" ",B44))))<4,TRIM(RIGHT(TRIM(RIGHT(B44,LEN(B44)-FIND(" ",B44))),LEN(TRIM(RIGHT(B44,LEN(B44)-FIND(" ",B44))))-FIND(" ",TRIM(RIGHT(B44,LEN(B44)-FIND(" ",B44)))))),TRIM(RIGHT(B44,LEN(B44)-FIND(" ",B44)))),FIND(" ",IF(FIND(" ",TRIM(RIGHT(B44,LEN(B44)-FIND(" ",B44))))<4,TRIM(RIGHT(TRIM(RIGHT(B44,LEN(B44)-FIND(" ",B44))),LEN(TRIM(RIGHT(B44,LEN(B44)-FIND(" ",B44))))-FIND(" ",TRIM(RIGHT(B44,LEN(B44)-FIND(" ",B44)))))),TRIM(RIGHT(B44,LEN(B44)-FIND(" ",B44))))))),LEN(TRIM(LEFT(IF(FIND(" ",TRIM(RIGHT(B44,LEN(B44)-FIND(" ",B44))))<4,TRIM(RIGHT(TRIM(RIGHT(B44,LEN(B44)-FIND(" ",B44))),LEN(TRIM(RIGHT(B44,LEN(B44)-FIND(" ",B44))))-FIND(" ",TRIM(RIGHT(B44,LEN(B44)-FIND(" ",B44)))))),TRIM(RIGHT(B44,LEN(B44)-FIND(" ",B44)))),FIND(" ",IF(FIND(" ",TRIM(RIGHT(B44,LEN(B44)-FIND(" ",B44))))<4,TRIM(RIGHT(TRIM(RIGHT(B44,LEN(B44)-FIND(" ",B44))),LEN(TRIM(RIGHT(B44,LEN(B44)-FIND(" ",B44))))-FIND(" ",TRIM(RIGHT(B44,LEN(B44)-FIND(" ",B44)))))),TRIM(RIGHT(B44,LEN(B44)-FIND(" ",B44))))))))-2))*1)) -> King | G44: =IF(B44="","Z",1*(TRIM(LEFT(B44,FIND(" ",B44))))) -> 201 | H44: Pioneer Square
B45: 200 Occidental Ave S | C45: Sidewalk/Plaza | D45: 236459 | E45: 20 | F45: =IF(B45="","Z",IF(ISERROR((LEFT(TRIM(LEFT(IF(FIND(" ",TRIM(RIGHT(B45,LEN(B45)-FIND(" ",B45))))<4,TRIM(RIGHT(TRIM(RIGHT(B45,LEN(B45)-FIND(" ",B45))),LEN(TRIM(RIGHT(B45,LEN(B45)-FIND(" ",B45))))-FIND(" ",TRIM(RIGHT(B45,LEN(B45)-FIND(" ",B45)))))),TRIM(RIGHT(B45,LEN(B45)-FIND(" ",B45)))),FIND(" ",IF(FIND(" ",TRIM(RIGHT(B45,LEN(B45)-FIND(" ",B45))))<4,TRIM(RIGHT(TRIM(RIGHT(B45,LEN(B45)-FIND(" ",B45))),LEN(TRIM(RIGHT(B45,LEN(B45)-FIND(" ",B45))))-FIND(" ",TRIM(RIGHT(B45,LEN(B45)-FIND(" ",B45)))))),TRIM(RIGHT(B45,LEN(B45)-FIND(" ",B45))))))),LEN(TRIM(LEFT(IF(FIND(" ",TRIM(RIGHT(B45,LEN(B45)-FIND(" ",B45))))<4,TRIM(RIGHT(TRIM(RIGHT(B45,LEN(B45)-FIND(" ",B45))),LEN(TRIM(RIGHT(B45,LEN(B45)-FIND(" ",B45))))-FIND(" ",TRIM(RIGHT(B45,LEN(B45)-FIND(" ",B45)))))),TRIM(RIGHT(B45,LEN(B45)-FIND(" ",B45)))),FIND(" ",IF(FIND(" ",TRIM(RIGHT(B45,LEN(B45)-FIND(" ",B45))))<4,TRIM(RIGHT(TRIM(RIGHT(B45,LEN(B45)-FIND(" ",B45))),LEN(TRIM(RIGHT(B45,LEN(B45)-FIND(" ",B45))))-FIND(" ",TRIM(RIGHT(B45,LEN(B45)-FIND(" ",B45)))))),TRIM(RIGHT(B45,LEN(B45)-FIND(" ",B45))))))))-2))*1),TRIM(LEFT(IF(FIND(" ",TRIM(RIGHT(B45,LEN(B45)-FIND(" ",B45))))<4,TRIM(RIGHT(TRIM(RIGHT(B45,LEN(B45)-FIND(" ",B45))),LEN(TRIM(RIGHT(B45,LEN(B45)-FIND(" ",B45))))-FIND(" ",TRIM(RIGHT(B45,LEN(B45)-FIND(" ",B45)))))),TRIM(RIGHT(B45,LEN(B45)-FIND(" ",B45)))),FIND(" ",IF(FIND(" ",TRIM(RIGHT(B45,LEN(B45)-FIND(" ",B45))))<4,TRIM(RIGHT(TRIM(RIGHT(B45,LEN(B45)-FIND(" ",B45))),LEN(TRIM(RIGHT(B45,LEN(B45)-FIND(" ",B45))))-FIND(" ",TRIM(RIGHT(B45,LEN(B45)-FIND(" ",B45)))))),TRIM(RIGHT(B45,LEN(B45)-FIND(" ",B45))))))),(LEFT(TRIM(LEFT(IF(FIND(" ",TRIM(RIGHT(B45,LEN(B45)-FIND(" ",B45))))<4,TRIM(RIGHT(TRIM(RIGHT(B45,LEN(B45)-FIND(" ",B45))),LEN(TRIM(RIGHT(B45,LEN(B45)-FIND(" ",B45))))-FIND(" ",TRIM(RIGHT(B45,LEN(B45)-FIND(" ",B45)))))),TRIM(RIGHT(B45,LEN(B45)-FIND(" ",B45)))),FIND(" ",IF(FIND(" ",TRIM(RIGHT(B45,LEN(B45)-FIND(" ",B45))))<4,TRIM(RIGHT(TRIM(RIGHT(B45,LEN(B45)-FIND(" ",B45))),LEN(TRIM(RIGHT(B45,LEN(B45)-FIND(" ",B45))))-FIND(" ",TRIM(RIGHT(B45,LEN(B45)-FIND(" ",B45)))))),TRIM(RIGHT(B45,LEN(B45)-FIND(" ",B45))))))),LEN(TRIM(LEFT(IF(FIND(" ",TRIM(RIGHT(B45,LEN(B45)-FIND(" ",B45))))<4,TRIM(RIGHT(TRIM(RIGHT(B45,LEN(B45)-FIND(" ",B45))),LEN(TRIM(RIGHT(B45,LEN(B45)-FIND(" ",B45))))-FIND(" ",TRIM(RIGHT(B45,LEN(B45)-FIND(" ",B45)))))),TRIM(RIGHT(B45,LEN(B45)-FIND(" ",B45)))),FIND(" ",IF(FIND(" ",TRIM(RIGHT(B45,LEN(B45)-FIND(" ",B45))))<4,TRIM(RIGHT(TRIM(RIGHT(B45,LEN(B45)-FIND(" ",B45))),LEN(TRIM(RIGHT(B45,LEN(B45)-FIND(" ",B45))))-FIND(" ",TRIM(RIGHT(B45,LEN(B45)-FIND(" ",B45)))))),TRIM(RIGHT(B45,LEN(B45)-FIND(" ",B45))))))))-2))*1)) -> Occidental | G45: =IF(B45="","Z",1*(TRIM(LEFT(B45,FIND(" ",B45))))) -> 200 | H45: Pioneer Square
B46: Occidental Ave S at S Washington St | C46: Sidewalk/Plaza | D46: 264287 | E46: 18 | H46: Pioneer Square
B47: South Lake Union | F47: 0 | G47: 0 | H47: South Lake Union
B48: 1600 9th Ave | C48: Sidewalk | D48: 236433 | E48: 20 | F48: =IF(B48="","Z",IF(ISERROR((LEFT(TRIM(LEFT(IF(FIND(" ",TRIM(RIGHT(B48,LEN(B48)-FIND(" ",B48))))<4,TRIM(RIGHT(TRIM(RIGHT(B48,LEN(B48)-FIND(" ",B48))),LEN(TRIM(RIGHT(B48,LEN(B48)-FIND(" ",B48))))-FIND(" ",TRIM(RIGHT(B48,LEN(B48)-FIND(" ",B48)))))),TRIM(RIGHT(B48,LEN(B48)-FIND(" ",B48)))),FIND(" ",IF(FIND(" ",TRIM(RIGHT(B48,LEN(B48)-FIND(" ",B48))))<4,TRIM(RIGHT(TRIM(RIGHT(B48,LEN(B48)-FIND(" ",B48))),LEN(TRIM(RIGHT(B48,LEN(B48)-FIND(" ",B48))))-FIND(" ",TRIM(RIGHT(B48,LEN(B48)-FIND(" ",B48)))))),TRIM(RIGHT(B48,LEN(B48)-FIND(" ",B48))))))),LEN(TRIM(LEFT(IF(FIND(" ",TRIM(RIGHT(B48,LEN(B48)-FIND(" ",B48))))<4,TRIM(RIGHT(TRIM(RIGHT(B48,LEN(B48)-FIND(" ",B48))),LEN(TRIM(RIGHT(B48,LEN(B48)-FIND(" ",B48))))-FIND(" ",TRIM(RIGHT(B48,LEN(B48)-FIND(" ",B48)))))),TRIM(RIGHT(B48,LEN(B48)-FIND(" ",B48)))),FIND(" ",IF(FIND(" ",TRIM(RIGHT(B48,LEN(B48)-FIND(" ",B48))))<4,TRIM(RIGHT(TRIM(RIGHT(B48,LEN(B48)-FIND(" ",B48))),LEN(TRIM(RIGHT(B48,LEN(B48)-FIND(" ",B48))))-FIND(" ",TRIM(RIGHT(B48,LEN(B48)-FIND(" ",B48)))))),TRIM(RIGHT(B48,LEN(B48)-FIND(" ",B48))))))))-2))*1),TRIM(LEFT(IF(FIND(" ",TRIM(RIGHT(B48,LEN(B48)-FIND(" ",B48))))<4,TRIM(RIGHT(TRIM(RIGHT(B48,LEN(B48)-FIND(" ",B48))),LEN(TRIM(RIGHT(B48,LEN(B48)-FIND(" ",B48))))-FIND(" ",TRIM(RIGHT(B48,LEN(B48)-FIND(" ",B48)))))),TRIM(RIGHT(B48,LEN(B48)-FIND(" ",B48)))),FIND(" ",IF(FIND(" ",TRIM(RIGHT(B48,LEN(B48)-FIND(" ",B48))))<4,TRIM(RIGHT(TRIM(RIGHT(B48,LEN(B48)-FIND(" ",B48))),LEN(TRIM(RIGHT(B48,LEN(B48)-FIND(" ",B48))))-FIND(" ",TRIM(RIGHT(B48,LEN(B48)-FIND(" ",B48)))))),TRIM(RIGHT(B48,LEN(B48)-FIND(" ",B48))))))),(LEFT(TRIM(LEFT(IF(FIND(" ",TRIM(RIGHT(B48,LEN(B48)-FIND(" ",B48))))<4,TRIM(RIGHT(TRIM(RIGHT(B48,LEN(B48)-FIND(" ",B48))),LEN(TRIM(RIGHT(B48,LEN(B48)-FIND(" ",B48))))-FIND(" ",TRIM(RIGHT(B48,LEN(B48)-FIND(" ",B48)))))),TRIM(RIGHT(B48,LEN(B48)-FIND(" ",B48)))),FIND(" ",IF(FIND(" ",TRIM(RIGHT(B48,LEN(B48)-FIND(" ",B48))))<4,TRIM(RIGHT(TRIM(RIGHT(B48,LEN(B48)-FIND(" ",B48))),LEN(TRIM(RIGHT(B48,LEN(B48)-FIND(" ",B48))))-FIND(" ",TRIM(RIGHT(B48,LEN(B48)-FIND(" ",B48)))))),TRIM(RIGHT(B48,LEN(B48)-FIND(" ",B48))))))),LEN(TRIM(LEFT(IF(FIND(" ",TRIM(RIGHT(B48,LEN(B48)-FIND(" ",B48))))<4,TRIM(RIGHT(TRIM(RIGHT(B48,LEN(B48)-FIND(" ",B48))),LEN(TRIM(RIGHT(B48,LEN(B48)-FIND(" ",B48))))-FIND(" ",TRIM(RIGHT(B48,LEN(B48)-FIND(" ",B48)))))),TRIM(RIGHT(B48,LEN(B48)-FIND(" ",B48)))),FIND(" ",IF(FIND(" ",TRIM(RIGHT(B48,LEN(B48)-FIND(" ",B48))))<4,TRIM(RIGHT(TRIM(RIGHT(B48,LEN(B48)-FIND(" ",B48))),LEN(TRIM(RIGHT(B48,LEN(B48)-FIND(" ",B48))))-FIND(" ",TRIM(RIGHT(B48,LEN(B48)-FIND(" ",B48)))))),TRIM(RIGHT(B48,LEN(B48)-FIND(" ",B48))))))))-2))*1)) -> 9 | G48: =IF(B48="","Z",1*(TRIM(LEFT(B48,FIND(" ",B48))))) -> 1600 | H48: South Lake Union
B49: 2201 9th Ave | C49: On-Street | D49: 236425 | E49: 18 | F49: 9 | G49: 2201 | H49: South Lake Union
B50: 516 Broad Street | C50: Sidewalk | D50: 307681 | E50: 18 | F50: Broad | G50: 516 | H50: South Lake Union
B51: 920 Dexter Ave N | C51: On-Street | D51: 236420 | E51: 18 | F51: Dexter | G51: 920 | H51: South Lake Union
B52: 1915 Terry Ave | C52: On-Street | D52: 268996 | E52: 20 | F52: Terry | G52: 1915 | H52: South Lake Union
B53: 1002 Valley St | C53: Sidewalk/Plaza | D53: 236448 | E53: 16 | F53: Valley | G53: 1002 | H53: South Lake Union
B54: 428 Westlake Ave N | C54: On-Street | D54: 236422 | E54: 18 | F54: Westlake | G54: 428 | H54: South Lake Union
B55: 601 Westlake Ave N | C55: Sidewalk | D55: 269002 | E55: 20 | F55: Westlake | G55: 601 | H55: South Lake Union
B56: 1900 Westlake Ave | C56: Sidewalk/Plaza | D56: 236432 | E56: 20 | F56: Westlake | G56: 1900 | H56: South Lake Union
B57: 222 Yale Ave N | C57: On-Street | D57: 236419 | E57: 20 | F57: Yale | G57: 222 | H57: South Lake Union
B58: Univeristy District | F58: 0 | G58: 0 | H58: Univeristy District
B59: 4700 12th Ave NE | C59: On-Street | D59: 236447 | E59: 16 | F59: =IF(B59="","Z",IF(ISERROR((LEFT(TRIM(LEFT(IF(FIND(" ",TRIM(RIGHT(B59,LEN(B59)-FIND(" ",B59))))<4,TRIM(RIGHT(TRIM(RIGHT(B59,LEN(B59)-FIND(" ",B59))),LEN(TRIM(RIGHT(B59,LEN(B59)-FIND(" ",B59))))-FIND(" ",TRIM(RIGHT(B59,LEN(B59)-FIND(" ",B59)))))),TRIM(RIGHT(B59,LEN(B59)-FIND(" ",B59)))),FIND(" ",IF(FIND(" ",TRIM(RIGHT(B59,LEN(B59)-FIND(" ",B59))))<4,TRIM(RIGHT(TRIM(RIGHT(B59,LEN(B59)-FIND(" ",B59))),LEN(TRIM(RIGHT(B59,LEN(B59)-FIND(" ",B59))))-FIND(" ",TRIM(RIGHT(B59,LEN(B59)-FIND(" ",B59)))))),TRIM(RIGHT(B59,LEN(B59)-FIND(" ",B59))))))),LEN(TRIM(LEFT(IF(FIND(" ",TRIM(RIGHT(B59,LEN(B59)-FIND(" ",B59))))<4,TRIM(RIGHT(TRIM(RIGHT(B59,LEN(B59)-FIND(" ",B59))),LEN(TRIM(RIGHT(B59,LEN(B59)-FIND(" ",B59))))-FIND(" ",TRIM(RIGHT(B59,LEN(B59)-FIND(" ",B59)))))),TRIM(RIGHT(B59,LEN(B59)-FIND(" ",B59)))),FIND(" ",IF(FIND(" ",TRIM(RIGHT(B59,LEN(B59)-FIND(" ",B59))))<4,TRIM(RIGHT(TRIM(RIGHT(B59,LEN(B59)-FIND(" ",B59))),LEN(TRIM(RIGHT(B59,LEN(B59)-FIND(" ",B59))))-FIND(" ",TRIM(RIGHT(B59,LEN(B59)-FIND(" ",B59)))))),TRIM(RIGHT(B59,LEN(B59)-FIND(" ",B59))))))))-2))*1),TRIM(LEFT(IF(FIND(" ",TRIM(RIGHT(B59,LEN(B59)-FIND(" ",B59))))<4,TRIM(RIGHT(TRIM(RIGHT(B59,LEN(B59)-FIND(" ",B59))),LEN(TRIM(RIGHT(B59,LEN(B59)-FIND(" ",B59))))-FIND(" ",TRIM(RIGHT(B59,LEN(B59)-FIND(" ",B59)))))),TRIM(RIGHT(B59,LEN(B59)-FIND(" ",B59)))),FIND(" ",IF(FIND(" ",TRIM(RIGHT(B59,LEN(B59)-FIND(" ",B59))))<4,TRIM(RIGHT(TRIM(RIGHT(B59,LEN(B59)-FIND(" ",B59))),LEN(TRIM(RIGHT(B59,LEN(B59)-FIND(" ",B59))))-FIND(" ",TRIM(RIGHT(B59,LEN(B59)-FIND(" ",B59)))))),TRIM(RIGHT(B59,LEN(B59)-FIND(" ",B59))))))),(LEFT(TRIM(LEFT(IF(FIND(" ",TRIM(RIGHT(B59,LEN(B59)-FIND(" ",B59))))<4,TRIM(RIGHT(TRIM(RIGHT(B59,LEN(B59)-FIND(" ",B59))),LEN(TRIM(RIGHT(B59,LEN(B59)-FIND(" ",B59))))-FIND(" ",TRIM(RIGHT(B59,LEN(B59)-FIND(" ",B59)))))),TRIM(RIGHT(B59,LEN(B59)-FIND(" ",B59)))),FIND(" ",IF(FIND(" ",TRIM(RIGHT(B59,LEN(B59)-FIND(" ",B59))))<4,TRIM(RIGHT(TRIM(RIGHT(B59,LEN(B59)-FIND(" ",B59))),LEN(TRIM(RIGHT(B59,LEN(B59)-FIND(" ",B59))))-FIND(" ",TRIM(RIGHT(B59,LEN(B59)-FIND(" ",B59)))))),TRIM(RIGHT(B59,LEN(B59)-FIND(" ",B59))))))),LEN(TRIM(LEFT(IF(FIND(" ",TRIM(RIGHT(B59,LEN(B59)-FIND(" ",B59))))<4,TRIM(RIGHT(TRIM(RIGHT(B59,LEN(B59)-FIND(" ",B59))),LEN(TRIM(RIGHT(B59,LEN(B59)-FIND(" ",B59))))-FIND(" ",TRIM(RIGHT(B59,LEN(B59)-FIND(" ",B59)))))),TRIM(RIGHT(B59,LEN(B59)-FIND(" ",B59)))),FIND(" ",IF(FIND(" ",TRIM(RIGHT(B59,LEN(B59)-FIND(" ",B59))))<4,TRIM(RIGHT(TRIM(RIGHT(B59,LEN(B59)-FIND(" ",B59))),LEN(TRIM(RIGHT(B59,LEN(B59)-FIND(" ",B59))))-FIND(" ",TRIM(RIGHT(B59,LEN(B59)-FIND(" ",B59)))))),TRIM(RIGHT(B59,LEN(B59)-FIND(" ",B59))))))))-2))*1)) -> 12 | G59: =IF(B59="","Z",1*(TRIM(LEFT(B59,FIND(" ",B59))))) -> 4700 | H59: University District
B60: 5106 24th Ave NE | C60: On-Street | D60: 236413 | E60: 18 | F60: =IF(B60="","Z",IF(ISERROR((LEFT(TRIM(LEFT(IF(FIND(" ",TRIM(RIGHT(B60,LEN(B60)-FIND(" ",B60))))<4,TRIM(RIGHT(TRIM(RIGHT(B60,LEN(B60)-FIND(" ",B60))),LEN(TRIM(RIGHT(B60,LEN(B60)-FIND(" ",B60))))-FIND(" ",TRIM(RIGHT(B60,LEN(B60)-FIND(" ",B60)))))),TRIM(RIGHT(B60,LEN(B60)-FIND(" ",B60)))),FIND(" ",IF(FIND(" ",TRIM(RIGHT(B60,LEN(B60)-FIND(" ",B60))))<4,TRIM(RIGHT(TRIM(RIGHT(B60,LEN(B60)-FIND(" ",B60))),LEN(TRIM(RIGHT(B60,LEN(B60)-FIND(" ",B60))))-FIND(" ",TRIM(RIGHT(B60,LEN(B60)-FIND(" ",B60)))))),TRIM(RIGHT(B60,LEN(B60)-FIND(" ",B60))))))),LEN(TRIM(LEFT(IF(FIND(" ",TRIM(RIGHT(B60,LEN(B60)-FIND(" ",B60))))<4,TRIM(RIGHT(TRIM(RIGHT(B60,LEN(B60)-FIND(" ",B60))),LEN(TRIM(RIGHT(B60,LEN(B60)-FIND(" ",B60))))-FIND(" ",TRIM(RIGHT(B60,LEN(B60)-FIND(" ",B60)))))),TRIM(RIGHT(B60,LEN(B60)-FIND(" ",B60)))),FIND(" ",IF(FIND(" ",TRIM(RIGHT(B60,LEN(B60)-FIND(" ",B60))))<4,TRIM(RIGHT(TRIM(RIGHT(B60,LEN(B60)-FIND(" ",B60))),LEN(TRIM(RIGHT(B60,LEN(B60)-FIND(" ",B60))))-FIND(" ",TRIM(RIGHT(B60,LEN(B60)-FIND(" ",B60)))))),TRIM(RIGHT(B60,LEN(B60)-FIND(" ",B60))))))))-2))*1),TRIM(LEFT(IF(FIND(" ",TRIM(RIGHT(B60,LEN(B60)-FIND(" ",B60))))<4,TRIM(RIGHT(TRIM(RIGHT(B60,LEN(B60)-FIND(" ",B60))),LEN(TRIM(RIGHT(B60,LEN(B60)-FIND(" ",B60))))-FIND(" ",TRIM(RIGHT(B60,LEN(B60)-FIND(" ",B60)))))),TRIM(RIGHT(B60,LEN(B60)-FIND(" ",B60)))),FIND(" ",IF(FIND(" ",TRIM(RIGHT(B60,LEN(B60)-FIND(" ",B60))))<4,TRIM(RIGHT(TRIM(RIGHT(B60,LEN(B60)-FIND(" ",B60))),LEN(TRIM(RIGHT(B60,LEN(B60)-FIND(" ",B60))))-FIND(" ",TRIM(RIGHT(B60,LEN(B60)-FIND(" ",B60)))))),TRIM(RIGHT(B60,LEN(B60)-FIND(" ",B60))))))),(LEFT(TRIM(LEFT(IF(FIND(" ",TRIM(RIGHT(B60,LEN(B60)-FIND(" ",B60))))<4,TRIM(RIGHT(TRIM(RIGHT(B60,LEN(B60)-FIND(" ",B60))),LEN(TRIM(RIGHT(B60,LEN(B60)-FIND(" ",B60))))-FIND(" ",TRIM(RIGHT(B60,LEN(B60)-FIND(" ",B60)))))),TRIM(RIGHT(B60,LEN(B60)-FIND(" ",B60)))),FIND(" ",IF(FIND(" ",TRIM(RIGHT(B60,LEN(B60)-FIND(" ",B60))))<4,TRIM(RIGHT(TRIM(RIGHT(B60,LEN(B60)-FIND(" ",B60))),LEN(TRIM(RIGHT(B60,LEN(B60)-FIND(" ",B60))))-FIND(" ",TRIM(RIGHT(B60,LEN(B60)-FIND(" ",B60)))))),TRIM(RIGHT(B60,LEN(B60)-FIND(" ",B60))))))),LEN(TRIM(LEFT(IF(FIND(" ",TRIM(RIGHT(B60,LEN(B60)-FIND(" ",B60))))<4,TRIM(RIGHT(TRIM(RIGHT(B60,LEN(B60)-FIND(" ",B60))),LEN(TRIM(RIGHT(B60,LEN(B60)-FIND(" ",B60))))-FIND(" ",TRIM(RIGHT(B60,LEN(B60)-FIND(" ",B60)))))),TRIM(RIGHT(B60,LEN(B60)-FIND(" ",B60)))),FIND(" ",IF(FIND(" ",TRIM(RIGHT(B60,LEN(B60)-FIND(" ",B60))))<4,TRIM(RIGHT(TRIM(RIGHT(B60,LEN(B60)-FIND(" ",B60))),LEN(TRIM(RIGHT(B60,LEN(B60)-FIND(" ",B60))))-FIND(" ",TRIM(RIGHT(B60,LEN(B60)-FIND(" ",B60)))))),TRIM(RIGHT(B60,LEN(B60)-FIND(" ",B60))))))))-2))*1)) -> 24 | G60: =IF(B60="","Z",1*(TRIM(LEFT(B60,FIND(" ",B60))))) -> 5106 | H60: University District
B61: 1313 NE 42nd St | C61: On-Street | D61: 268989 | E61: 18 | F61: =IF(B61="","Z",IF(ISERROR((LEFT(TRIM(LEFT(IF(FIND(" ",TRIM(RIGHT(B61,LEN(B61)-FIND(" ",B61))))<4,TRIM(RIGHT(TRIM(RIGHT(B61,LEN(B61)-FIND(" ",B61))),LEN(TRIM(RIGHT(B61,LEN(B61)-FIND(" ",B61))))-FIND(" ",TRIM(RIGHT(B61,LEN(B61)-FIND(" ",B61)))))),TRIM(RIGHT(B61,LEN(B61)-FIND(" ",B61)))),FIND(" ",IF(FIND(" ",TRIM(RIGHT(B61,LEN(B61)-FIND(" ",B61))))<4,TRIM(RIGHT(TRIM(RIGHT(B61,LEN(B61)-FIND(" ",B61))),LEN(TRIM(RIGHT(B61,LEN(B61)-FIND(" ",B61))))-FIND(" ",TRIM(RIGHT(B61,LEN(B61)-FIND(" ",B61)))))),TRIM(RIGHT(B61,LEN(B61)-FIND(" ",B61))))))),LEN(TRIM(LEFT(IF(FIND(" ",TRIM(RIGHT(B61,LEN(B61)-FIND(" ",B61))))<4,TRIM(RIGHT(TRIM(RIGHT(B61,LEN(B61)-FIND(" ",B61))),LEN(TRIM(RIGHT(B61,LEN(B61)-FIND(" ",B61))))-FIND(" ",TRIM(RIGHT(B61,LEN(B61)-FIND(" ",B61)))))),TRIM(RIGHT(B61,LEN(B61)-FIND(" ",B61)))),FIND(" ",IF(FIND(" ",TRIM(RIGHT(B61,LEN(B61)-FIND(" ",B61))))<4,TRIM(RIGHT(TRIM(RIGHT(B61,LEN(B61)-FIND(" ",B61))),LEN(TRIM(RIGHT(B61,LEN(B61)-FIND(" ",B61))))-FIND(" ",TRIM(RIGHT(B61,LEN(B61)-FIND(" ",B61)))))),TRIM(RIGHT(B61,LEN(B61)-FIND(" ",B61))))))))-2))*1),TRIM(LEFT(IF(FIND(" ",TRIM(RIGHT(B61,LEN(B61)-FIND(" ",B61))))<4,TRIM(RIGHT(TRIM(RIGHT(B61,LEN(B61)-FIND(" ",B61))),LEN(TRIM(RIGHT(B61,LEN(B61)-FIND(" ",B61))))-FIND(" ",TRIM(RIGHT(B61,LEN(B61)-FIND(" ",B61)))))),TRIM(RIGHT(B61,LEN(B61)-FIND(" ",B61)))),FIND(" ",IF(FIND(" ",TRIM(RIGHT(B61,LEN(B61)-FIND(" ",B61))))<4,TRIM(RIGHT(TRIM(RIGHT(B61,LEN(B61)-FIND(" ",B61))),LEN(TRIM(RIGHT(B61,LEN(B61)-FIND(" ",B61))))-FIND(" ",TRIM(RIGHT(B61,LEN(B61)-FIND(" ",B61)))))),TRIM(RIGHT(B61,LEN(B61)-FIND(" ",B61))))))),(LEFT(TRIM(LEFT(IF(FIND(" ",TRIM(RIGHT(B61,LEN(B61)-FIND(" ",B61))))<4,TRIM(RIGHT(TRIM(RIGHT(B61,LEN(B61)-FIND(" ",B61))),LEN(TRIM(RIGHT(B61,LEN(B61)-FIND(" ",B61))))-FIND(" ",TRIM(RIGHT(B61,LEN(B61)-FIND(" ",B61)))))),TRIM(RIGHT(B61,LEN(B61)-FIND(" ",B61)))),FIND(" ",IF(FIND(" ",TRIM(RIGHT(B61,LEN(B61)-FIND(" ",B61))))<4,TRIM(RIGHT(TRIM(RIGHT(B61,LEN(B61)-FIND(" ",B61))),LEN(TRIM(RIGHT(B61,LEN(B61)-FIND(" ",B61))))-FIND(" ",TRIM(RIGHT(B61,LEN(B61)-FIND(" ",B61)))))),TRIM(RIGHT(B61,LEN(B61)-FIND(" ",B61))))))),LEN(TRIM(LEFT(IF(FIND(" ",TRIM(RIGHT(B61,LEN(B61)-FIND(" ",B61))))<4,TRIM(RIGHT(TRIM(RIGHT(B61,LEN(B61)-FIND(" ",B61))),LEN(TRIM(RIGHT(B61,LEN(B61)-FIND(" ",B61))))-FIND(" ",TRIM(RIGHT(B61,LEN(B61)-FIND(" ",B61)))))),TRIM(RIGHT(B61,LEN(B61)-FIND(" ",B61)))),FIND(" ",IF(FIND(" ",TRIM(RIGHT(B61,LEN(B61)-FIND(" ",B61))))<4,TRIM(RIGHT(TRIM(RIGHT(B61,LEN(B61)-FIND(" ",B61))),LEN(TRIM(RIGHT(B61,LEN(B61)-FIND(" ",B61))))-FIND(" ",TRIM(RIGHT(B61,LEN(B61)-FIND(" ",B61)))))),TRIM(RIGHT(B61,LEN(B61)-FIND(" ",B61))))))))-2))*1)) -> 42 | G61: =IF(B61="","Z",1*(TRIM(LEFT(B61,FIND(" ",B61))))) -> 1313 | H61: University District
B62: 1100 NE Campus Pkwy | C62: On-Street | D62: 236416 | E62: 16 | F62: =IF(B62="","Z",IF(ISERROR((LEFT(TRIM(LEFT(IF(FIND(" ",TRIM(RIGHT(B62,LEN(B62)-FIND(" ",B62))))<4,TRIM(RIGHT(TRIM(RIGHT(B62,LEN(B62)-FIND(" ",B62))),LEN(TRIM(RIGHT(B62,LEN(B62)-FIND(" ",B62))))-FIND(" ",TRIM(RIGHT(B62,LEN(B62)-FIND(" ",B62)))))),TRIM(RIGHT(B62,LEN(B62)-FIND(" ",B62)))),FIND(" ",IF(FIND(" ",TRIM(RIGHT(B62,LEN(B62)-FIND(" ",B62))))<4,TRIM(RIGHT(TRIM(RIGHT(B62,LEN(B62)-FIND(" ",B62))),LEN(TRIM(RIGHT(B62,LEN(B62)-FIND(" ",B62))))-FIND(" ",TRIM(RIGHT(B62,LEN(B62)-FIND(" ",B62)))))),TRIM(RIGHT(B62,LEN(B62)-FIND(" ",B62))))))),LEN(TRIM(LEFT(IF(FIND(" ",TRIM(RIGHT(B62,LEN(B62)-FIND(" ",B62))))<4,TRIM(RIGHT(TRIM(RIGHT(B62,LEN(B62)-FIND(" ",B62))),LEN(TRIM(RIGHT(B62,LEN(B62)-FIND(" ",B62))))-FIND(" ",TRIM(RIGHT(B62,LEN(B62)-FIND(" ",B62)))))),TRIM(RIGHT(B62,LEN(B62)-FIND(" ",B62)))),FIND(" ",IF(FIND(" ",TRIM(RIGHT(B62,LEN(B62)-FIND(" ",B62))))<4,TRIM(RIGHT(TRIM(RIGHT(B62,LEN(B62)-FIND(" ",B62))),LEN(TRIM(RIGHT(B62,LEN(B62)-FIND(" ",B62))))-FIND(" ",TRIM(RIGHT(B62,LEN(B62)-FIND(" ",B62)))))),TRIM(RIGHT(B62,LEN(B62)-FIND(" ",B62))))))))-2))*1),TRIM(LEFT(IF(FIND(" ",TRIM(RIGHT(B62,LEN(B62)-FIND(" ",B62))))<4,TRIM(RIGHT(TRIM(RIGHT(B62,LEN(B62)-FIND(" ",B62))),LEN(TRIM(RIGHT(B62,LEN(B62)-FIND(" ",B62))))-FIND(" ",TRIM(RIGHT(B62,LEN(B62)-FIND(" ",B62)))))),TRIM(RIGHT(B62,LEN(B62)-FIND(" ",B62)))),FIND(" ",IF(FIND(" ",TRIM(RIGHT(B62,LEN(B62)-FIND(" ",B62))))<4,TRIM(RIGHT(TRIM(RIGHT(B62,LEN(B62)-FIND(" ",B62))),LEN(TRIM(RIGHT(B62,LEN(B62)-FIND(" ",B62))))-FIND(" ",TRIM(RIGHT(B62,LEN(B62)-FIND(" ",B62)))))),TRIM(RIGHT(B62,LEN(B62)-FIND(" ",B62))))))),(LEFT(TRIM(LEFT(IF(FIND(" ",TRIM(RIGHT(B62,LEN(B62)-FIND(" ",B62))))<4,TRIM(RIGHT(TRIM(RIGHT(B62,LEN(B62)-FIND(" ",B62))),LEN(TRIM(RIGHT(B62,LEN(B62)-FIND(" ",B62))))-FIND(" ",TRIM(RIGHT(B62,LEN(B62)-FIND(" ",B62)))))),TRIM(RIGHT(B62,LEN(B62)-FIND(" ",B62)))),FIND(" ",IF(FIND(" ",TRIM(RIGHT(B62,LEN(B62)-FIND(" ",B62))))<4,TRIM(RIGHT(TRIM(RIGHT(B62,LEN(B62)-FIND(" ",B62))),LEN(TRIM(RIGHT(B62,LEN(B62)-FIND(" ",B62))))-FIND(" ",TRIM(RIGHT(B62,LEN(B62)-FIND(" ",B62)))))),TRIM(RIGHT(B62,LEN(B62)-FIND(" ",B62))))))),LEN(TRIM(LEFT(IF(FIND(" ",TRIM(RIGHT(B62,LEN(B62)-FIND(" ",B62))))<4,TRIM(RIGHT(TRIM(RIGHT(B62,LEN(B62)-FIND(" ",B62))),LEN(TRIM(RIGHT(B62,LEN(B62)-FIND(" ",B62))))-FIND(" ",TRIM(RIGHT(B62,LEN(B62)-FIND(" ",B62)))))),TRIM(RIGHT(B62,LEN(B62)-FIND(" ",B62)))),FIND(" ",IF(FIND(" ",TRIM(RIGHT(B62,LEN(B62)-FIND(" ",B62))))<4,TRIM(RIGHT(TRIM(RIGHT(B62,LEN(B62)-FIND(" ",B62))),LEN(TRIM(RIGHT(B62,LEN(B62)-FIND(" ",B62))))-FIND(" ",TRIM(RIGHT(B62,LEN(B62)-FIND(" ",B62)))))),TRIM(RIGHT(B62,LEN(B62)-FIND(" ",B62))))))))-2))*1)) -> Campus | G62: =IF(B62="","Z",1*(TRIM(LEFT(B62,FIND(" ",B62))))) -> 1100 | H62: University District
B63: 1959 NE Pacific St | C63: Sidewalk | D63: 285336 | E63: 16 | F63: =IF(B63="","Z",IF(ISERROR((LEFT(TRIM(LEFT(IF(FIND(" ",TRIM(RIGHT(B63,LEN(B63)-FIND(" ",B63))))<4,TRIM(RIGHT(TRIM(RIGHT(B63,LEN(B63)-FIND(" ",B63))),LEN(TRIM(RIGHT(B63,LEN(B63)-FIND(" ",B63))))-FIND(" ",TRIM(RIGHT(B63,LEN(B63)-FIND(" ",B63)))))),TRIM(RIGHT(B63,LEN(B63)-FIND(" ",B63)))),FIND(" ",IF(FIND(" ",TRIM(RIGHT(B63,LEN(B63)-FIND(" ",B63))))<4,TRIM(RIGHT(TRIM(RIGHT(B63,LEN(B63)-FIND(" ",B63))),LEN(TRIM(RIGHT(B63,LEN(B63)-FIND(" ",B63))))-FIND(" ",TRIM(RIGHT(B63,LEN(B63)-FIND(" ",B63)))))),TRIM(RIGHT(B63,LEN(B63)-FIND(" ",B63))))))),LEN(TRIM(LEFT(IF(FIND(" ",TRIM(RIGHT(B63,LEN(B63)-FIND(" ",B63))))<4,TRIM(RIGHT(TRIM(RIGHT(B63,LEN(B63)-FIND(" ",B63))),LEN(TRIM(RIGHT(B63,LEN(B63)-FIND(" ",B63))))-FIND(" ",TRIM(RIGHT(B63,LEN(B63)-FIND(" ",B63)))))),TRIM(RIGHT(B63,LEN(B63)-FIND(" ",B63)))),FIND(" ",IF(FIND(" ",TRIM(RIGHT(B63,LEN(B63)-FIND(" ",B63))))<4,TRIM(RIGHT(TRIM(RIGHT(B63,LEN(B63)-FIND(" ",B63))),LEN(TRIM(RIGHT(B63,LEN(B63)-FIND(" ",B63))))-FIND(" ",TRIM(RIGHT(B63,LEN(B63)-FIND(" ",B63)))))),TRIM(RIGHT(B63,LEN(B63)-FIND(" ",B63))))))))-2))*1),TRIM(LEFT(IF(FIND(" ",TRIM(RIGHT(B63,LEN(B63)-FIND(" ",B63))))<4,TRIM(RIGHT(TRIM(RIGHT(B63,LEN(B63)-FIND(" ",B63))),LEN(TRIM(RIGHT(B63,LEN(B63)-FIND(" ",B63))))-FIND(" ",TRIM(RIGHT(B63,LEN(B63)-FIND(" ",B63)))))),TRIM(RIGHT(B63,LEN(B63)-FIND(" ",B63)))),FIND(" ",IF(FIND(" ",TRIM(RIGHT(B63,LEN(B63)-FIND(" ",B63))))<4,TRIM(RIGHT(TRIM(RIGHT(B63,LEN(B63)-FIND(" ",B63))),LEN(TRIM(RIGHT(B63,LEN(B63)-FIND(" ",B63))))-FIND(" ",TRIM(RIGHT(B63,LEN(B63)-FIND(" ",B63)))))),TRIM(RIGHT(B63,LEN(B63)-FIND(" ",B63))))))),(LEFT(TRIM(LEFT(IF(FIND(" ",TRIM(RIGHT(B63,LEN(B63)-FIND(" ",B63))))<4,TRIM(RIGHT(TRIM(RIGHT(B63,LEN(B63)-FIND(" ",B63))),LEN(TRIM(RIGHT(B63,LEN(B63)-FIND(" ",B63))))-FIND(" ",TRIM(RIGHT(B63,LEN(B63)-FIND(" ",B63)))))),TRIM(RIGHT(B63,LEN(B63)-FIND(" ",B63)))),FIND(" ",IF(FIND(" ",TRIM(RIGHT(B63,LEN(B63)-FIND(" ",B63))))<4,TRIM(RIGHT(TRIM(RIGHT(B63,LEN(B63)-FIND(" ",B63))),LEN(TRIM(RIGHT(B63,LEN(B63)-FIND(" ",B63))))-FIND(" ",TRIM(RIGHT(B63,LEN(B63)-FIND(" ",B63)))))),TRIM(RIGHT(B63,LEN(B63)-FIND(" ",B63))))))),LEN(TRIM(LEFT(IF(FIND(" ",TRIM(RIGHT(B63,LEN(B63)-FIND(" ",B63))))<4,TRIM(RIGHT(TRIM(RIGHT(B63,LEN(B63)-FIND(" ",B63))),LEN(TRIM(RIGHT(B63,LEN(B63)-FIND(" ",B63))))-FIND(" ",TRIM(RIGHT(B63,LEN(B63)-FIND(" ",B63)))))),TRIM(RIGHT(B63,LEN(B63)-FIND(" ",B63)))),FIND(" ",IF(FIND(" ",TRIM(RIGHT(B63,LEN(B63)-FIND(" ",B63))))<4,TRIM(RIGHT(TRIM(RIGHT(B63,LEN(B63)-FIND(" ",B63))),LEN(TRIM(RIGHT(B63,LEN(B63)-FIND(" ",B63))))-FIND(" ",TRIM(RIGHT(B63,LEN(B63)-FIND(" ",B63)))))),TRIM(RIGHT(B63,LEN(B63)-FIND(" ",B63))))))))-2))*1)) -> Pacific | G63: =IF(B63="","Z",1*(TRIM(LEFT(B63,FIND(" ",B63))))) -> 1959 | H63: University District
B64: Waterfront | F64: 0 | G64: 0 | H64: Waterfront
B65: 1426 Alaskan Way | C65: Sidewalk | D65: 236466 | E65: 18 | F65: =IF(B65="","Z",IF(ISERROR((LEFT(TRIM(LEFT(IF(FIND(" ",TRIM(RIGHT(B65,LEN(B65)-FIND(" ",B65))))<4,TRIM(RIGHT(TRIM(RIGHT(B65,LEN(B65)-FIND(" ",B65))),LEN(TRIM(RIGHT(B65,LEN(B65)-FIND(" ",B65))))-FIND(" ",TRIM(RIGHT(B65,LEN(B65)-FIND(" ",B65)))))),TRIM(RIGHT(B65,LEN(B65)-FIND(" ",B65)))),FIND(" ",IF(FIND(" ",TRIM(RIGHT(B65,LEN(B65)-FIND(" ",B65))))<4,TRIM(RIGHT(TRIM(RIGHT(B65,LEN(B65)-FIND(" ",B65))),LEN(TRIM(RIGHT(B65,LEN(B65)-FIND(" ",B65))))-FIND(" ",TRIM(RIGHT(B65,LEN(B65)-FIND(" ",B65)))))),TRIM(RIGHT(B65,LEN(B65)-FIND(" ",B65))))))),LEN(TRIM(LEFT(IF(FIND(" ",TRIM(RIGHT(B65,LEN(B65)-FIND(" ",B65))))<4,TRIM(RIGHT(TRIM(RIGHT(B65,LEN(B65)-FIND(" ",B65))),LEN(TRIM(RIGHT(B65,LEN(B65)-FIND(" ",B65))))-FIND(" ",TRIM(RIGHT(B65,LEN(B65)-FIND(" ",B65)))))),TRIM(RIGHT(B65,LEN(B65)-FIND(" ",B65)))),FIND(" ",IF(FIND(" ",TRIM(RIGHT(B65,LEN(B65)-FIND(" ",B65))))<4,TRIM(RIGHT(TRIM(RIGHT(B65,LEN(B65)-FIND(" ",B65))),LEN(TRIM(RIGHT(B65,LEN(B65)-FIND(" ",B65))))-FIND(" ",TRIM(RIGHT(B65,LEN(B65)-FIND(" ",B65)))))),TRIM(RIGHT(B65,LEN(B65)-FIND(" ",B65))))))))-2))*1),TRIM(LEFT(IF(FIND(" ",TRIM(RIGHT(B65,LEN(B65)-FIND(" ",B65))))<4,TRIM(RIGHT(TRIM(RIGHT(B65,LEN(B65)-FIND(" ",B65))),LEN(TRIM(RIGHT(B65,LEN(B65)-FIND(" ",B65))))-FIND(" ",TRIM(RIGHT(B65,LEN(B65)-FIND(" ",B65)))))),TRIM(RIGHT(B65,LEN(B65)-FIND(" ",B65)))),FIND(" ",IF(FIND(" ",TRIM(RIGHT(B65,LEN(B65)-FIND(" ",B65))))<4,TRIM(RIGHT(TRIM(RIGHT(B65,LEN(B65)-FIND(" ",B65))),LEN(TRIM(RIGHT(B65,LEN(B65)-FIND(" ",B65))))-FIND(" ",TRIM(RIGHT(B65,LEN(B65)-FIND(" ",B65)))))),TRIM(RIGHT(B65,LEN(B65)-FIND(" ",B65))))))),(LEFT(TRIM(LEFT(IF(FIND(" ",TRIM(RIGHT(B65,LEN(B65)-FIND(" ",B65))))<4,TRIM(RIGHT(TRIM(RIGHT(B65,LEN(B65)-FIND(" ",B65))),LEN(TRIM(RIGHT(B65,LEN(B65)-FIND(" ",B65))))-FIND(" ",TRIM(RIGHT(B65,LEN(B65)-FIND(" ",B65)))))),TRIM(RIGHT(B65,LEN(B65)-FIND(" ",B65)))),FIND(" ",IF(FIND(" ",TRIM(RIGHT(B65,LEN(B65)-FIND(" ",B65))))<4,TRIM(RIGHT(TRIM(RIGHT(B65,LEN(B65)-FIND(" ",B65))),LEN(TRIM(RIGHT(B65,LEN(B65)-FIND(" ",B65))))-FIND(" ",TRIM(RIGHT(B65,LEN(B65)-FIND(" ",B65)))))),TRIM(RIGHT(B65,LEN(B65)-FIND(" ",B65))))))),LEN(TRIM(LEFT(IF(FIND(" ",TRIM(RIGHT(B65,LEN(B65)-FIND(" ",B65))))<4,TRIM(RIGHT(TRIM(RIGHT(B65,LEN(B65)-FIND(" ",B65))),LEN(TRIM(RIGHT(B65,LEN(B65)-FIND(" ",B65))))-FIND(" ",TRIM(RIGHT(B65,LEN(B65)-FIND(" ",B65)))))),TRIM(RIGHT(B65,LEN(B65)-FIND(" ",B65)))),FIND(" ",IF(FIND(" ",TRIM(RIGHT(B65,LEN(B65)-FIND(" ",B65))))<4,TRIM(RIGHT(TRIM(RIGHT(B65,LEN(B65)-FIND(" ",B65))),LEN(TRIM(RIGHT(B65,LEN(B65)-FIND(" ",B65))))-FIND(" ",TRIM(RIGHT(B65,LEN(B65)-FIND(" ",B65)))))),TRIM(RIGHT(B65,LEN(B65)-FIND(" ",B65))))))))-2))*1)) -> Alaskan | G65: =IF(B65="","Z",1*(TRIM(LEFT(B65,FIND(" ",B65))))) -> 1426 | H65: Waterfront
B66: 2203 Alaskan Way | C66: Sidewalk | D66: 307683 | E66: 18 | F66: =IF(B66="","Z",IF(ISERROR((LEFT(TRIM(LEFT(IF(FIND(" ",TRIM(RIGHT(B66,LEN(B66)-FIND(" ",B66))))<4,TRIM(RIGHT(TRIM(RIGHT(B66,LEN(B66)-FIND(" ",B66))),LEN(TRIM(RIGHT(B66,LEN(B66)-FIND(" ",B66))))-FIND(" ",TRIM(RIGHT(B66,LEN(B66)-FIND(" ",B66)))))),TRIM(RIGHT(B66,LEN(B66)-FIND(" ",B66)))),FIND(" ",IF(FIND(" ",TRIM(RIGHT(B66,LEN(B66)-FIND(" ",B66))))<4,TRIM(RIGHT(TRIM(RIGHT(B66,LEN(B66)-FIND(" ",B66))),LEN(TRIM(RIGHT(B66,LEN(B66)-FIND(" ",B66))))-FIND(" ",TRIM(RIGHT(B66,LEN(B66)-FIND(" ",B66)))))),TRIM(RIGHT(B66,LEN(B66)-FIND(" ",B66))))))),LEN(TRIM(LEFT(IF(FIND(" ",TRIM(RIGHT(B66,LEN(B66)-FIND(" ",B66))))<4,TRIM(RIGHT(TRIM(RIGHT(B66,LEN(B66)-FIND(" ",B66))),LEN(TRIM(RIGHT(B66,LEN(B66)-FIND(" ",B66))))-FIND(" ",TRIM(RIGHT(B66,LEN(B66)-FIND(" ",B66)))))),TRIM(RIGHT(B66,LEN(B66)-FIND(" ",B66)))),FIND(" ",IF(FIND(" ",TRIM(RIGHT(B66,LEN(B66)-FIND(" ",B66))))<4,TRIM(RIGHT(TRIM(RIGHT(B66,LEN(B66)-FIND(" ",B66))),LEN(TRIM(RIGHT(B66,LEN(B66)-FIND(" ",B66))))-FIND(" ",TRIM(RIGHT(B66,LEN(B66)-FIND(" ",B66)))))),TRIM(RIGHT(B66,LEN(B66)-FIND(" ",B66))))))))-2))*1),TRIM(LEFT(IF(FIND(" ",TRIM(RIGHT(B66,LEN(B66)-FIND(" ",B66))))<4,TRIM(RIGHT(TRIM(RIGHT(B66,LEN(B66)-FIND(" ",B66))),LEN(TRIM(RIGHT(B66,LEN(B66)-FIND(" ",B66))))-FIND(" ",TRIM(RIGHT(B66,LEN(B66)-FIND(" ",B66)))))),TRIM(RIGHT(B66,LEN(B66)-FIND(" ",B66)))),FIND(" ",IF(FIND(" ",TRIM(RIGHT(B66,LEN(B66)-FIND(" ",B66))))<4,TRIM(RIGHT(TRIM(RIGHT(B66,LEN(B66)-FIND(" ",B66))),LEN(TRIM(RIGHT(B66,LEN(B66)-FIND(" ",B66))))-FIND(" ",TRIM(RIGHT(B66,LEN(B66)-FIND(" ",B66)))))),TRIM(RIGHT(B66,LEN(B66)-FIND(" ",B66))))))),(LEFT(TRIM(LEFT(IF(FIND(" ",TRIM(RIGHT(B66,LEN(B66)-FIND(" ",B66))))<4,TRIM(RIGHT(TRIM(RIGHT(B66,LEN(B66)-FIND(" ",B66))),LEN(TRIM(RIGHT(B66,LEN(B66)-FIND(" ",B66))))-FIND(" ",TRIM(RIGHT(B66,LEN(B66)-FIND(" ",B66)))))),TRIM(RIGHT(B66,LEN(B66)-FIND(" ",B66)))),FIND(" ",IF(FIND(" ",TRIM(RIGHT(B66,LEN(B66)-FIND(" ",B66))))<4,TRIM(RIGHT(TRIM(RIGHT(B66,LEN(B66)-FIND(" ",B66))),LEN(TRIM(RIGHT(B66,LEN(B66)-FIND(" ",B66))))-FIND(" ",TRIM(RIGHT(B66,LEN(B66)-FIND(" ",B66)))))),TRIM(RIGHT(B66,LEN(B66)-FIND(" ",B66))))))),LEN(TRIM(LEFT(IF(FIND(" ",TRIM(RIGHT(B66,LEN(B66)-FIND(" ",B66))))<4,TRIM(RIGHT(TRIM(RIGHT(B66,LEN(B66)-FIND(" ",B66))),LEN(TRIM(RIGHT(B66,LEN(B66)-FIND(" ",B66))))-FIND(" ",TRIM(RIGHT(B66,LEN(B66)-FIND(" ",B66)))))),TRIM(RIGHT(B66,LEN(B66)-FIND(" ",B66)))),FIND(" ",IF(FIND(" ",TRIM(RIGHT(B66,LEN(B66)-FIND(" ",B66))))<4,TRIM(RIGHT(TRIM(RIGHT(B66,LEN(B66)-FIND(" ",B66))),LEN(TRIM(RIGHT(B66,LEN(B66)-FIND(" ",B66))))-FIND(" ",TRIM(RIGHT(B66,LEN(B66)-FIND(" ",B66)))))),TRIM(RIGHT(B66,LEN(B66)-FIND(" ",B66))))))))-2))*1)) -> Alaskan | G66: =IF(B66="","Z",1*(TRIM(LEFT(B66,FIND(" ",B66))))) -> 2203 | H66: Waterfront
B67: 2611 Alaskan Way | C67: Sidewalk | D67: 236434 | E67: 24 | F67: =IF(B67="","Z",IF(ISERROR((LEFT(TRIM(LEFT(IF(FIND(" ",TRIM(RIGHT(B67,LEN(B67)-FIND(" ",B67))))<4,TRIM(RIGHT(TRIM(RIGHT(B67,LEN(B67)-FIND(" ",B67))),LEN(TRIM(RIGHT(B67,LEN(B67)-FIND(" ",B67))))-FIND(" ",TRIM(RIGHT(B67,LEN(B67)-FIND(" ",B67)))))),TRIM(RIGHT(B67,LEN(B67)-FIND(" ",B67)))),FIND(" ",IF(FIND(" ",TRIM(RIGHT(B67,LEN(B67)-FIND(" ",B67))))<4,TRIM(RIGHT(TRIM(RIGHT(B67,LEN(B67)-FIND(" ",B67))),LEN(TRIM(RIGHT(B67,LEN(B67)-FIND(" ",B67))))-FIND(" ",TRIM(RIGHT(B67,LEN(B67)-FIND(" ",B67)))))),TRIM(RIGHT(B67,LEN(B67)-FIND(" ",B67))))))),LEN(TRIM(LEFT(IF(FIND(" ",TRIM(RIGHT(B67,LEN(B67)-FIND(" ",B67))))<4,TRIM(RIGHT(TRIM(RIGHT(B67,LEN(B67)-FIND(" ",B67))),LEN(TRIM(RIGHT(B67,LEN(B67)-FIND(" ",B67))))-FIND(" ",TRIM(RIGHT(B67,LEN(B67)-FIND(" ",B67)))))),TRIM(RIGHT(B67,LEN(B67)-FIND(" ",B67)))),FIND(" ",IF(FIND(" ",TRIM(RIGHT(B67,LEN(B67)-FIND(" ",B67))))<4,TRIM(RIGHT(TRIM(RIGHT(B67,LEN(B67)-FIND(" ",B67))),LEN(TRIM(RIGHT(B67,LEN(B67)-FIND(" ",B67))))-FIND(" ",TRIM(RIGHT(B67,LEN(B67)-FIND(" ",B67)))))),TRIM(RIGHT(B67,LEN(B67)-FIND(" ",B67))))))))-2))*1),TRIM(LEFT(IF(FIND(" ",TRIM(RIGHT(B67,LEN(B67)-FIND(" ",B67))))<4,TRIM(RIGHT(TRIM(RIGHT(B67,LEN(B67)-FIND(" ",B67))),LEN(TRIM(RIGHT(B67,LEN(B67)-FIND(" ",B67))))-FIND(" ",TRIM(RIGHT(B67,LEN(B67)-FIND(" ",B67)))))),TRIM(RIGHT(B67,LEN(B67)-FIND(" ",B67)))),FIND(" ",IF(FIND(" ",TRIM(RIGHT(B67,LEN(B67)-FIND(" ",B67))))<4,TRIM(RIGHT(TRIM(RIGHT(B67,LEN(B67)-FIND(" ",B67))),LEN(TRIM(RIGHT(B67,LEN(B67)-FIND(" ",B67))))-FIND(" ",TRIM(RIGHT(B67,LEN(B67)-FIND(" ",B67)))))),TRIM(RIGHT(B67,LEN(B67)-FIND(" ",B67))))))),(LEFT(TRIM(LEFT(IF(FIND(" ",TRIM(RIGHT(B67,LEN(B67)-FIND(" ",B67))))<4,TRIM(RIGHT(TRIM(RIGHT(B67,LEN(B67)-FIND(" ",B67))),LEN(TRIM(RIGHT(B67,LEN(B67)-FIND(" ",B67))))-FIND(" ",TRIM(RIGHT(B67,LEN(B67)-FIND(" ",B67)))))),TRIM(RIGHT(B67,LEN(B67)-FIND(" ",B67)))),FIND(" ",IF(FIND(" ",TRIM(RIGHT(B67,LEN(B67)-FIND(" ",B67))))<4,TRIM(RIGHT(TRIM(RIGHT(B67,LEN(B67)-FIND(" ",B67))),LEN(TRIM(RIGHT(B67,LEN(B67)-FIND(" ",B67))))-FIND(" ",TRIM(RIGHT(B67,LEN(B67)-FIND(" ",B67)))))),TRIM(RIGHT(B67,LEN(B67)-FIND(" ",B67))))))),LEN(TRIM(LEFT(IF(FIND(" ",TRIM(RIGHT(B67,LEN(B67)-FIND(" ",B67))))<4,TRIM(RIGHT(TRIM(RIGHT(B67,LEN(B67)-FIND(" ",B67))),LEN(TRIM(RIGHT(B67,LEN(B67)-FIND(" ",B67))))-FIND(" ",TRIM(RIGHT(B67,LEN(B67)-FIND(" ",B67)))))),TRIM(RIGHT(B67,LEN(B67)-FIND(" ",B67)))),FIND(" ",IF(FIND(" ",TRIM(RIGHT(B67,LEN(B67)-FIND(" ",B67))))<4,TRIM(RIGHT(TRIM(RIGHT(B67,LEN(B67)-FIND(" ",B67))),LEN(TRIM(RIGHT(B67,LEN(B67)-FIND(" ",B67))))-FIND(" ",TRIM(RIGHT(B67,LEN(B67)-FIND(" ",B67)))))),TRIM(RIGHT(B67,LEN(B67)-FIND(" ",B67))))))))-2))*1)) -> Alaskan | G67: =IF(B67="","Z",1*(TRIM(LEFT(B67,FIND(" ",B67))))) -> 2611 | H67: Waterfront
F68: =IF(B68="","Z",IF(ISERROR((LEFT(TRIM(LEFT(IF(FIND(" ",TRIM(RIGHT(B68,LEN(B68)-FIND(" ",B68))))<4,TRIM(RIGHT(TRIM(RIGHT(B68,LEN(B68)-FIND(" ",B68))),LEN(TRIM(RIGHT(B68,LEN(B68)-FIND(" ",B68))))-FIND(" ",TRIM(RIGHT(B68,LEN(B68)-FIND(" ",B68)))))),TRIM(RIGHT(B68,LEN(B68)-FIND(" ",B68)))),FIND(" ",IF(FIND(" ",TRIM(RIGHT(B68,LEN(B68)-FIND(" ",B68))))<4,TRIM(RIGHT(TRIM(RIGHT(B68,LEN(B68)-FIND(" ",B68))),LEN(TRIM(RIGHT(B68,LEN(B68)-FIND(" ",B68))))-FIND(" ",TRIM(RIGHT(B68,LEN(B68)-FIND(" ",B68)))))),TRIM(RIGHT(B68,LEN(B68)-FIND(" ",B68))))))),LEN(TRIM(LEFT(IF(FIND(" ",TRIM(RIGHT(B68,LEN(B68)-FIND(" ",B68))))<4,TRIM(RIGHT(TRIM(RIGHT(B68,LEN(B68)-FIND(" ",B68))),LEN(TRIM(RIGHT(B68,LEN(B68)-FIND(" ",B68))))-FIND(" ",TRIM(RIGHT(B68,LEN(B68)-FIND(" ",B68)))))),TRIM(RIGHT(B68,LEN(B68)-FIND(" ",B68)))),FIND(" ",IF(FIND(" ",TRIM(RIGHT(B68,LEN(B68)-FIND(" ",B68))))<4,TRIM(RIGHT(TRIM(RIGHT(B68,LEN(B68)-FIND(" ",B68))),LEN(TRIM(RIGHT(B68,LEN(B68)-FIND(" ",B68))))-FIND(" ",TRIM(RIGHT(B68,LEN(B68)-FIND(" ",B68)))))),TRIM(RIGHT(B68,LEN(B68)-FIND(" ",B68))))))))-2))*1),TRIM(LEFT(IF(FIND(" ",TRIM(RIGHT(B68,LEN(B68)-FIND(" ",B68))))<4,TRIM(RIGHT(TRIM(RIGHT(B68,LEN(B68)-FIND(" ",B68))),LEN(TRIM(RIGHT(B68,LEN(B68)-FIND(" ",B68))))-FIND(" ",TRIM(RIGHT(B68,LEN(B68)-FIND(" ",B68)))))),TRIM(RIGHT(B68,LEN(B68)-FIND(" ",B68)))),FIND(" ",IF(FIND(" ",TRIM(RIGHT(B68,LEN(B68)-FIND(" ",B68))))<4,TRIM(RIGHT(TRIM(RIGHT(B68,LEN(B68)-FIND(" ",B68))),LEN(TRIM(RIGHT(B68,LEN(B68)-FIND(" ",B68))))-FIND(" ",TRIM(RIGHT(B68,LEN(B68)-FIND(" ",B68)))))),TRIM(RIGHT(B68,LEN(B68)-FIND(" ",B68))))))),(LEFT(TRIM(LEFT(IF(FIND(" ",TRIM(RIGHT(B68,LEN(B68)-FIND(" ",B68))))<4,TRIM(RIGHT(TRIM(RIGHT(B68,LEN(B68)-FIND(" ",B68))),LEN(TRIM(RIGHT(B68,LEN(B68)-FIND(" ",B68))))-FIND(" ",TRIM(RIGHT(B68,LEN(B68)-FIND(" ",B68)))))),TRIM(RIGHT(B68,LEN(B68)-FIND(" ",B68)))),FIND(" ",IF(FIND(" ",TRIM(RIGHT(B68,LEN(B68)-FIND(" ",B68))))<4,TRIM(RIGHT(TRIM(RIGHT(B68,LEN(B68)-FIND(" ",B68))),LEN(TRIM(RIGHT(B68,LEN(B68)-FIND(" ",B68))))-FIND(" ",TRIM(RIGHT(B68,LEN(B68)-FIND(" ",B68)))))),TRIM(RIGHT(B68,LEN(B68)-FIND(" ",B68))))))),LEN(TRIM(LEFT(IF(FIND(" ",TRIM(RIGHT(B68,LEN(B68)-FIND(" ",B68))))<4,TRIM(RIGHT(TRIM(RIGHT(B68,LEN(B68)-FIND(" ",B68))),LEN(TRIM(RIGHT(B68,LEN(B68)-FIND(" ",B68))))-FIND(" ",TRIM(RIGHT(B68,LEN(B68)-FIND(" ",B68)))))),TRIM(RIGHT(B68,LEN(B68)-FIND(" ",B68)))),FIND(" ",IF(FIND(" ",TRIM(RIGHT(B68,LEN(B68)-FIND(" ",B68))))<4,TRIM(RIGHT(TRIM(RIGHT(B68,LEN(B68)-FIND(" ",B68))),LEN(TRIM(RIGHT(B68,LEN(B68)-FIND(" ",B68))))-FIND(" ",TRIM(RIGHT(B68,LEN(B68)-FIND(" ",B68)))))),TRIM(RIGHT(B68,LEN(B68)-FIND(" ",B68))))))))-2))*1)) -> Z | G68: =IF(B68="","Z",1*(TRIM(LEFT(B68,FIND(" ",B68))))) -> Z
F69: Z | G69: Z
F70: Z | G70: Z
F71: Z | G71: Z
F72: Z | G72: Z
F73: Z | G73: Z
F74: Z | G74: Z
F75: Z | G75: Z
F76: =IF(B76="","Z",IF(ISERROR((LEFT(TRIM(LEFT(IF(FIND(" ",TRIM(RIGHT(B76,LEN(B76)-FIND(" ",B76))))<4,TRIM(RIGHT(TRIM(RIGHT(B76,LEN(B76)-FIND(" ",B76))),LEN(TRIM(RIGHT(B76,LEN(B76)-FIND(" ",B76))))-FIND(" ",TRIM(RIGHT(B76,LEN(B76)-FIND(" ",B76)))))),TRIM(RIGHT(B76,LEN(B76)-FIND(" ",B76)))),FIND(" ",IF(FIND(" ",TRIM(RIGHT(B76,LEN(B76)-FIND(" ",B76))))<4,TRIM(RIGHT(TRIM(RIGHT(B76,LEN(B76)-FIND(" ",B76))),LEN(TRIM(RIGHT(B76,LEN(B76)-FIND(" ",B76))))-FIND(" ",TRIM(RIGHT(B76,LEN(B76)-FIND(" ",B76)))))),TRIM(RIGHT(B76,LEN(B76)-FIND(" ",B76))))))),LEN(TRIM(LEFT(IF(FIND(" ",TRIM(RIGHT(B76,LEN(B76)-FIND(" ",B76))))<4,TRIM(RIGHT(TRIM(RIGHT(B76,LEN(B76)-FIND(" ",B76))),LEN(TRIM(RIGHT(B76,LEN(B76)-FIND(" ",B76))))-FIND(" ",TRIM(RIGHT(B76,LEN(B76)-FIND(" ",B76)))))),TRIM(RIGHT(B76,LEN(B76)-FIND(" ",B76)))),FIND(" ",IF(FIND(" ",TRIM(RIGHT(B76,LEN(B76)-FIND(" ",B76))))<4,TRIM(RIGHT(TRIM(RIGHT(B76,LEN(B76)-FIND(" ",B76))),LEN(TRIM(RIGHT(B76,LEN(B76)-FIND(" ",B76))))-FIND(" ",TRIM(RIGHT(B76,LEN(B76)-FIND(" ",B76)))))),TRIM(RIGHT(B76,LEN(B76)-FIND(" ",B76))))))))-2))*1),TRIM(LEFT(IF(FIND(" ",TRIM(RIGHT(B76,LEN(B76)-FIND(" ",B76))))<4,TRIM(RIGHT(TRIM(RIGHT(B76,LEN(B76)-FIND(" ",B76))),LEN(TRIM(RIGHT(B76,LEN(B76)-FIND(" ",B76))))-FIND(" ",TRIM(RIGHT(B76,LEN(B76)-FIND(" ",B76)))))),TRIM(RIGHT(B76,LEN(B76)-FIND(" ",B76)))),FIND(" ",IF(FIND(" ",TRIM(RIGHT(B76,LEN(B76)-FIND(" ",B76))))<4,TRIM(RIGHT(TRIM(RIGHT(B76,LEN(B76)-FIND(" ",B76))),LEN(TRIM(RIGHT(B76,LEN(B76)-FIND(" ",B76))))-FIND(" ",TRIM(RIGHT(B76,LEN(B76)-FIND(" ",B76)))))),TRIM(RIGHT(B76,LEN(B76)-FIND(" ",B76))))))),(LEFT(TRIM(LEFT(IF(FIND(" ",TRIM(RIGHT(B76,LEN(B76)-FIND(" ",B76))))<4,TRIM(RIGHT(TRIM(RIGHT(B76,LEN(B76)-FIND(" ",B76))),LEN(TRIM(RIGHT(B76,LEN(B76)-FIND(" ",B76))))-FIND(" ",TRIM(RIGHT(B76,LEN(B76)-FIND(" ",B76)))))),TRIM(RIGHT(B76,LEN(B76)-FIND(" ",B76)))),FIND(" ",IF(FIND(" ",TRIM(RIGHT(B76,LEN(B76)-FIND(" ",B76))))<4,TRIM(RIGHT(TRIM(RIGHT(B76,LEN(B76)-FIND(" ",B76))),LEN(TRIM(RIGHT(B76,LEN(B76)-FIND(" ",B76))))-FIND(" ",TRIM(RIGHT(B76,LEN(B76)-FIND(" ",B76)))))),TRIM(RIGHT(B76,LEN(B76)-FIND(" ",B76))))))),LEN(TRIM(LEFT(IF(FIND(" ",TRIM(RIGHT(B76,LEN(B76)-FIND(" ",B76))))<4,TRIM(RIGHT(TRIM(RIGHT(B76,LEN(B76)-FIND(" ",B76))),LEN(TRIM(RIGHT(B76,LEN(B76)-FIND(" ",B76))))-FIND(" ",TRIM(RIGHT(B76,LEN(B76)-FIND(" ",B76)))))),TRIM(RIGHT(B76,LEN(B76)-FIND(" ",B76)))),FIND(" ",IF(FIND(" ",TRIM(RIGHT(B76,LEN(B76)-FIND(" ",B76))))<4,TRIM(RIGHT(TRIM(RIGHT(B76,LEN(B76)-FIND(" ",B76))),LEN(TRIM(RIGHT(B76,LEN(B76)-FIND(" ",B76))))-FIND(" ",TRIM(RIGHT(B76,LEN(B76)-FIND(" ",B76)))))),TRIM(RIGHT(B76,LEN(B76)-FIND(" ",B76))))))))-2))*1)) -> Z | G76: =IF(B76="","Z",1*(TRIM(LEFT(B76,FIND(" ",B76))))) -> Z
F77: Z | G77: Z
F78: Z | G78: Z
F79: Z | G79: Z
F80: Z | G80: Z
F81: Z | G81: Z
F82: Z | G82: Z
F83: Z | G83: Z
F84: Z | G84: Z
F85: Z | G85: Z
F86: Z | G86: Z
F87: Z | G87: Z
F88: Z | G88: Z
F89: Z | G89: Z
F90: Z | G90: Z
F91: Z | G91: Z
F92: Z | G92: Z
F93: Z | G93: Z
F94: Z | G94: Z
F95: Z | G95: Z
F96: Z | G96: Z
F97: Z | G97: Z
F98: Z | G98: Z
F99: Z | G99: Z
F100: Z | G100: Z
F101: Z | G101: Z
F102: =IF(B102="","Z",IF(ISERROR((LEFT(TRIM(LEFT(IF(FIND(" ",TRIM(RIGHT(B102,LEN(B102)-FIND(" ",B102))))<4,TRIM(RIGHT(TRIM(RIGHT(B102,LEN(B102)-FIND(" ",B102))),LEN(TRIM(RIGHT(B102,LEN(B102)-FIND(" ",B102))))-FIND(" ",TRIM(RIGHT(B102,LEN(B102)-FIND(" ",B102)))))),TRIM(RIGHT(B102,LEN(B102)-FIND(" ",B102)))),FIND(" ",IF(FIND(" ",TRIM(RIGHT(B102,LEN(B102)-FIND(" ",B102))))<4,TRIM(RIGHT(TRIM(RIGHT(B102,LEN(B102)-FIND(" ",B102))),LEN(TRIM(RIGHT(B102,LEN(B102)-FIND(" ",B102))))-FIND(" ",TRIM(RIGHT(B102,LEN(B102)-FIND(" ",B102)))))),TRIM(RIGHT(B102,LEN(B102)-FIND(" ",B102))))))),LEN(TRIM(LEFT(IF(FIND(" ",TRIM(RIGHT(B102,LEN(B102)-FIND(" ",B102))))<4,TRIM(RIGHT(TRIM(RIGHT(B102,LEN(B102)-FIND(" ",B102))),LEN(TRIM(RIGHT(B102,LEN(B102)-FIND(" ",B102))))-FIND(" ",TRIM(RIGHT(B102,LEN(B102)-FIND(" ",B102)))))),TRIM(RIGHT(B102,LEN(B102)-FIND(" ",B102)))),FIND(" ",IF(FIND(" ",TRIM(RIGHT(B102,LEN(B102)-FIND(" ",B102))))<4,TRIM(RIGHT(TRIM(RIGHT(B102,LEN(B102)-FIND(" ",B102))),LEN(TRIM(RIGHT(B102,LEN(B102)-FIND(" ",B102))))-FIND(" ",TRIM(RIGHT(B102,LEN(B102)-FIND(" ",B102)))))),TRIM(RIGHT(B102,LEN(B102)-FIND(" ",B102))))))))-2))*1),TRIM(LEFT(IF(FIND(" ",TRIM(RIGHT(B102,LEN(B102)-FIND(" ",B102))))<4,TRIM(RIGHT(TRIM(RIGHT(B102,LEN(B102)-FIND(" ",B102))),LEN(TRIM(RIGHT(B102,LEN(B102)-FIND(" ",B102))))-FIND(" ",TRIM(RIGHT(B102,LEN(B102)-FIND(" ",B102)))))),TRIM(RIGHT(B102,LEN(B102)-FIND(" ",B102)))),FIND(" ",IF(FIND(" ",TRIM(RIGHT(B102,LEN(B102)-FIND(" ",B102))))<4,TRIM(RIGHT(TRIM(RIGHT(B102,LEN(B102)-FIND(" ",B102))),LEN(TRIM(RIGHT(B102,LEN(B102)-FIND(" ",B102))))-FIND(" ",TRIM(RIGHT(B102,LEN(B102)-FIND(" ",B102)))))),TRIM(RIGHT(B102,LEN(B102)-FIND(" ",B102))))))),(LEFT(TRIM(LEFT(IF(FIND(" ",TRIM(RIGHT(B102,LEN(B102)-FIND(" ",B102))))<4,TRIM(RIGHT(TRIM(RIGHT(B102,LEN(B102)-FIND(" ",B102))),LEN(TRIM(RIGHT(B102,LEN(B102)-FIND(" ",B102))))-FIND(" ",TRIM(RIGHT(B102,LEN(B102)-FIND(" ",B102)))))),TRIM(RIGHT(B102,LEN(B102)-FIND(" ",B102)))),FIND(" ",IF(FIND(" ",TRIM(RIGHT(B102,LEN(B102)-FIND(" ",B102))))<4,TRIM(RIGHT(TRIM(RIGHT(B102,LEN(B102)-FIND(" ",B102))),LEN(TRIM(RIGHT(B102,LEN(B102)-FIND(" ",B102))))-FIND(" ",TRIM(RIGHT(B102,LEN(B102)-FIND(" ",B102)))))),TRIM(RIGHT(B102,LEN(B102)-FIND(" ",B102))))))),LEN(TRIM(LEFT(IF(FIND(" ",TRIM(RIGHT(B102,LEN(B102)-FIND(" ",B102))))<4,TRIM(RIGHT(TRIM(RIGHT(B102,LEN(B102)-FIND(" ",B102))),LEN(TRIM(RIGHT(B102,LEN(B102)-FIND(" ",B102))))-FIND(" ",TRIM(RIGHT(B102,LEN(B102)-FIND(" ",B102)))))),TRIM(RIGHT(B102,LEN(B102)-FIND(" ",B102)))),FIND(" ",IF(FIND(" ",TRIM(RIGHT(B102,LEN(B102)-FIND(" ",B102))))<4,TRIM(RIGHT(TRIM(RIGHT(B102,LEN(B102)-FIND(" ",B102))),LEN(TRIM(RIGHT(B102,LEN(B102)-FIND(" ",B102))))-FIND(" ",TRIM(RIGHT(B102,LEN(B102)-FIND(" ",B102)))))),TRIM(RIGHT(B102,LEN(B102)-FIND(" ",B102))))))))-2))*1)) -> Z | G102: =IF(B102="","Z",1*(TRIM(LEFT(B102,FIND(" ",B102))))) -> Z
F103: Z | G103: Z
F104: Z | G104: Z
F105: Z | G105: Z
F106: Z | G106: Z
F107: Z | G107: Z
F108: Z | G108: Z
F109: Z | G109: Z
F110: Z | G110: Z
F111: Z | G111: Z
F112: Z | G112: Z
F113: Z | G113: Z
F114: Z | G114: Z
F115: Z | G115: Z
F116: Z | G116: Z
F117: Z | G117: Z
F118: Z | G118: Z
F119: Z | G119: Z
F120: Z | G120: Z
F121: Z | G121: Z
F122: Z | G122: Z
F123: Z | G123: Z
F124: Z | G124: Z
F125: Z | G125: Z
F126: Z | G126: Z
F127: Z | G127: Z
F128: Z | G128: Z
F129: Z | G129: Z
F130: Z | G130: Z
F131: Z | G131: Z
F132: Z | G132: Z
F133: Z | G133: Z
F134: Z | G134: Z
F135: Z | G135: Z
F136: Z | G136: Z
F137: Z | G137: Z
F138: Z | G138: Z
F139: Z | G139: Z
F140: Z | G140: Z
F141: Z | G141: Z
F142: =IF(B142="","Z",IF(ISERROR((LEFT(TRIM(LEFT(IF(FIND(" ",TRIM(RIGHT(B142,LEN(B142)-FIND(" ",B142))))<4,TRIM(RIGHT(TRIM(RIGHT(B142,LEN(B142)-FIND(" ",B142))),LEN(TRIM(RIGHT(B142,LEN(B142)-FIND(" ",B142))))-FIND(" ",TRIM(RIGHT(B142,LEN(B142)-FIND(" ",B142)))))),TRIM(RIGHT(B142,LEN(B142)-FIND(" ",B142)))),FIND(" ",IF(FIND(" ",TRIM(RIGHT(B142,LEN(B142)-FIND(" ",B142))))<4,TRIM(RIGHT(TRIM(RIGHT(B142,LEN(B142)-FIND(" ",B142))),LEN(TRIM(RIGHT(B142,LEN(B142)-FIND(" ",B142))))-FIND(" ",TRIM(RIGHT(B142,LEN(B142)-FIND(" ",B142)))))),TRIM(RIGHT(B142,LEN(B142)-FIND(" ",B142))))))),LEN(TRIM(LEFT(IF(FIND(" ",TRIM(RIGHT(B142,LEN(B142)-FIND(" ",B142))))<4,TRIM(RIGHT(TRIM(RIGHT(B142,LEN(B142)-FIND(" ",B142))),LEN(TRIM(RIGHT(B142,LEN(B142)-FIND(" ",B142))))-FIND(" ",TRIM(RIGHT(B142,LEN(B142)-FIND(" ",B142)))))),TRIM(RIGHT(B142,LEN(B142)-FIND(" ",B142)))),FIND(" ",IF(FIND(" ",TRIM(RIGHT(B142,LEN(B142)-FIND(" ",B142))))<4,TRIM(RIGHT(TRIM(RIGHT(B142,LEN(B142)-FIND(" ",B142))),LEN(TRIM(RIGHT(B142,LEN(B142)-FIND(" ",B142))))-FIND(" ",TRIM(RIGHT(B142,LEN(B142)-FIND(" ",B142)))))),TRIM(RIGHT(B142,LEN(B142)-FIND(" ",B142))))))))-2))*1),TRIM(LEFT(IF(FIND(" ",TRIM(RIGHT(B142,LEN(B142)-FIND(" ",B142))))<4,TRIM(RIGHT(TRIM(RIGHT(B142,LEN(B142)-FIND(" ",B142))),LEN(TRIM(RIGHT(B142,LEN(B142)-FIND(" ",B142))))-FIND(" ",TRIM(RIGHT(B142,LEN(B142)-FIND(" ",B142)))))),TRIM(RIGHT(B142,LEN(B142)-FIND(" ",B142)))),FIND(" ",IF(FIND(" ",TRIM(RIGHT(B142,LEN(B142)-FIND(" ",B142))))<4,TRIM(RIGHT(TRIM(RIGHT(B142,LEN(B142)-FIND(" ",B142))),LEN(TRIM(RIGHT(B142,LEN(B142)-FIND(" ",B142))))-FIND(" ",TRIM(RIGHT(B142,LEN(B142)-FIND(" ",B142)))))),TRIM(RIGHT(B142,LEN(B142)-FIND(" ",B142))))))),(LEFT(TRIM(LEFT(IF(FIND(" ",TRIM(RIGHT(B142,LEN(B142)-FIND(" ",B142))))<4,TRIM(RIGHT(TRIM(RIGHT(B142,LEN(B142)-FIND(" ",B142))),LEN(TRIM(RIGHT(B142,LEN(B142)-FIND(" ",B142))))-FIND(" ",TRIM(RIGHT(B142,LEN(B142)-FIND(" ",B142)))))),TRIM(RIGHT(B142,LEN(B142)-FIND(" ",B142)))),FIND(" ",IF(FIND(" ",TRIM(RIGHT(B142,LEN(B142)-FIND(" ",B142))))<4,TRIM(RIGHT(TRIM(RIGHT(B142,LEN(B142)-FIND(" ",B142))),LEN(TRIM(RIGHT(B142,LEN(B142)-FIND(" ",B142))))-FIND(" ",TRIM(RIGHT(B142,LEN(B142)-FIND(" ",B142)))))),TRIM(RIGHT(B142,LEN(B142)-FIND(" ",B142))))))),LEN(TRIM(LEFT(IF(FIND(" ",TRIM(RIGHT(B142,LEN(B142)-FIND(" ",B142))))<4,TRIM(RIGHT(TRIM(RIGHT(B142,LEN(B142)-FIND(" ",B142))),LEN(TRIM(RIGHT(B142,LEN(B142)-FIND(" ",B142))))-FIND(" ",TRIM(RIGHT(B142,LEN(B142)-FIND(" ",B142)))))),TRIM(RIGHT(B142,LEN(B142)-FIND(" ",B142)))),FIND(" ",IF(FIND(" ",TRIM(RIGHT(B142,LEN(B142)-FIND(" ",B142))))<4,TRIM(RIGHT(TRIM(RIGHT(B142,LEN(B142)-FIND(" ",B142))),LEN(TRIM(RIGHT(B142,LEN(B142)-FIND(" ",B142))))-FIND(" ",TRIM(RIGHT(B142,LEN(B142)-FIND(" ",B142)))))),TRIM(RIGHT(B142,LEN(B142)-FIND(" ",B142))))))))-2))*1)) -> Z | G142: =IF(B142="","Z",1*(TRIM(LEFT(B142,FIND(" ",B142))))) -> Z
F143: Z | G143: Z
F144: Z | G144: Z
F145: Z | G145: Z
F146: Z | G146: Z
F147: Z | G147: Z
F148: Z | G148: Z
F149: Z | G149: Z
F150: Z | G150: Z
F151: Z | G151: Z
F152: Z | G152: Z
F153: Z | G153: Z
F154: Z | G154: Z
F155: Z | G155: Z
F156: Z | G156: Z
F157: Z | G157: Z
F158: Z | G158: Z
F159: Z | G159: Z
F160: Z | G160: Z
F161: Z | G161: Z
F162: Z | G162: Z
F163: Z | G163: Z
F164: Z | G164: Z
F165: Z | G165: Z
F166: Z | G166: Z
F167: Z | G167: Z
F168: Z | G168: Z
F169: Z | G169: Z
F170: Z | G170: Z
F171: Z | G171: Z
F172: Z | G172: Z
F173: Z | G173: Z
F174: Z | G174: Z
F175: Z | G175: Z
F176: Z | G176: Z
F177: Z | G177: Z
F178: Z | G178: Z
F179: Z | G179: Z
F180: Z | G180: Z
F181: Z | G181: Z
F182: Z | G182: Z
F183: Z | G183: Z
F184: Z | G184: Z
F185: Z | G185: Z
F186: Z | G186: Z
F187: Z | G187: Z
F188: Z | G188: Z
F189: Z | G189: Z
F190: Z | G190: Z
F191: Z | G191: Z
F192: Z | G192: Z
F193: Z | G193: Z
F194: Z | G194: Z
F195: Z | G195: Z
F196: Z | G196: Z
F197: Z | G197: Z
F198: Z | G198: Z
F199: Z | G199: Z
F200: Z | G200: Z
F201: Z | G201: Z
F202: Z | G202: Z
F203: Z | G203: Z
F204: Z | G204: Z
F205: Z | G205: Z
F206: =IF(B206="","Z",IF(ISERROR((LEFT(TRIM(LEFT(IF(FIND(" ",TRIM(RIGHT(B206,LEN(B206)-FIND(" ",B206))))<4,TRIM(RIGHT(TRIM(RIGHT(B206,LEN(B206)-FIND(" ",B206))),LEN(TRIM(RIGHT(B206,LEN(B206)-FIND(" ",B206))))-FIND(" ",TRIM(RIGHT(B206,LEN(B206)-FIND(" ",B206)))))),TRIM(RIGHT(B206,LEN(B206)-FIND(" ",B206)))),FIND(" ",IF(FIND(" ",TRIM(RIGHT(B206,LEN(B206)-FIND(" ",B206))))<4,TRIM(RIGHT(TRIM(RIGHT(B206,LEN(B206)-FIND(" ",B206))),LEN(TRIM(RIGHT(B206,LEN(B206)-FIND(" ",B206))))-FIND(" ",TRIM(RIGHT(B206,LEN(B206)-FIND(" ",B206)))))),TRIM(RIGHT(B206,LEN(B206)-FIND(" ",B206))))))),LEN(TRIM(LEFT(IF(FIND(" ",TRIM(RIGHT(B206,LEN(B206)-FIND(" ",B206))))<4,TRIM(RIGHT(TRIM(RIGHT(B206,LEN(B206)-FIND(" ",B206))),LEN(TRIM(RIGHT(B206,LEN(B206)-FIND(" ",B206))))-FIND(" ",TRIM(RIGHT(B206,LEN(B206)-FIND(" ",B206)))))),TRIM(RIGHT(B206,LEN(B206)-FIND(" ",B206)))),FIND(" ",IF(FIND(" ",TRIM(RIGHT(B206,LEN(B206)-FIND(" ",B206))))<4,TRIM(RIGHT(TRIM(RIGHT(B206,LEN(B206)-FIND(" ",B206))),LEN(TRIM(RIGHT(B206,LEN(B206)-FIND(" ",B206))))-FIND(" ",TRIM(RIGHT(B206,LEN(B206)-FIND(" ",B206)))))),TRIM(RIGHT(B206,LEN(B206)-FIND(" ",B206))))))))-2))*1),TRIM(LEFT(IF(FIND(" ",TRIM(RIGHT(B206,LEN(B206)-FIND(" ",B206))))<4,TRIM(RIGHT(TRIM(RIGHT(B206,LEN(B206)-FIND(" ",B206))),LEN(TRIM(RIGHT(B206,LEN(B206)-FIND(" ",B206))))-FIND(" ",TRIM(RIGHT(B206,LEN(B206)-FIND(" ",B206)))))),TRIM(RIGHT(B206,LEN(B206)-FIND(" ",B206)))),FIND(" ",IF(FIND(" ",TRIM(RIGHT(B206,LEN(B206)-FIND(" ",B206))))<4,TRIM(RIGHT(TRIM(RIGHT(B206,LEN(B206)-FIND(" ",B206))),LEN(TRIM(RIGHT(B206,LEN(B206)-FIND(" ",B206))))-FIND(" ",TRIM(RIGHT(B206,LEN(B206)-FIND(" ",B206)))))),TRIM(RIGHT(B206,LEN(B206)-FIND(" ",B206))))))),(LEFT(TRIM(LEFT(IF(FIND(" ",TRIM(RIGHT(B206,LEN(B206)-FIND(" ",B206))))<4,TRIM(RIGHT(TRIM(RIGHT(B206,LEN(B206)-FIND(" ",B206))),LEN(TRIM(RIGHT(B206,LEN(B206)-FIND(" ",B206))))-FIND(" ",TRIM(RIGHT(B206,LEN(B206)-FIND(" ",B206)))))),TRIM(RIGHT(B206,LEN(B206)-FIND(" ",B206)))),FIND(" ",IF(FIND(" ",TRIM(RIGHT(B206,LEN(B206)-FIND(" ",B206))))<4,TRIM(RIGHT(TRIM(RIGHT(B206,LEN(B206)-FIND(" ",B206))),LEN(TRIM(RIGHT(B206,LEN(B206)-FIND(" ",B206))))-FIND(" ",TRIM(RIGHT(B206,LEN(B206)-FIND(" ",B206)))))),TRIM(RIGHT(B206,LEN(B206)-FIND(" ",B206))))))),LEN(TRIM(LEFT(IF(FIND(" ",TRIM(RIGHT(B206,LEN(B206)-FIND(" ",B206))))<4,TRIM(RIGHT(TRIM(RIGHT(B206,LEN(B206)-FIND(" ",B206))),LEN(TRIM(RIGHT(B206,LEN(B206)-FIND(" ",B206))))-FIND(" ",TRIM(RIGHT(B206,LEN(B206)-FIND(" ",B206)))))),TRIM(RIGHT(B206,LEN(B206)-FIND(" ",B206)))),FIND(" ",IF(FIND(" ",TRIM(RIGHT(B206,LEN(B206)-FIND(" ",B206))))<4,TRIM(RIGHT(TRIM(RIGHT(B206,LEN(B206)-FIND(" ",B206))),LEN(TRIM(RIGHT(B206,LEN(B206)-FIND(" ",B206))))-FIND(" ",TRIM(RIGHT(B206,LEN(B206)-FIND(" ",B206)))))),TRIM(RIGHT(B206,LEN(B206)-FIND(" ",B206))))))))-2))*1)) -> Z | G206: =IF(B206="","Z",1*(TRIM(LEFT(B206,FIND(" ",B206))))) -> Z
... 5 more rows

Sheet PAR-1
G2: Do not input or erase anything in Column G, Column J, or Column K
B6: Last Updated on 12/28/2016 10:37:48 AM
H8: INPUT STATUS HERE
B9: Public Notice of Parklet and Streatery Applications
B10: Location | C10: Host | D10: Size | E10: Prkg Sps Converted | F10: Permit | G10: Application Status | H10: Status | I10: Date | J10: Sort 1 | K10: Sort 2
B11: 2327 2nd Ave | C11: City Hostel Seattle | D11: 60'-0" x 6'-0" | E11: 3 | F11: 211305 | G11: =IF(H11="","",IF(I11="",H11,H11&" "&TEXT(I11,"m/d/yyyy"))) -> Approved on 8/22/2013 | H11: Approved on | I11: 2013-08-22 | J11: =IF(B11="","Z",IF(ISERROR((LEFT(TRIM(LEFT(IF(FIND(" ",TRIM(RIGHT(B11,LEN(B11)-FIND(" ",B11))))<4,TRIM(RIGHT(TRIM(RIGHT(B11,LEN(B11)-FIND(" ",B11))),LEN(TRIM(RIGHT(B11,LEN(B11)-FIND(" ",B11))))-FIND(" ",TRIM(RIGHT(B11,LEN(B11)-FIND(" ",B11)))))),TRIM(RIGHT(B11,LEN(B11)-FIND(" ",B11)))),FIND(" ",IF(FIND(" ",TRIM(RIGHT(B11,LEN(B11)-FIND(" ",B11))))<4,TRIM(RIGHT(TRIM(RIGHT(B11,LEN(B11)-FIND(" ",B11))),LEN(TRIM(RIGHT(B11,LEN(B11)-FIND(" ",B11))))-FIND(" ",TRIM(RIGHT(B11,LEN(B11)-FIND(" ",B11)))))),TRIM(RIGHT(B11,LEN(B11)-FIND(" ",B11))))))),LEN(TRIM(LEFT(IF(FIND(" ",TRIM(RIGHT(B11,LEN(B11)-FIND(" ",B11))))<4,TRIM(RIGHT(TRIM(RIGHT(B11,LEN(B11)-FIND(" ",B11))),LEN(TRIM(RIGHT(B11,LEN(B11)-FIND(" ",B11))))-FIND(" ",TRIM(RIGHT(B11,LEN(B11)-FIND(" ",B11)))))),TRIM(RIGHT(B11,LEN(B11)-FIND(" ",B11)))),FIND(" ",IF(FIND(" ",TRIM(RIGHT(B11,LEN(B11)-FIND(" ",B11))))<4,TRIM(RIGHT(TRIM(RIGHT(B11,LEN(B11)-FIND(" ",B11))),LEN(TRIM(RIGHT(B11,LEN(B11)-FIND(" ",B11))))-FIND(" ",TRIM(RIGHT(B11,LEN(B11)-FIND(" ",B11)))))),TRIM(RIGHT(B11,LEN(B11)-FIND(" ",B11))))))))-2))*1),TRIM(LEFT(IF(FIND(" ",TRIM(RIGHT(B11,LEN(B11)-FIND(" ",B11))))<4,TRIM(RIGHT(TRIM(RIGHT(B11,LEN(B11)-FIND(" ",B11))),LEN(TRIM(RIGHT(B11,LEN(B11)-FIND(" ",B11))))-FIND(" ",TRIM(RIGHT(B11,LEN(B11)-FIND(" ",B11)))))),TRIM(RIGHT(B11,LEN(B11)-FIND(" ",B11)))),FIND(" ",IF(FIND(" ",TRIM(RIGHT(B11,LEN(B11)-FIND(" ",B11))))<4,TRIM(RIGHT(TRIM(RIGHT(B11,LEN(B11)-FIND(" ",B11))),LEN(TRIM(RIGHT(B11,LEN(B11)-FIND(" ",B11))))-FIND(" ",TRIM(RIGHT(B11,LEN(B11)-FIND(" ",B11)))))),TRIM(RIGHT(B11,LEN(B11)-FIND(" ",B11))))))),(LEFT(TRIM(LEFT(IF(FIND(" ",TRIM(RIGHT(B11,LEN(B11)-FIND(" ",B11))))<4,TRIM(RIGHT(TRIM(RIGHT(B11,LEN(B11)-FIND(" ",B11))),LEN(TRIM(RIGHT(B11,LEN(B11)-FIND(" ",B11))))-FIND(" ",TRIM(RIGHT(B11,LEN(B11)-FIND(" ",B11)))))),TRIM(RIGHT(B11,LEN(B11)-FIND(" ",B11)))),FIND(" ",IF(FIND(" ",TRIM(RIGHT(B11,LEN(B11)-FIND(" ",B11))))<4,TRIM(RIGHT(TRIM(RIGHT(B11,LEN(B11)-FIND(" ",B11))),LEN(TRIM(RIGHT(B11,LEN(B11)-FIND(" ",B11))))-FIND(" ",TRIM(RIGHT(B11,LEN(B11)-FIND(" ",B11)))))),TRIM(RIGHT(B11,LEN(B11)-FIND(" ",B11))))))),LEN(TRIM(LEFT(IF(FIND(" ",TRIM(RIGHT(B11,LEN(B11)-FIND(" ",B11))))<4,TRIM(RIGHT(TRIM(RIGHT(B11,LEN(B11)-FIND(" ",B11))),LEN(TRIM(RIGHT(B11,LEN(B11)-FIND(" ",B11))))-FIND(" ",TRIM(RIGHT(B11,LEN(B11)-FIND(" ",B11)))))),TRIM(RIGHT(B11,LEN(B11)-FIND(" ",B11)))),FIND(" ",IF(FIND(" ",TRIM(RIGHT(B11,LEN(B11)-FIND(" ",B11))))<4,TRIM(RIGHT(TRIM(RIGHT(B11,LEN(B11)-FIND(" ",B11))),LEN(TRIM(RIGHT(B11,LEN(B11)-FIND(" ",B11))))-FIND(" ",TRIM(RIGHT(B11,LEN(B11)-FIND(" ",B11)))))),TRIM(RIGHT(B11,LEN(B11)-FIND(" ",B11))))))))-2))*1)) -> 2 | K11: =IF(B11="","Z",1*(TRIM(LEFT(B11,FIND(" ",B11))))) -> 2327
B12: 1505 10th Ave | C12: Lost Lake Lounge | D12: 60'-0" x 6'-0" | E12: 2 Paid Parking Spaces, 1 Load Zone | F12: 295548 | G12: =IF(H12="","",IF(I12="",H12,H12&" "&TEXT(I12,"m/d/yyyy"))) -> Approved on 10/20/2016 | H12: Approved on | I12: 2016-10-20 | J12: =IF(B12="","Z",IF(ISERROR((LEFT(TRIM(LEFT(IF(FIND(" ",TRIM(RIGHT(B12,LEN(B12)-FIND(" ",B12))))<4,TRIM(RIGHT(TRIM(RIGHT(B12,LEN(B12)-FIND(" ",B12))),LEN(TRIM(RIGHT(B12,LEN(B12)-FIND(" ",B12))))-FIND(" ",TRIM(RIGHT(B12,LEN(B12)-FIND(" ",B12)))))),TRIM(RIGHT(B12,LEN(B12)-FIND(" ",B12)))),FIND(" ",IF(FIND(" ",TRIM(RIGHT(B12,LEN(B12)-FIND(" ",B12))))<4,TRIM(RIGHT(TRIM(RIGHT(B12,LEN(B12)-FIND(" ",B12))),LEN(TRIM(RIGHT(B12,LEN(B12)-FIND(" ",B12))))-FIND(" ",TRIM(RIGHT(B12,LEN(B12)-FIND(" ",B12)))))),TRIM(RIGHT(B12,LEN(B12)-FIND(" ",B12))))))),LEN(TRIM(LEFT(IF(FIND(" ",TRIM(RIGHT(B12,LEN(B12)-FIND(" ",B12))))<4,TRIM(RIGHT(TRIM(RIGHT(B12,LEN(B12)-FIND(" ",B12))),LEN(TRIM(RIGHT(B12,LEN(B12)-FIND(" ",B12))))-FIND(" ",TRIM(RIGHT(B12,LEN(B12)-FIND(" ",B12)))))),TRIM(RIGHT(B12,LEN(B12)-FIND(" ",B12)))),FIND(" ",IF(FIND(" ",TRIM(RIGHT(B12,LEN(B12)-FIND(" ",B12))))<4,TRIM(RIGHT(TRIM(RIGHT(B12,LEN(B12)-FIND(" ",B12))),LEN(TRIM(RIGHT(B12,LEN(B12)-FIND(" ",B12))))-FIND(" ",TRIM(RIGHT(B12,LEN(B12)-FIND(" ",B12)))))),TRIM(RIGHT(B12,LEN(B12)-FIND(" ",B12))))))))-2))*1),TRIM(LEFT(IF(FIND(" ",TRIM(RIGHT(B12,LEN(B12)-FIND(" ",B12))))<4,TRIM(RIGHT(TRIM(RIGHT(B12,LEN(B12)-FIND(" ",B12))),LEN(TRIM(RIGHT(B12,LEN(B12)-FIND(" ",B12))))-FIND(" ",TRIM(RIGHT(B12,LEN(B12)-FIND(" ",B12)))))),TRIM(RIGHT(B12,LEN(B12)-FIND(" ",B12)))),FIND(" ",IF(FIND(" ",TRIM(RIGHT(B12,LEN(B12)-FIND(" ",B12))))<4,TRIM(RIGHT(TRIM(RIGHT(B12,LEN(B12)-FIND(" ",B12))),LEN(TRIM(RIGHT(B12,LEN(B12)-FIND(" ",B12))))-FIND(" ",TRIM(RIGHT(B12,LEN(B12)-FIND(" ",B12)))))),TRIM(RIGHT(B12,LEN(B12)-FIND(" ",B12))))))),(LEFT(TRIM(LEFT(IF(FIND(" ",TRIM(RIGHT(B12,LEN(B12)-FIND(" ",B12))))<4,TRIM(RIGHT(TRIM(RIGHT(B12,LEN(B12)-FIND(" ",B12))),LEN(TRIM(RIGHT(B12,LEN(B12)-FIND(" ",B12))))-FIND(" ",TRIM(RIGHT(B12,LEN(B12)-FIND(" ",B12)))))),TRIM(RIGHT(B12,LEN(B12)-FIND(" ",B12)))),FIND(" ",IF(FIND(" ",TRIM(RIGHT(B12,LEN(B12)-FIND(" ",B12))))<4,TRIM(RIGHT(TRIM(RIGHT(B12,LEN(B12)-FIND(" ",B12))),LEN(TRIM(RIGHT(B12,LEN(B12)-FIND(" ",B12))))-FIND(" ",TRIM(RIGHT(B12,LEN(B12)-FIND(" ",B12)))))),TRIM(RIGHT(B12,LEN(B12)-FIND(" ",B12))))))),LEN(TRIM(LEFT(IF(FIND(" ",TRIM(RIGHT(B12,LEN(B12)-FIND(" ",B12))))<4,TRIM(RIGHT(TRIM(RIGHT(B12,LEN(B12)-FIND(" ",B12))),LEN(TRIM(RIGHT(B12,LEN(B12)-FIND(" ",B12))))-FIND(" ",TRIM(RIGHT(B12,LEN(B12)-FIND(" ",B12)))))),TRIM(RIGHT(B12,LEN(B12)-FIND(" ",B12)))),FIND(" ",IF(FIND(" ",TRIM(RIGHT(B12,LEN(B12)-FIND(" ",B12))))<4,TRIM(RIGHT(TRIM(RIGHT(B12,LEN(B12)-FIND(" ",B12))),LEN(TRIM(RIGHT(B12,LEN(B12)-FIND(" ",B12))))-FIND(" ",TRIM(RIGHT(B12,LEN(B12)-FIND(" ",B12)))))),TRIM(RIGHT(B12,LEN(B12)-FIND(" ",B12))))))))-2))*1)) -> 10 | K12: =IF(B12="","Z",1*(TRIM(LEFT(B12,FIND(" ",B12))))) -> 1505
B13: 9252 57th Ave S | C13: Jude's Old Town | D13: 23'-0" x 8'-0" | E13: 2 | F13: 328395 | G13: =IF(H13="","",IF(I13="",H13,H13&" "&TEXT(I13,"m/d/yyyy"))) -> Approved on 12/29/2016 | H13: Approved on | I13: 2016-12-29 | J13: =IF(B13="","Z",IF(ISERROR((LEFT(TRIM(LEFT(IF(FIND(" ",TRIM(RIGHT(B13,LEN(B13)-FIND(" ",B13))))<4,TRIM(RIGHT(TRIM(RIGHT(B13,LEN(B13)-FIND(" ",B13))),LEN(TRIM(RIGHT(B13,LEN(B13)-FIND(" ",B13))))-FIND(" ",TRIM(RIGHT(B13,LEN(B13)-FIND(" ",B13)))))),TRIM(RIGHT(B13,LEN(B13)-FIND(" ",B13)))),FIND(" ",IF(FIND(" ",TRIM(RIGHT(B13,LEN(B13)-FIND(" ",B13))))<4,TRIM(RIGHT(TRIM(RIGHT(B13,LEN(B13)-FIND(" ",B13))),LEN(TRIM(RIGHT(B13,LEN(B13)-FIND(" ",B13))))-FIND(" ",TRIM(RIGHT(B13,LEN(B13)-FIND(" ",B13)))))),TRIM(RIGHT(B13,LEN(B13)-FIND(" ",B13))))))),LEN(TRIM(LEFT(IF(FIND(" ",TRIM(RIGHT(B13,LEN(B13)-FIND(" ",B13))))<4,TRIM(RIGHT(TRIM(RIGHT(B13,LEN(B13)-FIND(" ",B13))),LEN(TRIM(RIGHT(B13,LEN(B13)-FIND(" ",B13))))-FIND(" ",TRIM(RIGHT(B13,LEN(B13)-FIND(" ",B13)))))),TRIM(RIGHT(B13,LEN(B13)-FIND(" ",B13)))),FIND(" ",IF(FIND(" ",TRIM(RIGHT(B13,LEN(B13)-FIND(" ",B13))))<4,TRIM(RIGHT(TRIM(RIGHT(B13,LEN(B13)-FIND(" ",B13))),LEN(TRIM(RIGHT(B13,LEN(B13)-FIND(" ",B13))))-FIND(" ",TRIM(RIGHT(B13,LEN(B13)-FIND(" ",B13)))))),TRIM(RIGHT(B13,LEN(B13)-FIND(" ",B13))))))))-2))*1),TRIM(LEFT(IF(FIND(" ",TRIM(RIGHT(B13,LEN(B13)-FIND(" ",B13))))<4,TRIM(RIGHT(TRIM(RIGHT(B13,LEN(B13)-FIND(" ",B13))),LEN(TRIM(RIGHT(B13,LEN(B13)-FIND(" ",B13))))-FIND(" ",TRIM(RIGHT(B13,LEN(B13)-FIND(" ",B13)))))),TRIM(RIGHT(B13,LEN(B13)-FIND(" ",B13)))),FIND(" ",IF(FIND(" ",TRIM(RIGHT(B13,LEN(B13)-FIND(" ",B13))))<4,TRIM(RIGHT(TRIM(RIGHT(B13,LEN(B13)-FIND(" ",B13))),LEN(TRIM(RIGHT(B13,LEN(B13)-FIND(" ",B13))))-FIND(" ",TRIM(RIGHT(B13,LEN(B13)-FIND(" ",B13)))))),TRIM(RIGHT(B13,LEN(B13)-FIND(" ",B13))))))),(LEFT(TRIM(LEFT(IF(FIND(" ",TRIM(RIGHT(B13,LEN(B13)-FIND(" ",B13))))<4,TRIM(RIGHT(TRIM(RIGHT(B13,LEN(B13)-FIND(" ",B13))),LEN(TRIM(RIGHT(B13,LEN(B13)-FIND(" ",B13))))-FIND(" ",TRIM(RIGHT(B13,LEN(B13)-FIND(" ",B13)))))),TRIM(RIGHT(B13,LEN(B13)-FIND(" ",B13)))),FIND(" ",IF(FIND(" ",TRIM(RIGHT(B13,LEN(B13)-FIND(" ",B13))))<4,TRIM(RIGHT(TRIM(RIGHT(B13,LEN(B13)-FIND(" ",B13))),LEN(TRIM(RIGHT(B13,LEN(B13)-FIND(" ",B13))))-FIND(" ",TRIM(RIGHT(B13,LEN(B13)-FIND(" ",B13)))))),TRIM(RIGHT(B13,LEN(B13)-FIND(" ",B13))))))),LEN(TRIM(LEFT(IF(FIND(" ",TRIM(RIGHT(B13,LEN(B13)-FIND(" ",B13))))<4,TRIM(RIGHT(TRIM(RIGHT(B13,LEN(B13)-FIND(" ",B13))),LEN(TRIM(RIGHT(B13,LEN(B13)-FIND(" ",B13))))-FIND(" ",TRIM(RIGHT(B13,LEN(B13)-FIND(" ",B13)))))),TRIM(RIGHT(B13,LEN(B13)-FIND(" ",B13)))),FIND(" ",IF(FIND(" ",TRIM(RIGHT(B13,LEN(B13)-FIND(" ",B13))))<4,TRIM(RIGHT(TRIM(RIGHT(B13,LEN(B13)-FIND(" ",B13))),LEN(TRIM(RIGHT(B13,LEN(B13)-FIND(" ",B13))))-FIND(" ",TRIM(RIGHT(B13,LEN(B13)-FIND(" ",B13)))))),TRIM(RIGHT(B13,LEN(B13)-FIND(" ",B13))))))))-2))*1)) -> 57 | K13: =IF(B13="","Z",1*(TRIM(LEFT(B13,FIND(" ",B13))))) -> 9252
B14: 1555 NW Market St | C14: Mighty-O Donuts | D14: 34'-0" x 6'-0" | E14: 2 | F14: 307531 | G14: =IF(H14="","",IF(I14="",H14,H14&" "&TEXT(I14,"m/d/yyyy"))) -> Approved on 7/11/2016 | H14: Approved on | I14: 2016-07-11 | J14: =IF(B14="","Z",IF(ISERROR((LEFT(TRIM(LEFT(IF(FIND(" ",TRIM(RIGHT(B14,LEN(B14)-FIND(" ",B14))))<4,TRIM(RIGHT(TRIM(RIGHT(B14,LEN(B14)-FIND(" ",B14))),LEN(TRIM(RIGHT(B14,LEN(B14)-FIND(" ",B14))))-FIND(" ",TRIM(RIGHT(B14,LEN(B14)-FIND(" ",B14)))))),TRIM(RIGHT(B14,LEN(B14)-FIND(" ",B14)))),FIND(" ",IF(FIND(" ",TRIM(RIGHT(B14,LEN(B14)-FIND(" ",B14))))<4,TRIM(RIGHT(TRIM(RIGHT(B14,LEN(B14)-FIND(" ",B14))),LEN(TRIM(RIGHT(B14,LEN(B14)-FIND(" ",B14))))-FIND(" ",TRIM(RIGHT(B14,LEN(B14)-FIND(" ",B14)))))),TRIM(RIGHT(B14,LEN(B14)-FIND(" ",B14))))))),LEN(TRIM(LEFT(IF(FIND(" ",TRIM(RIGHT(B14,LEN(B14)-FIND(" ",B14))))<4,TRIM(RIGHT(TRIM(RIGHT(B14,LEN(B14)-FIND(" ",B14))),LEN(TRIM(RIGHT(B14,LEN(B14)-FIND(" ",B14))))-FIND(" ",TRIM(RIGHT(B14,LEN(B14)-FIND(" ",B14)))))),TRIM(RIGHT(B14,LEN(B14)-FIND(" ",B14)))),FIND(" ",IF(FIND(" ",TRIM(RIGHT(B14,LEN(B14)-FIND(" ",B14))))<4,TRIM(RIGHT(TRIM(RIGHT(B14,LEN(B14)-FIND(" ",B14))),LEN(TRIM(RIGHT(B14,LEN(B14)-FIND(" ",B14))))-FIND(" ",TRIM(RIGHT(B14,LEN(B14)-FIND(" ",B14)))))),TRIM(RIGHT(B14,LEN(B14)-FIND(" ",B14))))))))-2))*1),TRIM(LEFT(IF(FIND(" ",TRIM(RIGHT(B14,LEN(B14)-FIND(" ",B14))))<4,TRIM(RIGHT(TRIM(RIGHT(B14,LEN(B14)-FIND(" ",B14))),LEN(TRIM(RIGHT(B14,LEN(B14)-FIND(" ",B14))))-FIND(" ",TRIM(RIGHT(B14,LEN(B14)-FIND(" ",B14)))))),TRIM(RIGHT(B14,LEN(B14)-FIND(" ",B14)))),FIND(" ",IF(FIND(" ",TRIM(RIGHT(B14,LEN(B14)-FIND(" ",B14))))<4,TRIM(RIGHT(TRIM(RIGHT(B14,LEN(B14)-FIND(" ",B14))),LEN(TRIM(RIGHT(B14,LEN(B14)-FIND(" ",B14))))-FIND(" ",TRIM(RIGHT(B14,LEN(B14)-FIND(" ",B14)))))),TRIM(RIGHT(B14,LEN(B14)-FIND(" ",B14))))))),(LEFT(TRIM(LEFT(IF(FIND(" ",TRIM(RIGHT(B14,LEN(B14)-FIND(" ",B14))))<4,TRIM(RIGHT(TRIM(RIGHT(B14,LEN(B14)-FIND(" ",B14))),LEN(TRIM(RIGHT(B14,LEN(B14)-FIND(" ",B14))))-FIND(" ",TRIM(RIGHT(B14,LEN(B14)-FIND(" ",B14)))))),TRIM(RIGHT(B14,LEN(B14)-FIND(" ",B14)))),FIND(" ",IF(FIND(" ",TRIM(RIGHT(B14,LEN(B14)-FIND(" ",B14))))<4,TRIM(RIGHT(TRIM(RIGHT(B14,LEN(B14)-FIND(" ",B14))),LEN(TRIM(RIGHT(B14,LEN(B14)-FIND(" ",B14))))-FIND(" ",TRIM(RIGHT(B14,LEN(B14)-FIND(" ",B14)))))),TRIM(RIGHT(B14,LEN(B14)-FIND(" ",B14))))))),LEN(TRIM(LEFT(IF(FIND(" ",TRIM(RIGHT(B14,LEN(B14)-FIND(" ",B14))))<4,TRIM(RIGHT(TRIM(RIGHT(B14,LEN(B14)-FIND(" ",B14))),LEN(TRIM(RIGHT(B14,LEN(B14)-FIND(" ",B14))))-FIND(" ",TRIM(RIGHT(B14,LEN(B14)-FIND(" ",B14)))))),TRIM(RIGHT(B14,LEN(B14)-FIND(" ",B14)))),FIND(" ",IF(FIND(" ",TRIM(RIGHT(B14,LEN(B14)-FIND(" ",B14))))<4,TRIM(RIGHT(TRIM(RIGHT(B14,LEN(B14)-FIND(" ",B14))),LEN(TRIM(RIGHT(B14,LEN(B14)-FIND(" ",B14))))-FIND(" ",TRIM(RIGHT(B14,LEN(B14)-FIND(" ",B14)))))),TRIM(RIGHT(B14,LEN(B14)-FIND(" ",B14))))))))-2))*1)) -> Market | K14: =IF(B14="","Z",1*(TRIM(LEFT(B14,FIND(" ",B14))))) -> 1555
B15: 1017 E Union St | C15: Metier Racing & Coffee | D15: 27'-0" x 9'-3" | E15: 0 | F15: 331319 | G15: =IF(H15="","",IF(I15="",H15,H15&" "&TEXT(I15,"m/d/yyyy"))) -> Comment Period thru 1/18/2017 | H15: Comment Period thru | I15: 2017-01-18 | J15: =IF(B15="","Z",IF(ISERROR((LEFT(TRIM(LEFT(IF(FIND(" ",TRIM(RIGHT(B15,LEN(B15)-FIND(" ",B15))))<4,TRIM(RIGHT(TRIM(RIGHT(B15,LEN(B15)-FIND(" ",B15))),LEN(TRIM(RIGHT(B15,LEN(B15)-FIND(" ",B15))))-FIND(" ",TRIM(RIGHT(B15,LEN(B15)-FIND(" ",B15)))))),TRIM(RIGHT(B15,LEN(B15)-FIND(" ",B15)))),FIND(" ",IF(FIND(" ",TRIM(RIGHT(B15,LEN(B15)-FIND(" ",B15))))<4,TRIM(RIGHT(TRIM(RIGHT(B15,LEN(B15)-FIND(" ",B15))),LEN(TRIM(RIGHT(B15,LEN(B15)-FIND(" ",B15))))-FIND(" ",TRIM(RIGHT(B15,LEN(B15)-FIND(" ",B15)))))),TRIM(RIGHT(B15,LEN(B15)-FIND(" ",B15))))))),LEN(TRIM(LEFT(IF(FIND(" ",TRIM(RIGHT(B15,LEN(B15)-FIND(" ",B15))))<4,TRIM(RIGHT(TRIM(RIGHT(B15,LEN(B15)-FIND(" ",B15))),LEN(TRIM(RIGHT(B15,LEN(B15)-FIND(" ",B15))))-FIND(" ",TRIM(RIGHT(B15,LEN(B15)-FIND(" ",B15)))))),TRIM(RIGHT(B15,LEN(B15)-FIND(" ",B15)))),FIND(" ",IF(FIND(" ",TRIM(RIGHT(B15,LEN(B15)-FIND(" ",B15))))<4,TRIM(RIGHT(TRIM(RIGHT(B15,LEN(B15)-FIND(" ",B15))),LEN(TRIM(RIGHT(B15,LEN(B15)-FIND(" ",B15))))-FIND(" ",TRIM(RIGHT(B15,LEN(B15)-FIND(" ",B15)))))),TRIM(RIGHT(B15,LEN(B15)-FIND(" ",B15))))))))-2))*1),TRIM(LEFT(IF(FIND(" ",TRIM(RIGHT(B15,LEN(B15)-FIND(" ",B15))))<4,TRIM(RIGHT(TRIM(RIGHT(B15,LEN(B15)-FIND(" ",B15))),LEN(TRIM(RIGHT(B15,LEN(B15)-FIND(" ",B15))))-FIND(" ",TRIM(RIGHT(B15,LEN(B15)-FIND(" ",B15)))))),TRIM(RIGHT(B15,LEN(B15)-FIND(" ",B15)))),FIND(" ",IF(FIND(" ",TRIM(RIGHT(B15,LEN(B15)-FIND(" ",B15))))<4,TRIM(RIGHT(TRIM(RIGHT(B15,LEN(B15)-FIND(" ",B15))),LEN(TRIM(RIGHT(B15,LEN(B15)-FIND(" ",B15))))-FIND(" ",TRIM(RIGHT(B15,LEN(B15)-FIND(" ",B15)))))),TRIM(RIGHT(B15,LEN(B15)-FIND(" ",B15))))))),(LEFT(TRIM(LEFT(IF(FIND(" ",TRIM(RIGHT(B15,LEN(B15)-FIND(" ",B15))))<4,TRIM(RIGHT(TRIM(RIGHT(B15,LEN(B15)-FIND(" ",B15))),LEN(TRIM(RIGHT(B15,LEN(B15)-FIND(" ",B15))))-FIND(" ",TRIM(RIGHT(B15,LEN(B15)-FIND(" ",B15)))))),TRIM(RIGHT(B15,LEN(B15)-FIND(" ",B15)))),FIND(" ",IF(FIND(" ",TRIM(RIGHT(B15,LEN(B15)-FIND(" ",B15))))<4,TRIM(RIGHT(TRIM(RIGHT(B15,LEN(B15)-FIND(" ",B15))),LEN(TRIM(RIGHT(B15,LEN(B15)-FIND(" ",B15))))-FIND(" ",TRIM(RIGHT(B15,LEN(B15)-FIND(" ",B15)))))),TRIM(RIGHT(B15,LEN(B15)-FIND(" ",B15))))))),LEN(TRIM(LEFT(IF(FIND(" ",TRIM(RIGHT(B15,LEN(B15)-FIND(" ",B15))))<4,TRIM(RIGHT(TRIM(RIGHT(B15,LEN(B15)-FIND(" ",B15))),LEN(TRIM(RIGHT(B15,LEN(B15)-FIND(" ",B15))))-FIND(" ",TRIM(RIGHT(B15,LEN(B15)-FIND(" ",B15)))))),TRIM(RIGHT(B15,LEN(B15)-FIND(" ",B15)))),FIND(" ",IF(FIND(" ",TRIM(RIGHT(B15,LEN(B15)-FIND(" ",B15))))<4,TRIM(RIGHT(TRIM(RIGHT(B15,LEN(B15)-FIND(" ",B15))),LEN(TRIM(RIGHT(B15,LEN(B15)-FIND(" ",B15))))-FIND(" ",TRIM(RIGHT(B15,LEN(B15)-FIND(" ",B15)))))),TRIM(RIGHT(B15,LEN(B15)-FIND(" ",B15))))))))-2))*1)) -> Union | K15: =IF(B15="","Z",1*(TRIM(LEFT(B15,FIND(" ",B15))))) -> 1017
G16: =IF(H16="","",IF(I16="",H16,H16&" "&TEXT(I16,"m/d/yyyy"))) ->  | J16: =IF(B16="","Z",IF(ISERROR((LEFT(TRIM(LEFT(IF(FIND(" ",TRIM(RIGHT(B16,LEN(B16)-FIND(" ",B16))))<4,TRIM(RIGHT(TRIM(RIGHT(B16,LEN(B16)-FIND(" ",B16))),LEN(TRIM(RIGHT(B16,LEN(B16)-FIND(" ",B16))))-FIND(" ",TRIM(RIGHT(B16,LEN(B16)-FIND(" ",B16)))))),TRIM(RIGHT(B16,LEN(B16)-FIND(" ",B16)))),FIND(" ",IF(FIND(" ",TRIM(RIGHT(B16,LEN(B16)-FIND(" ",B16))))<4,TRIM(RIGHT(TRIM(RIGHT(B16,LEN(B16)-FIND(" ",B16))),LEN(TRIM(RIGHT(B16,LEN(B16)-FIND(" ",B16))))-FIND(" ",TRIM(RIGHT(B16,LEN(B16)-FIND(" ",B16)))))),TRIM(RIGHT(B16,LEN(B16)-FIND(" ",B16))))))),LEN(TRIM(LEFT(IF(FIND(" ",TRIM(RIGHT(B16,LEN(B16)-FIND(" ",B16))))<4,TRIM(RIGHT(TRIM(RIGHT(B16,LEN(B16)-FIND(" ",B16))),LEN(TRIM(RIGHT(B16,LEN(B16)-FIND(" ",B16))))-FIND(" ",TRIM(RIGHT(B16,LEN(B16)-FIND(" ",B16)))))),TRIM(RIGHT(B16,LEN(B16)-FIND(" ",B16)))),FIND(" ",IF(FIND(" ",TRIM(RIGHT(B16,LEN(B16)-FIND(" ",B16))))<4,TRIM(RIGHT(TRIM(RIGHT(B16,LEN(B16)-FIND(" ",B16))),LEN(TRIM(RIGHT(B16,LEN(B16)-FIND(" ",B16))))-FIND(" ",TRIM(RIGHT(B16,LEN(B16)-FIND(" ",B16)))))),TRIM(RIGHT(B16,LEN(B16)-FIND(" ",B16))))))))-2))*1),TRIM(LEFT(IF(FIND(" ",TRIM(RIGHT(B16,LEN(B16)-FIND(" ",B16))))<4,TRIM(RIGHT(TRIM(RIGHT(B16,LEN(B16)-FIND(" ",B16))),LEN(TRIM(RIGHT(B16,LEN(B16)-FIND(" ",B16))))-FIND(" ",TRIM(RIGHT(B16,LEN(B16)-FIND(" ",B16)))))),TRIM(RIGHT(B16,LEN(B16)-FIND(" ",B16)))),FIND(" ",IF(FIND(" ",TRIM(RIGHT(B16,LEN(B16)-FIND(" ",B16))))<4,TRIM(RIGHT(TRIM(RIGHT(B16,LEN(B16)-FIND(" ",B16))),LEN(TRIM(RIGHT(B16,LEN(B16)-FIND(" ",B16))))-FIND(" ",TRIM(RIGHT(B16,LEN(B16)-FIND(" ",B16)))))),TRIM(RIGHT(B16,LEN(B16)-FIND(" ",B16))))))),(LEFT(TRIM(LEFT(IF(FIND(" ",TRIM(RIGHT(B16,LEN(B16)-FIND(" ",B16))))<4,TRIM(RIGHT(TRIM(RIGHT(B16,LEN(B16)-FIND(" ",B16))),LEN(TRIM(RIGHT(B16,LEN(B16)-FIND(" ",B16))))-FIND(" ",TRIM(RIGHT(B16,LEN(B16)-FIND(" ",B16)))))),TRIM(RIGHT(B16,LEN(B16)-FIND(" ",B16)))),FIND(" ",IF(FIND(" ",TRIM(RIGHT(B16,LEN(B16)-FIND(" ",B16))))<4,TRIM(RIGHT(TRIM(RIGHT(B16,LEN(B16)-FIND(" ",B16))),LEN(TRIM(RIGHT(B16,LEN(B16)-FIND(" ",B16))))-FIND(" ",TRIM(RIGHT(B16,LEN(B16)-FIND(" ",B16)))))),TRIM(RIGHT(B16,LEN(B16)-FIND(" ",B16))))))),LEN(TRIM(LEFT(IF(FIND(" ",TRIM(RIGHT(B16,LEN(B16)-FIND(" ",B16))))<4,TRIM(RIGHT(TRIM(RIGHT(B16,LEN(B16)-FIND(" ",B16))),LEN(TRIM(RIGHT(B16,LEN(B16)-FIND(" ",B16))))-FIND(" ",TRIM(RIGHT(B16,LEN(B16)-FIND(" ",B16)))))),TRIM(RIGHT(B16,LEN(B16)-FIND(" ",B16)))),FIND(" ",IF(FIND(" ",TRIM(RIGHT(B16,LEN(B16)-FIND(" ",B16))))<4,TRIM(RIGHT(TRIM(RIGHT(B16,LEN(B16)-FIND(" ",B16))),LEN(TRIM(RIGHT(B16,LEN(B16)-FIND(" ",B16))))-FIND(" ",TRIM(RIGHT(B16,LEN(B16)-FIND(" ",B16)))))),TRIM(RIGHT(B16,LEN(B16)-FIND(" ",B16))))))))-2))*1)) -> Z | K16: =IF(B16="","Z",1*(TRIM(LEFT(B16,FIND(" ",B16))))) -> Z
J17: Z | K17: Z
J18: Z | K18: Z
J19: Z | K19: Z
J20: Z | K20: Z
J21: Z | K21: Z
J22: Z | K22: Z
J23: Z | K23: Z
J24: Z | K24: Z
J25: Z | K25: Z
J26: Z | K26: Z
J27: Z | K27: Z
J28: Z | K28: Z
J29: =IF(B29="","Z",IF(ISERROR((LEFT(TRIM(LEFT(IF(FIND(" ",TRIM(RIGHT(B29,LEN(B29)-FIND(" ",B29))))<4,TRIM(RIGHT(TRIM(RIGHT(B29,LEN(B29)-FIND(" ",B29))),LEN(TRIM(RIGHT(B29,LEN(B29)-FIND(" ",B29))))-FIND(" ",TRIM(RIGHT(B29,LEN(B29)-FIND(" ",B29)))))),TRIM(RIGHT(B29,LEN(B29)-FIND(" ",B29)))),FIND(" ",IF(FIND(" ",TRIM(RIGHT(B29,LEN(B29)-FIND(" ",B29))))<4,TRIM(RIGHT(TRIM(RIGHT(B29,LEN(B29)-FIND(" ",B29))),LEN(TRIM(RIGHT(B29,LEN(B29)-FIND(" ",B29))))-FIND(" ",TRIM(RIGHT(B29,LEN(B29)-FIND(" ",B29)))))),TRIM(RIGHT(B29,LEN(B29)-FIND(" ",B29))))))),LEN(TRIM(LEFT(IF(FIND(" ",TRIM(RIGHT(B29,LEN(B29)-FIND(" ",B29))))<4,TRIM(RIGHT(TRIM(RIGHT(B29,LEN(B29)-FIND(" ",B29))),LEN(TRIM(RIGHT(B29,LEN(B29)-FIND(" ",B29))))-FIND(" ",TRIM(RIGHT(B29,LEN(B29)-FIND(" ",B29)))))),TRIM(RIGHT(B29,LEN(B29)-FIND(" ",B29)))),FIND(" ",IF(FIND(" ",TRIM(RIGHT(B29,LEN(B29)-FIND(" ",B29))))<4,TRIM(RIGHT(TRIM(RIGHT(B29,LEN(B29)-FIND(" ",B29))),LEN(TRIM(RIGHT(B29,LEN(B29)-FIND(" ",B29))))-FIND(" ",TRIM(RIGHT(B29,LEN(B29)-FIND(" ",B29)))))),TRIM(RIGHT(B29,LEN(B29)-FIND(" ",B29))))))))-2))*1),TRIM(LEFT(IF(FIND(" ",TRIM(RIGHT(B29,LEN(B29)-FIND(" ",B29))))<4,TRIM(RIGHT(TRIM(RIGHT(B29,LEN(B29)-FIND(" ",B29))),LEN(TRIM(RIGHT(B29,LEN(B29)-FIND(" ",B29))))-FIND(" ",TRIM(RIGHT(B29,LEN(B29)-FIND(" ",B29)))))),TRIM(RIGHT(B29,LEN(B29)-FIND(" ",B29)))),FIND(" ",IF(FIND(" ",TRIM(RIGHT(B29,LEN(B29)-FIND(" ",B29))))<4,TRIM(RIGHT(TRIM(RIGHT(B29,LEN(B29)-FIND(" ",B29))),LEN(TRIM(RIGHT(B29,LEN(B29)-FIND(" ",B29))))-FIND(" ",TRIM(RIGHT(B29,LEN(B29)-FIND(" ",B29)))))),TRIM(RIGHT(B29,LEN(B29)-FIND(" ",B29))))))),(LEFT(TRIM(LEFT(IF(FIND(" ",TRIM(RIGHT(B29,LEN(B29)-FIND(" ",B29))))<4,TRIM(RIGHT(TRIM(RIGHT(B29,LEN(B29)-FIND(" ",B29))),LEN(TRIM(RIGHT(B29,LEN(B29)-FIND(" ",B29))))-FIND(" ",TRIM(RIGHT(B29,LEN(B29)-FIND(" ",B29)))))),TRIM(RIGHT(B29,LEN(B29)-FIND(" ",B29)))),FIND(" ",IF(FIND(" ",TRIM(RIGHT(B29,LEN(B29)-FIND(" ",B29))))<4,TRIM(RIGHT(TRIM(RIGHT(B29,LEN(B29)-FIND(" ",B29))),LEN(TRIM(RIGHT(B29,LEN(B29)-FIND(" ",B29))))-FIND(" ",TRIM(RIGHT(B29,LEN(B29)-FIND(" ",B29)))))),TRIM(RIGHT(B29,LEN(B29)-FIND(" ",B29))))))),LEN(TRIM(LEFT(IF(FIND(" ",TRIM(RIGHT(B29,LEN(B29)-FIND(" ",B29))))<4,TRIM(RIGHT(TRIM(RIGHT(B29,LEN(B29)-FIND(" ",B29))),LEN(TRIM(RIGHT(B29,LEN(B29)-FIND(" ",B29))))-FIND(" ",TRIM(RIGHT(B29,LEN(B29)-FIND(" ",B29)))))),TRIM(RIGHT(B29,LEN(B29)-FIND(" ",B29)))),FIND(" ",IF(FIND(" ",TRIM(RIGHT(B29,LEN(B29)-FIND(" ",B29))))<4,TRIM(RIGHT(TRIM(RIGHT(B29,LEN(B29)-FIND(" ",B29))),LEN(TRIM(RIGHT(B29,LEN(B29)-FIND(" ",B29))))-FIND(" ",TRIM(RIGHT(B29,LEN(B29)-FIND(" ",B29)))))),TRIM(RIGHT(B29,LEN(B29)-FIND(" ",B29))))))))-2))*1)) -> Z | K29: =IF(B29="","Z",1*(TRIM(LEFT(B29,FIND(" ",B29))))) -> Z
J30: Z | K30: Z
J31: Z | K31: Z
J32: Z | K32: Z
J33: Z | K33: Z
J34: Z | K34: Z
J35: Z | K35: Z
J36: Z | K36: Z
J37: Z | K37: Z
J38: Z | K38: Z
J39: Z | K39: Z
J40: Z | K40: Z
J41: Z | K41: Z
J42: Z | K42: Z
J43: Z | K43: Z
J44: Z | K44: Z
J45: Z | K45: Z
J46: Z | K46: Z
J47: Z | K47: Z
J48: Z | K48: Z
J49: Z | K49: Z
J50: Z | K50: Z
J51: Z | K51: Z
J52: Z | K52: Z
J53: Z | K53: Z
J54: Z | K54: Z
J55: Z | K55: Z
J56: Z | K56: Z
J57: Z | K57: Z
J58: Z | K58: Z
J59: Z | K59: Z
J60: Z | K60: Z
J61: =IF(B61="","Z",IF(ISERROR((LEFT(TRIM(LEFT(IF(FIND(" ",TRIM(RIGHT(B61,LEN(B61)-FIND(" ",B61))))<4,TRIM(RIGHT(TRIM(RIGHT(B61,LEN(B61)-FIND(" ",B61))),LEN(TRIM(RIGHT(B61,LEN(B61)-FIND(" ",B61))))-FIND(" ",TRIM(RIGHT(B61,LEN(B61)-FIND(" ",B61)))))),TRIM(RIGHT(B61,LEN(B61)-FIND(" ",B61)))),FIND(" ",IF(FIND(" ",TRIM(RIGHT(B61,LEN(B61)-FIND(" ",B61))))<4,TRIM(RIGHT(TRIM(RIGHT(B61,LEN(B61)-FIND(" ",B61))),LEN(TRIM(RIGHT(B61,LEN(B61)-FIND(" ",B61))))-FIND(" ",TRIM(RIGHT(B61,LEN(B61)-FIND(" ",B61)))))),TRIM(RIGHT(B61,LEN(B61)-FIND(" ",B61))))))),LEN(TRIM(LEFT(IF(FIND(" ",TRIM(RIGHT(B61,LEN(B61)-FIND(" ",B61))))<4,TRIM(RIGHT(TRIM(RIGHT(B61,LEN(B61)-FIND(" ",B61))),LEN(TRIM(RIGHT(B61,LEN(B61)-FIND(" ",B61))))-FIND(" ",TRIM(RIGHT(B61,LEN(B61)-FIND(" ",B61)))))),TRIM(RIGHT(B61,LEN(B61)-FIND(" ",B61)))),FIND(" ",IF(FIND(" ",TRIM(RIGHT(B61,LEN(B61)-FIND(" ",B61))))<4,TRIM(RIGHT(TRIM(RIGHT(B61,LEN(B61)-FIND(" ",B61))),LEN(TRIM(RIGHT(B61,LEN(B61)-FIND(" ",B61))))-FIND(" ",TRIM(RIGHT(B61,LEN(B61)-FIND(" ",B61)))))),TRIM(RIGHT(B61,LEN(B61)-FIND(" ",B61))))))))-2))*1),TRIM(LEFT(IF(FIND(" ",TRIM(RIGHT(B61,LEN(B61)-FIND(" ",B61))))<4,TRIM(RIGHT(TRIM(RIGHT(B61,LEN(B61)-FIND(" ",B61))),LEN(TRIM(RIGHT(B61,LEN(B61)-FIND(" ",B61))))-FIND(" ",TRIM(RIGHT(B61,LEN(B61)-FIND(" ",B61)))))),TRIM(RIGHT(B61,LEN(B61)-FIND(" ",B61)))),FIND(" ",IF(FIND(" ",TRIM(RIGHT(B61,LEN(B61)-FIND(" ",B61))))<4,TRIM(RIGHT(TRIM(RIGHT(B61,LEN(B61)-FIND(" ",B61))),LEN(TRIM(RIGHT(B61,LEN(B61)-FIND(" ",B61))))-FIND(" ",TRIM(RIGHT(B61,LEN(B61)-FIND(" ",B61)))))),TRIM(RIGHT(B61,LEN(B61)-FIND(" ",B61))))))),(LEFT(TRIM(LEFT(IF(FIND(" ",TRIM(RIGHT(B61,LEN(B61)-FIND(" ",B61))))<4,TRIM(RIGHT(TRIM(RIGHT(B61,LEN(B61)-FIND(" ",B61))),LEN(TRIM(RIGHT(B61,LEN(B61)-FIND(" ",B61))))-FIND(" ",TRIM(RIGHT(B61,LEN(B61)-FIND(" ",B61)))))),TRIM(RIGHT(B61,LEN(B61)-FIND(" ",B61)))),FIND(" ",IF(FIND(" ",TRIM(RIGHT(B61,LEN(B61)-FIND(" ",B61))))<4,TRIM(RIGHT(TRIM(RIGHT(B61,LEN(B61)-FIND(" ",B61))),LEN(TRIM(RIGHT(B61,LEN(B61)-FIND(" ",B61))))-FIND(" ",TRIM(RIGHT(B61,LEN(B61)-FIND(" ",B61)))))),TRIM(RIGHT(B61,LEN(B61)-FIND(" ",B61))))))),LEN(TRIM(LEFT(IF(FIND(" ",TRIM(RIGHT(B61,LEN(B61)-FIND(" ",B61))))<4,TRIM(RIGHT(TRIM(RIGHT(B61,LEN(B61)-FIND(" ",B61))),LEN(TRIM(RIGHT(B61,LEN(B61)-FIND(" ",B61))))-FIND(" ",TRIM(RIGHT(B61,LEN(B61)-FIND(" ",B61)))))),TRIM(RIGHT(B61,LEN(B61)-FIND(" ",B61)))),FIND(" ",IF(FIND(" ",TRIM(RIGHT(B61,LEN(B61)-FIND(" ",B61))))<4,TRIM(RIGHT(TRIM(RIGHT(B61,LEN(B61)-FIND(" ",B61))),LEN(TRIM(RIGHT(B61,LEN(B61)-FIND(" ",B61))))-FIND(" ",TRIM(RIGHT(B61,LEN(B61)-FIND(" ",B61)))))),TRIM(RIGHT(B61,LEN(B61)-FIND(" ",B61))))))))-2))*1)) -> Z | K61: =IF(B61="","Z",1*(TRIM(LEFT(B61,FIND(" ",B61))))) -> Z
G62: =IF(H62="","",IF(I62="",H62,H62&" "&TEXT(I62,"m/d/yyyy"))) ->  | J62: Z | K62: Z
J63: Z | K63: Z
J64: Z | K64: Z
J65: Z | K65: Z
J66: Z | K66: Z
J67: Z | K67: Z
J68: Z | K68: Z
J69: Z | K69: Z
J70: Z | K70: Z
J71: Z | K71: Z
J72: Z | K72: Z
J73: Z | K73: Z
J74: Z | K74: Z
J75: Z | K75: Z
J76: Z | K76: Z
J77: Z | K77: Z
J78: Z | K78: Z
J79: Z | K79: Z
J80: Z | K80: Z
J81: Z | K81: Z
J82: Z | K82: Z
J83: Z | K83: Z
J84: Z | K84: Z
J85: Z | K85: Z
J86: Z | K86: Z
J87: =IF(B87="","Z",IF(ISERROR((LEFT(TRIM(LEFT(IF(FIND(" ",TRIM(RIGHT(B87,LEN(B87)-FIND(" ",B87))))<4,TRIM(RIGHT(TRIM(RIGHT(B87,LEN(B87)-FIND(" ",B87))),LEN(TRIM(RIGHT(B87,LEN(B87)-FIND(" ",B87))))-FIND(" ",TRIM(RIGHT(B87,LEN(B87)-FIND(" ",B87)))))),TRIM(RIGHT(B87,LEN(B87)-FIND(" ",B87)))),FIND(" ",IF(FIND(" ",TRIM(RIGHT(B87,LEN(B87)-FIND(" ",B87))))<4,TRIM(RIGHT(TRIM(RIGHT(B87,LEN(B87)-FIND(" ",B87))),LEN(TRIM(RIGHT(B87,LEN(B87)-FIND(" ",B87))))-FIND(" ",TRIM(RIGHT(B87,LEN(B87)-FIND(" ",B87)))))),TRIM(RIGHT(B87,LEN(B87)-FIND(" ",B87))))))),LEN(TRIM(LEFT(IF(FIND(" ",TRIM(RIGHT(B87,LEN(B87)-FIND(" ",B87))))<4,TRIM(RIGHT(TRIM(RIGHT(B87,LEN(B87)-FIND(" ",B87))),LEN(TRIM(RIGHT(B87,LEN(B87)-FIND(" ",B87))))-FIND(" ",TRIM(RIGHT(B87,LEN(B87)-FIND(" ",B87)))))),TRIM(RIGHT(B87,LEN(B87)-FIND(" ",B87)))),FIND(" ",IF(FIND(" ",TRIM(RIGHT(B87,LEN(B87)-FIND(" ",B87))))<4,TRIM(RIGHT(TRIM(RIGHT(B87,LEN(B87)-FIND(" ",B87))),LEN(TRIM(RIGHT(B87,LEN(B87)-FIND(" ",B87))))-FIND(" ",TRIM(RIGHT(B87,LEN(B87)-FIND(" ",B87)))))),TRIM(RIGHT(B87,LEN(B87)-FIND(" ",B87))))))))-2))*1),TRIM(LEFT(IF(FIND(" ",TRIM(RIGHT(B87,LEN(B87)-FIND(" ",B87))))<4,TRIM(RIGHT(TRIM(RIGHT(B87,LEN(B87)-FIND(" ",B87))),LEN(TRIM(RIGHT(B87,LEN(B87)-FIND(" ",B87))))-FIND(" ",TRIM(RIGHT(B87,LEN(B87)-FIND(" ",B87)))))),TRIM(RIGHT(B87,LEN(B87)-FIND(" ",B87)))),FIND(" ",IF(FIND(" ",TRIM(RIGHT(B87,LEN(B87)-FIND(" ",B87))))<4,TRIM(RIGHT(TRIM(RIGHT(B87,LEN(B87)-FIND(" ",B87))),LEN(TRIM(RIGHT(B87,LEN(B87)-FIND(" ",B87))))-FIND(" ",TRIM(RIGHT(B87,LEN(B87)-FIND(" ",B87)))))),TRIM(RIGHT(B87,LEN(B87)-FIND(" ",B87))))))),(LEFT(TRIM(LEFT(IF(FIND(" ",TRIM(RIGHT(B87,LEN(B87)-FIND(" ",B87))))<4,TRIM(RIGHT(TRIM(RIGHT(B87,LEN(B87)-FIND(" ",B87))),LEN(TRIM(RIGHT(B87,LEN(B87)-FIND(" ",B87))))-FIND(" ",TRIM(RIGHT(B87,LEN(B87)-FIND(" ",B87)))))),TRIM(RIGHT(B87,LEN(B87)-FIND(" ",B87)))),FIND(" ",IF(FIND(" ",TRIM(RIGHT(B87,LEN(B87)-FIND(" ",B87))))<4,TRIM(RIGHT(TRIM(RIGHT(B87,LEN(B87)-FIND(" ",B87))),LEN(TRIM(RIGHT(B87,LEN(B87)-FIND(" ",B87))))-FIND(" ",TRIM(RIGHT(B87,LEN(B87)-FIND(" ",B87)))))),TRIM(RIGHT(B87,LEN(B87)-FIND(" ",B87))))))),LEN(TRIM(LEFT(IF(FIND(" ",TRIM(RIGHT(B87,LEN(B87)-FIND(" ",B87))))<4,TRIM(RIGHT(TRIM(RIGHT(B87,LEN(B87)-FIND(" ",B87))),LEN(TRIM(RIGHT(B87,LEN(B87)-FIND(" ",B87))))-FIND(" ",TRIM(RIGHT(B87,LEN(B87)-FIND(" ",B87)))))),TRIM(RIGHT(B87,LEN(B87)-FIND(" ",B87)))),FIND(" ",IF(FIND(" ",TRIM(RIGHT(B87,LEN(B87)-FIND(" ",B87))))<4,TRIM(RIGHT(TRIM(RIGHT(B87,LEN(B87)-FIND(" ",B87))),LEN(TRIM(RIGHT(B87,LEN(B87)-FIND(" ",B87))))-FIND(" ",TRIM(RIGHT(B87,LEN(B87)-FIND(" ",B87)))))),TRIM(RIGHT(B87,LEN(B87)-FIND(" ",B87))))))))-2))*1)) -> Z | K87: =IF(B87="","Z",1*(TRIM(LEFT(B87,FIND(" ",B87))))) -> Z
J88: Z | K88: Z
J89: Z | K89: Z
J90: Z | K90: Z
J91: Z | K91: Z
J92: Z | K92: Z
J93: Z | K93: Z
J94: Z | K94: Z
J95: Z | K95: Z
J96: Z | K96: Z
J97: Z | K97: Z
J98: Z | K98: Z
J99: Z | K99: Z
J100: Z | K100: Z
J101: Z | K101: Z
J102: Z | K102: Z
J103: Z | K103: Z
J104: Z | K104: Z
J105: Z | K105: Z
J106: Z | K106: Z
J107: Z | K107: Z
J108: Z | K108: Z
J109: Z | K109: Z
J110: Z | K110: Z
J111: Z | K111: Z
J112: Z | K112: Z
J113: Z | K113: Z
J114: Z | K114: Z
J115: Z | K115: Z
J116: Z | K116: Z
J117: Z | K117: Z
J118: Z | K118: Z
J119: Z | K119: Z
J120: Z | K120: Z
J121: Z | K121: Z
J122: Z | K122: Z
J123: Z | K123: Z
J124: Z | K124: Z
J125: Z | K125: Z
G126: =IF(H126="","",IF(I126="",H126,H126&" "&TEXT(I126,"m/d/yyyy"))) ->  | J126: Z | K126: Z
J127: Z | K127: Z
J128: Z | K128: Z
J129: =IF(B129="","Z",IF(ISERROR((LEFT(TRIM(LEFT(IF(FIND(" ",TRIM(RIGHT(B129,LEN(B129)-FIND(" ",B129))))<4,TRIM(RIGHT(TRIM(RIGHT(B129,LEN(B129)-FIND(" ",B129))),LEN(TRIM(RIGHT(B129,LEN(B129)-FIND(" ",B129))))-FIND(" ",TRIM(RIGHT(B129,LEN(B129)-FIND(" ",B129)))))),TRIM(RIGHT(B129,LEN(B129)-FIND(" ",B129)))),FIND(" ",IF(FIND(" ",TRIM(RIGHT(B129,LEN(B129)-FIND(" ",B129))))<4,TRIM(RIGHT(TRIM(RIGHT(B129,LEN(B129)-FIND(" ",B129))),LEN(TRIM(RIGHT(B129,LEN(B129)-FIND(" ",B129))))-FIND(" ",TRIM(RIGHT(B129,LEN(B129)-FIND(" ",B129)))))),TRIM(RIGHT(B129,LEN(B129)-FIND(" ",B129))))))),LEN(TRIM(LEFT(IF(FIND(" ",TRIM(RIGHT(B129,LEN(B129)-FIND(" ",B129))))<4,TRIM(RIGHT(TRIM(RIGHT(B129,LEN(B129)-FIND(" ",B129))),LEN(TRIM(RIGHT(B129,LEN(B129)-FIND(" ",B129))))-FIND(" ",TRIM(RIGHT(B129,LEN(B129)-FIND(" ",B129)))))),TRIM(RIGHT(B129,LEN(B129)-FIND(" ",B129)))),FIND(" ",IF(FIND(" ",TRIM(RIGHT(B129,LEN(B129)-FIND(" ",B129))))<4,TRIM(RIGHT(TRIM(RIGHT(B129,LEN(B129)-FIND(" ",B129))),LEN(TRIM(RIGHT(B129,LEN(B129)-FIND(" ",B129))))-FIND(" ",TRIM(RIGHT(B129,LEN(B129)-FIND(" ",B129)))))),TRIM(RIGHT(B129,LEN(B129)-FIND(" ",B129))))))))-2))*1),TRIM(LEFT(IF(FIND(" ",TRIM(RIGHT(B129,LEN(B129)-FIND(" ",B129))))<4,TRIM(RIGHT(TRIM(RIGHT(B129,LEN(B129)-FIND(" ",B129))),LEN(TRIM(RIGHT(B129,LEN(B129)-FIND(" ",B129))))-FIND(" ",TRIM(RIGHT(B129,LEN(B129)-FIND(" ",B129)))))),TRIM(RIGHT(B129,LEN(B129)-FIND(" ",B129)))),FIND(" ",IF(FIND(" ",TRIM(RIGHT(B129,LEN(B129)-FIND(" ",B129))))<4,TRIM(RIGHT(TRIM(RIGHT(B129,LEN(B129)-FIND(" ",B129))),LEN(TRIM(RIGHT(B129,LEN(B129)-FIND(" ",B129))))-FIND(" ",TRIM(RIGHT(B129,LEN(B129)-FIND(" ",B129)))))),TRIM(RIGHT(B129,LEN(B129)-FIND(" ",B129))))))),(LEFT(TRIM(LEFT(IF(FIND(" ",TRIM(RIGHT(B129,LEN(B129)-FIND(" ",B129))))<4,TRIM(RIGHT(TRIM(RIGHT(B129,LEN(B129)-FIND(" ",B129))),LEN(TRIM(RIGHT(B129,LEN(B129)-FIND(" ",B129))))-FIND(" ",TRIM(RIGHT(B129,LEN(B129)-FIND(" ",B129)))))),TRIM(RIGHT(B129,LEN(B129)-FIND(" ",B129)))),FIND(" ",IF(FIND(" ",TRIM(RIGHT(B129,LEN(B129)-FIND(" ",B129))))<4,TRIM(RIGHT(TRIM(RIGHT(B129,LEN(B129)-FIND(" ",B129))),LEN(TRIM(RIGHT(B129,LEN(B129)-FIND(" ",B129))))-FIND(" ",TRIM(RIGHT(B129,LEN(B129)-FIND(" ",B129)))))),TRIM(RIGHT(B129,LEN(B129)-FIND(" ",B129))))))),LEN(TRIM(LEFT(IF(FIND(" ",TRIM(RIGHT(B129,LEN(B129)-FIND(" ",B129))))<4,TRIM(RIGHT(TRIM(RIGHT(B129,LEN(B129)-FIND(" ",B129))),LEN(TRIM(RIGHT(B129,LEN(B129)-FIND(" ",B129))))-FIND(" ",TRIM(RIGHT(B129,LEN(B129)-FIND(" ",B129)))))),TRIM(RIGHT(B129,LEN(B129)-FIND(" ",B129)))),FIND(" ",IF(FIND(" ",TRIM(RIGHT(B129,LEN(B129)-FIND(" ",B129))))<4,TRIM(RIGHT(TRIM(RIGHT(B129,LEN(B129)-FIND(" ",B129))),LEN(TRIM(RIGHT(B129,LEN(B129)-FIND(" ",B129))))-FIND(" ",TRIM(RIGHT(B129,LEN(B129)-FIND(" ",B129)))))),TRIM(RIGHT(B129,LEN(B129)-FIND(" ",B129))))))))-2))*1)) -> Z | K129: =IF(B129="","Z",1*(TRIM(LEFT(B129,FIND(" ",B129))))) -> Z
J130: Z | K130: Z
J131: Z | K131: Z
J132: Z | K132: Z
J133: Z | K133: Z
J134: Z | K134: Z
J135: Z | K135: Z
J136: Z | K136: Z
J137: Z | K137: Z
J138: Z | K138: Z
J139: Z | K139: Z
J140: Z | K140: Z
J141: Z | K141: Z
J142: Z | K142: Z
J143: Z | K143: Z
J144: Z | K144: Z
J145: Z | K145: Z
J146: Z | K146: Z
J147: Z | K147: Z
J148: Z | K148: Z
J149: Z | K149: Z
J150: Z | K150: Z
J151: Z | K151: Z
J152: Z | K152: Z
J153: Z | K153: Z
J154: Z | K154: Z
J155: Z | K155: Z
J156: Z | K156: Z
J157: Z | K157: Z
J158: Z | K158: Z
J159: Z | K159: Z
J160: Z | K160: Z
J161: Z | K161: Z
J162: Z | K162: Z
J163: Z | K163: Z
J164: Z | K164: Z
J165: Z | K165: Z
J166: Z | K166: Z
J167: Z | K167: Z
J168: Z | K168: Z
J169: Z | K169: Z
J170: Z | K170: Z
J171: Z | K171: Z
J172: Z | K172: Z
J173: Z | K173: Z
J174: Z | K174: Z
J175: Z | K175: Z
J176: Z | K176: Z
J177: Z | K177: Z
J178: Z | K178: Z
J179: Z | K179: Z
J180: Z | K180: Z
J181: Z | K181: Z
J182: Z | K182: Z
J183: Z | K183: Z
J184: Z | K184: Z
J185: Z | K185: Z
J186: Z | K186: Z
J187: Z | K187: Z
J188: Z | K188: Z
J189: Z | K189: Z
G190: =IF(H190="","",IF(I190="",H190,H190&" "&TEXT(I190,"m/d/yyyy"))) ->  | J190: Z | K190: Z
J191: Z | K191: Z
J192: Z | K192: Z
J193: =IF(B193="","Z",IF(ISERROR((LEFT(TRIM(LEFT(IF(FIND(" ",TRIM(RIGHT(B193,LEN(B193)-FIND(" ",B193))))<4,TRIM(RIGHT(TRIM(RIGHT(B193,LEN(B193)-FIND(" ",B193))),LEN(TRIM(RIGHT(B193,LEN(B193)-FIND(" ",B193))))-FIND(" ",TRIM(RIGHT(B193,LEN(B193)-FIND(" ",B193)))))),TRIM(RIGHT(B193,LEN(B193)-FIND(" ",B193)))),FIND(" ",IF(FIND(" ",TRIM(RIGHT(B193,LEN(B193)-FIND(" ",B193))))<4,TRIM(RIGHT(TRIM(RIGHT(B193,LEN(B193)-FIND(" ",B193))),LEN(TRIM(RIGHT(B193,LEN(B193)-FIND(" ",B193))))-FIND(" ",TRIM(RIGHT(B193,LEN(B193)-FIND(" ",B193)))))),TRIM(RIGHT(B193,LEN(B193)-FIND(" ",B193))))))),LEN(TRIM(LEFT(IF(FIND(" ",TRIM(RIGHT(B193,LEN(B193)-FIND(" ",B193))))<4,TRIM(RIGHT(TRIM(RIGHT(B193,LEN(B193)-FIND(" ",B193))),LEN(TRIM(RIGHT(B193,LEN(B193)-FIND(" ",B193))))-FIND(" ",TRIM(RIGHT(B193,LEN(B193)-FIND(" ",B193)))))),TRIM(RIGHT(B193,LEN(B193)-FIND(" ",B193)))),FIND(" ",IF(FIND(" ",TRIM(RIGHT(B193,LEN(B193)-FIND(" ",B193))))<4,TRIM(RIGHT(TRIM(RIGHT(B193,LEN(B193)-FIND(" ",B193))),LEN(TRIM(RIGHT(B193,LEN(B193)-FIND(" ",B193))))-FIND(" ",TRIM(RIGHT(B193,LEN(B193)-FIND(" ",B193)))))),TRIM(RIGHT(B193,LEN(B193)-FIND(" ",B193))))))))-2))*1),TRIM(LEFT(IF(FIND(" ",TRIM(RIGHT(B193,LEN(B193)-FIND(" ",B193))))<4,TRIM(RIGHT(TRIM(RIGHT(B193,LEN(B193)-FIND(" ",B193))),LEN(TRIM(RIGHT(B193,LEN(B193)-FIND(" ",B193))))-FIND(" ",TRIM(RIGHT(B193,LEN(B193)-FIND(" ",B193)))))),TRIM(RIGHT(B193,LEN(B193)-FIND(" ",B193)))),FIND(" ",IF(FIND(" ",TRIM(RIGHT(B193,LEN(B193)-FIND(" ",B193))))<4,TRIM(RIGHT(TRIM(RIGHT(B193,LEN(B193)-FIND(" ",B193))),LEN(TRIM(RIGHT(B193,LEN(B193)-FIND(" ",B193))))-FIND(" ",TRIM(RIGHT(B193,LEN(B193)-FIND(" ",B193)))))),TRIM(RIGHT(B193,LEN(B193)-FIND(" ",B193))))))),(LEFT(TRIM(LEFT(IF(FIND(" ",TRIM(RIGHT(B193,LEN(B193)-FIND(" ",B193))))<4,TRIM(RIGHT(TRIM(RIGHT(B193,LEN(B193)-FIND(" ",B193))),LEN(TRIM(RIGHT(B193,LEN(B193)-FIND(" ",B193))))-FIND(" ",TRIM(RIGHT(B193,LEN(B193)-FIND(" ",B193)))))),TRIM(RIGHT(B193,LEN(B193)-FIND(" ",B193)))),FIND(" ",IF(FIND(" ",TRIM(RIGHT(B193,LEN(B193)-FIND(" ",B193))))<4,TRIM(RIGHT(TRIM(RIGHT(B193,LEN(B193)-FIND(" ",B193))),LEN(TRIM(RIGHT(B193,LEN(B193)-FIND(" ",B193))))-FIND(" ",TRIM(RIGHT(B193,LEN(B193)-FIND(" ",B193)))))),TRIM(RIGHT(B193,LEN(B193)-FIND(" ",B193))))))),LEN(TRIM(LEFT(IF(FIND(" ",TRIM(RIGHT(B193,LEN(B193)-FIND(" ",B193))))<4,TRIM(RIGHT(TRIM(RIGHT(B193,LEN(B193)-FIND(" ",B193))),LEN(TRIM(RIGHT(B193,LEN(B193)-FIND(" ",B193))))-FIND(" ",TRIM(RIGHT(B193,LEN(B193)-FIND(" ",B193)))))),TRIM(RIGHT(B193,LEN(B193)-FIND(" ",B193)))),FIND(" ",IF(FIND(" ",TRIM(RIGHT(B193,LEN(B193)-FIND(" ",B193))))<4,TRIM(RIGHT(TRIM(RIGHT(B193,LEN(B193)-FIND(" ",B193))),LEN(TRIM(RIGHT(B193,LEN(B193)-FIND(" ",B193))))-FIND(" ",TRIM(RIGHT(B193,LEN(B193)-FIND(" ",B193)))))),TRIM(RIGHT(B193,LEN(B193)-FIND(" ",B193))))))))-2))*1)) -> Z | K193: =IF(B193="","Z",1*(TRIM(LEFT(B193,FIND(" ",B193))))) -> Z
J194: =IF(B194="","Z",IF(ISERROR((LEFT(TRIM(LEFT(IF(FIND(" ",TRIM(RIGHT(B194,LEN(B194)-FIND(" ",B194))))<4,TRIM(RIGHT(TRIM(RIGHT(B194,LEN(B194)-FIND(" ",B194))),LEN(TRIM(RIGHT(B194,LEN(B194)-FIND(" ",B194))))-FIND(" ",TRIM(RIGHT(B194,LEN(B194)-FIND(" ",B194)))))),TRIM(RIGHT(B194,LEN(B194)-FIND(" ",B194)))),FIND(" ",IF(FIND(" ",TRIM(RIGHT(B194,LEN(B194)-FIND(" ",B194))))<4,TRIM(RIGHT(TRIM(RIGHT(B194,LEN(B194)-FIND(" ",B194))),LEN(TRIM(RIGHT(B194,LEN(B194)-FIND(" ",B194))))-FIND(" ",TRIM(RIGHT(B194,LEN(B194)-FIND(" ",B194)))))),TRIM(RIGHT(B194,LEN(B194)-FIND(" ",B194))))))),LEN(TRIM(LEFT(IF(FIND(" ",TRIM(RIGHT(B194,LEN(B194)-FIND(" ",B194))))<4,TRIM(RIGHT(TRIM(RIGHT(B194,LEN(B194)-FIND(" ",B194))),LEN(TRIM(RIGHT(B194,LEN(B194)-FIND(" ",B194))))-FIND(" ",TRIM(RIGHT(B194,LEN(B194)-FIND(" ",B194)))))),TRIM(RIGHT(B194,LEN(B194)-FIND(" ",B194)))),FIND(" ",IF(FIND(" ",TRIM(RIGHT(B194,LEN(B194)-FIND(" ",B194))))<4,TRIM(RIGHT(TRIM(RIGHT(B194,LEN(B194)-FIND(" ",B194))),LEN(TRIM(RIGHT(B194,LEN(B194)-FIND(" ",B194))))-FIND(" ",TRIM(RIGHT(B194,LEN(B194)-FIND(" ",B194)))))),TRIM(RIGHT(B194,LEN(B194)-FIND(" ",B194))))))))-2))*1),TRIM(LEFT(IF(FIND(" ",TRIM(RIGHT(B194,LEN(B194)-FIND(" ",B194))))<4,TRIM(RIGHT(TRIM(RIGHT(B194,LEN(B194)-FIND(" ",B194))),LEN(TRIM(RIGHT(B194,LEN(B194)-FIND(" ",B194))))-FIND(" ",TRIM(RIGHT(B194,LEN(B194)-FIND(" ",B194)))))),TRIM(RIGHT(B194,LEN(B194)-FIND(" ",B194)))),FIND(" ",IF(FIND(" ",TRIM(RIGHT(B194,LEN(B194)-FIND(" ",B194))))<4,TRIM(RIGHT(TRIM(RIGHT(B194,LEN(B194)-FIND(" ",B194))),LEN(TRIM(RIGHT(B194,LEN(B194)-FIND(" ",B194))))-FIND(" ",TRIM(RIGHT(B194,LEN(B194)-FIND(" ",B194)))))),TRIM(RIGHT(B194,LEN(B194)-FIND(" ",B194))))))),(LEFT(TRIM(LEFT(IF(FIND(" ",TRIM(RIGHT(B194,LEN(B194)-FIND(" ",B194))))<4,TRIM(RIGHT(TRIM(RIGHT(B194,LEN(B194)-FIND(" ",B194))),LEN(TRIM(RIGHT(B194,LEN(B194)-FIND(" ",B194))))-FIND(" ",TRIM(RIGHT(B194,LEN(B194)-FIND(" ",B194)))))),TRIM(RIGHT(B194,LEN(B194)-FIND(" ",B194)))),FIND(" ",IF(FIND(" ",TRIM(RIGHT(B194,LEN(B194)-FIND(" ",B194))))<4,TRIM(RIGHT(TRIM(RIGHT(B194,LEN(B194)-FIND(" ",B194))),LEN(TRIM(RIGHT(B194,LEN(B194)-FIND(" ",B194))))-FIND(" ",TRIM(RIGHT(B194,LEN(B194)-FIND(" ",B194)))))),TRIM(RIGHT(B194,LEN(B194)-FIND(" ",B194))))))),LEN(TRIM(LEFT(IF(FIND(" ",TRIM(RIGHT(B194,LEN(B194)-FIND(" ",B194))))<4,TRIM(RIGHT(TRIM(RIGHT(B194,LEN(B194)-FIND(" ",B194))),LEN(TRIM(RIGHT(B194,LEN(B194)-FIND(" ",B194))))-FIND(" ",TRIM(RIGHT(B194,LEN(B194)-FIND(" ",B194)))))),TRIM(RIGHT(B194,LEN(B194)-FIND(" ",B194)))),FIND(" ",IF(FIND(" ",TRIM(RIGHT(B194,LEN(B194)-FIND(" ",B194))))<4,TRIM(RIGHT(TRIM(RIGHT(B194,LEN(B194)-FIND(" ",B194))),LEN(TRIM(RIGHT(B194,LEN(B194)-FIND(" ",B194))))-FIND(" ",TRIM(RIGHT(B194,LEN(B194)-FIND(" ",B194)))))),TRIM(RIGHT(B194,LEN(B194)-FIND(" ",B194))))))))-2))*1)) -> Z | K194: =IF(B194="","Z",1*(TRIM(LEFT(B194,FIND(" ",B194))))) -> Z
J195: =IF(B195="","Z",IF(ISERROR((LEFT(TRIM(LEFT(IF(FIND(" ",TRIM(RIGHT(B195,LEN(B195)-FIND(" ",B195))))<4,TRIM(RIGHT(TRIM(RIGHT(B195,LEN(B195)-FIND(" ",B195))),LEN(TRIM(RIGHT(B195,LEN(B195)-FIND(" ",B195))))-FIND(" ",TRIM(RIGHT(B195,LEN(B195)-FIND(" ",B195)))))),TRIM(RIGHT(B195,LEN(B195)-FIND(" ",B195)))),FIND(" ",IF(FIND(" ",TRIM(RIGHT(B195,LEN(B195)-FIND(" ",B195))))<4,TRIM(RIGHT(TRIM(RIGHT(B195,LEN(B195)-FIND(" ",B195))),LEN(TRIM(RIGHT(B195,LEN(B195)-FIND(" ",B195))))-FIND(" ",TRIM(RIGHT(B195,LEN(B195)-FIND(" ",B195)))))),TRIM(RIGHT(B195,LEN(B195)-FIND(" ",B195))))))),LEN(TRIM(LEFT(IF(FIND(" ",TRIM(RIGHT(B195,LEN(B195)-FIND(" ",B195))))<4,TRIM(RIGHT(TRIM(RIGHT(B195,LEN(B195)-FIND(" ",B195))),LEN(TRIM(RIGHT(B195,LEN(B195)-FIND(" ",B195))))-FIND(" ",TRIM(RIGHT(B195,LEN(B195)-FIND(" ",B195)))))),TRIM(RIGHT(B195,LEN(B195)-FIND(" ",B195)))),FIND(" ",IF(FIND(" ",TRIM(RIGHT(B195,LEN(B195)-FIND(" ",B195))))<4,TRIM(RIGHT(TRIM(RIGHT(B195,LEN(B195)-FIND(" ",B195))),LEN(TRIM(RIGHT(B195,LEN(B195)-FIND(" ",B195))))-FIND(" ",TRIM(RIGHT(B195,LEN(B195)-FIND(" ",B195)))))),TRIM(RIGHT(B195,LEN(B195)-FIND(" ",B195))))))))-2))*1),TRIM(LEFT(IF(FIND(" ",TRIM(RIGHT(B195,LEN(B195)-FIND(" ",B195))))<4,TRIM(RIGHT(TRIM(RIGHT(B195,LEN(B195)-FIND(" ",B195))),LEN(TRIM(RIGHT(B195,LEN(B195)-FIND(" ",B195))))-FIND(" ",TRIM(RIGHT(B195,LEN(B195)-FIND(" ",B195)))))),TRIM(RIGHT(B195,LEN(B195)-FIND(" ",B195)))),FIND(" ",IF(FIND(" ",TRIM(RIGHT(B195,LEN(B195)-FIND(" ",B195))))<4,TRIM(RIGHT(TRIM(RIGHT(B195,LEN(B195)-FIND(" ",B195))),LEN(TRIM(RIGHT(B195,LEN(B195)-FIND(" ",B195))))-FIND(" ",TRIM(RIGHT(B195,LEN(B195)-FIND(" ",B195)))))),TRIM(RIGHT(B195,LEN(B195)-FIND(" ",B195))))))),(LEFT(TRIM(LEFT(IF(FIND(" ",TRIM(RIGHT(B195,LEN(B195)-FIND(" ",B195))))<4,TRIM(RIGHT(TRIM(RIGHT(B195,LEN(B195)-FIND(" ",B195))),LEN(TRIM(RIGHT(B195,LEN(B195)-FIND(" ",B195))))-FIND(" ",TRIM(RIGHT(B195,LEN(B195)-FIND(" ",B195)))))),TRIM(RIGHT(B195,LEN(B195)-FIND(" ",B195)))),FIND(" ",IF(FIND(" ",TRIM(RIGHT(B195,LEN(B195)-FIND(" ",B195))))<4,TRIM(RIGHT(TRIM(RIGHT(B195,LEN(B195)-FIND(" ",B195))),LEN(TRIM(RIGHT(B195,LEN(B195)-FIND(" ",B195))))-FIND(" ",TRIM(RIGHT(B195,LEN(B195)-FIND(" ",B195)))))),TRIM(RIGHT(B195,LEN(B195)-FIND(" ",B195))))))),LEN(TRIM(LEFT(IF(FIND(" ",TRIM(RIGHT(B195,LEN(B195)-FIND(" ",B195))))<4,TRIM(RIGHT(TRIM(RIGHT(B195,LEN(B195)-FIND(" ",B195))),LEN(TRIM(RIGHT(B195,LEN(B195)-FIND(" ",B195))))-FIND(" ",TRIM(RIGHT(B195,LEN(B195)-FIND(" ",B195)))))),TRIM(RIGHT(B195,LEN(B195)-FIND(" ",B195)))),FIND(" ",IF(FIND(" ",TRIM(RIGHT(B195,LEN(B195)-FIND(" ",B195))))<4,TRIM(RIGHT(TRIM(RIGHT(B195,LEN(B195)-FIND(" ",B195))),LEN(TRIM(RIGHT(B195,LEN(B195)-FIND(" ",B195))))-FIND(" ",TRIM(RIGHT(B195,LEN(B195)-FIND(" ",B195)))))),TRIM(RIGHT(B195,LEN(B195)-FIND(" ",B195))))))))-2))*1)) -> Z | K195: =IF(B195="","Z",1*(TRIM(LEFT(B195,FIND(" ",B195))))) -> Z
J196: =IF(B196="","Z",IF(ISERROR((LEFT(TRIM(LEFT(IF(FIND(" ",TRIM(RIGHT(B196,LEN(B196)-FIND(" ",B196))))<4,TRIM(RIGHT(TRIM(RIGHT(B196,LEN(B196)-FIND(" ",B196))),LEN(TRIM(RIGHT(B196,LEN(B196)-FIND(" ",B196))))-FIND(" ",TRIM(RIGHT(B196,LEN(B196)-FIND(" ",B196)))))),TRIM(RIGHT(B196,LEN(B196)-FIND(" ",B196)))),FIND(" ",IF(FIND(" ",TRIM(RIGHT(B196,LEN(B196)-FIND(" ",B196))))<4,TRIM(RIGHT(TRIM(RIGHT(B196,LEN(B196)-FIND(" ",B196))),LEN(TRIM(RIGHT(B196,LEN(B196)-FIND(" ",B196))))-FIND(" ",TRIM(RIGHT(B196,LEN(B196)-FIND(" ",B196)))))),TRIM(RIGHT(B196,LEN(B196)-FIND(" ",B196))))))),LEN(TRIM(LEFT(IF(FIND(" ",TRIM(RIGHT(B196,LEN(B196)-FIND(" ",B196))))<4,TRIM(RIGHT(TRIM(RIGHT(B196,LEN(B196)-FIND(" ",B196))),LEN(TRIM(RIGHT(B196,LEN(B196)-FIND(" ",B196))))-FIND(" ",TRIM(RIGHT(B196,LEN(B196)-FIND(" ",B196)))))),TRIM(RIGHT(B196,LEN(B196)-FIND(" ",B196)))),FIND(" ",IF(FIND(" ",TRIM(RIGHT(B196,LEN(B196)-FIND(" ",B196))))<4,TRIM(RIGHT(TRIM(RIGHT(B196,LEN(B196)-FIND(" ",B196))),LEN(TRIM(RIGHT(B196,LEN(B196)-FIND(" ",B196))))-FIND(" ",TRIM(RIGHT(B196,LEN(B196)-FIND(" ",B196)))))),TRIM(RIGHT(B196,LEN(B196)-FIND(" ",B196))))))))-2))*1),TRIM(LEFT(IF(FIND(" ",TRIM(RIGHT(B196,LEN(B196)-FIND(" ",B196))))<4,TRIM(RIGHT(TRIM(RIGHT(B196,LEN(B196)-FIND(" ",B196))),LEN(TRIM(RIGHT(B196,LEN(B196)-FIND(" ",B196))))-FIND(" ",TRIM(RIGHT(B196,LEN(B196)-FIND(" ",B196)))))),TRIM(RIGHT(B196,LEN(B196)-FIND(" ",B196)))),FIND(" ",IF(FIND(" ",TRIM(RIGHT(B196,LEN(B196)-FIND(" ",B196))))<4,TRIM(RIGHT(TRIM(RIGHT(B196,LEN(B196)-FIND(" ",B196))),LEN(TRIM(RIGHT(B196,LEN(B196)-FIND(" ",B196))))-FIND(" ",TRIM(RIGHT(B196,LEN(B196)-FIND(" ",B196)))))),TRIM(RIGHT(B196,LEN(B196)-FIND(" ",B196))))))),(LEFT(TRIM(LEFT(IF(FIND(" ",TRIM(RIGHT(B196,LEN(B196)-FIND(" ",B196))))<4,TRIM(RIGHT(TRIM(RIGHT(B196,LEN(B196)-FIND(" ",B196))),LEN(TRIM(RIGHT(B196,LEN(B196)-FIND(" ",B196))))-FIND(" ",TRIM(RIGHT(B196,LEN(B196)-FIND(" ",B196)))))),TRIM(RIGHT(B196,LEN(B196)-FIND(" ",B196)))),FIND(" ",IF(FIND(" ",TRIM(RIGHT(B196,LEN(B196)-FIND(" ",B196))))<4,TRIM(RIGHT(TRIM(RIGHT(B196,LEN(B196)-FIND(" ",B196))),LEN(TRIM(RIGHT(B196,LEN(B196)-FIND(" ",B196))))-FIND(" ",TRIM(RIGHT(B196,LEN(B196)-FIND(" ",B196)))))),TRIM(RIGHT(B196,LEN(B196)-FIND(" ",B196))))))),LEN(TRIM(LEFT(IF(FIND(" ",TRIM(RIGHT(B196,LEN(B196)-FIND(" ",B196))))<4,TRIM(RIGHT(TRIM(RIGHT(B196,LEN(B196)-FIND(" ",B196))),LEN(TRIM(RIGHT(B196,LEN(B196)-FIND(" ",B196))))-FIND(" ",TRIM(RIGHT(B196,LEN(B196)-FIND(" ",B196)))))),TRIM(RIGHT(B196,LEN(B196)-FIND(" ",B196)))),FIND(" ",IF(FIND(" ",TRIM(RIGHT(B196,LEN(B196)-FIND(" ",B196))))<4,TRIM(RIGHT(TRIM(RIGHT(B196,LEN(B196)-FIND(" ",B196))),LEN(TRIM(RIGHT(B196,LEN(B196)-FIND(" ",B196))))-FIND(" ",TRIM(RIGHT(B196,LEN(B196)-FIND(" ",B196)))))),TRIM(RIGHT(B196,LEN(B196)-FIND(" ",B196))))))))-2))*1)) -> Z | K196: =IF(B196="","Z",1*(TRIM(LEFT(B196,FIND(" ",B196))))) -> Z

Sheet PAR-2
G2: Do not input or erase anything in Column G or Column H
B6: Last Updated on 11/28/2016 11:36:28 AM
B9: Permitted Parklets and Streateries
B10: Location | C10: Host | D10: Size | E10: Permit | F10: Expiration | G10: Sort 1 | H10: Sort 2
B11: 2604 1st Ave (Streatery) | C11: Some Random Bar | D11: 28'-6" x 14'-4" | E11: 278833 | F11: 2016-09-01 | G11: =IF(B11="","Z",IF(ISERROR((LEFT(TRIM(LEFT(IF(FIND(" ",TRIM(RIGHT(B11,LEN(B11)-FIND(" ",B11))))<4,TRIM(RIGHT(TRIM(RIGHT(B11,LEN(B11)-FIND(" ",B11))),LEN(TRIM(RIGHT(B11,LEN(B11)-FIND(" ",B11))))-FIND(" ",TRIM(RIGHT(B11,LEN(B11)-FIND(" ",B11)))))),TRIM(RIGHT(B11,LEN(B11)-FIND(" ",B11)))),FIND(" ",IF(FIND(" ",TRIM(RIGHT(B11,LEN(B11)-FIND(" ",B11))))<4,TRIM(RIGHT(TRIM(RIGHT(B11,LEN(B11)-FIND(" ",B11))),LEN(TRIM(RIGHT(B11,LEN(B11)-FIND(" ",B11))))-FIND(" ",TRIM(RIGHT(B11,LEN(B11)-FIND(" ",B11)))))),TRIM(RIGHT(B11,LEN(B11)-FIND(" ",B11))))))),LEN(TRIM(LEFT(IF(FIND(" ",TRIM(RIGHT(B11,LEN(B11)-FIND(" ",B11))))<4,TRIM(RIGHT(TRIM(RIGHT(B11,LEN(B11)-FIND(" ",B11))),LEN(TRIM(RIGHT(B11,LEN(B11)-FIND(" ",B11))))-FIND(" ",TRIM(RIGHT(B11,LEN(B11)-FIND(" ",B11)))))),TRIM(RIGHT(B11,LEN(B11)-FIND(" ",B11)))),FIND(" ",IF(FIND(" ",TRIM(RIGHT(B11,LEN(B11)-FIND(" ",B11))))<4,TRIM(RIGHT(TRIM(RIGHT(B11,LEN(B11)-FIND(" ",B11))),LEN(TRIM(RIGHT(B11,LEN(B11)-FIND(" ",B11))))-FIND(" ",TRIM(RIGHT(B11,LEN(B11)-FIND(" ",B11)))))),TRIM(RIGHT(B11,LEN(B11)-FIND(" ",B11))))))))-2))*1),TRIM(LEFT(IF(FIND(" ",TRIM(RIGHT(B11,LEN(B11)-FIND(" ",B11))))<4,TRIM(RIGHT(TRIM(RIGHT(B11,LEN(B11)-FIND(" ",B11))),LEN(TRIM(RIGHT(B11,LEN(B11)-FIND(" ",B11))))-FIND(" ",TRIM(RIGHT(B11,LEN(B11)-FIND(" ",B11)))))),TRIM(RIGHT(B11,LEN(B11)-FIND(" ",B11)))),FIND(" ",IF(FIND(" ",TRIM(RIGHT(B11,LEN(B11)-FIND(" ",B11))))<4,TRIM(RIGHT(TRIM(RIGHT(B11,LEN(B11)-FIND(" ",B11))),LEN(TRIM(RIGHT(B11,LEN(B11)-FIND(" ",B11))))-FIND(" ",TRIM(RIGHT(B11,LEN(B11)-FIND(" ",B11)))))),TRIM(RIGHT(B11,LEN(B11)-FIND(" ",B11))))))),(LEFT(TRIM(LEFT(IF(FIND(" ",TRIM(RIGHT(B11,LEN(B11)-FIND(" ",B11))))<4,TRIM(RIGHT(TRIM(RIGHT(B11,LEN(B11)-FIND(" ",B11))),LEN(TRIM(RIGHT(B11,LEN(B11)-FIND(" ",B11))))-FIND(" ",TRIM(RIGHT(B11,LEN(B11)-FIND(" ",B11)))))),TRIM(RIGHT(B11,LEN(B11)-FIND(" ",B11)))),FIND(" ",IF(FIND(" ",TRIM(RIGHT(B11,LEN(B11)-FIND(" ",B11))))<4,TRIM(RIGHT(TRIM(RIGHT(B11,LEN(B11)-FIND(" ",B11))),LEN(TRIM(RIGHT(B11,LEN(B11)-FIND(" ",B11))))-FIND(" ",TRIM(RIGHT(B11,LEN(B11)-FIND(" ",B11)))))),TRIM(RIGHT(B11,LEN(B11)-FIND(" ",B11))))))),LEN(TRIM(LEFT(IF(FIND(" ",TRIM(RIGHT(B11,LEN(B11)-FIND(" ",B11))))<4,TRIM(RIGHT(TRIM(RIGHT(B11,LEN(B11)-FIND(" ",B11))),LEN(TRIM(RIGHT(B11,LEN(B11)-FIND(" ",B11))))-FIND(" ",TRIM(RIGHT(B11,LEN(B11)-FIND(" ",B11)))))),TRIM(RIGHT(B11,LEN(B11)-FIND(" ",B11)))),FIND(" ",IF(FIND(" ",TRIM(RIGHT(B11,LEN(B11)-FIND(" ",B11))))<4,TRIM(RIGHT(TRIM(RIGHT(B11,LEN(B11)-FIND(" ",B11))),LEN(TRIM(RIGHT(B11,LEN(B11)-FIND(" ",B11))))-FIND(" ",TRIM(RIGHT(B11,LEN(B11)-FIND(" ",B11)))))),TRIM(RIGHT(B11,LEN(B11)-FIND(" ",B11))))))))-2))*1)) -> 1 | H11: =IF(B11="","Z",1*(TRIM(LEFT(B11,FIND(" ",B11))))) -> 2604
B12: 1516 2nd Ave | C12: Chromer Building LLC | D12: 119'-8" x 6'-0" | E12: 241016 | F12: 2016-07-01 | G12: 2 | H12: 1516
B13: 519 6th Ave S | C13: Chinatown/ID BIA | D13: 24'-0" x 5'-6" | E13: 229381 | F13: 2016-03-01 | G13: 6 | H13: 519
B14: 324 15th Ave E | C14: Sugar Plum | D14: 28'-11.5" x 6'-0" | E14: 298917 | F14: 2017-06-01 | G14: 15 | H14: 324
B15: 1622 N 45th St | C15: Molly Moon's Ice Cream | D15: 20'-0" x 6'-3.5" | E15: 243117 | F15: 2016-08-01 | G15: 45 | H15: 1622
B16: 1508 Melrose Ave (Streatery) | C16: Mamnoon | D16: 39'-6" x 8'-0" | E16: 294258 | F16: 2017-05-01 | G16: Melrose | H16: 1508
B17: 1506 E Olive Way (Streatery) | C17: Montana Bar | D17: 28'-0" x 6'-0" | E17: 271473 | F17: 2016-05-01 | G17: Olive | H17: 1506
B18: 511 Queen Anne Ave N | C18: Uptown Alliance | D18: 29'-0" x 9'-8" | E18: 244172 | F18: 2016-02-01 | G18: Queen | H18: 511
B19: 5600 Rainier Ave S | C19: Tin Umbrella Coffee Roasters | D19: 30'-0" x 6'-0" | E19: 266702 | F19: 2016-04-01 | G19: Rainier | H19: 5600
B20: 1915 Terry Ave | C20: Seattle Children's Research Institute | D20: 82'-0" x 11'-0" | E20: 236623 | F20: 2016-05-01 | G20: Terry | H20: 1915
B21: 2425 E Union St | C21: Cortona Café | D21: 27'-4" x 17'-8" | E21: 236944 | F21: 2016-09-01 | G21: Union | H21: 2425
B22: 4208 University Way NE | C22: U District Advocates | D22: 32'-0" x 8'-0" | E22: 283714 | F22: 2016-09-01 | G22: University | H22: 4208
G23: =IF(B23="","Z",IF(ISERROR((LEFT(TRIM(LEFT(IF(FIND(" ",TRIM(RIGHT(B23,LEN(B23)-FIND(" ",B23))))<4,TRIM(RIGHT(TRIM(RIGHT(B23,LEN(B23)-FIND(" ",B23))),LEN(TRIM(RIGHT(B23,LEN(B23)-FIND(" ",B23))))-FIND(" ",TRIM(RIGHT(B23,LEN(B23)-FIND(" ",B23)))))),TRIM(RIGHT(B23,LEN(B23)-FIND(" ",B23)))),FIND(" ",IF(FIND(" ",TRIM(RIGHT(B23,LEN(B23)-FIND(" ",B23))))<4,TRIM(RIGHT(TRIM(RIGHT(B23,LEN(B23)-FIND(" ",B23))),LEN(TRIM(RIGHT(B23,LEN(B23)-FIND(" ",B23))))-FIND(" ",TRIM(RIGHT(B23,LEN(B23)-FIND(" ",B23)))))),TRIM(RIGHT(B23,LEN(B23)-FIND(" ",B23))))))),LEN(TRIM(LEFT(IF(FIND(" ",TRIM(RIGHT(B23,LEN(B23)-FIND(" ",B23))))<4,TRIM(RIGHT(TRIM(RIGHT(B23,LEN(B23)-FIND(" ",B23))),LEN(TRIM(RIGHT(B23,LEN(B23)-FIND(" ",B23))))-FIND(" ",TRIM(RIGHT(B23,LEN(B23)-FIND(" ",B23)))))),TRIM(RIGHT(B23,LEN(B23)-FIND(" ",B23)))),FIND(" ",IF(FIND(" ",TRIM(RIGHT(B23,LEN(B23)-FIND(" ",B23))))<4,TRIM(RIGHT(TRIM(RIGHT(B23,LEN(B23)-FIND(" ",B23))),LEN(TRIM(RIGHT(B23,LEN(B23)-FIND(" ",B23))))-FIND(" ",TRIM(RIGHT(B23,LEN(B23)-FIND(" ",B23)))))),TRIM(RIGHT(B23,LEN(B23)-FIND(" ",B23))))))))-2))*1),TRIM(LEFT(IF(FIND(" ",TRIM(RIGHT(B23,LEN(B23)-FIND(" ",B23))))<4,TRIM(RIGHT(TRIM(RIGHT(B23,LEN(B23)-FIND(" ",B23))),LEN(TRIM(RIGHT(B23,LEN(B23)-FIND(" ",B23))))-FIND(" ",TRIM(RIGHT(B23,LEN(B23)-FIND(" ",B23)))))),TRIM(RIGHT(B23,LEN(B23)-FIND(" ",B23)))),FIND(" ",IF(FIND(" ",TRIM(RIGHT(B23,LEN(B23)-FIND(" ",B23))))<4,TRIM(RIGHT(TRIM(RIGHT(B23,LEN(B23)-FIND(" ",B23))),LEN(TRIM(RIGHT(B23,LEN(B23)-FIND(" ",B23))))-FIND(" ",TRIM(RIGHT(B23,LEN(B23)-FIND(" ",B23)))))),TRIM(RIGHT(B23,LEN(B23)-FIND(" ",B23))))))),(LEFT(TRIM(LEFT(IF(FIND(" ",TRIM(RIGHT(B23,LEN(B23)-FIND(" ",B23))))<4,TRIM(RIGHT(TRIM(RIGHT(B23,LEN(B23)-FIND(" ",B23))),LEN(TRIM(RIGHT(B23,LEN(B23)-FIND(" ",B23))))-FIND(" ",TRIM(RIGHT(B23,LEN(B23)-FIND(" ",B23)))))),TRIM(RIGHT(B23,LEN(B23)-FIND(" ",B23)))),FIND(" ",IF(FIND(" ",TRIM(RIGHT(B23,LEN(B23)-FIND(" ",B23))))<4,TRIM(RIGHT(TRIM(RIGHT(B23,LEN(B23)-FIND(" ",B23))),LEN(TRIM(RIGHT(B23,LEN(B23)-FIND(" ",B23))))-FIND(" ",TRIM(RIGHT(B23,LEN(B23)-FIND(" ",B23)))))),TRIM(RIGHT(B23,LEN(B23)-FIND(" ",B23))))))),LEN(TRIM(LEFT(IF(FIND(" ",TRIM(RIGHT(B23,LEN(B23)-FIND(" ",B23))))<4,TRIM(RIGHT(TRIM(RIGHT(B23,LEN(B23)-FIND(" ",B23))),LEN(TRIM(RIGHT(B23,LEN(B23)-FIND(" ",B23))))-FIND(" ",TRIM(RIGHT(B23,LEN(B23)-FIND(" ",B23)))))),TRIM(RIGHT(B23,LEN(B23)-FIND(" ",B23)))),FIND(" ",IF(FIND(" ",TRIM(RIGHT(B23,LEN(B23)-FIND(" ",B23))))<4,TRIM(RIGHT(TRIM(RIGHT(B23,LEN(B23)-FIND(" ",B23))),LEN(TRIM(RIGHT(B23,LEN(B23)-FIND(" ",B23))))-FIND(" ",TRIM(RIGHT(B23,LEN(B23)-FIND(" ",B23)))))),TRIM(RIGHT(B23,LEN(B23)-FIND(" ",B23))))))))-2))*1)) -> Z | H23: =IF(B23="","Z",1*(TRIM(LEFT(B23,FIND(" ",B23))))) -> Z
G24: Z | H24: Z
G25: Z | H25: Z
G26: Z | H26: Z
G27: Z | H27: Z
G28: Z | H28: Z
G29: Z | H29: Z
G30: Z | H30: Z
G31: Z | H31: Z
G32: Z | H32: Z
G33: Z | H33: Z
G34: Z | H34: Z
G35: Z | H35: Z
G36: Z | H36: Z
G37: Z | H37: Z
G38: Z | H38: Z
G39: Z | H39: Z
G40: Z | H40: Z
G41: Z | H41: Z
G42: Z | H42: Z
G43: Z | H43: Z
G44: =IF(B44="","Z",IF(ISERROR((LEFT(TRIM(LEFT(IF(FIND(" ",TRIM(RIGHT(B44,LEN(B44)-FIND(" ",B44))))<4,TRIM(RIGHT(TRIM(RIGHT(B44,LEN(B44)-FIND(" ",B44))),LEN(TRIM(RIGHT(B44,LEN(B44)-FIND(" ",B44))))-FIND(" ",TRIM(RIGHT(B44,LEN(B44)-FIND(" ",B44)))))),TRIM(RIGHT(B44,LEN(B44)-FIND(" ",B44)))),FIND(" ",IF(FIND(" ",TRIM(RIGHT(B44,LEN(B44)-FIND(" ",B44))))<4,TRIM(RIGHT(TRIM(RIGHT(B44,LEN(B44)-FIND(" ",B44))),LEN(TRIM(RIGHT(B44,LEN(B44)-FIND(" ",B44))))-FIND(" ",TRIM(RIGHT(B44,LEN(B44)-FIND(" ",B44)))))),TRIM(RIGHT(B44,LEN(B44)-FIND(" ",B44))))))),LEN(TRIM(LEFT(IF(FIND(" ",TRIM(RIGHT(B44,LEN(B44)-FIND(" ",B44))))<4,TRIM(RIGHT(TRIM(RIGHT(B44,LEN(B44)-FIND(" ",B44))),LEN(TRIM(RIGHT(B44,LEN(B44)-FIND(" ",B44))))-FIND(" ",TRIM(RIGHT(B44,LEN(B44)-FIND(" ",B44)))))),TRIM(RIGHT(B44,LEN(B44)-FIND(" ",B44)))),FIND(" ",IF(FIND(" ",TRIM(RIGHT(B44,LEN(B44)-FIND(" ",B44))))<4,TRIM(RIGHT(TRIM(RIGHT(B44,LEN(B44)-FIND(" ",B44))),LEN(TRIM(RIGHT(B44,LEN(B44)-FIND(" ",B44))))-FIND(" ",TRIM(RIGHT(B44,LEN(B44)-FIND(" ",B44)))))),TRIM(RIGHT(B44,LEN(B44)-FIND(" ",B44))))))))-2))*1),TRIM(LEFT(IF(FIND(" ",TRIM(RIGHT(B44,LEN(B44)-FIND(" ",B44))))<4,TRIM(RIGHT(TRIM(RIGHT(B44,LEN(B44)-FIND(" ",B44))),LEN(TRIM(RIGHT(B44,LEN(B44)-FIND(" ",B44))))-FIND(" ",TRIM(RIGHT(B44,LEN(B44)-FIND(" ",B44)))))),TRIM(RIGHT(B44,LEN(B44)-FIND(" ",B44)))),FIND(" ",IF(FIND(" ",TRIM(RIGHT(B44,LEN(B44)-FIND(" ",B44))))<4,TRIM(RIGHT(TRIM(RIGHT(B44,LEN(B44)-FIND(" ",B44))),LEN(TRIM(RIGHT(B44,LEN(B44)-FIND(" ",B44))))-FIND(" ",TRIM(RIGHT(B44,LEN(B44)-FIND(" ",B44)))))),TRIM(RIGHT(B44,LEN(B44)-FIND(" ",B44))))))),(LEFT(TRIM(LEFT(IF(FIND(" ",TRIM(RIGHT(B44,LEN(B44)-FIND(" ",B44))))<4,TRIM(RIGHT(TRIM(RIGHT(B44,LEN(B44)-FIND(" ",B44))),LEN(TRIM(RIGHT(B44,LEN(B44)-FIND(" ",B44))))-FIND(" ",TRIM(RIGHT(B44,LEN(B44)-FIND(" ",B44)))))),TRIM(RIGHT(B44,LEN(B44)-FIND(" ",B44)))),FIND(" ",IF(FIND(" ",TRIM(RIGHT(B44,LEN(B44)-FIND(" ",B44))))<4,TRIM(RIGHT(TRIM(RIGHT(B44,LEN(B44)-FIND(" ",B44))),LEN(TRIM(RIGHT(B44,LEN(B44)-FIND(" ",B44))))-FIND(" ",TRIM(RIGHT(B44,LEN(B44)-FIND(" ",B44)))))),TRIM(RIGHT(B44,LEN(B44)-FIND(" ",B44))))))),LEN(TRIM(LEFT(IF(FIND(" ",TRIM(RIGHT(B44,LEN(B44)-FIND(" ",B44))))<4,TRIM(RIGHT(TRIM(RIGHT(B44,LEN(B44)-FIND(" ",B44))),LEN(TRIM(RIGHT(B44,LEN(B44)-FIND(" ",B44))))-FIND(" ",TRIM(RIGHT(B44,LEN(B44)-FIND(" ",B44)))))),TRIM(RIGHT(B44,LEN(B44)-FIND(" ",B44)))),FIND(" ",IF(FIND(" ",TRIM(RIGHT(B44,LEN(B44)-FIND(" ",B44))))<4,TRIM(RIGHT(TRIM(RIGHT(B44,LEN(B44)-FIND(" ",B44))),LEN(TRIM(RIGHT(B44,LEN(B44)-FIND(" ",B44))))-FIND(" ",TRIM(RIGHT(B44,LEN(B44)-FIND(" ",B44)))))),TRIM(RIGHT(B44,LEN(B44)-FIND(" ",B44))))))))-2))*1)) -> Z | H44: =IF(B44="","Z",1*(TRIM(LEFT(B44,FIND(" ",B44))))) -> Z
G45: Z | H45: Z
G46: Z | H46: Z
G47: Z | H47: Z
G48: Z | H48: Z
G49: Z | H49: Z
G50: Z | H50: Z
G51: Z | H51: Z
G52: Z | H52: Z
G53: Z | H53: Z
G54: Z | H54: Z
G55: Z | H55: Z
G56: Z | H56: Z
G57: Z | H57: Z
G58: Z | H58: Z
G59: Z | H59: Z
G60: Z | H60: Z
G61: Z | H61: Z
G62: Z | H62: Z
G63: Z | H63: Z
G64: Z | H64: Z
G65: Z | H65: Z
G66: Z | H66: Z
G67: Z | H67: Z
G68: Z | H68: Z
G69: Z | H69: Z
G70: Z | H70: Z
G71: Z | H71: Z
G72: Z | H72: Z
G73: Z | H73: Z
G74: Z | H74: Z
G75: Z | H75: Z
G76: =IF(B76="","Z",IF(ISERROR((LEFT(TRIM(LEFT(IF(FIND(" ",TRIM(RIGHT(B76,LEN(B76)-FIND(" ",B76))))<4,TRIM(RIGHT(TRIM(RIGHT(B76,LEN(B76)-FIND(" ",B76))),LEN(TRIM(RIGHT(B76,LEN(B76)-FIND(" ",B76))))-FIND(" ",TRIM(RIGHT(B76,LEN(B76)-FIND(" ",B76)))))),TRIM(RIGHT(B76,LEN(B76)-FIND(" ",B76)))),FIND(" ",IF(FIND(" ",TRIM(RIGHT(B76,LEN(B76)-FIND(" ",B76))))<4,TRIM(RIGHT(TRIM(RIGHT(B76,LEN(B76)-FIND(" ",B76))),LEN(TRIM(RIGHT(B76,LEN(B76)-FIND(" ",B76))))-FIND(" ",TRIM(RIGHT(B76,LEN(B76)-FIND(" ",B76)))))),TRIM(RIGHT(B76,LEN(B76)-FIND(" ",B76))))))),LEN(TRIM(LEFT(IF(FIND(" ",TRIM(RIGHT(B76,LEN(B76)-FIND(" ",B76))))<4,TRIM(RIGHT(TRIM(RIGHT(B76,LEN(B76)-FIND(" ",B76))),LEN(TRIM(RIGHT(B76,LEN(B76)-FIND(" ",B76))))-FIND(" ",TRIM(RIGHT(B76,LEN(B76)-FIND(" ",B76)))))),TRIM(RIGHT(B76,LEN(B76)-FIND(" ",B76)))),FIND(" ",IF(FIND(" ",TRIM(RIGHT(B76,LEN(B76)-FIND(" ",B76))))<4,TRIM(RIGHT(TRIM(RIGHT(B76,LEN(B76)-FIND(" ",B76))),LEN(TRIM(RIGHT(B76,LEN(B76)-FIND(" ",B76))))-FIND(" ",TRIM(RIGHT(B76,LEN(B76)-FIND(" ",B76)))))),TRIM(RIGHT(B76,LEN(B76)-FIND(" ",B76))))))))-2))*1),TRIM(LEFT(IF(FIND(" ",TRIM(RIGHT(B76,LEN(B76)-FIND(" ",B76))))<4,TRIM(RIGHT(TRIM(RIGHT(B76,LEN(B76)-FIND(" ",B76))),LEN(TRIM(RIGHT(B76,LEN(B76)-FIND(" ",B76))))-FIND(" ",TRIM(RIGHT(B76,LEN(B76)-FIND(" ",B76)))))),TRIM(RIGHT(B76,LEN(B76)-FIND(" ",B76)))),FIND(" ",IF(FIND(" ",TRIM(RIGHT(B76,LEN(B76)-FIND(" ",B76))))<4,TRIM(RIGHT(TRIM(RIGHT(B76,LEN(B76)-FIND(" ",B76))),LEN(TRIM(RIGHT(B76,LEN(B76)-FIND(" ",B76))))-FIND(" ",TRIM(RIGHT(B76,LEN(B76)-FIND(" ",B76)))))),TRIM(RIGHT(B76,LEN(B76)-FIND(" ",B76))))))),(LEFT(TRIM(LEFT(IF(FIND(" ",TRIM(RIGHT(B76,LEN(B76)-FIND(" ",B76))))<4,TRIM(RIGHT(TRIM(RIGHT(B76,LEN(B76)-FIND(" ",B76))),LEN(TRIM(RIGHT(B76,LEN(B76)-FIND(" ",B76))))-FIND(" ",TRIM(RIGHT(B76,LEN(B76)-FIND(" ",B76)))))),TRIM(RIGHT(B76,LEN(B76)-FIND(" ",B76)))),FIND(" ",IF(FIND(" ",TRIM(RIGHT(B76,LEN(B76)-FIND(" ",B76))))<4,TRIM(RIGHT(TRIM(RIGHT(B76,LEN(B76)-FIND(" ",B76))),LEN(TRIM(RIGHT(B76,LEN(B76)-FIND(" ",B76))))-FIND(" ",TRIM(RIGHT(B76,LEN(B76)-FIND(" ",B76)))))),TRIM(RIGHT(B76,LEN(B76)-FIND(" ",B76))))))),LEN(TRIM(LEFT(IF(FIND(" ",TRIM(RIGHT(B76,LEN(B76)-FIND(" ",B76))))<4,TRIM(RIGHT(TRIM(RIGHT(B76,LEN(B76)-FIND(" ",B76))),LEN(TRIM(RIGHT(B76,LEN(B76)-FIND(" ",B76))))-FIND(" ",TRIM(RIGHT(B76,LEN(B76)-FIND(" ",B76)))))),TRIM(RIGHT(B76,LEN(B76)-FIND(" ",B76)))),FIND(" ",IF(FIND(" ",TRIM(RIGHT(B76,LEN(B76)-FIND(" ",B76))))<4,TRIM(RIGHT(TRIM(RIGHT(B76,LEN(B76)-FIND(" ",B76))),LEN(TRIM(RIGHT(B76,LEN(B76)-FIND(" ",B76))))-FIND(" ",TRIM(RIGHT(B76,LEN(B76)-FIND(" ",B76)))))),TRIM(RIGHT(B76,LEN(B76)-FIND(" ",B76))))))))-2))*1)) -> Z | H76: =IF(B76="","Z",1*(TRIM(LEFT(B76,FIND(" ",B76))))) -> Z
G77: Z | H77: Z
G78: Z | H78: Z
G79: Z | H79: Z
G80: Z | H80: Z
G81: Z | H81: Z
G82: Z | H82: Z
G83: Z | H83: Z
G84: Z | H84: Z
G85: Z | H85: Z
G86: Z | H86: Z
G87: Z | H87: Z
G88: Z | H88: Z
G89: Z | H89: Z
G90: Z | H90: Z
G91: Z | H91: Z
G92: Z | H92: Z
G93: Z | H93: Z
G94: Z | H94: Z
G95: Z | H95: Z
G96: Z | H96: Z
G97: Z | H97: Z
G98: Z | H98: Z
G99: Z | H99: Z
G100: Z | H100: Z
G101: Z | H101: Z
G102: =IF(B102="","Z",IF(ISERROR((LEFT(TRIM(LEFT(IF(FIND(" ",TRIM(RIGHT(B102,LEN(B102)-FIND(" ",B102))))<4,TRIM(RIGHT(TRIM(RIGHT(B102,LEN(B102)-FIND(" ",B102))),LEN(TRIM(RIGHT(B102,LEN(B102)-FIND(" ",B102))))-FIND(" ",TRIM(RIGHT(B102,LEN(B102)-FIND(" ",B102)))))),TRIM(RIGHT(B102,LEN(B102)-FIND(" ",B102)))),FIND(" ",IF(FIND(" ",TRIM(RIGHT(B102,LEN(B102)-FIND(" ",B102))))<4,TRIM(RIGHT(TRIM(RIGHT(B102,LEN(B102)-FIND(" ",B102))),LEN(TRIM(RIGHT(B102,LEN(B102)-FIND(" ",B102))))-FIND(" ",TRIM(RIGHT(B102,LEN(B102)-FIND(" ",B102)))))),TRIM(RIGHT(B102,LEN(B102)-FIND(" ",B102))))))),LEN(TRIM(LEFT(IF(FIND(" ",TRIM(RIGHT(B102,LEN(B102)-FIND(" ",B102))))<4,TRIM(RIGHT(TRIM(RIGHT(B102,LEN(B102)-FIND(" ",B102))),LEN(TRIM(RIGHT(B102,LEN(B102)-FIND(" ",B102))))-FIND(" ",TRIM(RIGHT(B102,LEN(B102)-FIND(" ",B102)))))),TRIM(RIGHT(B102,LEN(B102)-FIND(" ",B102)))),FIND(" ",IF(FIND(" ",TRIM(RIGHT(B102,LEN(B102)-FIND(" ",B102))))<4,TRIM(RIGHT(TRIM(RIGHT(B102,LEN(B102)-FIND(" ",B102))),LEN(TRIM(RIGHT(B102,LEN(B102)-FIND(" ",B102))))-FIND(" ",TRIM(RIGHT(B102,LEN(B102)-FIND(" ",B102)))))),TRIM(RIGHT(B102,LEN(B102)-FIND(" ",B102))))))))-2))*1),TRIM(LEFT(IF(FIND(" ",TRIM(RIGHT(B102,LEN(B102)-FIND(" ",B102))))<4,TRIM(RIGHT(TRIM(RIGHT(B102,LEN(B102)-FIND(" ",B102))),LEN(TRIM(RIGHT(B102,LEN(B102)-FIND(" ",B102))))-FIND(" ",TRIM(RIGHT(B102,LEN(B102)-FIND(" ",B102)))))),TRIM(RIGHT(B102,LEN(B102)-FIND(" ",B102)))),FIND(" ",IF(FIND(" ",TRIM(RIGHT(B102,LEN(B102)-FIND(" ",B102))))<4,TRIM(RIGHT(TRIM(RIGHT(B102,LEN(B102)-FIND(" ",B102))),LEN(TRIM(RIGHT(B102,LEN(B102)-FIND(" ",B102))))-FIND(" ",TRIM(RIGHT(B102,LEN(B102)-FIND(" ",B102)))))),TRIM(RIGHT(B102,LEN(B102)-FIND(" ",B102))))))),(LEFT(TRIM(LEFT(IF(FIND(" ",TRIM(RIGHT(B102,LEN(B102)-FIND(" ",B102))))<4,TRIM(RIGHT(TRIM(RIGHT(B102,LEN(B102)-FIND(" ",B102))),LEN(TRIM(RIGHT(B102,LEN(B102)-FIND(" ",B102))))-FIND(" ",TRIM(RIGHT(B102,LEN(B102)-FIND(" ",B102)))))),TRIM(RIGHT(B102,LEN(B102)-FIND(" ",B102)))),FIND(" ",IF(FIND(" ",TRIM(RIGHT(B102,LEN(B102)-FIND(" ",B102))))<4,TRIM(RIGHT(TRIM(RIGHT(B102,LEN(B102)-FIND(" ",B102))),LEN(TRIM(RIGHT(B102,LEN(B102)-FIND(" ",B102))))-FIND(" ",TRIM(RIGHT(B102,LEN(B102)-FIND(" ",B102)))))),TRIM(RIGHT(B102,LEN(B102)-FIND(" ",B102))))))),LEN(TRIM(LEFT(IF(FIND(" ",TRIM(RIGHT(B102,LEN(B102)-FIND(" ",B102))))<4,TRIM(RIGHT(TRIM(RIGHT(B102,LEN(B102)-FIND(" ",B102))),LEN(TRIM(RIGHT(B102,LEN(B102)-FIND(" ",B102))))-FIND(" ",TRIM(RIGHT(B102,LEN(B102)-FIND(" ",B102)))))),TRIM(RIGHT(B102,LEN(B102)-FIND(" ",B102)))),FIND(" ",IF(FIND(" ",TRIM(RIGHT(B102,LEN(B102)-FIND(" ",B102))))<4,TRIM(RIGHT(TRIM(RIGHT(B102,LEN(B102)-FIND(" ",B102))),LEN(TRIM(RIGHT(B102,LEN(B102)-FIND(" ",B102))))-FIND(" ",TRIM(RIGHT(B102,LEN(B102)-FIND(" ",B102)))))),TRIM(RIGHT(B102,LEN(B102)-FIND(" ",B102))))))))-2))*1)) -> Z | H102: =IF(B102="","Z",1*(TRIM(LEFT(B102,FIND(" ",B102))))) -> Z
G103: Z | H103: Z
G104: Z | H104: Z
G105: Z | H105: Z
G106: Z | H106: Z
G107: Z | H107: Z
G108: Z | H108: Z
G109: Z | H109: Z
G110: Z | H110: Z
G111: Z | H111: Z
G112: Z | H112: Z
G113: Z | H113: Z
G114: Z | H114: Z
G115: Z | H115: Z
G116: Z | H116: Z
G117: Z | H117: Z
G118: Z | H118: Z
G119: Z | H119: Z
G120: Z | H120: Z
G121: Z | H121: Z
G122: Z | H122: Z
G123: Z | H123: Z
G124: Z | H124: Z
G125: Z | H125: Z
G126: Z | H126: Z
G127: Z | H127: Z
G128: Z | H128: Z
G129: Z | H129: Z
G130: Z | H130: Z
G131: Z | H131: Z
G132: Z | H132: Z
G133: Z | H133: Z
G134: Z | H134: Z
G135: Z | H135: Z
G136: Z | H136: Z
G137: Z | H137: Z
G138: Z | H138: Z
G139: Z | H139: Z
G140: Z | H140: Z
G141: =IF(B141="","Z",IF(ISERROR((LEFT(TRIM(LEFT(IF(FIND(" ",TRIM(RIGHT(B141,LEN(B141)-FIND(" ",B141))))<4,TRIM(RIGHT(TRIM(RIGHT(B141,LEN(B141)-FIND(" ",B141))),LEN(TRIM(RIGHT(B141,LEN(B141)-FIND(" ",B141))))-FIND(" ",TRIM(RIGHT(B141,LEN(B141)-FIND(" ",B141)))))),TRIM(RIGHT(B141,LEN(B141)-FIND(" ",B141)))),FIND(" ",IF(FIND(" ",TRIM(RIGHT(B141,LEN(B141)-FIND(" ",B141))))<4,TRIM(RIGHT(TRIM(RIGHT(B141,LEN(B141)-FIND(" ",B141))),LEN(TRIM(RIGHT(B141,LEN(B141)-FIND(" ",B141))))-FIND(" ",TRIM(RIGHT(B141,LEN(B141)-FIND(" ",B141)))))),TRIM(RIGHT(B141,LEN(B141)-FIND(" ",B141))))))),LEN(TRIM(LEFT(IF(FIND(" ",TRIM(RIGHT(B141,LEN(B141)-FIND(" ",B141))))<4,TRIM(RIGHT(TRIM(RIGHT(B141,LEN(B141)-FIND(" ",B141))),LEN(TRIM(RIGHT(B141,LEN(B141)-FIND(" ",B141))))-FIND(" ",TRIM(RIGHT(B141,LEN(B141)-FIND(" ",B141)))))),TRIM(RIGHT(B141,LEN(B141)-FIND(" ",B141)))),FIND(" ",IF(FIND(" ",TRIM(RIGHT(B141,LEN(B141)-FIND(" ",B141))))<4,TRIM(RIGHT(TRIM(RIGHT(B141,LEN(B141)-FIND(" ",B141))),LEN(TRIM(RIGHT(B141,LEN(B141)-FIND(" ",B141))))-FIND(" ",TRIM(RIGHT(B141,LEN(B141)-FIND(" ",B141)))))),TRIM(RIGHT(B141,LEN(B141)-FIND(" ",B141))))))))-2))*1),TRIM(LEFT(IF(FIND(" ",TRIM(RIGHT(B141,LEN(B141)-FIND(" ",B141))))<4,TRIM(RIGHT(TRIM(RIGHT(B141,LEN(B141)-FIND(" ",B141))),LEN(TRIM(RIGHT(B141,LEN(B141)-FIND(" ",B141))))-FIND(" ",TRIM(RIGHT(B141,LEN(B141)-FIND(" ",B141)))))),TRIM(RIGHT(B141,LEN(B141)-FIND(" ",B141)))),FIND(" ",IF(FIND(" ",TRIM(RIGHT(B141,LEN(B141)-FIND(" ",B141))))<4,TRIM(RIGHT(TRIM(RIGHT(B141,LEN(B141)-FIND(" ",B141))),LEN(TRIM(RIGHT(B141,LEN(B141)-FIND(" ",B141))))-FIND(" ",TRIM(RIGHT(B141,LEN(B141)-FIND(" ",B141)))))),TRIM(RIGHT(B141,LEN(B141)-FIND(" ",B141))))))),(LEFT(TRIM(LEFT(IF(FIND(" ",TRIM(RIGHT(B141,LEN(B141)-FIND(" ",B141))))<4,TRIM(RIGHT(TRIM(RIGHT(B141,LEN(B141)-FIND(" ",B141))),LEN(TRIM(RIGHT(B141,LEN(B141)-FIND(" ",B141))))-FIND(" ",TRIM(RIGHT(B141,LEN(B141)-FIND(" ",B141)))))),TRIM(RIGHT(B141,LEN(B141)-FIND(" ",B141)))),FIND(" ",IF(FIND(" ",TRIM(RIGHT(B141,LEN(B141)-FIND(" ",B141))))<4,TRIM(RIGHT(TRIM(RIGHT(B141,LEN(B141)-FIND(" ",B141))),LEN(TRIM(RIGHT(B141,LEN(B141)-FIND(" ",B141))))-FIND(" ",TRIM(RIGHT(B141,LEN(B141)-FIND(" ",B141)))))),TRIM(RIGHT(B141,LEN(B141)-FIND(" ",B141))))))),LEN(TRIM(LEFT(IF(FIND(" ",TRIM(RIGHT(B141,LEN(B141)-FIND(" ",B141))))<4,TRIM(RIGHT(TRIM(RIGHT(B141,LEN(B141)-FIND(" ",B141))),LEN(TRIM(RIGHT(B141,LEN(B141)-FIND(" ",B141))))-FIND(" ",TRIM(RIGHT(B141,LEN(B141)-FIND(" ",B141)))))),TRIM(RIGHT(B141,LEN(B141)-FIND(" ",B141)))),FIND(" ",IF(FIND(" ",TRIM(RIGHT(B141,LEN(B141)-FIND(" ",B141))))<4,TRIM(RIGHT(TRIM(RIGHT(B141,LEN(B141)-FIND(" ",B141))),LEN(TRIM(RIGHT(B141,LEN(B141)-FIND(" ",B141))))-FIND(" ",TRIM(RIGHT(B141,LEN(B141)-FIND(" ",B141)))))),TRIM(RIGHT(B141,LEN(B141)-FIND(" ",B141))))))))-2))*1)) -> Z | H141: =IF(B141="","Z",1*(TRIM(LEFT(B141,FIND(" ",B141))))) -> Z
G142: Z | H142: Z
G143: Z | H143: Z
G144: Z | H144: Z
G145: Z | H145: Z
G146: Z | H146: Z
G147: Z | H147: Z
G148: Z | H148: Z
G149: Z | H149: Z
G150: Z | H150: Z
G151: Z | H151: Z
G152: Z | H152: Z
G153: Z | H153: Z
G154: Z | H154: Z
G155: Z | H155: Z
G156: Z | H156: Z
G157: Z | H157: Z
G158: Z | H158: Z
G159: Z | H159: Z
G160: Z | H160: Z
G161: Z | H161: Z
G162: Z | H162: Z
G163: Z | H163: Z
G164: Z | H164: Z
G165: Z | H165: Z
G166: Z | H166: Z
G167: Z | H167: Z
G168: Z | H168: Z
G169: Z | H169: Z
G170: Z | H170: Z
G171: Z | H171: Z
G172: Z | H172: Z
G173: Z | H173: Z
G174: Z | H174: Z
G175: Z | H175: Z
G176: Z | H176: Z
G177: Z | H177: Z
G178: Z | H178: Z
G179: Z | H179: Z
G180: Z | H180: Z
G181: Z | H181: Z
G182: Z | H182: Z
G183: Z | H183: Z
G184: Z | H184: Z
G185: Z | H185: Z
G186: Z | H186: Z
G187: Z | H187: Z
G188: Z | H188: Z
G189: Z | H189: Z
G190: Z | H190: Z
G191: Z | H191: Z
G192: Z | H192: Z
G193: Z | H193: Z
G194: Z | H194: Z
G195: Z | H195: Z
G196: Z | H196: Z
G197: Z | H197: Z
G198: Z | H198: Z
G199: Z | H199: Z
G200: Z | H200: Z
G201: Z | H201: Z
G202: Z | H202: Z
G203: Z | H203: Z
G204: Z | H204: Z
G205: =IF(B205="","Z",IF(ISERROR((LEFT(TRIM(LEFT(IF(FIND(" ",TRIM(RIGHT(B205,LEN(B205)-FIND(" ",B205))))<4,TRIM(RIGHT(TRIM(RIGHT(B205,LEN(B205)-FIND(" ",B205))),LEN(TRIM(RIGHT(B205,LEN(B205)-FIND(" ",B205))))-FIND(" ",TRIM(RIGHT(B205,LEN(B205)-FIND(" ",B205)))))),TRIM(RIGHT(B205,LEN(B205)-FIND(" ",B205)))),FIND(" ",IF(FIND(" ",TRIM(RIGHT(B205,LEN(B205)-FIND(" ",B205))))<4,TRIM(RIGHT(TRIM(RIGHT(B205,LEN(B205)-FIND(" ",B205))),LEN(TRIM(RIGHT(B205,LEN(B205)-FIND(" ",B205))))-FIND(" ",TRIM(RIGHT(B205,LEN(B205)-FIND(" ",B205)))))),TRIM(RIGHT(B205,LEN(B205)-FIND(" ",B205))))))),LEN(TRIM(LEFT(IF(FIND(" ",TRIM(RIGHT(B205,LEN(B205)-FIND(" ",B205))))<4,TRIM(RIGHT(TRIM(RIGHT(B205,LEN(B205)-FIND(" ",B205))),LEN(TRIM(RIGHT(B205,LEN(B205)-FIND(" ",B205))))-FIND(" ",TRIM(RIGHT(B205,LEN(B205)-FIND(" ",B205)))))),TRIM(RIGHT(B205,LEN(B205)-FIND(" ",B205)))),FIND(" ",IF(FIND(" ",TRIM(RIGHT(B205,LEN(B205)-FIND(" ",B205))))<4,TRIM(RIGHT(TRIM(RIGHT(B205,LEN(B205)-FIND(" ",B205))),LEN(TRIM(RIGHT(B205,LEN(B205)-FIND(" ",B205))))-FIND(" ",TRIM(RIGHT(B205,LEN(B205)-FIND(" ",B205)))))),TRIM(RIGHT(B205,LEN(B205)-FIND(" ",B205))))))))-2))*1),TRIM(LEFT(IF(FIND(" ",TRIM(RIGHT(B205,LEN(B205)-FIND(" ",B205))))<4,TRIM(RIGHT(TRIM(RIGHT(B205,LEN(B205)-FIND(" ",B205))),LEN(TRIM(RIGHT(B205,LEN(B205)-FIND(" ",B205))))-FIND(" ",TRIM(RIGHT(B205,LEN(B205)-FIND(" ",B205)))))),TRIM(RIGHT(B205,LEN(B205)-FIND(" ",B205)))),FIND(" ",IF(FIND(" ",TRIM(RIGHT(B205,LEN(B205)-FIND(" ",B205))))<4,TRIM(RIGHT(TRIM(RIGHT(B205,LEN(B205)-FIND(" ",B205))),LEN(TRIM(RIGHT(B205,LEN(B205)-FIND(" ",B205))))-FIND(" ",TRIM(RIGHT(B205,LEN(B205)-FIND(" ",B205)))))),TRIM(RIGHT(B205,LEN(B205)-FIND(" ",B205))))))),(LEFT(TRIM(LEFT(IF(FIND(" ",TRIM(RIGHT(B205,LEN(B205)-FIND(" ",B205))))<4,TRIM(RIGHT(TRIM(RIGHT(B205,LEN(B205)-FIND(" ",B205))),LEN(TRIM(RIGHT(B205,LEN(B205)-FIND(" ",B205))))-FIND(" ",TRIM(RIGHT(B205,LEN(B205)-FIND(" ",B205)))))),TRIM(RIGHT(B205,LEN(B205)-FIND(" ",B205)))),FIND(" ",IF(FIND(" ",TRIM(RIGHT(B205,LEN(B205)-FIND(" ",B205))))<4,TRIM(RIGHT(TRIM(RIGHT(B205,LEN(B205)-FIND(" ",B205))),LEN(TRIM(RIGHT(B205,LEN(B205)-FIND(" ",B205))))-FIND(" ",TRIM(RIGHT(B205,LEN(B205)-FIND(" ",B205)))))),TRIM(RIGHT(B205,LEN(B205)-FIND(" ",B205))))))),LEN(TRIM(LEFT(IF(FIND(" ",TRIM(RIGHT(B205,LEN(B205)-FIND(" ",B205))))<4,TRIM(RIGHT(TRIM(RIGHT(B205,LEN(B205)-FIND(" ",B205))),LEN(TRIM(RIGHT(B205,LEN(B205)-FIND(" ",B205))))-FIND(" ",TRIM(RIGHT(B205,LEN(B205)-FIND(" ",B205)))))),TRIM(RIGHT(B205,LEN(B205)-FIND(" ",B205)))),FIND(" ",IF(FIND(" ",TRIM(RIGHT(B205,LEN(B205)-FIND(" ",B205))))<4,TRIM(RIGHT(TRIM(RIGHT(B205,LEN(B205)-FIND(" ",B205))),LEN(TRIM(RIGHT(B205,LEN(B205)-FIND(" ",B205))))-FIND(" ",TRIM(RIGHT(B205,LEN(B205)-FIND(" ",B205)))))),TRIM(RIGHT(B205,LEN(B205)-FIND(" ",B205))))))))-2))*1)) -> Z | H205: =IF(B205="","Z",1*(TRIM(LEFT(B205,FIND(" ",B205))))) -> Z
G206: Z | H206: Z
... 5 more rows

Sheet SWC-1
F2: Do not input or erase anything in Column F, Column I, or Column J
B6: Last Updated on 9/14/2017 10:47:56 AM
G8: INPUT STATUS HERE
B9: Public Notice of Sidewalk Café Applications
B10: Location | C10: Business | D10: Size | E10: Permit | F10: Application Status | G10: Status | H10: Date | I10: Sort 1 | J10: Sort 2 | K10: Inspector | L10: Issued | M10: Clear | N10: Issued on
B11: 1900 4th AVE | C11: Urban Yoga Spa | D11: 9' x 12' | E11: 352710 | F11: Comment Period thru 8/15/17 | G11: Comment Period thru | H11: 2017-08-15 | I11: =IF(B12="","Z",IF(ISERROR((LEFT(TRIM(LEFT(IF(FIND(" ",TRIM(RIGHT(B12,LEN(B12)-FIND(" ",B12))))<4,TRIM(RIGHT(TRIM(RIGHT(B12,LEN(B12)-FIND(" ",B12))),LEN(TRIM(RIGHT(B12,LEN(B12)-FIND(" ",B12))))-FIND(" ",TRIM(RIGHT(B12,LEN(B12)-FIND(" ",B12)))))),TRIM(RIGHT(B12,LEN(B12)-FIND(" ",B12)))),FIND(" ",IF(FIND(" ",TRIM(RIGHT(B12,LEN(B12)-FIND(" ",B12))))<4,TRIM(RIGHT(TRIM(RIGHT(B12,LEN(B12)-FIND(" ",B12))),LEN(TRIM(RIGHT(B12,LEN(B12)-FIND(" ",B12))))-FIND(" ",TRIM(RIGHT(B12,LEN(B12)-FIND(" ",B12)))))),TRIM(RIGHT(B12,LEN(B12)-FIND(" ",B12))))))),LEN(TRIM(LEFT(IF(FIND(" ",TRIM(RIGHT(B12,LEN(B12)-FIND(" ",B12))))<4,TRIM(RIGHT(TRIM(RIGHT(B12,LEN(B12)-FIND(" ",B12))),LEN(TRIM(RIGHT(B12,LEN(B12)-FIND(" ",B12))))-FIND(" ",TRIM(RIGHT(B12,LEN(B12)-FIND(" ",B12)))))),TRIM(RIGHT(B12,LEN(B12)-FIND(" ",B12)))),FIND(" ",IF(FIND(" ",TRIM(RIGHT(B12,LEN(B12)-FIND(" ",B12))))<4,TRIM(RIGHT(TRIM(RIGHT(B12,LEN(B12)-FIND(" ",B12))),LEN(TRIM(RIGHT(B12,LEN(B12)-FIND(" ",B12))))-FIND(" ",TRIM(RIGHT(B12,LEN(B12)-FIND(" ",B12)))))),TRIM(RIGHT(B12,LEN(B12)-FIND(" ",B12))))))))-2))*1),TRIM(LEFT(IF(FIND(" ",TRIM(RIGHT(B12,LEN(B12)-FIND(" ",B12))))<4,TRIM(RIGHT(TRIM(RIGHT(B12,LEN(B12)-FIND(" ",B12))),LEN(TRIM(RIGHT(B12,LEN(B12)-FIND(" ",B12))))-FIND(" ",TRIM(RIGHT(B12,LEN(B12)-FIND(" ",B12)))))),TRIM(RIGHT(B12,LEN(B12)-FIND(" ",B12)))),FIND(" ",IF(FIND(" ",TRIM(RIGHT(B12,LEN(B12)-FIND(" ",B12))))<4,TRIM(RIGHT(TRIM(RIGHT(B12,LEN(B12)-FIND(" ",B12))),LEN(TRIM(RIGHT(B12,LEN(B12)-FIND(" ",B12))))-FIND(" ",TRIM(RIGHT(B12,LEN(B12)-FIND(" ",B12)))))),TRIM(RIGHT(B12,LEN(B12)-FIND(" ",B12))))))),(LEFT(TRIM(LEFT(IF(FIND(" ",TRIM(RIGHT(B12,LEN(B12)-FIND(" ",B12))))<4,TRIM(RIGHT(TRIM(RIGHT(B12,LEN(B12)-FIND(" ",B12))),LEN(TRIM(RIGHT(B12,LEN(B12)-FIND(" ",B12))))-FIND(" ",TRIM(RIGHT(B12,LEN(B12)-FIND(" ",B12)))))),TRIM(RIGHT(B12,LEN(B12)-FIND(" ",B12)))),FIND(" ",IF(FIND(" ",TRIM(RIGHT(B12,LEN(B12)-FIND(" ",B12))))<4,TRIM(RIGHT(TRIM(RIGHT(B12,LEN(B12)-FIND(" ",B12))),LEN(TRIM(RIGHT(B12,LEN(B12)-FIND(" ",B12))))-FIND(" ",TRIM(RIGHT(B12,LEN(B12)-FIND(" ",B12)))))),TRIM(RIGHT(B12,LEN(B12)-FIND(" ",B12))))))),LEN(TRIM(LEFT(IF(FIND(" ",TRIM(RIGHT(B12,LEN(B12)-FIND(" ",B12))))<4,TRIM(RIGHT(TRIM(RIGHT(B12,LEN(B12)-FIND(" ",B12))),LEN(TRIM(RIGHT(B12,LEN(B12)-FIND(" ",B12))))-FIND(" ",TRIM(RIGHT(B12,LEN(B12)-FIND(" ",B12)))))),TRIM(RIGHT(B12,LEN(B12)-FIND(" ",B12)))),FIND(" ",IF(FIND(" ",TRIM(RIGHT(B12,LEN(B12)-FIND(" ",B12))))<4,TRIM(RIGHT(TRIM(RIGHT(B12,LEN(B12)-FIND(" ",B12))),LEN(TRIM(RIGHT(B12,LEN(B12)-FIND(" ",B12))))-FIND(" ",TRIM(RIGHT(B12,LEN(B12)-FIND(" ",B12)))))),TRIM(RIGHT(B12,LEN(B12)-FIND(" ",B12))))))))-2))*1)) -> 6 | J11: =IF(B12="","Z",1*(TRIM(LEFT(B12,FIND(" ",B12))))) -> 2131 | L11: =IF(B12="","",IF(N11="","N","Y")) -> N | M11: =IF(G11="Approved on",IF(L11="","",IF(L11="Y",IF(N11+14<TODAY(),"Y","N"),"N")),IF(G11="Denied on",IF(H11+14<TODAY(),"Y","N"),"")) -> 
B12: 2131 6th av | C12: Home Remedy | D12: 13' X 3' | E12: 306670 | F12: comment period thru 8/2/16 | G12: Comment Period thru | H12: 2016-08-02 | I12: =IF(B13="","Z",IF(ISERROR((LEFT(TRIM(LEFT(IF(FIND(" ",TRIM(RIGHT(B13,LEN(B13)-FIND(" ",B13))))<4,TRIM(RIGHT(TRIM(RIGHT(B13,LEN(B13)-FIND(" ",B13))),LEN(TRIM(RIGHT(B13,LEN(B13)-FIND(" ",B13))))-FIND(" ",TRIM(RIGHT(B13,LEN(B13)-FIND(" ",B13)))))),TRIM(RIGHT(B13,LEN(B13)-FIND(" ",B13)))),FIND(" ",IF(FIND(" ",TRIM(RIGHT(B13,LEN(B13)-FIND(" ",B13))))<4,TRIM(RIGHT(TRIM(RIGHT(B13,LEN(B13)-FIND(" ",B13))),LEN(TRIM(RIGHT(B13,LEN(B13)-FIND(" ",B13))))-FIND(" ",TRIM(RIGHT(B13,LEN(B13)-FIND(" ",B13)))))),TRIM(RIGHT(B13,LEN(B13)-FIND(" ",B13))))))),LEN(TRIM(LEFT(IF(FIND(" ",TRIM(RIGHT(B13,LEN(B13)-FIND(" ",B13))))<4,TRIM(RIGHT(TRIM(RIGHT(B13,LEN(B13)-FIND(" ",B13))),LEN(TRIM(RIGHT(B13,LEN(B13)-FIND(" ",B13))))-FIND(" ",TRIM(RIGHT(B13,LEN(B13)-FIND(" ",B13)))))),TRIM(RIGHT(B13,LEN(B13)-FIND(" ",B13)))),FIND(" ",IF(FIND(" ",TRIM(RIGHT(B13,LEN(B13)-FIND(" ",B13))))<4,TRIM(RIGHT(TRIM(RIGHT(B13,LEN(B13)-FIND(" ",B13))),LEN(TRIM(RIGHT(B13,LEN(B13)-FIND(" ",B13))))-FIND(" ",TRIM(RIGHT(B13,LEN(B13)-FIND(" ",B13)))))),TRIM(RIGHT(B13,LEN(B13)-FIND(" ",B13))))))))-2))*1),TRIM(LEFT(IF(FIND(" ",TRIM(RIGHT(B13,LEN(B13)-FIND(" ",B13))))<4,TRIM(RIGHT(TRIM(RIGHT(B13,LEN(B13)-FIND(" ",B13))),LEN(TRIM(RIGHT(B13,LEN(B13)-FIND(" ",B13))))-FIND(" ",TRIM(RIGHT(B13,LEN(B13)-FIND(" ",B13)))))),TRIM(RIGHT(B13,LEN(B13)-FIND(" ",B13)))),FIND(" ",IF(FIND(" ",TRIM(RIGHT(B13,LEN(B13)-FIND(" ",B13))))<4,TRIM(RIGHT(TRIM(RIGHT(B13,LEN(B13)-FIND(" ",B13))),LEN(TRIM(RIGHT(B13,LEN(B13)-FIND(" ",B13))))-FIND(" ",TRIM(RIGHT(B13,LEN(B13)-FIND(" ",B13)))))),TRIM(RIGHT(B13,LEN(B13)-FIND(" ",B13))))))),(LEFT(TRIM(LEFT(IF(FIND(" ",TRIM(RIGHT(B13,LEN(B13)-FIND(" ",B13))))<4,TRIM(RIGHT(TRIM(RIGHT(B13,LEN(B13)-FIND(" ",B13))),LEN(TRIM(RIGHT(B13,LEN(B13)-FIND(" ",B13))))-FIND(" ",TRIM(RIGHT(B13,LEN(B13)-FIND(" ",B13)))))),TRIM(RIGHT(B13,LEN(B13)-FIND(" ",B13)))),FIND(" ",IF(FIND(" ",TRIM(RIGHT(B13,LEN(B13)-FIND(" ",B13))))<4,TRIM(RIGHT(TRIM(RIGHT(B13,LEN(B13)-FIND(" ",B13))),LEN(TRIM(RIGHT(B13,LEN(B13)-FIND(" ",B13))))-FIND(" ",TRIM(RIGHT(B13,LEN(B13)-FIND(" ",B13)))))),TRIM(RIGHT(B13,LEN(B13)-FIND(" ",B13))))))),LEN(TRIM(LEFT(IF(FIND(" ",TRIM(RIGHT(B13,LEN(B13)-FIND(" ",B13))))<4,TRIM(RIGHT(TRIM(RIGHT(B13,LEN(B13)-FIND(" ",B13))),LEN(TRIM(RIGHT(B13,LEN(B13)-FIND(" ",B13))))-FIND(" ",TRIM(RIGHT(B13,LEN(B13)-FIND(" ",B13)))))),TRIM(RIGHT(B13,LEN(B13)-FIND(" ",B13)))),FIND(" ",IF(FIND(" ",TRIM(RIGHT(B13,LEN(B13)-FIND(" ",B13))))<4,TRIM(RIGHT(TRIM(RIGHT(B13,LEN(B13)-FIND(" ",B13))),LEN(TRIM(RIGHT(B13,LEN(B13)-FIND(" ",B13))))-FIND(" ",TRIM(RIGHT(B13,LEN(B13)-FIND(" ",B13)))))),TRIM(RIGHT(B13,LEN(B13)-FIND(" ",B13))))))))-2))*1)) -> 1 | J12: =IF(B13="","Z",1*(TRIM(LEFT(B13,FIND(" ",B13))))) -> 1521 | L12: =IF(B13="","",IF(N12="","N","Y")) -> N | M12: =IF(G12="Approved on",IF(L12="","",IF(L12="Y",IF(N12+14<TODAY(),"Y","N"),"N")),IF(G12="Denied on",IF(H12+14<TODAY(),"Y","N"),"")) -> 
B13: 1521 1st Ave | C13: El Borracho | D13: 7' X 30' X 12' | E13: 295302 | F13: =IF(G13="","",IF(H13="",G13,G13&" "&TEXT(H13,"m/d/yyyy"))) -> Approved on 3/15/2016 | G13: Approved on | H13: 2016-03-15 | I13: =IF(B13="","Z",IF(ISERROR((LEFT(TRIM(LEFT(IF(FIND(" ",TRIM(RIGHT(B13,LEN(B13)-FIND(" ",B13))))<4,TRIM(RIGHT(TRIM(RIGHT(B13,LEN(B13)-FIND(" ",B13))),LEN(TRIM(RIGHT(B13,LEN(B13)-FIND(" ",B13))))-FIND(" ",TRIM(RIGHT(B13,LEN(B13)-FIND(" ",B13)))))),TRIM(RIGHT(B13,LEN(B13)-FIND(" ",B13)))),FIND(" ",IF(FIND(" ",TRIM(RIGHT(B13,LEN(B13)-FIND(" ",B13))))<4,TRIM(RIGHT(TRIM(RIGHT(B13,LEN(B13)-FIND(" ",B13))),LEN(TRIM(RIGHT(B13,LEN(B13)-FIND(" ",B13))))-FIND(" ",TRIM(RIGHT(B13,LEN(B13)-FIND(" ",B13)))))),TRIM(RIGHT(B13,LEN(B13)-FIND(" ",B13))))))),LEN(TRIM(LEFT(IF(FIND(" ",TRIM(RIGHT(B13,LEN(B13)-FIND(" ",B13))))<4,TRIM(RIGHT(TRIM(RIGHT(B13,LEN(B13)-FIND(" ",B13))),LEN(TRIM(RIGHT(B13,LEN(B13)-FIND(" ",B13))))-FIND(" ",TRIM(RIGHT(B13,LEN(B13)-FIND(" ",B13)))))),TRIM(RIGHT(B13,LEN(B13)-FIND(" ",B13)))),FIND(" ",IF(FIND(" ",TRIM(RIGHT(B13,LEN(B13)-FIND(" ",B13))))<4,TRIM(RIGHT(TRIM(RIGHT(B13,LEN(B13)-FIND(" ",B13))),LEN(TRIM(RIGHT(B13,LEN(B13)-FIND(" ",B13))))-FIND(" ",TRIM(RIGHT(B13,LEN(B13)-FIND(" ",B13)))))),TRIM(RIGHT(B13,LEN(B13)-FIND(" ",B13))))))))-2))*1),TRIM(LEFT(IF(FIND(" ",TRIM(RIGHT(B13,LEN(B13)-FIND(" ",B13))))<4,TRIM(RIGHT(TRIM(RIGHT(B13,LEN(B13)-FIND(" ",B13))),LEN(TRIM(RIGHT(B13,LEN(B13)-FIND(" ",B13))))-FIND(" ",TRIM(RIGHT(B13,LEN(B13)-FIND(" ",B13)))))),TRIM(RIGHT(B13,LEN(B13)-FIND(" ",B13)))),FIND(" ",IF(FIND(" ",TRIM(RIGHT(B13,LEN(B13)-FIND(" ",B13))))<4,TRIM(RIGHT(TRIM(RIGHT(B13,LEN(B13)-FIND(" ",B13))),LEN(TRIM(RIGHT(B13,LEN(B13)-FIND(" ",B13))))-FIND(" ",TRIM(RIGHT(B13,LEN(B13)-FIND(" ",B13)))))),TRIM(RIGHT(B13,LEN(B13)-FIND(" ",B13))))))),(LEFT(TRIM(LEFT(IF(FIND(" ",TRIM(RIGHT(B13,LEN(B13)-FIND(" ",B13))))<4,TRIM(RIGHT(TRIM(RIGHT(B13,LEN(B13)-FIND(" ",B13))),LEN(TRIM(RIGHT(B13,LEN(B13)-FIND(" ",B13))))-FIND(" ",TRIM(RIGHT(B13,LEN(B13)-FIND(" ",B13)))))),TRIM(RIGHT(B13,LEN(B13)-FIND(" ",B13)))),FIND(" ",IF(FIND(" ",TRIM(RIGHT(B13,LEN(B13)-FIND(" ",B13))))<4,TRIM(RIGHT(TRIM(RIGHT(B13,LEN(B13)-FIND(" ",B13))),LEN(TRIM(RIGHT(B13,LEN(B13)-FIND(" ",B13))))-FIND(" ",TRIM(RIGHT(B13,LEN(B13)-FIND(" ",B13)))))),TRIM(RIGHT(B13,LEN(B13)-FIND(" ",B13))))))),LEN(TRIM(LEFT(IF(FIND(" ",TRIM(RIGHT(B13,LEN(B13)-FIND(" ",B13))))<4,TRIM(RIGHT(TRIM(RIGHT(B13,LEN(B13)-FIND(" ",B13))),LEN(TRIM(RIGHT(B13,LEN(B13)-FIND(" ",B13))))-FIND(" ",TRIM(RIGHT(B13,LEN(B13)-FIND(" ",B13)))))),TRIM(RIGHT(B13,LEN(B13)-FIND(" ",B13)))),FIND(" ",IF(FIND(" ",TRIM(RIGHT(B13,LEN(B13)-FIND(" ",B13))))<4,TRIM(RIGHT(TRIM(RIGHT(B13,LEN(B13)-FIND(" ",B13))),LEN(TRIM(RIGHT(B13,LEN(B13)-FIND(" ",B13))))-FIND(" ",TRIM(RIGHT(B13,LEN(B13)-FIND(" ",B13)))))),TRIM(RIGHT(B13,LEN(B13)-FIND(" ",B13))))))))-2))*1)) -> 1 | J13: =IF(B13="","Z",1*(TRIM(LEFT(B13,FIND(" ",B13))))) -> 1521 | L13: Y | M13: =IF(G13="Approved on",IF(L13="","",IF(L13="Y",IF(N13+14<TODAY(),"Y","N"),"N")),IF(G13="Denied on",IF(H13+14<TODAY(),"Y","N"),"")) -> Y | N13: 2016-03-17
B14: 2307 NW Market ST | C14: Sen Noodle Bar | D14: 6.75' x 17.25' | E14: 321872 | F14: Comment period thru 10/11/16 | G14: Comment Period thru | H14: 2016-10-11 | I14: =IF(B15="","Z",IF(ISERROR((LEFT(TRIM(LEFT(IF(FIND(" ",TRIM(RIGHT(B15,LEN(B15)-FIND(" ",B15))))<4,TRIM(RIGHT(TRIM(RIGHT(B15,LEN(B15)-FIND(" ",B15))),LEN(TRIM(RIGHT(B15,LEN(B15)-FIND(" ",B15))))-FIND(" ",TRIM(RIGHT(B15,LEN(B15)-FIND(" ",B15)))))),TRIM(RIGHT(B15,LEN(B15)-FIND(" ",B15)))),FIND(" ",IF(FIND(" ",TRIM(RIGHT(B15,LEN(B15)-FIND(" ",B15))))<4,TRIM(RIGHT(TRIM(RIGHT(B15,LEN(B15)-FIND(" ",B15))),LEN(TRIM(RIGHT(B15,LEN(B15)-FIND(" ",B15))))-FIND(" ",TRIM(RIGHT(B15,LEN(B15)-FIND(" ",B15)))))),TRIM(RIGHT(B15,LEN(B15)-FIND(" ",B15))))))),LEN(TRIM(LEFT(IF(FIND(" ",TRIM(RIGHT(B15,LEN(B15)-FIND(" ",B15))))<4,TRIM(RIGHT(TRIM(RIGHT(B15,LEN(B15)-FIND(" ",B15))),LEN(TRIM(RIGHT(B15,LEN(B15)-FIND(" ",B15))))-FIND(" ",TRIM(RIGHT(B15,LEN(B15)-FIND(" ",B15)))))),TRIM(RIGHT(B15,LEN(B15)-FIND(" ",B15)))),FIND(" ",IF(FIND(" ",TRIM(RIGHT(B15,LEN(B15)-FIND(" ",B15))))<4,TRIM(RIGHT(TRIM(RIGHT(B15,LEN(B15)-FIND(" ",B15))),LEN(TRIM(RIGHT(B15,LEN(B15)-FIND(" ",B15))))-FIND(" ",TRIM(RIGHT(B15,LEN(B15)-FIND(" ",B15)))))),TRIM(RIGHT(B15,LEN(B15)-FIND(" ",B15))))))))-2))*1),TRIM(LEFT(IF(FIND(" ",TRIM(RIGHT(B15,LEN(B15)-FIND(" ",B15))))<4,TRIM(RIGHT(TRIM(RIGHT(B15,LEN(B15)-FIND(" ",B15))),LEN(TRIM(RIGHT(B15,LEN(B15)-FIND(" ",B15))))-FIND(" ",TRIM(RIGHT(B15,LEN(B15)-FIND(" ",B15)))))),TRIM(RIGHT(B15,LEN(B15)-FIND(" ",B15)))),FIND(" ",IF(FIND(" ",TRIM(RIGHT(B15,LEN(B15)-FIND(" ",B15))))<4,TRIM(RIGHT(TRIM(RIGHT(B15,LEN(B15)-FIND(" ",B15))),LEN(TRIM(RIGHT(B15,LEN(B15)-FIND(" ",B15))))-FIND(" ",TRIM(RIGHT(B15,LEN(B15)-FIND(" ",B15)))))),TRIM(RIGHT(B15,LEN(B15)-FIND(" ",B15))))))),(LEFT(TRIM(LEFT(IF(FIND(" ",TRIM(RIGHT(B15,LEN(B15)-FIND(" ",B15))))<4,TRIM(RIGHT(TRIM(RIGHT(B15,LEN(B15)-FIND(" ",B15))),LEN(TRIM(RIGHT(B15,LEN(B15)-FIND(" ",B15))))-FIND(" ",TRIM(RIGHT(B15,LEN(B15)-FIND(" ",B15)))))),TRIM(RIGHT(B15,LEN(B15)-FIND(" ",B15)))),FIND(" ",IF(FIND(" ",TRIM(RIGHT(B15,LEN(B15)-FIND(" ",B15))))<4,TRIM(RIGHT(TRIM(RIGHT(B15,LEN(B15)-FIND(" ",B15))),LEN(TRIM(RIGHT(B15,LEN(B15)-FIND(" ",B15))))-FIND(" ",TRIM(RIGHT(B15,LEN(B15)-FIND(" ",B15)))))),TRIM(RIGHT(B15,LEN(B15)-FIND(" ",B15))))))),LEN(TRIM(LEFT(IF(FIND(" ",TRIM(RIGHT(B15,LEN(B15)-FIND(" ",B15))))<4,TRIM(RIGHT(TRIM(RIGHT(B15,LEN(B15)-FIND(" ",B15))),LEN(TRIM(RIGHT(B15,LEN(B15)-FIND(" ",B15))))-FIND(" ",TRIM(RIGHT(B15,LEN(B15)-FIND(" ",B15)))))),TRIM(RIGHT(B15,LEN(B15)-FIND(" ",B15)))),FIND(" ",IF(FIND(" ",TRIM(RIGHT(B15,LEN(B15)-FIND(" ",B15))))<4,TRIM(RIGHT(TRIM(RIGHT(B15,LEN(B15)-FIND(" ",B15))),LEN(TRIM(RIGHT(B15,LEN(B15)-FIND(" ",B15))))-FIND(" ",TRIM(RIGHT(B15,LEN(B15)-FIND(" ",B15)))))),TRIM(RIGHT(B15,LEN(B15)-FIND(" ",B15))))))))-2))*1)) -> 24 | J14: =IF(B15="","Z",1*(TRIM(LEFT(B15,FIND(" ",B15))))) -> 1190 | L14: =IF(B15="","",IF(N14="","N","Y")) -> N | M14: =IF(G14="Approved on",IF(L14="","",IF(L14="Y",IF(N14+14<TODAY(),"Y","N"),"N")),IF(G14="Denied on",IF(H14+14<TODAY(),"Y","N"),"")) -> 
B15: 1190 24th ave | C15: Feed Co | D15: 5'4" X 34' 8" | E15: 316344 | F15: comment period thru 9/29 | G15: Approved on | H15: 2016-10-25 | I15: =IF(B16="","Z",IF(ISERROR((LEFT(TRIM(LEFT(IF(FIND(" ",TRIM(RIGHT(B16,LEN(B16)-FIND(" ",B16))))<4,TRIM(RIGHT(TRIM(RIGHT(B16,LEN(B16)-FIND(" ",B16))),LEN(TRIM(RIGHT(B16,LEN(B16)-FIND(" ",B16))))-FIND(" ",TRIM(RIGHT(B16,LEN(B16)-FIND(" ",B16)))))),TRIM(RIGHT(B16,LEN(B16)-FIND(" ",B16)))),FIND(" ",IF(FIND(" ",TRIM(RIGHT(B16,LEN(B16)-FIND(" ",B16))))<4,TRIM(RIGHT(TRIM(RIGHT(B16,LEN(B16)-FIND(" ",B16))),LEN(TRIM(RIGHT(B16,LEN(B16)-FIND(" ",B16))))-FIND(" ",TRIM(RIGHT(B16,LEN(B16)-FIND(" ",B16)))))),TRIM(RIGHT(B16,LEN(B16)-FIND(" ",B16))))))),LEN(TRIM(LEFT(IF(FIND(" ",TRIM(RIGHT(B16,LEN(B16)-FIND(" ",B16))))<4,TRIM(RIGHT(TRIM(RIGHT(B16,LEN(B16)-FIND(" ",B16))),LEN(TRIM(RIGHT(B16,LEN(B16)-FIND(" ",B16))))-FIND(" ",TRIM(RIGHT(B16,LEN(B16)-FIND(" ",B16)))))),TRIM(RIGHT(B16,LEN(B16)-FIND(" ",B16)))),FIND(" ",IF(FIND(" ",TRIM(RIGHT(B16,LEN(B16)-FIND(" ",B16))))<4,TRIM(RIGHT(TRIM(RIGHT(B16,LEN(B16)-FIND(" ",B16))),LEN(TRIM(RIGHT(B16,LEN(B16)-FIND(" ",B16))))-FIND(" ",TRIM(RIGHT(B16,LEN(B16)-FIND(" ",B16)))))),TRIM(RIGHT(B16,LEN(B16)-FIND(" ",B16))))))))-2))*1),TRIM(LEFT(IF(FIND(" ",TRIM(RIGHT(B16,LEN(B16)-FIND(" ",B16))))<4,TRIM(RIGHT(TRIM(RIGHT(B16,LEN(B16)-FIND(" ",B16))),LEN(TRIM(RIGHT(B16,LEN(B16)-FIND(" ",B16))))-FIND(" ",TRIM(RIGHT(B16,LEN(B16)-FIND(" ",B16)))))),TRIM(RIGHT(B16,LEN(B16)-FIND(" ",B16)))),FIND(" ",IF(FIND(" ",TRIM(RIGHT(B16,LEN(B16)-FIND(" ",B16))))<4,TRIM(RIGHT(TRIM(RIGHT(B16,LEN(B16)-FIND(" ",B16))),LEN(TRIM(RIGHT(B16,LEN(B16)-FIND(" ",B16))))-FIND(" ",TRIM(RIGHT(B16,LEN(B16)-FIND(" ",B16)))))),TRIM(RIGHT(B16,LEN(B16)-FIND(" ",B16))))))),(LEFT(TRIM(LEFT(IF(FIND(" ",TRIM(RIGHT(B16,LEN(B16)-FIND(" ",B16))))<4,TRIM(RIGHT(TRIM(RIGHT(B16,LEN(B16)-FIND(" ",B16))),LEN(TRIM(RIGHT(B16,LEN(B16)-FIND(" ",B16))))-FIND(" ",TRIM(RIGHT(B16,LEN(B16)-FIND(" ",B16)))))),TRIM(RIGHT(B16,LEN(B16)-FIND(" ",B16)))),FIND(" ",IF(FIND(" ",TRIM(RIGHT(B16,LEN(B16)-FIND(" ",B16))))<4,TRIM(RIGHT(TRIM(RIGHT(B16,LEN(B16)-FIND(" ",B16))),LEN(TRIM(RIGHT(B16,LEN(B16)-FIND(" ",B16))))-FIND(" ",TRIM(RIGHT(B16,LEN(B16)-FIND(" ",B16)))))),TRIM(RIGHT(B16,LEN(B16)-FIND(" ",B16))))))),LEN(TRIM(LEFT(IF(FIND(" ",TRIM(RIGHT(B16,LEN(B16)-FIND(" ",B16))))<4,TRIM(RIGHT(TRIM(RIGHT(B16,LEN(B16)-FIND(" ",B16))),LEN(TRIM(RIGHT(B16,LEN(B16)-FIND(" ",B16))))-FIND(" ",TRIM(RIGHT(B16,LEN(B16)-FIND(" ",B16)))))),TRIM(RIGHT(B16,LEN(B16)-FIND(" ",B16)))),FIND(" ",IF(FIND(" ",TRIM(RIGHT(B16,LEN(B16)-FIND(" ",B16))))<4,TRIM(RIGHT(TRIM(RIGHT(B16,LEN(B16)-FIND(" ",B16))),LEN(TRIM(RIGHT(B16,LEN(B16)-FIND(" ",B16))))-FIND(" ",TRIM(RIGHT(B16,LEN(B16)-FIND(" ",B16)))))),TRIM(RIGHT(B16,LEN(B16)-FIND(" ",B16))))))))-2))*1)) -> 1 | J15: =IF(B16="","Z",1*(TRIM(LEFT(B16,FIND(" ",B16))))) -> 1525 | L15: Y | M15: =IF(G15="Approved on",IF(L15="","",IF(L15="Y",IF(N15+14<TODAY(),"Y","N"),"N")),IF(G15="Denied on",IF(H15+14<TODAY(),"Y","N"),"")) -> Y | N15: 2016-10-26
B16: 1525 1st Ave | C16: Old Stove Brewery | D16: 7' x 30' | E16: 288055 | F16: =IF(G16="","",IF(H16="",G16,G16&" "&TEXT(H16,"m/d/yyyy"))) -> Approved on 5/18/2016 | G16: Approved on | H16: 2016-05-18 | I16: =IF(B16="","Z",IF(ISERROR((LEFT(TRIM(LEFT(IF(FIND(" ",TRIM(RIGHT(B16,LEN(B16)-FIND(" ",B16))))<4,TRIM(RIGHT(TRIM(RIGHT(B16,LEN(B16)-FIND(" ",B16))),LEN(TRIM(RIGHT(B16,LEN(B16)-FIND(" ",B16))))-FIND(" ",TRIM(RIGHT(B16,LEN(B16)-FIND(" ",B16)))))),TRIM(RIGHT(B16,LEN(B16)-FIND(" ",B16)))),FIND(" ",IF(FIND(" ",TRIM(RIGHT(B16,LEN(B16)-FIND(" ",B16))))<4,TRIM(RIGHT(TRIM(RIGHT(B16,LEN(B16)-FIND(" ",B16))),LEN(TRIM(RIGHT(B16,LEN(B16)-FIND(" ",B16))))-FIND(" ",TRIM(RIGHT(B16,LEN(B16)-FIND(" ",B16)))))),TRIM(RIGHT(B16,LEN(B16)-FIND(" ",B16))))))),LEN(TRIM(LEFT(IF(FIND(" ",TRIM(RIGHT(B16,LEN(B16)-FIND(" ",B16))))<4,TRIM(RIGHT(TRIM(RIGHT(B16,LEN(B16)-FIND(" ",B16))),LEN(TRIM(RIGHT(B16,LEN(B16)-FIND(" ",B16))))-FIND(" ",TRIM(RIGHT(B16,LEN(B16)-FIND(" ",B16)))))),TRIM(RIGHT(B16,LEN(B16)-FIND(" ",B16)))),FIND(" ",IF(FIND(" ",TRIM(RIGHT(B16,LEN(B16)-FIND(" ",B16))))<4,TRIM(RIGHT(TRIM(RIGHT(B16,LEN(B16)-FIND(" ",B16))),LEN(TRIM(RIGHT(B16,LEN(B16)-FIND(" ",B16))))-FIND(" ",TRIM(RIGHT(B16,LEN(B16)-FIND(" ",B16)))))),TRIM(RIGHT(B16,LEN(B16)-FIND(" ",B16))))))))-2))*1),TRIM(LEFT(IF(FIND(" ",TRIM(RIGHT(B16,LEN(B16)-FIND(" ",B16))))<4,TRIM(RIGHT(TRIM(RIGHT(B16,LEN(B16)-FIND(" ",B16))),LEN(TRIM(RIGHT(B16,LEN(B16)-FIND(" ",B16))))-FIND(" ",TRIM(RIGHT(B16,LEN(B16)-FIND(" ",B16)))))),TRIM(RIGHT(B16,LEN(B16)-FIND(" ",B16)))),FIND(" ",IF(FIND(" ",TRIM(RIGHT(B16,LEN(B16)-FIND(" ",B16))))<4,TRIM(RIGHT(TRIM(RIGHT(B16,LEN(B16)-FIND(" ",B16))),LEN(TRIM(RIGHT(B16,LEN(B16)-FIND(" ",B16))))-FIND(" ",TRIM(RIGHT(B16,LEN(B16)-FIND(" ",B16)))))),TRIM(RIGHT(B16,LEN(B16)-FIND(" ",B16))))))),(LEFT(TRIM(LEFT(IF(FIND(" ",TRIM(RIGHT(B16,LEN(B16)-FIND(" ",B16))))<4,TRIM(RIGHT(TRIM(RIGHT(B16,LEN(B16)-FIND(" ",B16))),LEN(TRIM(RIGHT(B16,LEN(B16)-FIND(" ",B16))))-FIND(" ",TRIM(RIGHT(B16,LEN(B16)-FIND(" ",B16)))))),TRIM(RIGHT(B16,LEN(B16)-FIND(" ",B16)))),FIND(" ",IF(FIND(" ",TRIM(RIGHT(B16,LEN(B16)-FIND(" ",B16))))<4,TRIM(RIGHT(TRIM(RIGHT(B16,LEN(B16)-FIND(" ",B16))),LEN(TRIM(RIGHT(B16,LEN(B16)-FIND(" ",B16))))-FIND(" ",TRIM(RIGHT(B16,LEN(B16)-FIND(" ",B16)))))),TRIM(RIGHT(B16,LEN(B16)-FIND(" ",B16))))))),LEN(TRIM(LEFT(IF(FIND(" ",TRIM(RIGHT(B16,LEN(B16)-FIND(" ",B16))))<4,TRIM(RIGHT(TRIM(RIGHT(B16,LEN(B16)-FIND(" ",B16))),LEN(TRIM(RIGHT(B16,LEN(B16)-FIND(" ",B16))))-FIND(" ",TRIM(RIGHT(B16,LEN(B16)-FIND(" ",B16)))))),TRIM(RIGHT(B16,LEN(B16)-FIND(" ",B16)))),FIND(" ",IF(FIND(" ",TRIM(RIGHT(B16,LEN(B16)-FIND(" ",B16))))<4,TRIM(RIGHT(TRIM(RIGHT(B16,LEN(B16)-FIND(" ",B16))),LEN(TRIM(RIGHT(B16,LEN(B16)-FIND(" ",B16))))-FIND(" ",TRIM(RIGHT(B16,LEN(B16)-FIND(" ",B16)))))),TRIM(RIGHT(B16,LEN(B16)-FIND(" ",B16))))))))-2))*1)) -> 1 | J16: =IF(B16="","Z",1*(TRIM(LEFT(B16,FIND(" ",B16))))) -> 1525 | L16: Y | M16: =IF(G16="Approved on",IF(L16="","",IF(L16="Y",IF(N16+14<TODAY(),"Y","N"),"N")),IF(G16="Denied on",IF(H16+14<TODAY(),"Y","N"),"")) -> Y | N16: 2016-05-18
B17: 210 Occidental AVE S | C17: Cherry Street Coffee | D17: 6' 6" x 46' | E17: 349692 | F17: Comment period thru 7/11/17 | G17: Comment Period thru | H17: 2017-07-11 | I17: =IF(B18="","Z",IF(ISERROR((LEFT(TRIM(LEFT(IF(FIND(" ",TRIM(RIGHT(B18,LEN(B18)-FIND(" ",B18))))<4,TRIM(RIGHT(TRIM(RIGHT(B18,LEN(B18)-FIND(" ",B18))),LEN(TRIM(RIGHT(B18,LEN(B18)-FIND(" ",B18))))-FIND(" ",TRIM(RIGHT(B18,LEN(B18)-FIND(" ",B18)))))),TRIM(RIGHT(B18,LEN(B18)-FIND(" ",B18)))),FIND(" ",IF(FIND(" ",TRIM(RIGHT(B18,LEN(B18)-FIND(" ",B18))))<4,TRIM(RIGHT(TRIM(RIGHT(B18,LEN(B18)-FIND(" ",B18))),LEN(TRIM(RIGHT(B18,LEN(B18)-FIND(" ",B18))))-FIND(" ",TRIM(RIGHT(B18,LEN(B18)-FIND(" ",B18)))))),TRIM(RIGHT(B18,LEN(B18)-FIND(" ",B18))))))),LEN(TRIM(LEFT(IF(FIND(" ",TRIM(RIGHT(B18,LEN(B18)-FIND(" ",B18))))<4,TRIM(RIGHT(TRIM(RIGHT(B18,LEN(B18)-FIND(" ",B18))),LEN(TRIM(RIGHT(B18,LEN(B18)-FIND(" ",B18))))-FIND(" ",TRIM(RIGHT(B18,LEN(B18)-FIND(" ",B18)))))),TRIM(RIGHT(B18,LEN(B18)-FIND(" ",B18)))),FIND(" ",IF(FIND(" ",TRIM(RIGHT(B18,LEN(B18)-FIND(" ",B18))))<4,TRIM(RIGHT(TRIM(RIGHT(B18,LEN(B18)-FIND(" ",B18))),LEN(TRIM(RIGHT(B18,LEN(B18)-FIND(" ",B18))))-FIND(" ",TRIM(RIGHT(B18,LEN(B18)-FIND(" ",B18)))))),TRIM(RIGHT(B18,LEN(B18)-FIND(" ",B18))))))))-2))*1),TRIM(LEFT(IF(FIND(" ",TRIM(RIGHT(B18,LEN(B18)-FIND(" ",B18))))<4,TRIM(RIGHT(TRIM(RIGHT(B18,LEN(B18)-FIND(" ",B18))),LEN(TRIM(RIGHT(B18,LEN(B18)-FIND(" ",B18))))-FIND(" ",TRIM(RIGHT(B18,LEN(B18)-FIND(" ",B18)))))),TRIM(RIGHT(B18,LEN(B18)-FIND(" ",B18)))),FIND(" ",IF(FIND(" ",TRIM(RIGHT(B18,LEN(B18)-FIND(" ",B18))))<4,TRIM(RIGHT(TRIM(RIGHT(B18,LEN(B18)-FIND(" ",B18))),LEN(TRIM(RIGHT(B18,LEN(B18)-FIND(" ",B18))))-FIND(" ",TRIM(RIGHT(B18,LEN(B18)-FIND(" ",B18)))))),TRIM(RIGHT(B18,LEN(B18)-FIND(" ",B18))))))),(LEFT(TRIM(LEFT(IF(FIND(" ",TRIM(RIGHT(B18,LEN(B18)-FIND(" ",B18))))<4,TRIM(RIGHT(TRIM(RIGHT(B18,LEN(B18)-FIND(" ",B18))),LEN(TRIM(RIGHT(B18,LEN(B18)-FIND(" ",B18))))-FIND(" ",TRIM(RIGHT(B18,LEN(B18)-FIND(" ",B18)))))),TRIM(RIGHT(B18,LEN(B18)-FIND(" ",B18)))),FIND(" ",IF(FIND(" ",TRIM(RIGHT(B18,LEN(B18)-FIND(" ",B18))))<4,TRIM(RIGHT(TRIM(RIGHT(B18,LEN(B18)-FIND(" ",B18))),LEN(TRIM(RIGHT(B18,LEN(B18)-FIND(" ",B18))))-FIND(" ",TRIM(RIGHT(B18,LEN(B18)-FIND(" ",B18)))))),TRIM(RIGHT(B18,LEN(B18)-FIND(" ",B18))))))),LEN(TRIM(LEFT(IF(FIND(" ",TRIM(RIGHT(B18,LEN(B18)-FIND(" ",B18))))<4,TRIM(RIGHT(TRIM(RIGHT(B18,LEN(B18)-FIND(" ",B18))),LEN(TRIM(RIGHT(B18,LEN(B18)-FIND(" ",B18))))-FIND(" ",TRIM(RIGHT(B18,LEN(B18)-FIND(" ",B18)))))),TRIM(RIGHT(B18,LEN(B18)-FIND(" ",B18)))),FIND(" ",IF(FIND(" ",TRIM(RIGHT(B18,LEN(B18)-FIND(" ",B18))))<4,TRIM(RIGHT(TRIM(RIGHT(B18,LEN(B18)-FIND(" ",B18))),LEN(TRIM(RIGHT(B18,LEN(B18)-FIND(" ",B18))))-FIND(" ",TRIM(RIGHT(B18,LEN(B18)-FIND(" ",B18)))))),TRIM(RIGHT(B18,LEN(B18)-FIND(" ",B18))))))))-2))*1)) -> 1 | J17: =IF(B18="","Z",1*(TRIM(LEFT(B18,FIND(" ",B18))))) -> 1001 | L17: =IF(B18="","",IF(N17="","N","Y")) -> N | M17: =IF(G17="Approved on",IF(L17="","",IF(L17="Y",IF(N17+14<TODAY(),"Y","N"),"N")),IF(G17="Denied on",IF(H17+14<TODAY(),"Y","N"),"")) -> 
B18: 1001 1st ave | C18: Storyville Coffee | D18: 5'5" X 14'5" | E18: 305445 | F18: comment period thru 8/2/16 | G18: Comment Period thru | H18: 2016-08-02 | I18: =IF(B19="","Z",IF(ISERROR((LEFT(TRIM(LEFT(IF(FIND(" ",TRIM(RIGHT(B19,LEN(B19)-FIND(" ",B19))))<4,TRIM(RIGHT(TRIM(RIGHT(B19,LEN(B19)-FIND(" ",B19))),LEN(TRIM(RIGHT(B19,LEN(B19)-FIND(" ",B19))))-FIND(" ",TRIM(RIGHT(B19,LEN(B19)-FIND(" ",B19)))))),TRIM(RIGHT(B19,LEN(B19)-FIND(" ",B19)))),FIND(" ",IF(FIND(" ",TRIM(RIGHT(B19,LEN(B19)-FIND(" ",B19))))<4,TRIM(RIGHT(TRIM(RIGHT(B19,LEN(B19)-FIND(" ",B19))),LEN(TRIM(RIGHT(B19,LEN(B19)-FIND(" ",B19))))-FIND(" ",TRIM(RIGHT(B19,LEN(B19)-FIND(" ",B19)))))),TRIM(RIGHT(B19,LEN(B19)-FIND(" ",B19))))))),LEN(TRIM(LEFT(IF(FIND(" ",TRIM(RIGHT(B19,LEN(B19)-FIND(" ",B19))))<4,TRIM(RIGHT(TRIM(RIGHT(B19,LEN(B19)-FIND(" ",B19))),LEN(TRIM(RIGHT(B19,LEN(B19)-FIND(" ",B19))))-FIND(" ",TRIM(RIGHT(B19,LEN(B19)-FIND(" ",B19)))))),TRIM(RIGHT(B19,LEN(B19)-FIND(" ",B19)))),FIND(" ",IF(FIND(" ",TRIM(RIGHT(B19,LEN(B19)-FIND(" ",B19))))<4,TRIM(RIGHT(TRIM(RIGHT(B19,LEN(B19)-FIND(" ",B19))),LEN(TRIM(RIGHT(B19,LEN(B19)-FIND(" ",B19))))-FIND(" ",TRIM(RIGHT(B19,LEN(B19)-FIND(" ",B19)))))),TRIM(RIGHT(B19,LEN(B19)-FIND(" ",B19))))))))-2))*1),TRIM(LEFT(IF(FIND(" ",TRIM(RIGHT(B19,LEN(B19)-FIND(" ",B19))))<4,TRIM(RIGHT(TRIM(RIGHT(B19,LEN(B19)-FIND(" ",B19))),LEN(TRIM(RIGHT(B19,LEN(B19)-FIND(" ",B19))))-FIND(" ",TRIM(RIGHT(B19,LEN(B19)-FIND(" ",B19)))))),TRIM(RIGHT(B19,LEN(B19)-FIND(" ",B19)))),FIND(" ",IF(FIND(" ",TRIM(RIGHT(B19,LEN(B19)-FIND(" ",B19))))<4,TRIM(RIGHT(TRIM(RIGHT(B19,LEN(B19)-FIND(" ",B19))),LEN(TRIM(RIGHT(B19,LEN(B19)-FIND(" ",B19))))-FIND(" ",TRIM(RIGHT(B19,LEN(B19)-FIND(" ",B19)))))),TRIM(RIGHT(B19,LEN(B19)-FIND(" ",B19))))))),(LEFT(TRIM(LEFT(IF(FIND(" ",TRIM(RIGHT(B19,LEN(B19)-FIND(" ",B19))))<4,TRIM(RIGHT(TRIM(RIGHT(B19,LEN(B19)-FIND(" ",B19))),LEN(TRIM(RIGHT(B19,LEN(B19)-FIND(" ",B19))))-FIND(" ",TRIM(RIGHT(B19,LEN(B19)-FIND(" ",B19)))))),TRIM(RIGHT(B19,LEN(B19)-FIND(" ",B19)))),FIND(" ",IF(FIND(" ",TRIM(RIGHT(B19,LEN(B19)-FIND(" ",B19))))<4,TRIM(RIGHT(TRIM(RIGHT(B19,LEN(B19)-FIND(" ",B19))),LEN(TRIM(RIGHT(B19,LEN(B19)-FIND(" ",B19))))-FIND(" ",TRIM(RIGHT(B19,LEN(B19)-FIND(" ",B19)))))),TRIM(RIGHT(B19,LEN(B19)-FIND(" ",B19))))))),LEN(TRIM(LEFT(IF(FIND(" ",TRIM(RIGHT(B19,LEN(B19)-FIND(" ",B19))))<4,TRIM(RIGHT(TRIM(RIGHT(B19,LEN(B19)-FIND(" ",B19))),LEN(TRIM(RIGHT(B19,LEN(B19)-FIND(" ",B19))))-FIND(" ",TRIM(RIGHT(B19,LEN(B19)-FIND(" ",B19)))))),TRIM(RIGHT(B19,LEN(B19)-FIND(" ",B19)))),FIND(" ",IF(FIND(" ",TRIM(RIGHT(B19,LEN(B19)-FIND(" ",B19))))<4,TRIM(RIGHT(TRIM(RIGHT(B19,LEN(B19)-FIND(" ",B19))),LEN(TRIM(RIGHT(B19,LEN(B19)-FIND(" ",B19))))-FIND(" ",TRIM(RIGHT(B19,LEN(B19)-FIND(" ",B19)))))),TRIM(RIGHT(B19,LEN(B19)-FIND(" ",B19))))))))-2))*1)) -> Yesler | J18: =IF(B19="","Z",1*(TRIM(LEFT(B19,FIND(" ",B19))))) -> 99 | L18: =IF(B19="","",IF(N18="","N","Y")) -> N | M18: =IF(G18="Approved on",IF(L18="","",IF(L18="Y",IF(N18+14<TODAY(),"Y","N"),"N")),IF(G18="Denied on",IF(H18+14<TODAY(),"Y","N"),"")) -> 
B19: 99 Yesler Way | C19: Caffe D'arte | D19: 5' X 14 on 1st ave & 5'X 24' on Yesler | E19: 348601 | F19: Comment Period thru 7/11/17 | G19: Comment Period thru | H19: 2017-07-11 | I19: =IF(B20="","Z",IF(ISERROR((LEFT(TRIM(LEFT(IF(FIND(" ",TRIM(RIGHT(B20,LEN(B20)-FIND(" ",B20))))<4,TRIM(RIGHT(TRIM(RIGHT(B20,LEN(B20)-FIND(" ",B20))),LEN(TRIM(RIGHT(B20,LEN(B20)-FIND(" ",B20))))-FIND(" ",TRIM(RIGHT(B20,LEN(B20)-FIND(" ",B20)))))),TRIM(RIGHT(B20,LEN(B20)-FIND(" ",B20)))),FIND(" ",IF(FIND(" ",TRIM(RIGHT(B20,LEN(B20)-FIND(" ",B20))))<4,TRIM(RIGHT(TRIM(RIGHT(B20,LEN(B20)-FIND(" ",B20))),LEN(TRIM(RIGHT(B20,LEN(B20)-FIND(" ",B20))))-FIND(" ",TRIM(RIGHT(B20,LEN(B20)-FIND(" ",B20)))))),TRIM(RIGHT(B20,LEN(B20)-FIND(" ",B20))))))),LEN(TRIM(LEFT(IF(FIND(" ",TRIM(RIGHT(B20,LEN(B20)-FIND(" ",B20))))<4,TRIM(RIGHT(TRIM(RIGHT(B20,LEN(B20)-FIND(" ",B20))),LEN(TRIM(RIGHT(B20,LEN(B20)-FIND(" ",B20))))-FIND(" ",TRIM(RIGHT(B20,LEN(B20)-FIND(" ",B20)))))),TRIM(RIGHT(B20,LEN(B20)-FIND(" ",B20)))),FIND(" ",IF(FIND(" ",TRIM(RIGHT(B20,LEN(B20)-FIND(" ",B20))))<4,TRIM(RIGHT(TRIM(RIGHT(B20,LEN(B20)-FIND(" ",B20))),LEN(TRIM(RIGHT(B20,LEN(B20)-FIND(" ",B20))))-FIND(" ",TRIM(RIGHT(B20,LEN(B20)-FIND(" ",B20)))))),TRIM(RIGHT(B20,LEN(B20)-FIND(" ",B20))))))))-2))*1),TRIM(LEFT(IF(FIND(" ",TRIM(RIGHT(B20,LEN(B20)-FIND(" ",B20))))<4,TRIM(RIGHT(TRIM(RIGHT(B20,LEN(B20)-FIND(" ",B20))),LEN(TRIM(RIGHT(B20,LEN(B20)-FIND(" ",B20))))-FIND(" ",TRIM(RIGHT(B20,LEN(B20)-FIND(" ",B20)))))),TRIM(RIGHT(B20,LEN(B20)-FIND(" ",B20)))),FIND(" ",IF(FIND(" ",TRIM(RIGHT(B20,LEN(B20)-FIND(" ",B20))))<4,TRIM(RIGHT(TRIM(RIGHT(B20,LEN(B20)-FIND(" ",B20))),LEN(TRIM(RIGHT(B20,LEN(B20)-FIND(" ",B20))))-FIND(" ",TRIM(RIGHT(B20,LEN(B20)-FIND(" ",B20)))))),TRIM(RIGHT(B20,LEN(B20)-FIND(" ",B20))))))),(LEFT(TRIM(LEFT(IF(FIND(" ",TRIM(RIGHT(B20,LEN(B20)-FIND(" ",B20))))<4,TRIM(RIGHT(TRIM(RIGHT(B20,LEN(B20)-FIND(" ",B20))),LEN(TRIM(RIGHT(B20,LEN(B20)-FIND(" ",B20))))-FIND(" ",TRIM(RIGHT(B20,LEN(B20)-FIND(" ",B20)))))),TRIM(RIGHT(B20,LEN(B20)-FIND(" ",B20)))),FIND(" ",IF(FIND(" ",TRIM(RIGHT(B20,LEN(B20)-FIND(" ",B20))))<4,TRIM(RIGHT(TRIM(RIGHT(B20,LEN(B20)-FIND(" ",B20))),LEN(TRIM(RIGHT(B20,LEN(B20)-FIND(" ",B20))))-FIND(" ",TRIM(RIGHT(B20,LEN(B20)-FIND(" ",B20)))))),TRIM(RIGHT(B20,LEN(B20)-FIND(" ",B20))))))),LEN(TRIM(LEFT(IF(FIND(" ",TRIM(RIGHT(B20,LEN(B20)-FIND(" ",B20))))<4,TRIM(RIGHT(TRIM(RIGHT(B20,LEN(B20)-FIND(" ",B20))),LEN(TRIM(RIGHT(B20,LEN(B20)-FIND(" ",B20))))-FIND(" ",TRIM(RIGHT(B20,LEN(B20)-FIND(" ",B20)))))),TRIM(RIGHT(B20,LEN(B20)-FIND(" ",B20)))),FIND(" ",IF(FIND(" ",TRIM(RIGHT(B20,LEN(B20)-FIND(" ",B20))))<4,TRIM(RIGHT(TRIM(RIGHT(B20,LEN(B20)-FIND(" ",B20))),LEN(TRIM(RIGHT(B20,LEN(B20)-FIND(" ",B20))))-FIND(" ",TRIM(RIGHT(B20,LEN(B20)-FIND(" ",B20)))))),TRIM(RIGHT(B20,LEN(B20)-FIND(" ",B20))))))))-2))*1)) -> Broadway | J19: =IF(B20="","Z",1*(TRIM(LEFT(B20,FIND(" ",B20))))) -> 300 | L19: =IF(B20="","",IF(N19="","N","Y")) -> N | M19: =IF(G19="Approved on",IF(L19="","",IF(L19="Y",IF(N19+14<TODAY(),"Y","N"),"N")),IF(G19="Denied on",IF(H19+14<TODAY(),"Y","N"),"")) -> 
B20: 300 Broadway E | C20: Julia's on Broadway | D20: Proposed dimensions: 8' x 7.5' & 13' x 7.5' | E20: 307720 | F20: =IF(G20="","",IF(H20="",G20,G20&" "&TEXT(H20,"m/d/yyyy"))) -> Approved on 9/2/2016 | G20: Approved on | H20: 2016-09-02 | I20: =IF(B21="","Z",IF(ISERROR((LEFT(TRIM(LEFT(IF(FIND(" ",TRIM(RIGHT(B21,LEN(B21)-FIND(" ",B21))))<4,TRIM(RIGHT(TRIM(RIGHT(B21,LEN(B21)-FIND(" ",B21))),LEN(TRIM(RIGHT(B21,LEN(B21)-FIND(" ",B21))))-FIND(" ",TRIM(RIGHT(B21,LEN(B21)-FIND(" ",B21)))))),TRIM(RIGHT(B21,LEN(B21)-FIND(" ",B21)))),FIND(" ",IF(FIND(" ",TRIM(RIGHT(B21,LEN(B21)-FIND(" ",B21))))<4,TRIM(RIGHT(TRIM(RIGHT(B21,LEN(B21)-FIND(" ",B21))),LEN(TRIM(RIGHT(B21,LEN(B21)-FIND(" ",B21))))-FIND(" ",TRIM(RIGHT(B21,LEN(B21)-FIND(" ",B21)))))),TRIM(RIGHT(B21,LEN(B21)-FIND(" ",B21))))))),LEN(TRIM(LEFT(IF(FIND(" ",TRIM(RIGHT(B21,LEN(B21)-FIND(" ",B21))))<4,TRIM(RIGHT(TRIM(RIGHT(B21,LEN(B21)-FIND(" ",B21))),LEN(TRIM(RIGHT(B21,LEN(B21)-FIND(" ",B21))))-FIND(" ",TRIM(RIGHT(B21,LEN(B21)-FIND(" ",B21)))))),TRIM(RIGHT(B21,LEN(B21)-FIND(" ",B21)))),FIND(" ",IF(FIND(" ",TRIM(RIGHT(B21,LEN(B21)-FIND(" ",B21))))<4,TRIM(RIGHT(TRIM(RIGHT(B21,LEN(B21)-FIND(" ",B21))),LEN(TRIM(RIGHT(B21,LEN(B21)-FIND(" ",B21))))-FIND(" ",TRIM(RIGHT(B21,LEN(B21)-FIND(" ",B21)))))),TRIM(RIGHT(B21,LEN(B21)-FIND(" ",B21))))))))-2))*1),TRIM(LEFT(IF(FIND(" ",TRIM(RIGHT(B21,LEN(B21)-FIND(" ",B21))))<4,TRIM(RIGHT(TRIM(RIGHT(B21,LEN(B21)-FIND(" ",B21))),LEN(TRIM(RIGHT(B21,LEN(B21)-FIND(" ",B21))))-FIND(" ",TRIM(RIGHT(B21,LEN(B21)-FIND(" ",B21)))))),TRIM(RIGHT(B21,LEN(B21)-FIND(" ",B21)))),FIND(" ",IF(FIND(" ",TRIM(RIGHT(B21,LEN(B21)-FIND(" ",B21))))<4,TRIM(RIGHT(TRIM(RIGHT(B21,LEN(B21)-FIND(" ",B21))),LEN(TRIM(RIGHT(B21,LEN(B21)-FIND(" ",B21))))-FIND(" ",TRIM(RIGHT(B21,LEN(B21)-FIND(" ",B21)))))),TRIM(RIGHT(B21,LEN(B21)-FIND(" ",B21))))))),(LEFT(TRIM(LEFT(IF(FIND(" ",TRIM(RIGHT(B21,LEN(B21)-FIND(" ",B21))))<4,TRIM(RIGHT(TRIM(RIGHT(B21,LEN(B21)-FIND(" ",B21))),LEN(TRIM(RIGHT(B21,LEN(B21)-FIND(" ",B21))))-FIND(" ",TRIM(RIGHT(B21,LEN(B21)-FIND(" ",B21)))))),TRIM(RIGHT(B21,LEN(B21)-FIND(" ",B21)))),FIND(" ",IF(FIND(" ",TRIM(RIGHT(B21,LEN(B21)-FIND(" ",B21))))<4,TRIM(RIGHT(TRIM(RIGHT(B21,LEN(B21)-FIND(" ",B21))),LEN(TRIM(RIGHT(B21,LEN(B21)-FIND(" ",B21))))-FIND(" ",TRIM(RIGHT(B21,LEN(B21)-FIND(" ",B21)))))),TRIM(RIGHT(B21,LEN(B21)-FIND(" ",B21))))))),LEN(TRIM(LEFT(IF(FIND(" ",TRIM(RIGHT(B21,LEN(B21)-FIND(" ",B21))))<4,TRIM(RIGHT(TRIM(RIGHT(B21,LEN(B21)-FIND(" ",B21))),LEN(TRIM(RIGHT(B21,LEN(B21)-FIND(" ",B21))))-FIND(" ",TRIM(RIGHT(B21,LEN(B21)-FIND(" ",B21)))))),TRIM(RIGHT(B21,LEN(B21)-FIND(" ",B21)))),FIND(" ",IF(FIND(" ",TRIM(RIGHT(B21,LEN(B21)-FIND(" ",B21))))<4,TRIM(RIGHT(TRIM(RIGHT(B21,LEN(B21)-FIND(" ",B21))),LEN(TRIM(RIGHT(B21,LEN(B21)-FIND(" ",B21))))-FIND(" ",TRIM(RIGHT(B21,LEN(B21)-FIND(" ",B21)))))),TRIM(RIGHT(B21,LEN(B21)-FIND(" ",B21))))))))-2))*1)) -> 1 | J20: =IF(B21="","Z",1*(TRIM(LEFT(B21,FIND(" ",B21))))) -> 1012 | L20: Y | M20: =IF(G20="Approved on",IF(L20="","",IF(L20="Y",IF(N20+14<TODAY(),"Y","N"),"N")),IF(G20="Denied on",IF(H20+14<TODAY(),"Y","N"),"")) -> Y | N20: 2016-09-02
B21: 1012 1st AVE | C21: Cone & Steiner | D21: 6' x 30' | E21: 345567 | F21: Comment period thru 6/8/17 | G21: Comment Period thru | H21: 2017-06-08 | I21: =IF(B22="","Z",IF(ISERROR((LEFT(TRIM(LEFT(IF(FIND(" ",TRIM(RIGHT(B22,LEN(B22)-FIND(" ",B22))))<4,TRIM(RIGHT(TRIM(RIGHT(B22,LEN(B22)-FIND(" ",B22))),LEN(TRIM(RIGHT(B22,LEN(B22)-FIND(" ",B22))))-FIND(" ",TRIM(RIGHT(B22,LEN(B22)-FIND(" ",B22)))))),TRIM(RIGHT(B22,LEN(B22)-FIND(" ",B22)))),FIND(" ",IF(FIND(" ",TRIM(RIGHT(B22,LEN(B22)-FIND(" ",B22))))<4,TRIM(RIGHT(TRIM(RIGHT(B22,LEN(B22)-FIND(" ",B22))),LEN(TRIM(RIGHT(B22,LEN(B22)-FIND(" ",B22))))-FIND(" ",TRIM(RIGHT(B22,LEN(B22)-FIND(" ",B22)))))),TRIM(RIGHT(B22,LEN(B22)-FIND(" ",B22))))))),LEN(TRIM(LEFT(IF(FIND(" ",TRIM(RIGHT(B22,LEN(B22)-FIND(" ",B22))))<4,TRIM(RIGHT(TRIM(RIGHT(B22,LEN(B22)-FIND(" ",B22))),LEN(TRIM(RIGHT(B22,LEN(B22)-FIND(" ",B22))))-FIND(" ",TRIM(RIGHT(B22,LEN(B22)-FIND(" ",B22)))))),TRIM(RIGHT(B22,LEN(B22)-FIND(" ",B22)))),FIND(" ",IF(FIND(" ",TRIM(RIGHT(B22,LEN(B22)-FIND(" ",B22))))<4,TRIM(RIGHT(TRIM(RIGHT(B22,LEN(B22)-FIND(" ",B22))),LEN(TRIM(RIGHT(B22,LEN(B22)-FIND(" ",B22))))-FIND(" ",TRIM(RIGHT(B22,LEN(B22)-FIND(" ",B22)))))),TRIM(RIGHT(B22,LEN(B22)-FIND(" ",B22))))))))-2))*1),TRIM(LEFT(IF(FIND(" ",TRIM(RIGHT(B22,LEN(B22)-FIND(" ",B22))))<4,TRIM(RIGHT(TRIM(RIGHT(B22,LEN(B22)-FIND(" ",B22))),LEN(TRIM(RIGHT(B22,LEN(B22)-FIND(" ",B22))))-FIND(" ",TRIM(RIGHT(B22,LEN(B22)-FIND(" ",B22)))))),TRIM(RIGHT(B22,LEN(B22)-FIND(" ",B22)))),FIND(" ",IF(FIND(" ",TRIM(RIGHT(B22,LEN(B22)-FIND(" ",B22))))<4,TRIM(RIGHT(TRIM(RIGHT(B22,LEN(B22)-FIND(" ",B22))),LEN(TRIM(RIGHT(B22,LEN(B22)-FIND(" ",B22))))-FIND(" ",TRIM(RIGHT(B22,LEN(B22)-FIND(" ",B22)))))),TRIM(RIGHT(B22,LEN(B22)-FIND(" ",B22))))))),(LEFT(TRIM(LEFT(IF(FIND(" ",TRIM(RIGHT(B22,LEN(B22)-FIND(" ",B22))))<4,TRIM(RIGHT(TRIM(RIGHT(B22,LEN(B22)-FIND(" ",B22))),LEN(TRIM(RIGHT(B22,LEN(B22)-FIND(" ",B22))))-FIND(" ",TRIM(RIGHT(B22,LEN(B22)-FIND(" ",B22)))))),TRIM(RIGHT(B22,LEN(B22)-FIND(" ",B22)))),FIND(" ",IF(FIND(" ",TRIM(RIGHT(B22,LEN(B22)-FIND(" ",B22))))<4,TRIM(RIGHT(TRIM(RIGHT(B22,LEN(B22)-FIND(" ",B22))),LEN(TRIM(RIGHT(B22,LEN(B22)-FIND(" ",B22))))-FIND(" ",TRIM(RIGHT(B22,LEN(B22)-FIND(" ",B22)))))),TRIM(RIGHT(B22,LEN(B22)-FIND(" ",B22))))))),LEN(TRIM(LEFT(IF(FIND(" ",TRIM(RIGHT(B22,LEN(B22)-FIND(" ",B22))))<4,TRIM(RIGHT(TRIM(RIGHT(B22,LEN(B22)-FIND(" ",B22))),LEN(TRIM(RIGHT(B22,LEN(B22)-FIND(" ",B22))))-FIND(" ",TRIM(RIGHT(B22,LEN(B22)-FIND(" ",B22)))))),TRIM(RIGHT(B22,LEN(B22)-FIND(" ",B22)))),FIND(" ",IF(FIND(" ",TRIM(RIGHT(B22,LEN(B22)-FIND(" ",B22))))<4,TRIM(RIGHT(TRIM(RIGHT(B22,LEN(B22)-FIND(" ",B22))),LEN(TRIM(RIGHT(B22,LEN(B22)-FIND(" ",B22))))-FIND(" ",TRIM(RIGHT(B22,LEN(B22)-FIND(" ",B22)))))),TRIM(RIGHT(B22,LEN(B22)-FIND(" ",B22))))))))-2))*1)) -> Nickerson | J21: =IF(B22="","Z",1*(TRIM(LEFT(B22,FIND(" ",B22))))) -> 15 | L21: =IF(B22="","",IF(N21="","N","Y")) -> N | M21: =IF(G21="Approved on",IF(L21="","",IF(L21="Y",IF(N21+14<TODAY(),"Y","N"),"N")),IF(G21="Denied on",IF(H21+14<TODAY(),"Y","N"),"")) -> 
B22: 15 Nickerson ST | C22: Byen Backeri | D22: 6' X 19' 8" | E22: 316709 | F22: comment period thru 9/17/16 | G22: Approved on | H22: 2015-09-30 | I22: =IF(B23="","Z",IF(ISERROR((LEFT(TRIM(LEFT(IF(FIND(" ",TRIM(RIGHT(B23,LEN(B23)-FIND(" ",B23))))<4,TRIM(RIGHT(TRIM(RIGHT(B23,LEN(B23)-FIND(" ",B23))),LEN(TRIM(RIGHT(B23,LEN(B23)-FIND(" ",B23))))-FIND(" ",TRIM(RIGHT(B23,LEN(B23)-FIND(" ",B23)))))),TRIM(RIGHT(B23,LEN(B23)-FIND(" ",B23)))),FIND(" ",IF(FIND(" ",TRIM(RIGHT(B23,LEN(B23)-FIND(" ",B23))))<4,TRIM(RIGHT(TRIM(RIGHT(B23,LEN(B23)-FIND(" ",B23))),LEN(TRIM(RIGHT(B23,LEN(B23)-FIND(" ",B23))))-FIND(" ",TRIM(RIGHT(B23,LEN(B23)-FIND(" ",B23)))))),TRIM(RIGHT(B23,LEN(B23)-FIND(" ",B23))))))),LEN(TRIM(LEFT(IF(FIND(" ",TRIM(RIGHT(B23,LEN(B23)-FIND(" ",B23))))<4,TRIM(RIGHT(TRIM(RIGHT(B23,LEN(B23)-FIND(" ",B23))),LEN(TRIM(RIGHT(B23,LEN(B23)-FIND(" ",B23))))-FIND(" ",TRIM(RIGHT(B23,LEN(B23)-FIND(" ",B23)))))),TRIM(RIGHT(B23,LEN(B23)-FIND(" ",B23)))),FIND(" ",IF(FIND(" ",TRIM(RIGHT(B23,LEN(B23)-FIND(" ",B23))))<4,TRIM(RIGHT(TRIM(RIGHT(B23,LEN(B23)-FIND(" ",B23))),LEN(TRIM(RIGHT(B23,LEN(B23)-FIND(" ",B23))))-FIND(" ",TRIM(RIGHT(B23,LEN(B23)-FIND(" ",B23)))))),TRIM(RIGHT(B23,LEN(B23)-FIND(" ",B23))))))))-2))*1),TRIM(LEFT(IF(FIND(" ",TRIM(RIGHT(B23,LEN(B23)-FIND(" ",B23))))<4,TRIM(RIGHT(TRIM(RIGHT(B23,LEN(B23)-FIND(" ",B23))),LEN(TRIM(RIGHT(B23,LEN(B23)-FIND(" ",B23))))-FIND(" ",TRIM(RIGHT(B23,LEN(B23)-FIND(" ",B23)))))),TRIM(RIGHT(B23,LEN(B23)-FIND(" ",B23)))),FIND(" ",IF(FIND(" ",TRIM(RIGHT(B23,LEN(B23)-FIND(" ",B23))))<4,TRIM(RIGHT(TRIM(RIGHT(B23,LEN(B23)-FIND(" ",B23))),LEN(TRIM(RIGHT(B23,LEN(B23)-FIND(" ",B23))))-FIND(" ",TRIM(RIGHT(B23,LEN(B23)-FIND(" ",B23)))))),TRIM(RIGHT(B23,LEN(B23)-FIND(" ",B23))))))),(LEFT(TRIM(LEFT(IF(FIND(" ",TRIM(RIGHT(B23,LEN(B23)-FIND(" ",B23))))<4,TRIM(RIGHT(TRIM(RIGHT(B23,LEN(B23)-FIND(" ",B23))),LEN(TRIM(RIGHT(B23,LEN(B23)-FIND(" ",B23))))-FIND(" ",TRIM(RIGHT(B23,LEN(B23)-FIND(" ",B23)))))),TRIM(RIGHT(B23,LEN(B23)-FIND(" ",B23)))),FIND(" ",IF(FIND(" ",TRIM(RIGHT(B23,LEN(B23)-FIND(" ",B23))))<4,TRIM(RIGHT(TRIM(RIGHT(B23,LEN(B23)-FIND(" ",B23))),LEN(TRIM(RIGHT(B23,LEN(B23)-FIND(" ",B23))))-FIND(" ",TRIM(RIGHT(B23,LEN(B23)-FIND(" ",B23)))))),TRIM(RIGHT(B23,LEN(B23)-FIND(" ",B23))))))),LEN(TRIM(LEFT(IF(FIND(" ",TRIM(RIGHT(B23,LEN(B23)-FIND(" ",B23))))<4,TRIM(RIGHT(TRIM(RIGHT(B23,LEN(B23)-FIND(" ",B23))),LEN(TRIM(RIGHT(B23,LEN(B23)-FIND(" ",B23))))-FIND(" ",TRIM(RIGHT(B23,LEN(B23)-FIND(" ",B23)))))),TRIM(RIGHT(B23,LEN(B23)-FIND(" ",B23)))),FIND(" ",IF(FIND(" ",TRIM(RIGHT(B23,LEN(B23)-FIND(" ",B23))))<4,TRIM(RIGHT(TRIM(RIGHT(B23,LEN(B23)-FIND(" ",B23))),LEN(TRIM(RIGHT(B23,LEN(B23)-FIND(" ",B23))))-FIND(" ",TRIM(RIGHT(B23,LEN(B23)-FIND(" ",B23)))))),TRIM(RIGHT(B23,LEN(B23)-FIND(" ",B23))))))))-2))*1)) -> Rainier | J22: =IF(B23="","Z",1*(TRIM(LEFT(B23,FIND(" ",B23))))) -> 4901 | L22: Y | M22: =IF(G22="Approved on",IF(L22="","",IF(L22="Y",IF(N22+14<TODAY(),"Y","N"),"N")),IF(G22="Denied on",IF(H22+14<TODAY(),"Y","N"),"")) -> Y | N22: 2016-10-06
B23: 4901 Rainier AVE S | C23: Pagliacci | D23: 3'6" x 33' | E23: 340431 | F23: Comment period thru 4/27/17 | G23: Approved on | H23: 2017-05-03 | I23: =IF(B24="","Z",IF(ISERROR((LEFT(TRIM(LEFT(IF(FIND(" ",TRIM(RIGHT(B24,LEN(B24)-FIND(" ",B24))))<4,TRIM(RIGHT(TRIM(RIGHT(B24,LEN(B24)-FIND(" ",B24))),LEN(TRIM(RIGHT(B24,LEN(B24)-FIND(" ",B24))))-FIND(" ",TRIM(RIGHT(B24,LEN(B24)-FIND(" ",B24)))))),TRIM(RIGHT(B24,LEN(B24)-FIND(" ",B24)))),FIND(" ",IF(FIND(" ",TRIM(RIGHT(B24,LEN(B24)-FIND(" ",B24))))<4,TRIM(RIGHT(TRIM(RIGHT(B24,LEN(B24)-FIND(" ",B24))),LEN(TRIM(RIGHT(B24,LEN(B24)-FIND(" ",B24))))-FIND(" ",TRIM(RIGHT(B24,LEN(B24)-FIND(" ",B24)))))),TRIM(RIGHT(B24,LEN(B24)-FIND(" ",B24))))))),LEN(TRIM(LEFT(IF(FIND(" ",TRIM(RIGHT(B24,LEN(B24)-FIND(" ",B24))))<4,TRIM(RIGHT(TRIM(RIGHT(B24,LEN(B24)-FIND(" ",B24))),LEN(TRIM(RIGHT(B24,LEN(B24)-FIND(" ",B24))))-FIND(" ",TRIM(RIGHT(B24,LEN(B24)-FIND(" ",B24)))))),TRIM(RIGHT(B24,LEN(B24)-FIND(" ",B24)))),FIND(" ",IF(FIND(" ",TRIM(RIGHT(B24,LEN(B24)-FIND(" ",B24))))<4,TRIM(RIGHT(TRIM(RIGHT(B24,LEN(B24)-FIND(" ",B24))),LEN(TRIM(RIGHT(B24,LEN(B24)-FIND(" ",B24))))-FIND(" ",TRIM(RIGHT(B24,LEN(B24)-FIND(" ",B24)))))),TRIM(RIGHT(B24,LEN(B24)-FIND(" ",B24))))))))-2))*1),TRIM(LEFT(IF(FIND(" ",TRIM(RIGHT(B24,LEN(B24)-FIND(" ",B24))))<4,TRIM(RIGHT(TRIM(RIGHT(B24,LEN(B24)-FIND(" ",B24))),LEN(TRIM(RIGHT(B24,LEN(B24)-FIND(" ",B24))))-FIND(" ",TRIM(RIGHT(B24,LEN(B24)-FIND(" ",B24)))))),TRIM(RIGHT(B24,LEN(B24)-FIND(" ",B24)))),FIND(" ",IF(FIND(" ",TRIM(RIGHT(B24,LEN(B24)-FIND(" ",B24))))<4,TRIM(RIGHT(TRIM(RIGHT(B24,LEN(B24)-FIND(" ",B24))),LEN(TRIM(RIGHT(B24,LEN(B24)-FIND(" ",B24))))-FIND(" ",TRIM(RIGHT(B24,LEN(B24)-FIND(" ",B24)))))),TRIM(RIGHT(B24,LEN(B24)-FIND(" ",B24))))))),(LEFT(TRIM(LEFT(IF(FIND(" ",TRIM(RIGHT(B24,LEN(B24)-FIND(" ",B24))))<4,TRIM(RIGHT(TRIM(RIGHT(B24,LEN(B24)-FIND(" ",B24))),LEN(TRIM(RIGHT(B24,LEN(B24)-FIND(" ",B24))))-FIND(" ",TRIM(RIGHT(B24,LEN(B24)-FIND(" ",B24)))))),TRIM(RIGHT(B24,LEN(B24)-FIND(" ",B24)))),FIND(" ",IF(FIND(" ",TRIM(RIGHT(B24,LEN(B24)-FIND(" ",B24))))<4,TRIM(RIGHT(TRIM(RIGHT(B24,LEN(B24)-FIND(" ",B24))),LEN(TRIM(RIGHT(B24,LEN(B24)-FIND(" ",B24))))-FIND(" ",TRIM(RIGHT(B24,LEN(B24)-FIND(" ",B24)))))),TRIM(RIGHT(B24,LEN(B24)-FIND(" ",B24))))))),LEN(TRIM(LEFT(IF(FIND(" ",TRIM(RIGHT(B24,LEN(B24)-FIND(" ",B24))))<4,TRIM(RIGHT(TRIM(RIGHT(B24,LEN(B24)-FIND(" ",B24))),LEN(TRIM(RIGHT(B24,LEN(B24)-FIND(" ",B24))))-FIND(" ",TRIM(RIGHT(B24,LEN(B24)-FIND(" ",B24)))))),TRIM(RIGHT(B24,LEN(B24)-FIND(" ",B24)))),FIND(" ",IF(FIND(" ",TRIM(RIGHT(B24,LEN(B24)-FIND(" ",B24))))<4,TRIM(RIGHT(TRIM(RIGHT(B24,LEN(B24)-FIND(" ",B24))),LEN(TRIM(RIGHT(B24,LEN(B24)-FIND(" ",B24))))-FIND(" ",TRIM(RIGHT(B24,LEN(B24)-FIND(" ",B24)))))),TRIM(RIGHT(B24,LEN(B24)-FIND(" ",B24))))))))-2))*1)) -> 1 | J23: =IF(B24="","Z",1*(TRIM(LEFT(B24,FIND(" ",B24))))) -> 2400 | L23: =IF(B24="","",IF(N23="","N","Y")) -> Y | M23: =IF(G23="Approved on",IF(L23="","",IF(L23="Y",IF(N23+14<TODAY(),"Y","N"),"N")),IF(G23="Denied on",IF(H23+14<TODAY(),"Y","N"),"")) -> Y | N23: 2017-05-05
B24: 2400 1st Ave | C24: Absinthe | D24: 38.5' x 10.5' | E24: 308725 | F24: =IF(G24="","",IF(H24="",G24,G24&" "&TEXT(H24,"m/d/yyyy"))) -> Approved on 3/14/2017 | G24: Approved on | H24: 2017-03-14 | I24: =IF(B25="","Z",IF(ISERROR((LEFT(TRIM(LEFT(IF(FIND(" ",TRIM(RIGHT(B25,LEN(B25)-FIND(" ",B25))))<4,TRIM(RIGHT(TRIM(RIGHT(B25,LEN(B25)-FIND(" ",B25))),LEN(TRIM(RIGHT(B25,LEN(B25)-FIND(" ",B25))))-FIND(" ",TRIM(RIGHT(B25,LEN(B25)-FIND(" ",B25)))))),TRIM(RIGHT(B25,LEN(B25)-FIND(" ",B25)))),FIND(" ",IF(FIND(" ",TRIM(RIGHT(B25,LEN(B25)-FIND(" ",B25))))<4,TRIM(RIGHT(TRIM(RIGHT(B25,LEN(B25)-FIND(" ",B25))),LEN(TRIM(RIGHT(B25,LEN(B25)-FIND(" ",B25))))-FIND(" ",TRIM(RIGHT(B25,LEN(B25)-FIND(" ",B25)))))),TRIM(RIGHT(B25,LEN(B25)-FIND(" ",B25))))))),LEN(TRIM(LEFT(IF(FIND(" ",TRIM(RIGHT(B25,LEN(B25)-FIND(" ",B25))))<4,TRIM(RIGHT(TRIM(RIGHT(B25,LEN(B25)-FIND(" ",B25))),LEN(TRIM(RIGHT(B25,LEN(B25)-FIND(" ",B25))))-FIND(" ",TRIM(RIGHT(B25,LEN(B25)-FIND(" ",B25)))))),TRIM(RIGHT(B25,LEN(B25)-FIND(" ",B25)))),FIND(" ",IF(FIND(" ",TRIM(RIGHT(B25,LEN(B25)-FIND(" ",B25))))<4,TRIM(RIGHT(TRIM(RIGHT(B25,LEN(B25)-FIND(" ",B25))),LEN(TRIM(RIGHT(B25,LEN(B25)-FIND(" ",B25))))-FIND(" ",TRIM(RIGHT(B25,LEN(B25)-FIND(" ",B25)))))),TRIM(RIGHT(B25,LEN(B25)-FIND(" ",B25))))))))-2))*1),TRIM(LEFT(IF(FIND(" ",TRIM(RIGHT(B25,LEN(B25)-FIND(" ",B25))))<4,TRIM(RIGHT(TRIM(RIGHT(B25,LEN(B25)-FIND(" ",B25))),LEN(TRIM(RIGHT(B25,LEN(B25)-FIND(" ",B25))))-FIND(" ",TRIM(RIGHT(B25,LEN(B25)-FIND(" ",B25)))))),TRIM(RIGHT(B25,LEN(B25)-FIND(" ",B25)))),FIND(" ",IF(FIND(" ",TRIM(RIGHT(B25,LEN(B25)-FIND(" ",B25))))<4,TRIM(RIGHT(TRIM(RIGHT(B25,LEN(B25)-FIND(" ",B25))),LEN(TRIM(RIGHT(B25,LEN(B25)-FIND(" ",B25))))-FIND(" ",TRIM(RIGHT(B25,LEN(B25)-FIND(" ",B25)))))),TRIM(RIGHT(B25,LEN(B25)-FIND(" ",B25))))))),(LEFT(TRIM(LEFT(IF(FIND(" ",TRIM(RIGHT(B25,LEN(B25)-FIND(" ",B25))))<4,TRIM(RIGHT(TRIM(RIGHT(B25,LEN(B25)-FIND(" ",B25))),LEN(TRIM(RIGHT(B25,LEN(B25)-FIND(" ",B25))))-FIND(" ",TRIM(RIGHT(B25,LEN(B25)-FIND(" ",B25)))))),TRIM(RIGHT(B25,LEN(B25)-FIND(" ",B25)))),FIND(" ",IF(FIND(" ",TRIM(RIGHT(B25,LEN(B25)-FIND(" ",B25))))<4,TRIM(RIGHT(TRIM(RIGHT(B25,LEN(B25)-FIND(" ",B25))),LEN(TRIM(RIGHT(B25,LEN(B25)-FIND(" ",B25))))-FIND(" ",TRIM(RIGHT(B25,LEN(B25)-FIND(" ",B25)))))),TRIM(RIGHT(B25,LEN(B25)-FIND(" ",B25))))))),LEN(TRIM(LEFT(IF(FIND(" ",TRIM(RIGHT(B25,LEN(B25)-FIND(" ",B25))))<4,TRIM(RIGHT(TRIM(RIGHT(B25,LEN(B25)-FIND(" ",B25))),LEN(TRIM(RIGHT(B25,LEN(B25)-FIND(" ",B25))))-FIND(" ",TRIM(RIGHT(B25,LEN(B25)-FIND(" ",B25)))))),TRIM(RIGHT(B25,LEN(B25)-FIND(" ",B25)))),FIND(" ",IF(FIND(" ",TRIM(RIGHT(B25,LEN(B25)-FIND(" ",B25))))<4,TRIM(RIGHT(TRIM(RIGHT(B25,LEN(B25)-FIND(" ",B25))),LEN(TRIM(RIGHT(B25,LEN(B25)-FIND(" ",B25))))-FIND(" ",TRIM(RIGHT(B25,LEN(B25)-FIND(" ",B25)))))),TRIM(RIGHT(B25,LEN(B25)-FIND(" ",B25))))))))-2))*1)) -> Western | J24: =IF(B25="","Z",1*(TRIM(LEFT(B25,FIND(" ",B25))))) -> 1427 | L24: =IF(B25="","",IF(N24="","N","Y")) -> Y | M24: =IF(G24="Approved on",IF(L24="","",IF(L24="Y",IF(N24+14<TODAY(),"Y","N"),"N")),IF(G24="Denied on",IF(H24+14<TODAY(),"Y","N"),"")) -> Y | N24: 2017-03-16
B25: 1427 Western AVE | C25: Seattle Beer Co. | D25: 8' x 8' | E25: 321075 | F25: Comment period thru 11/15/16 | G25: Approved on | H25: 2017-02-23 | I25: =IF(B26="","Z",IF(ISERROR((LEFT(TRIM(LEFT(IF(FIND(" ",TRIM(RIGHT(B26,LEN(B26)-FIND(" ",B26))))<4,TRIM(RIGHT(TRIM(RIGHT(B26,LEN(B26)-FIND(" ",B26))),LEN(TRIM(RIGHT(B26,LEN(B26)-FIND(" ",B26))))-FIND(" ",TRIM(RIGHT(B26,LEN(B26)-FIND(" ",B26)))))),TRIM(RIGHT(B26,LEN(B26)-FIND(" ",B26)))),FIND(" ",IF(FIND(" ",TRIM(RIGHT(B26,LEN(B26)-FIND(" ",B26))))<4,TRIM(RIGHT(TRIM(RIGHT(B26,LEN(B26)-FIND(" ",B26))),LEN(TRIM(RIGHT(B26,LEN(B26)-FIND(" ",B26))))-FIND(" ",TRIM(RIGHT(B26,LEN(B26)-FIND(" ",B26)))))),TRIM(RIGHT(B26,LEN(B26)-FIND(" ",B26))))))),LEN(TRIM(LEFT(IF(FIND(" ",TRIM(RIGHT(B26,LEN(B26)-FIND(" ",B26))))<4,TRIM(RIGHT(TRIM(RIGHT(B26,LEN(B26)-FIND(" ",B26))),LEN(TRIM(RIGHT(B26,LEN(B26)-FIND(" ",B26))))-FIND(" ",TRIM(RIGHT(B26,LEN(B26)-FIND(" ",B26)))))),TRIM(RIGHT(B26,LEN(B26)-FIND(" ",B26)))),FIND(" ",IF(FIND(" ",TRIM(RIGHT(B26,LEN(B26)-FIND(" ",B26))))<4,TRIM(RIGHT(TRIM(RIGHT(B26,LEN(B26)-FIND(" ",B26))),LEN(TRIM(RIGHT(B26,LEN(B26)-FIND(" ",B26))))-FIND(" ",TRIM(RIGHT(B26,LEN(B26)-FIND(" ",B26)))))),TRIM(RIGHT(B26,LEN(B26)-FIND(" ",B26))))))))-2))*1),TRIM(LEFT(IF(FIND(" ",TRIM(RIGHT(B26,LEN(B26)-FIND(" ",B26))))<4,TRIM(RIGHT(TRIM(RIGHT(B26,LEN(B26)-FIND(" ",B26))),LEN(TRIM(RIGHT(B26,LEN(B26)-FIND(" ",B26))))-FIND(" ",TRIM(RIGHT(B26,LEN(B26)-FIND(" ",B26)))))),TRIM(RIGHT(B26,LEN(B26)-FIND(" ",B26)))),FIND(" ",IF(FIND(" ",TRIM(RIGHT(B26,LEN(B26)-FIND(" ",B26))))<4,TRIM(RIGHT(TRIM(RIGHT(B26,LEN(B26)-FIND(" ",B26))),LEN(TRIM(RIGHT(B26,LEN(B26)-FIND(" ",B26))))-FIND(" ",TRIM(RIGHT(B26,LEN(B26)-FIND(" ",B26)))))),TRIM(RIGHT(B26,LEN(B26)-FIND(" ",B26))))))),(LEFT(TRIM(LEFT(IF(FIND(" ",TRIM(RIGHT(B26,LEN(B26)-FIND(" ",B26))))<4,TRIM(RIGHT(TRIM(RIGHT(B26,LEN(B26)-FIND(" ",B26))),LEN(TRIM(RIGHT(B26,LEN(B26)-FIND(" ",B26))))-FIND(" ",TRIM(RIGHT(B26,LEN(B26)-FIND(" ",B26)))))),TRIM(RIGHT(B26,LEN(B26)-FIND(" ",B26)))),FIND(" ",IF(FIND(" ",TRIM(RIGHT(B26,LEN(B26)-FIND(" ",B26))))<4,TRIM(RIGHT(TRIM(RIGHT(B26,LEN(B26)-FIND(" ",B26))),LEN(TRIM(RIGHT(B26,LEN(B26)-FIND(" ",B26))))-FIND(" ",TRIM(RIGHT(B26,LEN(B26)-FIND(" ",B26)))))),TRIM(RIGHT(B26,LEN(B26)-FIND(" ",B26))))))),LEN(TRIM(LEFT(IF(FIND(" ",TRIM(RIGHT(B26,LEN(B26)-FIND(" ",B26))))<4,TRIM(RIGHT(TRIM(RIGHT(B26,LEN(B26)-FIND(" ",B26))),LEN(TRIM(RIGHT(B26,LEN(B26)-FIND(" ",B26))))-FIND(" ",TRIM(RIGHT(B26,LEN(B26)-FIND(" ",B26)))))),TRIM(RIGHT(B26,LEN(B26)-FIND(" ",B26)))),FIND(" ",IF(FIND(" ",TRIM(RIGHT(B26,LEN(B26)-FIND(" ",B26))))<4,TRIM(RIGHT(TRIM(RIGHT(B26,LEN(B26)-FIND(" ",B26))),LEN(TRIM(RIGHT(B26,LEN(B26)-FIND(" ",B26))))-FIND(" ",TRIM(RIGHT(B26,LEN(B26)-FIND(" ",B26)))))),TRIM(RIGHT(B26,LEN(B26)-FIND(" ",B26))))))))-2))*1)) -> Market | J25: =IF(B26="","Z",1*(TRIM(LEFT(B26,FIND(" ",B26))))) -> 2320 | L25: =IF(B26="","",IF(N25="","N","Y")) -> Y | M25: =IF(G25="Approved on",IF(L25="","",IF(L25="Y",IF(N25+14<TODAY(),"Y","N"),"N")),IF(G25="Denied on",IF(H25+14<TODAY(),"Y","N"),"")) -> Y | N25: 2017-03-16
B26: 2320 NW Market St | C26: La Isla | D26: 6'-1'x38' | E26: 344884 | F26: Comment period thru 5/16/20167 | I26: =IF(B27="","Z",IF(ISERROR((LEFT(TRIM(LEFT(IF(FIND(" ",TRIM(RIGHT(B27,LEN(B27)-FIND(" ",B27))))<4,TRIM(RIGHT(TRIM(RIGHT(B27,LEN(B27)-FIND(" ",B27))),LEN(TRIM(RIGHT(B27,LEN(B27)-FIND(" ",B27))))-FIND(" ",TRIM(RIGHT(B27,LEN(B27)-FIND(" ",B27)))))),TRIM(RIGHT(B27,LEN(B27)-FIND(" ",B27)))),FIND(" ",IF(FIND(" ",TRIM(RIGHT(B27,LEN(B27)-FIND(" ",B27))))<4,TRIM(RIGHT(TRIM(RIGHT(B27,LEN(B27)-FIND(" ",B27))),LEN(TRIM(RIGHT(B27,LEN(B27)-FIND(" ",B27))))-FIND(" ",TRIM(RIGHT(B27,LEN(B27)-FIND(" ",B27)))))),TRIM(RIGHT(B27,LEN(B27)-FIND(" ",B27))))))),LEN(TRIM(LEFT(IF(FIND(" ",TRIM(RIGHT(B27,LEN(B27)-FIND(" ",B27))))<4,TRIM(RIGHT(TRIM(RIGHT(B27,LEN(B27)-FIND(" ",B27))),LEN(TRIM(RIGHT(B27,LEN(B27)-FIND(" ",B27))))-FIND(" ",TRIM(RIGHT(B27,LEN(B27)-FIND(" ",B27)))))),TRIM(RIGHT(B27,LEN(B27)-FIND(" ",B27)))),FIND(" ",IF(FIND(" ",TRIM(RIGHT(B27,LEN(B27)-FIND(" ",B27))))<4,TRIM(RIGHT(TRIM(RIGHT(B27,LEN(B27)-FIND(" ",B27))),LEN(TRIM(RIGHT(B27,LEN(B27)-FIND(" ",B27))))-FIND(" ",TRIM(RIGHT(B27,LEN(B27)-FIND(" ",B27)))))),TRIM(RIGHT(B27,LEN(B27)-FIND(" ",B27))))))))-2))*1),TRIM(LEFT(IF(FIND(" ",TRIM(RIGHT(B27,LEN(B27)-FIND(" ",B27))))<4,TRIM(RIGHT(TRIM(RIGHT(B27,LEN(B27)-FIND(" ",B27))),LEN(TRIM(RIGHT(B27,LEN(B27)-FIND(" ",B27))))-FIND(" ",TRIM(RIGHT(B27,LEN(B27)-FIND(" ",B27)))))),TRIM(RIGHT(B27,LEN(B27)-FIND(" ",B27)))),FIND(" ",IF(FIND(" ",TRIM(RIGHT(B27,LEN(B27)-FIND(" ",B27))))<4,TRIM(RIGHT(TRIM(RIGHT(B27,LEN(B27)-FIND(" ",B27))),LEN(TRIM(RIGHT(B27,LEN(B27)-FIND(" ",B27))))-FIND(" ",TRIM(RIGHT(B27,LEN(B27)-FIND(" ",B27)))))),TRIM(RIGHT(B27,LEN(B27)-FIND(" ",B27))))))),(LEFT(TRIM(LEFT(IF(FIND(" ",TRIM(RIGHT(B27,LEN(B27)-FIND(" ",B27))))<4,TRIM(RIGHT(TRIM(RIGHT(B27,LEN(B27)-FIND(" ",B27))),LEN(TRIM(RIGHT(B27,LEN(B27)-FIND(" ",B27))))-FIND(" ",TRIM(RIGHT(B27,LEN(B27)-FIND(" ",B27)))))),TRIM(RIGHT(B27,LEN(B27)-FIND(" ",B27)))),FIND(" ",IF(FIND(" ",TRIM(RIGHT(B27,LEN(B27)-FIND(" ",B27))))<4,TRIM(RIGHT(TRIM(RIGHT(B27,LEN(B27)-FIND(" ",B27))),LEN(TRIM(RIGHT(B27,LEN(B27)-FIND(" ",B27))))-FIND(" ",TRIM(RIGHT(B27,LEN(B27)-FIND(" ",B27)))))),TRIM(RIGHT(B27,LEN(B27)-FIND(" ",B27))))))),LEN(TRIM(LEFT(IF(FIND(" ",TRIM(RIGHT(B27,LEN(B27)-FIND(" ",B27))))<4,TRIM(RIGHT(TRIM(RIGHT(B27,LEN(B27)-FIND(" ",B27))),LEN(TRIM(RIGHT(B27,LEN(B27)-FIND(" ",B27))))-FIND(" ",TRIM(RIGHT(B27,LEN(B27)-FIND(" ",B27)))))),TRIM(RIGHT(B27,LEN(B27)-FIND(" ",B27)))),FIND(" ",IF(FIND(" ",TRIM(RIGHT(B27,LEN(B27)-FIND(" ",B27))))<4,TRIM(RIGHT(TRIM(RIGHT(B27,LEN(B27)-FIND(" ",B27))),LEN(TRIM(RIGHT(B27,LEN(B27)-FIND(" ",B27))))-FIND(" ",TRIM(RIGHT(B27,LEN(B27)-FIND(" ",B27)))))),TRIM(RIGHT(B27,LEN(B27)-FIND(" ",B27))))))))-2))*1)) -> Avalon | J26: =IF(B27="","Z",1*(TRIM(LEFT(B27,FIND(" ",B27))))) -> 2940 | L26: =IF(B27="","",IF(N26="","N","Y")) -> N | M26: =IF(G26="Approved on",IF(L26="","",IF(L26="Y",IF(N26+14<TODAY(),"Y","N"),"N")),IF(G26="Denied on",IF(H26+14<TODAY(),"Y","N"),"")) -> 
B27: 2940 SW Avalon Way | C27: Duos | D27: 74' x 5.5' | E27: 300954 | F27: =IF(G27="","",IF(H27="",G27,G27&" "&TEXT(H27,"m/d/yyyy"))) -> Comment Period thru 8/10/2016 | G27: Comment Period thru | H27: 2016-08-10 | I27: =IF(B28="","Z",IF(ISERROR((LEFT(TRIM(LEFT(IF(FIND(" ",TRIM(RIGHT(B28,LEN(B28)-FIND(" ",B28))))<4,TRIM(RIGHT(TRIM(RIGHT(B28,LEN(B28)-FIND(" ",B28))),LEN(TRIM(RIGHT(B28,LEN(B28)-FIND(" ",B28))))-FIND(" ",TRIM(RIGHT(B28,LEN(B28)-FIND(" ",B28)))))),TRIM(RIGHT(B28,LEN(B28)-FIND(" ",B28)))),FIND(" ",IF(FIND(" ",TRIM(RIGHT(B28,LEN(B28)-FIND(" ",B28))))<4,TRIM(RIGHT(TRIM(RIGHT(B28,LEN(B28)-FIND(" ",B28))),LEN(TRIM(RIGHT(B28,LEN(B28)-FIND(" ",B28))))-FIND(" ",TRIM(RIGHT(B28,LEN(B28)-FIND(" ",B28)))))),TRIM(RIGHT(B28,LEN(B28)-FIND(" ",B28))))))),LEN(TRIM(LEFT(IF(FIND(" ",TRIM(RIGHT(B28,LEN(B28)-FIND(" ",B28))))<4,TRIM(RIGHT(TRIM(RIGHT(B28,LEN(B28)-FIND(" ",B28))),LEN(TRIM(RIGHT(B28,LEN(B28)-FIND(" ",B28))))-FIND(" ",TRIM(RIGHT(B28,LEN(B28)-FIND(" ",B28)))))),TRIM(RIGHT(B28,LEN(B28)-FIND(" ",B28)))),FIND(" ",IF(FIND(" ",TRIM(RIGHT(B28,LEN(B28)-FIND(" ",B28))))<4,TRIM(RIGHT(TRIM(RIGHT(B28,LEN(B28)-FIND(" ",B28))),LEN(TRIM(RIGHT(B28,LEN(B28)-FIND(" ",B28))))-FIND(" ",TRIM(RIGHT(B28,LEN(B28)-FIND(" ",B28)))))),TRIM(RIGHT(B28,LEN(B28)-FIND(" ",B28))))))))-2))*1),TRIM(LEFT(IF(FIND(" ",TRIM(RIGHT(B28,LEN(B28)-FIND(" ",B28))))<4,TRIM(RIGHT(TRIM(RIGHT(B28,LEN(B28)-FIND(" ",B28))),LEN(TRIM(RIGHT(B28,LEN(B28)-FIND(" ",B28))))-FIND(" ",TRIM(RIGHT(B28,LEN(B28)-FIND(" ",B28)))))),TRIM(RIGHT(B28,LEN(B28)-FIND(" ",B28)))),FIND(" ",IF(FIND(" ",TRIM(RIGHT(B28,LEN(B28)-FIND(" ",B28))))<4,TRIM(RIGHT(TRIM(RIGHT(B28,LEN(B28)-FIND(" ",B28))),LEN(TRIM(RIGHT(B28,LEN(B28)-FIND(" ",B28))))-FIND(" ",TRIM(RIGHT(B28,LEN(B28)-FIND(" ",B28)))))),TRIM(RIGHT(B28,LEN(B28)-FIND(" ",B28))))))),(LEFT(TRIM(LEFT(IF(FIND(" ",TRIM(RIGHT(B28,LEN(B28)-FIND(" ",B28))))<4,TRIM(RIGHT(TRIM(RIGHT(B28,LEN(B28)-FIND(" ",B28))),LEN(TRIM(RIGHT(B28,LEN(B28)-FIND(" ",B28))))-FIND(" ",TRIM(RIGHT(B28,LEN(B28)-FIND(" ",B28)))))),TRIM(RIGHT(B28,LEN(B28)-FIND(" ",B28)))),FIND(" ",IF(FIND(" ",TRIM(RIGHT(B28,LEN(B28)-FIND(" ",B28))))<4,TRIM(RIGHT(TRIM(RIGHT(B28,LEN(B28)-FIND(" ",B28))),LEN(TRIM(RIGHT(B28,LEN(B28)-FIND(" ",B28))))-FIND(" ",TRIM(RIGHT(B28,LEN(B28)-FIND(" ",B28)))))),TRIM(RIGHT(B28,LEN(B28)-FIND(" ",B28))))))),LEN(TRIM(LEFT(IF(FIND(" ",TRIM(RIGHT(B28,LEN(B28)-FIND(" ",B28))))<4,TRIM(RIGHT(TRIM(RIGHT(B28,LEN(B28)-FIND(" ",B28))),LEN(TRIM(RIGHT(B28,LEN(B28)-FIND(" ",B28))))-FIND(" ",TRIM(RIGHT(B28,LEN(B28)-FIND(" ",B28)))))),TRIM(RIGHT(B28,LEN(B28)-FIND(" ",B28)))),FIND(" ",IF(FIND(" ",TRIM(RIGHT(B28,LEN(B28)-FIND(" ",B28))))<4,TRIM(RIGHT(TRIM(RIGHT(B28,LEN(B28)-FIND(" ",B28))),LEN(TRIM(RIGHT(B28,LEN(B28)-FIND(" ",B28))))-FIND(" ",TRIM(RIGHT(B28,LEN(B28)-FIND(" ",B28)))))),TRIM(RIGHT(B28,LEN(B28)-FIND(" ",B28))))))))-2))*1)) -> 6 | J27: =IF(B28="","Z",1*(TRIM(LEFT(B28,FIND(" ",B28))))) -> 2020 | L27: =IF(B28="","",IF(N27="","N","Y")) -> N | M27: =IF(G27="Approved on",IF(L27="","",IF(L27="Y",IF(N27+14<TODAY(),"Y","N"),"N")),IF(G27="Denied on",IF(H27+14<TODAY(),"Y","N"),"")) -> 
B28: 2020 6th Ave | C28: Mamnoon Street | D28: 4' x 44' | E28: 290867 | F28: =IF(G28="","",IF(H28="",G28,G28&" "&TEXT(H28,"m/d/yyyy"))) -> Approved on 2/22/2016 | G28: Approved on | H28: 2016-02-22 | I28: =IF(B28="","Z",IF(ISERROR((LEFT(TRIM(LEFT(IF(FIND(" ",TRIM(RIGHT(B28,LEN(B28)-FIND(" ",B28))))<4,TRIM(RIGHT(TRIM(RIGHT(B28,LEN(B28)-FIND(" ",B28))),LEN(TRIM(RIGHT(B28,LEN(B28)-FIND(" ",B28))))-FIND(" ",TRIM(RIGHT(B28,LEN(B28)-FIND(" ",B28)))))),TRIM(RIGHT(B28,LEN(B28)-FIND(" ",B28)))),FIND(" ",IF(FIND(" ",TRIM(RIGHT(B28,LEN(B28)-FIND(" ",B28))))<4,TRIM(RIGHT(TRIM(RIGHT(B28,LEN(B28)-FIND(" ",B28))),LEN(TRIM(RIGHT(B28,LEN(B28)-FIND(" ",B28))))-FIND(" ",TRIM(RIGHT(B28,LEN(B28)-FIND(" ",B28)))))),TRIM(RIGHT(B28,LEN(B28)-FIND(" ",B28))))))),LEN(TRIM(LEFT(IF(FIND(" ",TRIM(RIGHT(B28,LEN(B28)-FIND(" ",B28))))<4,TRIM(RIGHT(TRIM(RIGHT(B28,LEN(B28)-FIND(" ",B28))),LEN(TRIM(RIGHT(B28,LEN(B28)-FIND(" ",B28))))-FIND(" ",TRIM(RIGHT(B28,LEN(B28)-FIND(" ",B28)))))),TRIM(RIGHT(B28,LEN(B28)-FIND(" ",B28)))),FIND(" ",IF(FIND(" ",TRIM(RIGHT(B28,LEN(B28)-FIND(" ",B28))))<4,TRIM(RIGHT(TRIM(RIGHT(B28,LEN(B28)-FIND(" ",B28))),LEN(TRIM(RIGHT(B28,LEN(B28)-FIND(" ",B28))))-FIND(" ",TRIM(RIGHT(B28,LEN(B28)-FIND(" ",B28)))))),TRIM(RIGHT(B28,LEN(B28)-FIND(" ",B28))))))))-2))*1),TRIM(LEFT(IF(FIND(" ",TRIM(RIGHT(B28,LEN(B28)-FIND(" ",B28))))<4,TRIM(RIGHT(TRIM(RIGHT(B28,LEN(B28)-FIND(" ",B28))),LEN(TRIM(RIGHT(B28,LEN(B28)-FIND(" ",B28))))-FIND(" ",TRIM(RIGHT(B28,LEN(B28)-FIND(" ",B28)))))),TRIM(RIGHT(B28,LEN(B28)-FIND(" ",B28)))),FIND(" ",IF(FIND(" ",TRIM(RIGHT(B28,LEN(B28)-FIND(" ",B28))))<4,TRIM(RIGHT(TRIM(RIGHT(B28,LEN(B28)-FIND(" ",B28))),LEN(TRIM(RIGHT(B28,LEN(B28)-FIND(" ",B28))))-FIND(" ",TRIM(RIGHT(B28,LEN(B28)-FIND(" ",B28)))))),TRIM(RIGHT(B28,LEN(B28)-FIND(" ",B28))))))),(LEFT(TRIM(LEFT(IF(FIND(" ",TRIM(RIGHT(B28,LEN(B28)-FIND(" ",B28))))<4,TRIM(RIGHT(TRIM(RIGHT(B28,LEN(B28)-FIND(" ",B28))),LEN(TRIM(RIGHT(B28,LEN(B28)-FIND(" ",B28))))-FIND(" ",TRIM(RIGHT(B28,LEN(B28)-FIND(" ",B28)))))),TRIM(RIGHT(B28,LEN(B28)-FIND(" ",B28)))),FIND(" ",IF(FIND(" ",TRIM(RIGHT(B28,LEN(B28)-FIND(" ",B28))))<4,TRIM(RIGHT(TRIM(RIGHT(B28,LEN(B28)-FIND(" ",B28))),LEN(TRIM(RIGHT(B28,LEN(B28)-FIND(" ",B28))))-FIND(" ",TRIM(RIGHT(B28,LEN(B28)-FIND(" ",B28)))))),TRIM(RIGHT(B28,LEN(B28)-FIND(" ",B28))))))),LEN(TRIM(LEFT(IF(FIND(" ",TRIM(RIGHT(B28,LEN(B28)-FIND(" ",B28))))<4,TRIM(RIGHT(TRIM(RIGHT(B28,LEN(B28)-FIND(" ",B28))),LEN(TRIM(RIGHT(B28,LEN(B28)-FIND(" ",B28))))-FIND(" ",TRIM(RIGHT(B28,LEN(B28)-FIND(" ",B28)))))),TRIM(RIGHT(B28,LEN(B28)-FIND(" ",B28)))),FIND(" ",IF(FIND(" ",TRIM(RIGHT(B28,LEN(B28)-FIND(" ",B28))))<4,TRIM(RIGHT(TRIM(RIGHT(B28,LEN(B28)-FIND(" ",B28))),LEN(TRIM(RIGHT(B28,LEN(B28)-FIND(" ",B28))))-FIND(" ",TRIM(RIGHT(B28,LEN(B28)-FIND(" ",B28)))))),TRIM(RIGHT(B28,LEN(B28)-FIND(" ",B28))))))))-2))*1)) -> 6 | J28: =IF(B28="","Z",1*(TRIM(LEFT(B28,FIND(" ",B28))))) -> 2020 | L28: Y | M28: =IF(G28="Approved on",IF(L28="","",IF(L28="Y",IF(N28+14<TODAY(),"Y","N"),"N")),IF(G28="Denied on",IF(H28+14<TODAY(),"Y","N"),"")) -> Y | N28: 2016-03-10
B29: 3505 1st Ave | C29: El Gaucho | D29: 50.5' x 6' | E29: 308676 | F29: =IF(G29="","",IF(H29="",G29,G29&" "&TEXT(H29,"m/d/yyyy"))) -> Comment Period thru 8/10/2016 | G29: Comment Period thru | H29: 2016-08-10 | I29: =IF(B30="","Z",IF(ISERROR((LEFT(TRIM(LEFT(IF(FIND(" ",TRIM(RIGHT(B30,LEN(B30)-FIND(" ",B30))))<4,TRIM(RIGHT(TRIM(RIGHT(B30,LEN(B30)-FIND(" ",B30))),LEN(TRIM(RIGHT(B30,LEN(B30)-FIND(" ",B30))))-FIND(" ",TRIM(RIGHT(B30,LEN(B30)-FIND(" ",B30)))))),TRIM(RIGHT(B30,LEN(B30)-FIND(" ",B30)))),FIND(" ",IF(FIND(" ",TRIM(RIGHT(B30,LEN(B30)-FIND(" ",B30))))<4,TRIM(RIGHT(TRIM(RIGHT(B30,LEN(B30)-FIND(" ",B30))),LEN(TRIM(RIGHT(B30,LEN(B30)-FIND(" ",B30))))-FIND(" ",TRIM(RIGHT(B30,LEN(B30)-FIND(" ",B30)))))),TRIM(RIGHT(B30,LEN(B30)-FIND(" ",B30))))))),LEN(TRIM(LEFT(IF(FIND(" ",TRIM(RIGHT(B30,LEN(B30)-FIND(" ",B30))))<4,TRIM(RIGHT(TRIM(RIGHT(B30,LEN(B30)-FIND(" ",B30))),LEN(TRIM(RIGHT(B30,LEN(B30)-FIND(" ",B30))))-FIND(" ",TRIM(RIGHT(B30,LEN(B30)-FIND(" ",B30)))))),TRIM(RIGHT(B30,LEN(B30)-FIND(" ",B30)))),FIND(" ",IF(FIND(" ",TRIM(RIGHT(B30,LEN(B30)-FIND(" ",B30))))<4,TRIM(RIGHT(TRIM(RIGHT(B30,LEN(B30)-FIND(" ",B30))),LEN(TRIM(RIGHT(B30,LEN(B30)-FIND(" ",B30))))-FIND(" ",TRIM(RIGHT(B30,LEN(B30)-FIND(" ",B30)))))),TRIM(RIGHT(B30,LEN(B30)-FIND(" ",B30))))))))-2))*1),TRIM(LEFT(IF(FIND(" ",TRIM(RIGHT(B30,LEN(B30)-FIND(" ",B30))))<4,TRIM(RIGHT(TRIM(RIGHT(B30,LEN(B30)-FIND(" ",B30))),LEN(TRIM(RIGHT(B30,LEN(B30)-FIND(" ",B30))))-FIND(" ",TRIM(RIGHT(B30,LEN(B30)-FIND(" ",B30)))))),TRIM(RIGHT(B30,LEN(B30)-FIND(" ",B30)))),FIND(" ",IF(FIND(" ",TRIM(RIGHT(B30,LEN(B30)-FIND(" ",B30))))<4,TRIM(RIGHT(TRIM(RIGHT(B30,LEN(B30)-FIND(" ",B30))),LEN(TRIM(RIGHT(B30,LEN(B30)-FIND(" ",B30))))-FIND(" ",TRIM(RIGHT(B30,LEN(B30)-FIND(" ",B30)))))),TRIM(RIGHT(B30,LEN(B30)-FIND(" ",B30))))))),(LEFT(TRIM(LEFT(IF(FIND(" ",TRIM(RIGHT(B30,LEN(B30)-FIND(" ",B30))))<4,TRIM(RIGHT(TRIM(RIGHT(B30,LEN(B30)-FIND(" ",B30))),LEN(TRIM(RIGHT(B30,LEN(B30)-FIND(" ",B30))))-FIND(" ",TRIM(RIGHT(B30,LEN(B30)-FIND(" ",B30)))))),TRIM(RIGHT(B30,LEN(B30)-FIND(" ",B30)))),FIND(" ",IF(FIND(" ",TRIM(RIGHT(B30,LEN(B30)-FIND(" ",B30))))<4,TRIM(RIGHT(TRIM(RIGHT(B30,LEN(B30)-FIND(" ",B30))),LEN(TRIM(RIGHT(B30,LEN(B30)-FIND(" ",B30))))-FIND(" ",TRIM(RIGHT(B30,LEN(B30)-FIND(" ",B30)))))),TRIM(RIGHT(B30,LEN(B30)-FIND(" ",B30))))))),LEN(TRIM(LEFT(IF(FIND(" ",TRIM(RIGHT(B30,LEN(B30)-FIND(" ",B30))))<4,TRIM(RIGHT(TRIM(RIGHT(B30,LEN(B30)-FIND(" ",B30))),LEN(TRIM(RIGHT(B30,LEN(B30)-FIND(" ",B30))))-FIND(" ",TRIM(RIGHT(B30,LEN(B30)-FIND(" ",B30)))))),TRIM(RIGHT(B30,LEN(B30)-FIND(" ",B30)))),FIND(" ",IF(FIND(" ",TRIM(RIGHT(B30,LEN(B30)-FIND(" ",B30))))<4,TRIM(RIGHT(TRIM(RIGHT(B30,LEN(B30)-FIND(" ",B30))),LEN(TRIM(RIGHT(B30,LEN(B30)-FIND(" ",B30))))-FIND(" ",TRIM(RIGHT(B30,LEN(B30)-FIND(" ",B30)))))),TRIM(RIGHT(B30,LEN(B30)-FIND(" ",B30))))))))-2))*1)) -> Leary | J29: =IF(B30="","Z",1*(TRIM(LEFT(B30,FIND(" ",B30))))) -> 4350 | L29: =IF(B30="","",IF(N29="","N","Y")) -> N | M29: =IF(G29="Approved on",IF(L29="","",IF(L29="Y",IF(N29+14<TODAY(),"Y","N"),"N")),IF(G29="Denied on",IF(H29+14<TODAY(),"Y","N"),"")) -> 
B30: 4350 Leary Way NW | C30: Big Marios | D30: (23’x5’-6”) on Leary Ave NW and (34’-8”x5-6”) on NW Bright St | E30: 346485 | F30: Comment period thru 5/30/2017 | I30: =IF(B31="","Z",IF(ISERROR((LEFT(TRIM(LEFT(IF(FIND(" ",TRIM(RIGHT(B31,LEN(B31)-FIND(" ",B31))))<4,TRIM(RIGHT(TRIM(RIGHT(B31,LEN(B31)-FIND(" ",B31))),LEN(TRIM(RIGHT(B31,LEN(B31)-FIND(" ",B31))))-FIND(" ",TRIM(RIGHT(B31,LEN(B31)-FIND(" ",B31)))))),TRIM(RIGHT(B31,LEN(B31)-FIND(" ",B31)))),FIND(" ",IF(FIND(" ",TRIM(RIGHT(B31,LEN(B31)-FIND(" ",B31))))<4,TRIM(RIGHT(TRIM(RIGHT(B31,LEN(B31)-FIND(" ",B31))),LEN(TRIM(RIGHT(B31,LEN(B31)-FIND(" ",B31))))-FIND(" ",TRIM(RIGHT(B31,LEN(B31)-FIND(" ",B31)))))),TRIM(RIGHT(B31,LEN(B31)-FIND(" ",B31))))))),LEN(TRIM(LEFT(IF(FIND(" ",TRIM(RIGHT(B31,LEN(B31)-FIND(" ",B31))))<4,TRIM(RIGHT(TRIM(RIGHT(B31,LEN(B31)-FIND(" ",B31))),LEN(TRIM(RIGHT(B31,LEN(B31)-FIND(" ",B31))))-FIND(" ",TRIM(RIGHT(B31,LEN(B31)-FIND(" ",B31)))))),TRIM(RIGHT(B31,LEN(B31)-FIND(" ",B31)))),FIND(" ",IF(FIND(" ",TRIM(RIGHT(B31,LEN(B31)-FIND(" ",B31))))<4,TRIM(RIGHT(TRIM(RIGHT(B31,LEN(B31)-FIND(" ",B31))),LEN(TRIM(RIGHT(B31,LEN(B31)-FIND(" ",B31))))-FIND(" ",TRIM(RIGHT(B31,LEN(B31)-FIND(" ",B31)))))),TRIM(RIGHT(B31,LEN(B31)-FIND(" ",B31))))))))-2))*1),TRIM(LEFT(IF(FIND(" ",TRIM(RIGHT(B31,LEN(B31)-FIND(" ",B31))))<4,TRIM(RIGHT(TRIM(RIGHT(B31,LEN(B31)-FIND(" ",B31))),LEN(TRIM(RIGHT(B31,LEN(B31)-FIND(" ",B31))))-FIND(" ",TRIM(RIGHT(B31,LEN(B31)-FIND(" ",B31)))))),TRIM(RIGHT(B31,LEN(B31)-FIND(" ",B31)))),FIND(" ",IF(FIND(" ",TRIM(RIGHT(B31,LEN(B31)-FIND(" ",B31))))<4,TRIM(RIGHT(TRIM(RIGHT(B31,LEN(B31)-FIND(" ",B31))),LEN(TRIM(RIGHT(B31,LEN(B31)-FIND(" ",B31))))-FIND(" ",TRIM(RIGHT(B31,LEN(B31)-FIND(" ",B31)))))),TRIM(RIGHT(B31,LEN(B31)-FIND(" ",B31))))))),(LEFT(TRIM(LEFT(IF(FIND(" ",TRIM(RIGHT(B31,LEN(B31)-FIND(" ",B31))))<4,TRIM(RIGHT(TRIM(RIGHT(B31,LEN(B31)-FIND(" ",B31))),LEN(TRIM(RIGHT(B31,LEN(B31)-FIND(" ",B31))))-FIND(" ",TRIM(RIGHT(B31,LEN(B31)-FIND(" ",B31)))))),TRIM(RIGHT(B31,LEN(B31)-FIND(" ",B31)))),FIND(" ",IF(FIND(" ",TRIM(RIGHT(B31,LEN(B31)-FIND(" ",B31))))<4,TRIM(RIGHT(TRIM(RIGHT(B31,LEN(B31)-FIND(" ",B31))),LEN(TRIM(RIGHT(B31,LEN(B31)-FIND(" ",B31))))-FIND(" ",TRIM(RIGHT(B31,LEN(B31)-FIND(" ",B31)))))),TRIM(RIGHT(B31,LEN(B31)-FIND(" ",B31))))))),LEN(TRIM(LEFT(IF(FIND(" ",TRIM(RIGHT(B31,LEN(B31)-FIND(" ",B31))))<4,TRIM(RIGHT(TRIM(RIGHT(B31,LEN(B31)-FIND(" ",B31))),LEN(TRIM(RIGHT(B31,LEN(B31)-FIND(" ",B31))))-FIND(" ",TRIM(RIGHT(B31,LEN(B31)-FIND(" ",B31)))))),TRIM(RIGHT(B31,LEN(B31)-FIND(" ",B31)))),FIND(" ",IF(FIND(" ",TRIM(RIGHT(B31,LEN(B31)-FIND(" ",B31))))<4,TRIM(RIGHT(TRIM(RIGHT(B31,LEN(B31)-FIND(" ",B31))),LEN(TRIM(RIGHT(B31,LEN(B31)-FIND(" ",B31))))-FIND(" ",TRIM(RIGHT(B31,LEN(B31)-FIND(" ",B31)))))),TRIM(RIGHT(B31,LEN(B31)-FIND(" ",B31))))))))-2))*1)) -> Market | J30: =IF(B31="","Z",1*(TRIM(LEFT(B31,FIND(" ",B31))))) -> 2052 | L30: =IF(B31="","",IF(N30="","N","Y")) -> N | M30: =IF(G30="Approved on",IF(L30="","",IF(L30="Y",IF(N30+14<TODAY(),"Y","N"),"N")),IF(G30="Denied on",IF(H30+14<TODAY(),"Y","N"),"")) -> 
B31: 2052 NW Market ST | C31: Cupcake Royale | D31: 24' 3"X 6" 5" | E31: 312000 | F31: comment period thru 8/16/16 | G31: Approved on | H31: 2016-09-20 | I31: =IF(B32="","Z",IF(ISERROR((LEFT(TRIM(LEFT(IF(FIND(" ",TRIM(RIGHT(B32,LEN(B32)-FIND(" ",B32))))<4,TRIM(RIGHT(TRIM(RIGHT(B32,LEN(B32)-FIND(" ",B32))),LEN(TRIM(RIGHT(B32,LEN(B32)-FIND(" ",B32))))-FIND(" ",TRIM(RIGHT(B32,LEN(B32)-FIND(" ",B32)))))),TRIM(RIGHT(B32,LEN(B32)-FIND(" ",B32)))),FIND(" ",IF(FIND(" ",TRIM(RIGHT(B32,LEN(B32)-FIND(" ",B32))))<4,TRIM(RIGHT(TRIM(RIGHT(B32,LEN(B32)-FIND(" ",B32))),LEN(TRIM(RIGHT(B32,LEN(B32)-FIND(" ",B32))))-FIND(" ",TRIM(RIGHT(B32,LEN(B32)-FIND(" ",B32)))))),TRIM(RIGHT(B32,LEN(B32)-FIND(" ",B32))))))),LEN(TRIM(LEFT(IF(FIND(" ",TRIM(RIGHT(B32,LEN(B32)-FIND(" ",B32))))<4,TRIM(RIGHT(TRIM(RIGHT(B32,LEN(B32)-FIND(" ",B32))),LEN(TRIM(RIGHT(B32,LEN(B32)-FIND(" ",B32))))-FIND(" ",TRIM(RIGHT(B32,LEN(B32)-FIND(" ",B32)))))),TRIM(RIGHT(B32,LEN(B32)-FIND(" ",B32)))),FIND(" ",IF(FIND(" ",TRIM(RIGHT(B32,LEN(B32)-FIND(" ",B32))))<4,TRIM(RIGHT(TRIM(RIGHT(B32,LEN(B32)-FIND(" ",B32))),LEN(TRIM(RIGHT(B32,LEN(B32)-FIND(" ",B32))))-FIND(" ",TRIM(RIGHT(B32,LEN(B32)-FIND(" ",B32)))))),TRIM(RIGHT(B32,LEN(B32)-FIND(" ",B32))))))))-2))*1),TRIM(LEFT(IF(FIND(" ",TRIM(RIGHT(B32,LEN(B32)-FIND(" ",B32))))<4,TRIM(RIGHT(TRIM(RIGHT(B32,LEN(B32)-FIND(" ",B32))),LEN(TRIM(RIGHT(B32,LEN(B32)-FIND(" ",B32))))-FIND(" ",TRIM(RIGHT(B32,LEN(B32)-FIND(" ",B32)))))),TRIM(RIGHT(B32,LEN(B32)-FIND(" ",B32)))),FIND(" ",IF(FIND(" ",TRIM(RIGHT(B32,LEN(B32)-FIND(" ",B32))))<4,TRIM(RIGHT(TRIM(RIGHT(B32,LEN(B32)-FIND(" ",B32))),LEN(TRIM(RIGHT(B32,LEN(B32)-FIND(" ",B32))))-FIND(" ",TRIM(RIGHT(B32,LEN(B32)-FIND(" ",B32)))))),TRIM(RIGHT(B32,LEN(B32)-FIND(" ",B32))))))),(LEFT(TRIM(LEFT(IF(FIND(" ",TRIM(RIGHT(B32,LEN(B32)-FIND(" ",B32))))<4,TRIM(RIGHT(TRIM(RIGHT(B32,LEN(B32)-FIND(" ",B32))),LEN(TRIM(RIGHT(B32,LEN(B32)-FIND(" ",B32))))-FIND(" ",TRIM(RIGHT(B32,LEN(B32)-FIND(" ",B32)))))),TRIM(RIGHT(B32,LEN(B32)-FIND(" ",B32)))),FIND(" ",IF(FIND(" ",TRIM(RIGHT(B32,LEN(B32)-FIND(" ",B32))))<4,TRIM(RIGHT(TRIM(RIGHT(B32,LEN(B32)-FIND(" ",B32))),LEN(TRIM(RIGHT(B32,LEN(B32)-FIND(" ",B32))))-FIND(" ",TRIM(RIGHT(B32,LEN(B32)-FIND(" ",B32)))))),TRIM(RIGHT(B32,LEN(B32)-FIND(" ",B32))))))),LEN(TRIM(LEFT(IF(FIND(" ",TRIM(RIGHT(B32,LEN(B32)-FIND(" ",B32))))<4,TRIM(RIGHT(TRIM(RIGHT(B32,LEN(B32)-FIND(" ",B32))),LEN(TRIM(RIGHT(B32,LEN(B32)-FIND(" ",B32))))-FIND(" ",TRIM(RIGHT(B32,LEN(B32)-FIND(" ",B32)))))),TRIM(RIGHT(B32,LEN(B32)-FIND(" ",B32)))),FIND(" ",IF(FIND(" ",TRIM(RIGHT(B32,LEN(B32)-FIND(" ",B32))))<4,TRIM(RIGHT(TRIM(RIGHT(B32,LEN(B32)-FIND(" ",B32))),LEN(TRIM(RIGHT(B32,LEN(B32)-FIND(" ",B32))))-FIND(" ",TRIM(RIGHT(B32,LEN(B32)-FIND(" ",B32)))))),TRIM(RIGHT(B32,LEN(B32)-FIND(" ",B32))))))))-2))*1)) -> Pike | J31: =IF(B32="","Z",1*(TRIM(LEFT(B32,FIND(" ",B32))))) -> 518 | L31: N | M31: N
B32: 518 E Pike ST | C32: Revolution Wine | D32: 42' x 6'6" | E32: 303091 | F32: comment period thru 06/21/2016 | G32: Approved on | H32: 2016-07-27 | I32: =IF(B33="","Z",IF(ISERROR((LEFT(TRIM(LEFT(IF(FIND(" ",TRIM(RIGHT(B33,LEN(B33)-FIND(" ",B33))))<4,TRIM(RIGHT(TRIM(RIGHT(B33,LEN(B33)-FIND(" ",B33))),LEN(TRIM(RIGHT(B33,LEN(B33)-FIND(" ",B33))))-FIND(" ",TRIM(RIGHT(B33,LEN(B33)-FIND(" ",B33)))))),TRIM(RIGHT(B33,LEN(B33)-FIND(" ",B33)))),FIND(" ",IF(FIND(" ",TRIM(RIGHT(B33,LEN(B33)-FIND(" ",B33))))<4,TRIM(RIGHT(TRIM(RIGHT(B33,LEN(B33)-FIND(" ",B33))),LEN(TRIM(RIGHT(B33,LEN(B33)-FIND(" ",B33))))-FIND(" ",TRIM(RIGHT(B33,LEN(B33)-FIND(" ",B33)))))),TRIM(RIGHT(B33,LEN(B33)-FIND(" ",B33))))))),LEN(TRIM(LEFT(IF(FIND(" ",TRIM(RIGHT(B33,LEN(B33)-FIND(" ",B33))))<4,TRIM(RIGHT(TRIM(RIGHT(B33,LEN(B33)-FIND(" ",B33))),LEN(TRIM(RIGHT(B33,LEN(B33)-FIND(" ",B33))))-FIND(" ",TRIM(RIGHT(B33,LEN(B33)-FIND(" ",B33)))))),TRIM(RIGHT(B33,LEN(B33)-FIND(" ",B33)))),FIND(" ",IF(FIND(" ",TRIM(RIGHT(B33,LEN(B33)-FIND(" ",B33))))<4,TRIM(RIGHT(TRIM(RIGHT(B33,LEN(B33)-FIND(" ",B33))),LEN(TRIM(RIGHT(B33,LEN(B33)-FIND(" ",B33))))-FIND(" ",TRIM(RIGHT(B33,LEN(B33)-FIND(" ",B33)))))),TRIM(RIGHT(B33,LEN(B33)-FIND(" ",B33))))))))-2))*1),TRIM(LEFT(IF(FIND(" ",TRIM(RIGHT(B33,LEN(B33)-FIND(" ",B33))))<4,TRIM(RIGHT(TRIM(RIGHT(B33,LEN(B33)-FIND(" ",B33))),LEN(TRIM(RIGHT(B33,LEN(B33)-FIND(" ",B33))))-FIND(" ",TRIM(RIGHT(B33,LEN(B33)-FIND(" ",B33)))))),TRIM(RIGHT(B33,LEN(B33)-FIND(" ",B33)))),FIND(" ",IF(FIND(" ",TRIM(RIGHT(B33,LEN(B33)-FIND(" ",B33))))<4,TRIM(RIGHT(TRIM(RIGHT(B33,LEN(B33)-FIND(" ",B33))),LEN(TRIM(RIGHT(B33,LEN(B33)-FIND(" ",B33))))-FIND(" ",TRIM(RIGHT(B33,LEN(B33)-FIND(" ",B33)))))),TRIM(RIGHT(B33,LEN(B33)-FIND(" ",B33))))))),(LEFT(TRIM(LEFT(IF(FIND(" ",TRIM(RIGHT(B33,LEN(B33)-FIND(" ",B33))))<4,TRIM(RIGHT(TRIM(RIGHT(B33,LEN(B33)-FIND(" ",B33))),LEN(TRIM(RIGHT(B33,LEN(B33)-FIND(" ",B33))))-FIND(" ",TRIM(RIGHT(B33,LEN(B33)-FIND(" ",B33)))))),TRIM(RIGHT(B33,LEN(B33)-FIND(" ",B33)))),FIND(" ",IF(FIND(" ",TRIM(RIGHT(B33,LEN(B33)-FIND(" ",B33))))<4,TRIM(RIGHT(TRIM(RIGHT(B33,LEN(B33)-FIND(" ",B33))),LEN(TRIM(RIGHT(B33,LEN(B33)-FIND(" ",B33))))-FIND(" ",TRIM(RIGHT(B33,LEN(B33)-FIND(" ",B33)))))),TRIM(RIGHT(B33,LEN(B33)-FIND(" ",B33))))))),LEN(TRIM(LEFT(IF(FIND(" ",TRIM(RIGHT(B33,LEN(B33)-FIND(" ",B33))))<4,TRIM(RIGHT(TRIM(RIGHT(B33,LEN(B33)-FIND(" ",B33))),LEN(TRIM(RIGHT(B33,LEN(B33)-FIND(" ",B33))))-FIND(" ",TRIM(RIGHT(B33,LEN(B33)-FIND(" ",B33)))))),TRIM(RIGHT(B33,LEN(B33)-FIND(" ",B33)))),FIND(" ",IF(FIND(" ",TRIM(RIGHT(B33,LEN(B33)-FIND(" ",B33))))<4,TRIM(RIGHT(TRIM(RIGHT(B33,LEN(B33)-FIND(" ",B33))),LEN(TRIM(RIGHT(B33,LEN(B33)-FIND(" ",B33))))-FIND(" ",TRIM(RIGHT(B33,LEN(B33)-FIND(" ",B33)))))),TRIM(RIGHT(B33,LEN(B33)-FIND(" ",B33))))))))-2))*1)) -> 11 | J32: =IF(B33="","Z",1*(TRIM(LEFT(B33,FIND(" ",B33))))) -> 1424 | L32: Y | M32: =IF(G32="Approved on",IF(L32="","",IF(L32="Y",IF(N32+14<TODAY(),"Y","N"),"N")),IF(G32="Denied on",IF(H32+14<TODAY(),"Y","N"),"")) -> Y | N32: 2016-07-29
B33: 1424 11th Ave, Suite A | C33: Chop Shop | D33: 5' 8" x 19' 2" | E33: 297974 | F33: =IF(G33="","",IF(H33="",G33,G33&" "&TEXT(H33,"m/d/yyyy"))) -> Approved on 4/25/2016 | G33: Approved on | H33: 2016-04-25 | I33: =IF(B33="","Z",IF(ISERROR((LEFT(TRIM(LEFT(IF(FIND(" ",TRIM(RIGHT(B33,LEN(B33)-FIND(" ",B33))))<4,TRIM(RIGHT(TRIM(RIGHT(B33,LEN(B33)-FIND(" ",B33))),LEN(TRIM(RIGHT(B33,LEN(B33)-FIND(" ",B33))))-FIND(" ",TRIM(RIGHT(B33,LEN(B33)-FIND(" ",B33)))))),TRIM(RIGHT(B33,LEN(B33)-FIND(" ",B33)))),FIND(" ",IF(FIND(" ",TRIM(RIGHT(B33,LEN(B33)-FIND(" ",B33))))<4,TRIM(RIGHT(TRIM(RIGHT(B33,LEN(B33)-FIND(" ",B33))),LEN(TRIM(RIGHT(B33,LEN(B33)-FIND(" ",B33))))-FIND(" ",TRIM(RIGHT(B33,LEN(B33)-FIND(" ",B33)))))),TRIM(RIGHT(B33,LEN(B33)-FIND(" ",B33))))))),LEN(TRIM(LEFT(IF(FIND(" ",TRIM(RIGHT(B33,LEN(B33)-FIND(" ",B33))))<4,TRIM(RIGHT(TRIM(RIGHT(B33,LEN(B33)-FIND(" ",B33))),LEN(TRIM(RIGHT(B33,LEN(B33)-FIND(" ",B33))))-FIND(" ",TRIM(RIGHT(B33,LEN(B33)-FIND(" ",B33)))))),TRIM(RIGHT(B33,LEN(B33)-FIND(" ",B33)))),FIND(" ",IF(FIND(" ",TRIM(RIGHT(B33,LEN(B33)-FIND(" ",B33))))<4,TRIM(RIGHT(TRIM(RIGHT(B33,LEN(B33)-FIND(" ",B33))),LEN(TRIM(RIGHT(B33,LEN(B33)-FIND(" ",B33))))-FIND(" ",TRIM(RIGHT(B33,LEN(B33)-FIND(" ",B33)))))),TRIM(RIGHT(B33,LEN(B33)-FIND(" ",B33))))))))-2))*1),TRIM(LEFT(IF(FIND(" ",TRIM(RIGHT(B33,LEN(B33)-FIND(" ",B33))))<4,TRIM(RIGHT(TRIM(RIGHT(B33,LEN(B33)-FIND(" ",B33))),LEN(TRIM(RIGHT(B33,LEN(B33)-FIND(" ",B33))))-FIND(" ",TRIM(RIGHT(B33,LEN(B33)-FIND(" ",B33)))))),TRIM(RIGHT(B33,LEN(B33)-FIND(" ",B33)))),FIND(" ",IF(FIND(" ",TRIM(RIGHT(B33,LEN(B33)-FIND(" ",B33))))<4,TRIM(RIGHT(TRIM(RIGHT(B33,LEN(B33)-FIND(" ",B33))),LEN(TRIM(RIGHT(B33,LEN(B33)-FIND(" ",B33))))-FIND(" ",TRIM(RIGHT(B33,LEN(B33)-FIND(" ",B33)))))),TRIM(RIGHT(B33,LEN(B33)-FIND(" ",B33))))))),(LEFT(TRIM(LEFT(IF(FIND(" ",TRIM(RIGHT(B33,LEN(B33)-FIND(" ",B33))))<4,TRIM(RIGHT(TRIM(RIGHT(B33,LEN(B33)-FIND(" ",B33))),LEN(TRIM(RIGHT(B33,LEN(B33)-FIND(" ",B33))))-FIND(" ",TRIM(RIGHT(B33,LEN(B33)-FIND(" ",B33)))))),TRIM(RIGHT(B33,LEN(B33)-FIND(" ",B33)))),FIND(" ",IF(FIND(" ",TRIM(RIGHT(B33,LEN(B33)-FIND(" ",B33))))<4,TRIM(RIGHT(TRIM(RIGHT(B33,LEN(B33)-FIND(" ",B33))),LEN(TRIM(RIGHT(B33,LEN(B33)-FIND(" ",B33))))-FIND(" ",TRIM(RIGHT(B33,LEN(B33)-FIND(" ",B33)))))),TRIM(RIGHT(B33,LEN(B33)-FIND(" ",B33))))))),LEN(TRIM(LEFT(IF(FIND(" ",TRIM(RIGHT(B33,LEN(B33)-FIND(" ",B33))))<4,TRIM(RIGHT(TRIM(RIGHT(B33,LEN(B33)-FIND(" ",B33))),LEN(TRIM(RIGHT(B33,LEN(B33)-FIND(" ",B33))))-FIND(" ",TRIM(RIGHT(B33,LEN(B33)-FIND(" ",B33)))))),TRIM(RIGHT(B33,LEN(B33)-FIND(" ",B33)))),FIND(" ",IF(FIND(" ",TRIM(RIGHT(B33,LEN(B33)-FIND(" ",B33))))<4,TRIM(RIGHT(TRIM(RIGHT(B33,LEN(B33)-FIND(" ",B33))),LEN(TRIM(RIGHT(B33,LEN(B33)-FIND(" ",B33))))-FIND(" ",TRIM(RIGHT(B33,LEN(B33)-FIND(" ",B33)))))),TRIM(RIGHT(B33,LEN(B33)-FIND(" ",B33))))))))-2))*1)) -> 11 | J33: =IF(B33="","Z",1*(TRIM(LEFT(B33,FIND(" ",B33))))) -> 1424 | L33: Y | M33: =IF(G33="Approved on",IF(L33="","",IF(L33="Y",IF(N33+14<TODAY(),"Y","N"),"N")),IF(G33="Denied on",IF(H33+14<TODAY(),"Y","N"),"")) -> Y | N33: 2016-04-26
B34: 513 Westlake ave N | C34: Merlake | D34: 4' x34' 8" & 1'x 41' | E34: 302831 | F34: 2016-06-07 | G34: Comment Period thru | H34: 2016-06-07 | I34: =IF(B36="","Z",IF(ISERROR((LEFT(TRIM(LEFT(IF(FIND(" ",TRIM(RIGHT(B36,LEN(B36)-FIND(" ",B36))))<4,TRIM(RIGHT(TRIM(RIGHT(B36,LEN(B36)-FIND(" ",B36))),LEN(TRIM(RIGHT(B36,LEN(B36)-FIND(" ",B36))))-FIND(" ",TRIM(RIGHT(B36,LEN(B36)-FIND(" ",B36)))))),TRIM(RIGHT(B36,LEN(B36)-FIND(" ",B36)))),FIND(" ",IF(FIND(" ",TRIM(RIGHT(B36,LEN(B36)-FIND(" ",B36))))<4,TRIM(RIGHT(TRIM(RIGHT(B36,LEN(B36)-FIND(" ",B36))),LEN(TRIM(RIGHT(B36,LEN(B36)-FIND(" ",B36))))-FIND(" ",TRIM(RIGHT(B36,LEN(B36)-FIND(" ",B36)))))),TRIM(RIGHT(B36,LEN(B36)-FIND(" ",B36))))))),LEN(TRIM(LEFT(IF(FIND(" ",TRIM(RIGHT(B36,LEN(B36)-FIND(" ",B36))))<4,TRIM(RIGHT(TRIM(RIGHT(B36,LEN(B36)-FIND(" ",B36))),LEN(TRIM(RIGHT(B36,LEN(B36)-FIND(" ",B36))))-FIND(" ",TRIM(RIGHT(B36,LEN(B36)-FIND(" ",B36)))))),TRIM(RIGHT(B36,LEN(B36)-FIND(" ",B36)))),FIND(" ",IF(FIND(" ",TRIM(RIGHT(B36,LEN(B36)-FIND(" ",B36))))<4,TRIM(RIGHT(TRIM(RIGHT(B36,LEN(B36)-FIND(" ",B36))),LEN(TRIM(RIGHT(B36,LEN(B36)-FIND(" ",B36))))-FIND(" ",TRIM(RIGHT(B36,LEN(B36)-FIND(" ",B36)))))),TRIM(RIGHT(B36,LEN(B36)-FIND(" ",B36))))))))-2))*1),TRIM(LEFT(IF(FIND(" ",TRIM(RIGHT(B36,LEN(B36)-FIND(" ",B36))))<4,TRIM(RIGHT(TRIM(RIGHT(B36,LEN(B36)-FIND(" ",B36))),LEN(TRIM(RIGHT(B36,LEN(B36)-FIND(" ",B36))))-FIND(" ",TRIM(RIGHT(B36,LEN(B36)-FIND(" ",B36)))))),TRIM(RIGHT(B36,LEN(B36)-FIND(" ",B36)))),FIND(" ",IF(FIND(" ",TRIM(RIGHT(B36,LEN(B36)-FIND(" ",B36))))<4,TRIM(RIGHT(TRIM(RIGHT(B36,LEN(B36)-FIND(" ",B36))),LEN(TRIM(RIGHT(B36,LEN(B36)-FIND(" ",B36))))-FIND(" ",TRIM(RIGHT(B36,LEN(B36)-FIND(" ",B36)))))),TRIM(RIGHT(B36,LEN(B36)-FIND(" ",B36))))))),(LEFT(TRIM(LEFT(IF(FIND(" ",TRIM(RIGHT(B36,LEN(B36)-FIND(" ",B36))))<4,TRIM(RIGHT(TRIM(RIGHT(B36,LEN(B36)-FIND(" ",B36))),LEN(TRIM(RIGHT(B36,LEN(B36)-FIND(" ",B36))))-FIND(" ",TRIM(RIGHT(B36,LEN(B36)-FIND(" ",B36)))))),TRIM(RIGHT(B36,LEN(B36)-FIND(" ",B36)))),FIND(" ",IF(FIND(" ",TRIM(RIGHT(B36,LEN(B36)-FIND(" ",B36))))<4,TRIM(RIGHT(TRIM(RIGHT(B36,LEN(B36)-FIND(" ",B36))),LEN(TRIM(RIGHT(B36,LEN(B36)-FIND(" ",B36))))-FIND(" ",TRIM(RIGHT(B36,LEN(B36)-FIND(" ",B36)))))),TRIM(RIGHT(B36,LEN(B36)-FIND(" ",B36))))))),LEN(TRIM(LEFT(IF(FIND(" ",TRIM(RIGHT(B36,LEN(B36)-FIND(" ",B36))))<4,TRIM(RIGHT(TRIM(RIGHT(B36,LEN(B36)-FIND(" ",B36))),LEN(TRIM(RIGHT(B36,LEN(B36)-FIND(" ",B36))))-FIND(" ",TRIM(RIGHT(B36,LEN(B36)-FIND(" ",B36)))))),TRIM(RIGHT(B36,LEN(B36)-FIND(" ",B36)))),FIND(" ",IF(FIND(" ",TRIM(RIGHT(B36,LEN(B36)-FIND(" ",B36))))<4,TRIM(RIGHT(TRIM(RIGHT(B36,LEN(B36)-FIND(" ",B36))),LEN(TRIM(RIGHT(B36,LEN(B36)-FIND(" ",B36))))-FIND(" ",TRIM(RIGHT(B36,LEN(B36)-FIND(" ",B36)))))),TRIM(RIGHT(B36,LEN(B36)-FIND(" ",B36))))))))-2))*1)) -> Thomas | J34: =IF(B36="","Z",1*(TRIM(LEFT(B36,FIND(" ",B36))))) -> 801 | L34: =IF(B36="","",IF(N34="","N","Y")) -> N | M34: =IF(G34="Approved on",IF(L34="","",IF(L34="Y",IF(N34+14<TODAY(),"Y","N"),"N")),IF(G34="Denied on",IF(H34+14<TODAY(),"Y","N"),"")) -> 
B35: 2404 NE 65th st | C35: Salare | D35: 65' X 6'8" | E35: 302335 | F35: comment Perirod thru 6/16/16 | G35: Comment Period thru | H35: 2016-06-16 | I35: =IF(B36="","Z",IF(ISERROR((LEFT(TRIM(LEFT(IF(FIND(" ",TRIM(RIGHT(B36,LEN(B36)-FIND(" ",B36))))<4,TRIM(RIGHT(TRIM(RIGHT(B36,LEN(B36)-FIND(" ",B36))),LEN(TRIM(RIGHT(B36,LEN(B36)-FIND(" ",B36))))-FIND(" ",TRIM(RIGHT(B36,LEN(B36)-FIND(" ",B36)))))),TRIM(RIGHT(B36,LEN(B36)-FIND(" ",B36)))),FIND(" ",IF(FIND(" ",TRIM(RIGHT(B36,LEN(B36)-FIND(" ",B36))))<4,TRIM(RIGHT(TRIM(RIGHT(B36,LEN(B36)-FIND(" ",B36))),LEN(TRIM(RIGHT(B36,LEN(B36)-FIND(" ",B36))))-FIND(" ",TRIM(RIGHT(B36,LEN(B36)-FIND(" ",B36)))))),TRIM(RIGHT(B36,LEN(B36)-FIND(" ",B36))))))),LEN(TRIM(LEFT(IF(FIND(" ",TRIM(RIGHT(B36,LEN(B36)-FIND(" ",B36))))<4,TRIM(RIGHT(TRIM(RIGHT(B36,LEN(B36)-FIND(" ",B36))),LEN(TRIM(RIGHT(B36,LEN(B36)-FIND(" ",B36))))-FIND(" ",TRIM(RIGHT(B36,LEN(B36)-FIND(" ",B36)))))),TRIM(RIGHT(B36,LEN(B36)-FIND(" ",B36)))),FIND(" ",IF(FIND(" ",TRIM(RIGHT(B36,LEN(B36)-FIND(" ",B36))))<4,TRIM(RIGHT(TRIM(RIGHT(B36,LEN(B36)-FIND(" ",B36))),LEN(TRIM(RIGHT(B36,LEN(B36)-FIND(" ",B36))))-FIND(" ",TRIM(RIGHT(B36,LEN(B36)-FIND(" ",B36)))))),TRIM(RIGHT(B36,LEN(B36)-FIND(" ",B36))))))))-2))*1),TRIM(LEFT(IF(FIND(" ",TRIM(RIGHT(B36,LEN(B36)-FIND(" ",B36))))<4,TRIM(RIGHT(TRIM(RIGHT(B36,LEN(B36)-FIND(" ",B36))),LEN(TRIM(RIGHT(B36,LEN(B36)-FIND(" ",B36))))-FIND(" ",TRIM(RIGHT(B36,LEN(B36)-FIND(" ",B36)))))),TRIM(RIGHT(B36,LEN(B36)-FIND(" ",B36)))),FIND(" ",IF(FIND(" ",TRIM(RIGHT(B36,LEN(B36)-FIND(" ",B36))))<4,TRIM(RIGHT(TRIM(RIGHT(B36,LEN(B36)-FIND(" ",B36))),LEN(TRIM(RIGHT(B36,LEN(B36)-FIND(" ",B36))))-FIND(" ",TRIM(RIGHT(B36,LEN(B36)-FIND(" ",B36)))))),TRIM(RIGHT(B36,LEN(B36)-FIND(" ",B36))))))),(LEFT(TRIM(LEFT(IF(FIND(" ",TRIM(RIGHT(B36,LEN(B36)-FIND(" ",B36))))<4,TRIM(RIGHT(TRIM(RIGHT(B36,LEN(B36)-FIND(" ",B36))),LEN(TRIM(RIGHT(B36,LEN(B36)-FIND(" ",B36))))-FIND(" ",TRIM(RIGHT(B36,LEN(B36)-FIND(" ",B36)))))),TRIM(RIGHT(B36,LEN(B36)-FIND(" ",B36)))),FIND(" ",IF(FIND(" ",TRIM(RIGHT(B36,LEN(B36)-FIND(" ",B36))))<4,TRIM(RIGHT(TRIM(RIGHT(B36,LEN(B36)-FIND(" ",B36))),LEN(TRIM(RIGHT(B36,LEN(B36)-FIND(" ",B36))))-FIND(" ",TRIM(RIGHT(B36,LEN(B36)-FIND(" ",B36)))))),TRIM(RIGHT(B36,LEN(B36)-FIND(" ",B36))))))),LEN(TRIM(LEFT(IF(FIND(" ",TRIM(RIGHT(B36,LEN(B36)-FIND(" ",B36))))<4,TRIM(RIGHT(TRIM(RIGHT(B36,LEN(B36)-FIND(" ",B36))),LEN(TRIM(RIGHT(B36,LEN(B36)-FIND(" ",B36))))-FIND(" ",TRIM(RIGHT(B36,LEN(B36)-FIND(" ",B36)))))),TRIM(RIGHT(B36,LEN(B36)-FIND(" ",B36)))),FIND(" ",IF(FIND(" ",TRIM(RIGHT(B36,LEN(B36)-FIND(" ",B36))))<4,TRIM(RIGHT(TRIM(RIGHT(B36,LEN(B36)-FIND(" ",B36))),LEN(TRIM(RIGHT(B36,LEN(B36)-FIND(" ",B36))))-FIND(" ",TRIM(RIGHT(B36,LEN(B36)-FIND(" ",B36)))))),TRIM(RIGHT(B36,LEN(B36)-FIND(" ",B36))))))))-2))*1)) -> Thomas | J35: =IF(B36="","Z",1*(TRIM(LEFT(B36,FIND(" ",B36))))) -> 801 | L35: =IF(B36="","",IF(N35="","N","Y")) -> N | M35: =IF(G35="Approved on",IF(L35="","",IF(L35="Y",IF(N35+14<TODAY(),"Y","N"),"N")),IF(G35="Denied on",IF(H35+14<TODAY(),"Y","N"),"")) -> 
B36: 801 E Thomas ST | C36: Aluel Cellars | D36: 6' x 16' | E36: 347087 | F36: Comment Period thru 6/13/17 | G36: Comment Period thru | H36: 2017-06-13 | I36: =IF(B37="","Z",IF(ISERROR((LEFT(TRIM(LEFT(IF(FIND(" ",TRIM(RIGHT(B37,LEN(B37)-FIND(" ",B37))))<4,TRIM(RIGHT(TRIM(RIGHT(B37,LEN(B37)-FIND(" ",B37))),LEN(TRIM(RIGHT(B37,LEN(B37)-FIND(" ",B37))))-FIND(" ",TRIM(RIGHT(B37,LEN(B37)-FIND(" ",B37)))))),TRIM(RIGHT(B37,LEN(B37)-FIND(" ",B37)))),FIND(" ",IF(FIND(" ",TRIM(RIGHT(B37,LEN(B37)-FIND(" ",B37))))<4,TRIM(RIGHT(TRIM(RIGHT(B37,LEN(B37)-FIND(" ",B37))),LEN(TRIM(RIGHT(B37,LEN(B37)-FIND(" ",B37))))-FIND(" ",TRIM(RIGHT(B37,LEN(B37)-FIND(" ",B37)))))),TRIM(RIGHT(B37,LEN(B37)-FIND(" ",B37))))))),LEN(TRIM(LEFT(IF(FIND(" ",TRIM(RIGHT(B37,LEN(B37)-FIND(" ",B37))))<4,TRIM(RIGHT(TRIM(RIGHT(B37,LEN(B37)-FIND(" ",B37))),LEN(TRIM(RIGHT(B37,LEN(B37)-FIND(" ",B37))))-FIND(" ",TRIM(RIGHT(B37,LEN(B37)-FIND(" ",B37)))))),TRIM(RIGHT(B37,LEN(B37)-FIND(" ",B37)))),FIND(" ",IF(FIND(" ",TRIM(RIGHT(B37,LEN(B37)-FIND(" ",B37))))<4,TRIM(RIGHT(TRIM(RIGHT(B37,LEN(B37)-FIND(" ",B37))),LEN(TRIM(RIGHT(B37,LEN(B37)-FIND(" ",B37))))-FIND(" ",TRIM(RIGHT(B37,LEN(B37)-FIND(" ",B37)))))),TRIM(RIGHT(B37,LEN(B37)-FIND(" ",B37))))))))-2))*1),TRIM(LEFT(IF(FIND(" ",TRIM(RIGHT(B37,LEN(B37)-FIND(" ",B37))))<4,TRIM(RIGHT(TRIM(RIGHT(B37,LEN(B37)-FIND(" ",B37))),LEN(TRIM(RIGHT(B37,LEN(B37)-FIND(" ",B37))))-FIND(" ",TRIM(RIGHT(B37,LEN(B37)-FIND(" ",B37)))))),TRIM(RIGHT(B37,LEN(B37)-FIND(" ",B37)))),FIND(" ",IF(FIND(" ",TRIM(RIGHT(B37,LEN(B37)-FIND(" ",B37))))<4,TRIM(RIGHT(TRIM(RIGHT(B37,LEN(B37)-FIND(" ",B37))),LEN(TRIM(RIGHT(B37,LEN(B37)-FIND(" ",B37))))-FIND(" ",TRIM(RIGHT(B37,LEN(B37)-FIND(" ",B37)))))),TRIM(RIGHT(B37,LEN(B37)-FIND(" ",B37))))))),(LEFT(TRIM(LEFT(IF(FIND(" ",TRIM(RIGHT(B37,LEN(B37)-FIND(" ",B37))))<4,TRIM(RIGHT(TRIM(RIGHT(B37,LEN(B37)-FIND(" ",B37))),LEN(TRIM(RIGHT(B37,LEN(B37)-FIND(" ",B37))))-FIND(" ",TRIM(RIGHT(B37,LEN(B37)-FIND(" ",B37)))))),TRIM(RIGHT(B37,LEN(B37)-FIND(" ",B37)))),FIND(" ",IF(FIND(" ",TRIM(RIGHT(B37,LEN(B37)-FIND(" ",B37))))<4,TRIM(RIGHT(TRIM(RIGHT(B37,LEN(B37)-FIND(" ",B37))),LEN(TRIM(RIGHT(B37,LEN(B37)-FIND(" ",B37))))-FIND(" ",TRIM(RIGHT(B37,LEN(B37)-FIND(" ",B37)))))),TRIM(RIGHT(B37,LEN(B37)-FIND(" ",B37))))))),LEN(TRIM(LEFT(IF(FIND(" ",TRIM(RIGHT(B37,LEN(B37)-FIND(" ",B37))))<4,TRIM(RIGHT(TRIM(RIGHT(B37,LEN(B37)-FIND(" ",B37))),LEN(TRIM(RIGHT(B37,LEN(B37)-FIND(" ",B37))))-FIND(" ",TRIM(RIGHT(B37,LEN(B37)-FIND(" ",B37)))))),TRIM(RIGHT(B37,LEN(B37)-FIND(" ",B37)))),FIND(" ",IF(FIND(" ",TRIM(RIGHT(B37,LEN(B37)-FIND(" ",B37))))<4,TRIM(RIGHT(TRIM(RIGHT(B37,LEN(B37)-FIND(" ",B37))),LEN(TRIM(RIGHT(B37,LEN(B37)-FIND(" ",B37))))-FIND(" ",TRIM(RIGHT(B37,LEN(B37)-FIND(" ",B37)))))),TRIM(RIGHT(B37,LEN(B37)-FIND(" ",B37))))))))-2))*1)) -> 6 | J36: =IF(B37="","Z",1*(TRIM(LEFT(B37,FIND(" ",B37))))) -> 2525 | L36: =IF(B37="","",IF(N36="","N","Y")) -> N | M36: =IF(G36="Approved on",IF(L36="","",IF(L36="Y",IF(N36+14<TODAY(),"Y","N"),"N")),IF(G36="Denied on",IF(H36+14<TODAY(),"Y","N"),"")) -> 
B37: 2525 6th ave | C37: pizza mart | D37: 29' X4' | E37: 306775 | F37: comment period thru 8/09/16 | G37: Comment Period thru | H37: 2016-08-09 | I37: =IF(B38="","Z",IF(ISERROR((LEFT(TRIM(LEFT(IF(FIND(" ",TRIM(RIGHT(B38,LEN(B38)-FIND(" ",B38))))<4,TRIM(RIGHT(TRIM(RIGHT(B38,LEN(B38)-FIND(" ",B38))),LEN(TRIM(RIGHT(B38,LEN(B38)-FIND(" ",B38))))-FIND(" ",TRIM(RIGHT(B38,LEN(B38)-FIND(" ",B38)))))),TRIM(RIGHT(B38,LEN(B38)-FIND(" ",B38)))),FIND(" ",IF(FIND(" ",TRIM(RIGHT(B38,LEN(B38)-FIND(" ",B38))))<4,TRIM(RIGHT(TRIM(RIGHT(B38,LEN(B38)-FIND(" ",B38))),LEN(TRIM(RIGHT(B38,LEN(B38)-FIND(" ",B38))))-FIND(" ",TRIM(RIGHT(B38,LEN(B38)-FIND(" ",B38)))))),TRIM(RIGHT(B38,LEN(B38)-FIND(" ",B38))))))),LEN(TRIM(LEFT(IF(FIND(" ",TRIM(RIGHT(B38,LEN(B38)-FIND(" ",B38))))<4,TRIM(RIGHT(TRIM(RIGHT(B38,LEN(B38)-FIND(" ",B38))),LEN(TRIM(RIGHT(B38,LEN(B38)-FIND(" ",B38))))-FIND(" ",TRIM(RIGHT(B38,LEN(B38)-FIND(" ",B38)))))),TRIM(RIGHT(B38,LEN(B38)-FIND(" ",B38)))),FIND(" ",IF(FIND(" ",TRIM(RIGHT(B38,LEN(B38)-FIND(" ",B38))))<4,TRIM(RIGHT(TRIM(RIGHT(B38,LEN(B38)-FIND(" ",B38))),LEN(TRIM(RIGHT(B38,LEN(B38)-FIND(" ",B38))))-FIND(" ",TRIM(RIGHT(B38,LEN(B38)-FIND(" ",B38)))))),TRIM(RIGHT(B38,LEN(B38)-FIND(" ",B38))))))))-2))*1),TRIM(LEFT(IF(FIND(" ",TRIM(RIGHT(B38,LEN(B38)-FIND(" ",B38))))<4,TRIM(RIGHT(TRIM(RIGHT(B38,LEN(B38)-FIND(" ",B38))),LEN(TRIM(RIGHT(B38,LEN(B38)-FIND(" ",B38))))-FIND(" ",TRIM(RIGHT(B38,LEN(B38)-FIND(" ",B38)))))),TRIM(RIGHT(B38,LEN(B38)-FIND(" ",B38)))),FIND(" ",IF(FIND(" ",TRIM(RIGHT(B38,LEN(B38)-FIND(" ",B38))))<4,TRIM(RIGHT(TRIM(RIGHT(B38,LEN(B38)-FIND(" ",B38))),LEN(TRIM(RIGHT(B38,LEN(B38)-FIND(" ",B38))))-FIND(" ",TRIM(RIGHT(B38,LEN(B38)-FIND(" ",B38)))))),TRIM(RIGHT(B38,LEN(B38)-FIND(" ",B38))))))),(LEFT(TRIM(LEFT(IF(FIND(" ",TRIM(RIGHT(B38,LEN(B38)-FIND(" ",B38))))<4,TRIM(RIGHT(TRIM(RIGHT(B38,LEN(B38)-FIND(" ",B38))),LEN(TRIM(RIGHT(B38,LEN(B38)-FIND(" ",B38))))-FIND(" ",TRIM(RIGHT(B38,LEN(B38)-FIND(" ",B38)))))),TRIM(RIGHT(B38,LEN(B38)-FIND(" ",B38)))),FIND(" ",IF(FIND(" ",TRIM(RIGHT(B38,LEN(B38)-FIND(" ",B38))))<4,TRIM(RIGHT(TRIM(RIGHT(B38,LEN(B38)-FIND(" ",B38))),LEN(TRIM(RIGHT(B38,LEN(B38)-FIND(" ",B38))))-FIND(" ",TRIM(RIGHT(B38,LEN(B38)-FIND(" ",B38)))))),TRIM(RIGHT(B38,LEN(B38)-FIND(" ",B38))))))),LEN(TRIM(LEFT(IF(FIND(" ",TRIM(RIGHT(B38,LEN(B38)-FIND(" ",B38))))<4,TRIM(RIGHT(TRIM(RIGHT(B38,LEN(B38)-FIND(" ",B38))),LEN(TRIM(RIGHT(B38,LEN(B38)-FIND(" ",B38))))-FIND(" ",TRIM(RIGHT(B38,LEN(B38)-FIND(" ",B38)))))),TRIM(RIGHT(B38,LEN(B38)-FIND(" ",B38)))),FIND(" ",IF(FIND(" ",TRIM(RIGHT(B38,LEN(B38)-FIND(" ",B38))))<4,TRIM(RIGHT(TRIM(RIGHT(B38,LEN(B38)-FIND(" ",B38))),LEN(TRIM(RIGHT(B38,LEN(B38)-FIND(" ",B38))))-FIND(" ",TRIM(RIGHT(B38,LEN(B38)-FIND(" ",B38)))))),TRIM(RIGHT(B38,LEN(B38)-FIND(" ",B38))))))))-2))*1)) -> 16 | J37: =IF(B38="","Z",1*(TRIM(LEFT(B38,FIND(" ",B38))))) -> 2800 | L37: =IF(B38="","",IF(N37="","N","Y")) -> N | M37: =IF(G37="Approved on",IF(L37="","",IF(L37="Y",IF(N37+14<TODAY(),"Y","N"),"N")),IF(G37="Denied on",IF(H37+14<TODAY(),"Y","N"),"")) -> 
B38: 2800 16th Ave S | C38: Perihelion Brewery | D38: 2.75’ x 40’ and 5.34’ x 33’ | E38: 298962 | F38: Comment Period thru 5/4/2016 | G38: Approved on | H38: 2016-08-11 | I38: =IF(B38="","Z",IF(ISERROR((LEFT(TRIM(LEFT(IF(FIND(" ",TRIM(RIGHT(B38,LEN(B38)-FIND(" ",B38))))<4,TRIM(RIGHT(TRIM(RIGHT(B38,LEN(B38)-FIND(" ",B38))),LEN(TRIM(RIGHT(B38,LEN(B38)-FIND(" ",B38))))-FIND(" ",TRIM(RIGHT(B38,LEN(B38)-FIND(" ",B38)))))),TRIM(RIGHT(B38,LEN(B38)-FIND(" ",B38)))),FIND(" ",IF(FIND(" ",TRIM(RIGHT(B38,LEN(B38)-FIND(" ",B38))))<4,TRIM(RIGHT(TRIM(RIGHT(B38,LEN(B38)-FIND(" ",B38))),LEN(TRIM(RIGHT(B38,LEN(B38)-FIND(" ",B38))))-FIND(" ",TRIM(RIGHT(B38,LEN(B38)-FIND(" ",B38)))))),TRIM(RIGHT(B38,LEN(B38)-FIND(" ",B38))))))),LEN(TRIM(LEFT(IF(FIND(" ",TRIM(RIGHT(B38,LEN(B38)-FIND(" ",B38))))<4,TRIM(RIGHT(TRIM(RIGHT(B38,LEN(B38)-FIND(" ",B38))),LEN(TRIM(RIGHT(B38,LEN(B38)-FIND(" ",B38))))-FIND(" ",TRIM(RIGHT(B38,LEN(B38)-FIND(" ",B38)))))),TRIM(RIGHT(B38,LEN(B38)-FIND(" ",B38)))),FIND(" ",IF(FIND(" ",TRIM(RIGHT(B38,LEN(B38)-FIND(" ",B38))))<4,TRIM(RIGHT(TRIM(RIGHT(B38,LEN(B38)-FIND(" ",B38))),LEN(TRIM(RIGHT(B38,LEN(B38)-FIND(" ",B38))))-FIND(" ",TRIM(RIGHT(B38,LEN(B38)-FIND(" ",B38)))))),TRIM(RIGHT(B38,LEN(B38)-FIND(" ",B38))))))))-2))*1),TRIM(LEFT(IF(FIND(" ",TRIM(RIGHT(B38,LEN(B38)-FIND(" ",B38))))<4,TRIM(RIGHT(TRIM(RIGHT(B38,LEN(B38)-FIND(" ",B38))),LEN(TRIM(RIGHT(B38,LEN(B38)-FIND(" ",B38))))-FIND(" ",TRIM(RIGHT(B38,LEN(B38)-FIND(" ",B38)))))),TRIM(RIGHT(B38,LEN(B38)-FIND(" ",B38)))),FIND(" ",IF(FIND(" ",TRIM(RIGHT(B38,LEN(B38)-FIND(" ",B38))))<4,TRIM(RIGHT(TRIM(RIGHT(B38,LEN(B38)-FIND(" ",B38))),LEN(TRIM(RIGHT(B38,LEN(B38)-FIND(" ",B38))))-FIND(" ",TRIM(RIGHT(B38,LEN(B38)-FIND(" ",B38)))))),TRIM(RIGHT(B38,LEN(B38)-FIND(" ",B38))))))),(LEFT(TRIM(LEFT(IF(FIND(" ",TRIM(RIGHT(B38,LEN(B38)-FIND(" ",B38))))<4,TRIM(RIGHT(TRIM(RIGHT(B38,LEN(B38)-FIND(" ",B38))),LEN(TRIM(RIGHT(B38,LEN(B38)-FIND(" ",B38))))-FIND(" ",TRIM(RIGHT(B38,LEN(B38)-FIND(" ",B38)))))),TRIM(RIGHT(B38,LEN(B38)-FIND(" ",B38)))),FIND(" ",IF(FIND(" ",TRIM(RIGHT(B38,LEN(B38)-FIND(" ",B38))))<4,TRIM(RIGHT(TRIM(RIGHT(B38,LEN(B38)-FIND(" ",B38))),LEN(TRIM(RIGHT(B38,LEN(B38)-FIND(" ",B38))))-FIND(" ",TRIM(RIGHT(B38,LEN(B38)-FIND(" ",B38)))))),TRIM(RIGHT(B38,LEN(B38)-FIND(" ",B38))))))),LEN(TRIM(LEFT(IF(FIND(" ",TRIM(RIGHT(B38,LEN(B38)-FIND(" ",B38))))<4,TRIM(RIGHT(TRIM(RIGHT(B38,LEN(B38)-FIND(" ",B38))),LEN(TRIM(RIGHT(B38,LEN(B38)-FIND(" ",B38))))-FIND(" ",TRIM(RIGHT(B38,LEN(B38)-FIND(" ",B38)))))),TRIM(RIGHT(B38,LEN(B38)-FIND(" ",B38)))),FIND(" ",IF(FIND(" ",TRIM(RIGHT(B38,LEN(B38)-FIND(" ",B38))))<4,TRIM(RIGHT(TRIM(RIGHT(B38,LEN(B38)-FIND(" ",B38))),LEN(TRIM(RIGHT(B38,LEN(B38)-FIND(" ",B38))))-FIND(" ",TRIM(RIGHT(B38,LEN(B38)-FIND(" ",B38)))))),TRIM(RIGHT(B38,LEN(B38)-FIND(" ",B38))))))))-2))*1)) -> 16 | J38: =IF(B38="","Z",1*(TRIM(LEFT(B38,FIND(" ",B38))))) -> 2800 | L38: Y | M38: =IF(G38="Approved on",IF(L38="","",IF(L38="Y",IF(N38+14<TODAY(),"Y","N"),"N")),IF(G38="Denied on",IF(H38+14<TODAY(),"Y","N"),"")) -> Y | N38: 2016-08-12
B39: 5410 17th Ave NW | C39: No Bones Café | D39: 7'x8' and 5'x16' | E39: 298472 | F39: Comment Period thru 4/11/2016 | G39: Approved on | H39: 2016-04-14 | I39: =IF(B39="","Z",IF(ISERROR((LEFT(TRIM(LEFT(IF(FIND(" ",TRIM(RIGHT(B39,LEN(B39)-FIND(" ",B39))))<4,TRIM(RIGHT(TRIM(RIGHT(B39,LEN(B39)-FIND(" ",B39))),LEN(TRIM(RIGHT(B39,LEN(B39)-FIND(" ",B39))))-FIND(" ",TRIM(RIGHT(B39,LEN(B39)-FIND(" ",B39)))))),TRIM(RIGHT(B39,LEN(B39)-FIND(" ",B39)))),FIND(" ",IF(FIND(" ",TRIM(RIGHT(B39,LEN(B39)-FIND(" ",B39))))<4,TRIM(RIGHT(TRIM(RIGHT(B39,LEN(B39)-FIND(" ",B39))),LEN(TRIM(RIGHT(B39,LEN(B39)-FIND(" ",B39))))-FIND(" ",TRIM(RIGHT(B39,LEN(B39)-FIND(" ",B39)))))),TRIM(RIGHT(B39,LEN(B39)-FIND(" ",B39))))))),LEN(TRIM(LEFT(IF(FIND(" ",TRIM(RIGHT(B39,LEN(B39)-FIND(" ",B39))))<4,TRIM(RIGHT(TRIM(RIGHT(B39,LEN(B39)-FIND(" ",B39))),LEN(TRIM(RIGHT(B39,LEN(B39)-FIND(" ",B39))))-FIND(" ",TRIM(RIGHT(B39,LEN(B39)-FIND(" ",B39)))))),TRIM(RIGHT(B39,LEN(B39)-FIND(" ",B39)))),FIND(" ",IF(FIND(" ",TRIM(RIGHT(B39,LEN(B39)-FIND(" ",B39))))<4,TRIM(RIGHT(TRIM(RIGHT(B39,LEN(B39)-FIND(" ",B39))),LEN(TRIM(RIGHT(B39,LEN(B39)-FIND(" ",B39))))-FIND(" ",TRIM(RIGHT(B39,LEN(B39)-FIND(" ",B39)))))),TRIM(RIGHT(B39,LEN(B39)-FIND(" ",B39))))))))-2))*1),TRIM(LEFT(IF(FIND(" ",TRIM(RIGHT(B39,LEN(B39)-FIND(" ",B39))))<4,TRIM(RIGHT(TRIM(RIGHT(B39,LEN(B39)-FIND(" ",B39))),LEN(TRIM(RIGHT(B39,LEN(B39)-FIND(" ",B39))))-FIND(" ",TRIM(RIGHT(B39,LEN(B39)-FIND(" ",B39)))))),TRIM(RIGHT(B39,LEN(B39)-FIND(" ",B39)))),FIND(" ",IF(FIND(" ",TRIM(RIGHT(B39,LEN(B39)-FIND(" ",B39))))<4,TRIM(RIGHT(TRIM(RIGHT(B39,LEN(B39)-FIND(" ",B39))),LEN(TRIM(RIGHT(B39,LEN(B39)-FIND(" ",B39))))-FIND(" ",TRIM(RIGHT(B39,LEN(B39)-FIND(" ",B39)))))),TRIM(RIGHT(B39,LEN(B39)-FIND(" ",B39))))))),(LEFT(TRIM(LEFT(IF(FIND(" ",TRIM(RIGHT(B39,LEN(B39)-FIND(" ",B39))))<4,TRIM(RIGHT(TRIM(RIGHT(B39,LEN(B39)-FIND(" ",B39))),LEN(TRIM(RIGHT(B39,LEN(B39)-FIND(" ",B39))))-FIND(" ",TRIM(RIGHT(B39,LEN(B39)-FIND(" ",B39)))))),TRIM(RIGHT(B39,LEN(B39)-FIND(" ",B39)))),FIND(" ",IF(FIND(" ",TRIM(RIGHT(B39,LEN(B39)-FIND(" ",B39))))<4,TRIM(RIGHT(TRIM(RIGHT(B39,LEN(B39)-FIND(" ",B39))),LEN(TRIM(RIGHT(B39,LEN(B39)-FIND(" ",B39))))-FIND(" ",TRIM(RIGHT(B39,LEN(B39)-FIND(" ",B39)))))),TRIM(RIGHT(B39,LEN(B39)-FIND(" ",B39))))))),LEN(TRIM(LEFT(IF(FIND(" ",TRIM(RIGHT(B39,LEN(B39)-FIND(" ",B39))))<4,TRIM(RIGHT(TRIM(RIGHT(B39,LEN(B39)-FIND(" ",B39))),LEN(TRIM(RIGHT(B39,LEN(B39)-FIND(" ",B39))))-FIND(" ",TRIM(RIGHT(B39,LEN(B39)-FIND(" ",B39)))))),TRIM(RIGHT(B39,LEN(B39)-FIND(" ",B39)))),FIND(" ",IF(FIND(" ",TRIM(RIGHT(B39,LEN(B39)-FIND(" ",B39))))<4,TRIM(RIGHT(TRIM(RIGHT(B39,LEN(B39)-FIND(" ",B39))),LEN(TRIM(RIGHT(B39,LEN(B39)-FIND(" ",B39))))-FIND(" ",TRIM(RIGHT(B39,LEN(B39)-FIND(" ",B39)))))),TRIM(RIGHT(B39,LEN(B39)-FIND(" ",B39))))))))-2))*1)) -> 17 | J39: =IF(B39="","Z",1*(TRIM(LEFT(B39,FIND(" ",B39))))) -> 5410 | L39: Y | M39: =IF(G39="Approved on",IF(L39="","",IF(L39="Y",IF(N39+14<TODAY(),"Y","N"),"N")),IF(G39="Denied on",IF(H39+14<TODAY(),"Y","N"),"")) -> Y | N39: 2016-04-19
B40: 1134 38th ave | C40: Madrona Arms | D40: 3'x 25' on 34th ave & 3.5' x 45' on E union | E40: 340610 | F40: Comment period thru 6/8/17 | G40: Comment Period thru | H40: 2017-06-08 | I40: =IF(B41="","Z",IF(ISERROR((LEFT(TRIM(LEFT(IF(FIND(" ",TRIM(RIGHT(B41,LEN(B41)-FIND(" ",B41))))<4,TRIM(RIGHT(TRIM(RIGHT(B41,LEN(B41)-FIND(" ",B41))),LEN(TRIM(RIGHT(B41,LEN(B41)-FIND(" ",B41))))-FIND(" ",TRIM(RIGHT(B41,LEN(B41)-FIND(" ",B41)))))),TRIM(RIGHT(B41,LEN(B41)-FIND(" ",B41)))),FIND(" ",IF(FIND(" ",TRIM(RIGHT(B41,LEN(B41)-FIND(" ",B41))))<4,TRIM(RIGHT(TRIM(RIGHT(B41,LEN(B41)-FIND(" ",B41))),LEN(TRIM(RIGHT(B41,LEN(B41)-FIND(" ",B41))))-FIND(" ",TRIM(RIGHT(B41,LEN(B41)-FIND(" ",B41)))))),TRIM(RIGHT(B41,LEN(B41)-FIND(" ",B41))))))),LEN(TRIM(LEFT(IF(FIND(" ",TRIM(RIGHT(B41,LEN(B41)-FIND(" ",B41))))<4,TRIM(RIGHT(TRIM(RIGHT(B41,LEN(B41)-FIND(" ",B41))),LEN(TRIM(RIGHT(B41,LEN(B41)-FIND(" ",B41))))-FIND(" ",TRIM(RIGHT(B41,LEN(B41)-FIND(" ",B41)))))),TRIM(RIGHT(B41,LEN(B41)-FIND(" ",B41)))),FIND(" ",IF(FIND(" ",TRIM(RIGHT(B41,LEN(B41)-FIND(" ",B41))))<4,TRIM(RIGHT(TRIM(RIGHT(B41,LEN(B41)-FIND(" ",B41))),LEN(TRIM(RIGHT(B41,LEN(B41)-FIND(" ",B41))))-FIND(" ",TRIM(RIGHT(B41,LEN(B41)-FIND(" ",B41)))))),TRIM(RIGHT(B41,LEN(B41)-FIND(" ",B41))))))))-2))*1),TRIM(LEFT(IF(FIND(" ",TRIM(RIGHT(B41,LEN(B41)-FIND(" ",B41))))<4,TRIM(RIGHT(TRIM(RIGHT(B41,LEN(B41)-FIND(" ",B41))),LEN(TRIM(RIGHT(B41,LEN(B41)-FIND(" ",B41))))-FIND(" ",TRIM(RIGHT(B41,LEN(B41)-FIND(" ",B41)))))),TRIM(RIGHT(B41,LEN(B41)-FIND(" ",B41)))),FIND(" ",IF(FIND(" ",TRIM(RIGHT(B41,LEN(B41)-FIND(" ",B41))))<4,TRIM(RIGHT(TRIM(RIGHT(B41,LEN(B41)-FIND(" ",B41))),LEN(TRIM(RIGHT(B41,LEN(B41)-FIND(" ",B41))))-FIND(" ",TRIM(RIGHT(B41,LEN(B41)-FIND(" ",B41)))))),TRIM(RIGHT(B41,LEN(B41)-FIND(" ",B41))))))),(LEFT(TRIM(LEFT(IF(FIND(" ",TRIM(RIGHT(B41,LEN(B41)-FIND(" ",B41))))<4,TRIM(RIGHT(TRIM(RIGHT(B41,LEN(B41)-FIND(" ",B41))),LEN(TRIM(RIGHT(B41,LEN(B41)-FIND(" ",B41))))-FIND(" ",TRIM(RIGHT(B41,LEN(B41)-FIND(" ",B41)))))),TRIM(RIGHT(B41,LEN(B41)-FIND(" ",B41)))),FIND(" ",IF(FIND(" ",TRIM(RIGHT(B41,LEN(B41)-FIND(" ",B41))))<4,TRIM(RIGHT(TRIM(RIGHT(B41,LEN(B41)-FIND(" ",B41))),LEN(TRIM(RIGHT(B41,LEN(B41)-FIND(" ",B41))))-FIND(" ",TRIM(RIGHT(B41,LEN(B41)-FIND(" ",B41)))))),TRIM(RIGHT(B41,LEN(B41)-FIND(" ",B41))))))),LEN(TRIM(LEFT(IF(FIND(" ",TRIM(RIGHT(B41,LEN(B41)-FIND(" ",B41))))<4,TRIM(RIGHT(TRIM(RIGHT(B41,LEN(B41)-FIND(" ",B41))),LEN(TRIM(RIGHT(B41,LEN(B41)-FIND(" ",B41))))-FIND(" ",TRIM(RIGHT(B41,LEN(B41)-FIND(" ",B41)))))),TRIM(RIGHT(B41,LEN(B41)-FIND(" ",B41)))),FIND(" ",IF(FIND(" ",TRIM(RIGHT(B41,LEN(B41)-FIND(" ",B41))))<4,TRIM(RIGHT(TRIM(RIGHT(B41,LEN(B41)-FIND(" ",B41))),LEN(TRIM(RIGHT(B41,LEN(B41)-FIND(" ",B41))))-FIND(" ",TRIM(RIGHT(B41,LEN(B41)-FIND(" ",B41)))))),TRIM(RIGHT(B41,LEN(B41)-FIND(" ",B41))))))))-2))*1)) -> Pike | J40: =IF(B41="","Z",1*(TRIM(LEFT(B41,FIND(" ",B41))))) -> 1509 | L40: =IF(B41="","",IF(N40="","N","Y")) -> N | M40: =IF(G40="Approved on",IF(L40="","",IF(L40="Y",IF(N40+14<TODAY(),"Y","N"),"N")),IF(G40="Denied on",IF(H40+14<TODAY(),"Y","N"),"")) -> 
B41: 1509 Pike Pl #3 | C41: Markte Grill | D41: 10' X 18' | E41: 353254 | F41: Comment Period thru 8/10/17 | G41: Comment Period thru | H41: 2017-08-10 | I41: =IF(B42="","Z",IF(ISERROR((LEFT(TRIM(LEFT(IF(FIND(" ",TRIM(RIGHT(B42,LEN(B42)-FIND(" ",B42))))<4,TRIM(RIGHT(TRIM(RIGHT(B42,LEN(B42)-FIND(" ",B42))),LEN(TRIM(RIGHT(B42,LEN(B42)-FIND(" ",B42))))-FIND(" ",TRIM(RIGHT(B42,LEN(B42)-FIND(" ",B42)))))),TRIM(RIGHT(B42,LEN(B42)-FIND(" ",B42)))),FIND(" ",IF(FIND(" ",TRIM(RIGHT(B42,LEN(B42)-FIND(" ",B42))))<4,TRIM(RIGHT(TRIM(RIGHT(B42,LEN(B42)-FIND(" ",B42))),LEN(TRIM(RIGHT(B42,LEN(B42)-FIND(" ",B42))))-FIND(" ",TRIM(RIGHT(B42,LEN(B42)-FIND(" ",B42)))))),TRIM(RIGHT(B42,LEN(B42)-FIND(" ",B42))))))),LEN(TRIM(LEFT(IF(FIND(" ",TRIM(RIGHT(B42,LEN(B42)-FIND(" ",B42))))<4,TRIM(RIGHT(TRIM(RIGHT(B42,LEN(B42)-FIND(" ",B42))),LEN(TRIM(RIGHT(B42,LEN(B42)-FIND(" ",B42))))-FIND(" ",TRIM(RIGHT(B42,LEN(B42)-FIND(" ",B42)))))),TRIM(RIGHT(B42,LEN(B42)-FIND(" ",B42)))),FIND(" ",IF(FIND(" ",TRIM(RIGHT(B42,LEN(B42)-FIND(" ",B42))))<4,TRIM(RIGHT(TRIM(RIGHT(B42,LEN(B42)-FIND(" ",B42))),LEN(TRIM(RIGHT(B42,LEN(B42)-FIND(" ",B42))))-FIND(" ",TRIM(RIGHT(B42,LEN(B42)-FIND(" ",B42)))))),TRIM(RIGHT(B42,LEN(B42)-FIND(" ",B42))))))))-2))*1),TRIM(LEFT(IF(FIND(" ",TRIM(RIGHT(B42,LEN(B42)-FIND(" ",B42))))<4,TRIM(RIGHT(TRIM(RIGHT(B42,LEN(B42)-FIND(" ",B42))),LEN(TRIM(RIGHT(B42,LEN(B42)-FIND(" ",B42))))-FIND(" ",TRIM(RIGHT(B42,LEN(B42)-FIND(" ",B42)))))),TRIM(RIGHT(B42,LEN(B42)-FIND(" ",B42)))),FIND(" ",IF(FIND(" ",TRIM(RIGHT(B42,LEN(B42)-FIND(" ",B42))))<4,TRIM(RIGHT(TRIM(RIGHT(B42,LEN(B42)-FIND(" ",B42))),LEN(TRIM(RIGHT(B42,LEN(B42)-FIND(" ",B42))))-FIND(" ",TRIM(RIGHT(B42,LEN(B42)-FIND(" ",B42)))))),TRIM(RIGHT(B42,LEN(B42)-FIND(" ",B42))))))),(LEFT(TRIM(LEFT(IF(FIND(" ",TRIM(RIGHT(B42,LEN(B42)-FIND(" ",B42))))<4,TRIM(RIGHT(TRIM(RIGHT(B42,LEN(B42)-FIND(" ",B42))),LEN(TRIM(RIGHT(B42,LEN(B42)-FIND(" ",B42))))-FIND(" ",TRIM(RIGHT(B42,LEN(B42)-FIND(" ",B42)))))),TRIM(RIGHT(B42,LEN(B42)-FIND(" ",B42)))),FIND(" ",IF(FIND(" ",TRIM(RIGHT(B42,LEN(B42)-FIND(" ",B42))))<4,TRIM(RIGHT(TRIM(RIGHT(B42,LEN(B42)-FIND(" ",B42))),LEN(TRIM(RIGHT(B42,LEN(B42)-FIND(" ",B42))))-FIND(" ",TRIM(RIGHT(B42,LEN(B42)-FIND(" ",B42)))))),TRIM(RIGHT(B42,LEN(B42)-FIND(" ",B42))))))),LEN(TRIM(LEFT(IF(FIND(" ",TRIM(RIGHT(B42,LEN(B42)-FIND(" ",B42))))<4,TRIM(RIGHT(TRIM(RIGHT(B42,LEN(B42)-FIND(" ",B42))),LEN(TRIM(RIGHT(B42,LEN(B42)-FIND(" ",B42))))-FIND(" ",TRIM(RIGHT(B42,LEN(B42)-FIND(" ",B42)))))),TRIM(RIGHT(B42,LEN(B42)-FIND(" ",B42)))),FIND(" ",IF(FIND(" ",TRIM(RIGHT(B42,LEN(B42)-FIND(" ",B42))))<4,TRIM(RIGHT(TRIM(RIGHT(B42,LEN(B42)-FIND(" ",B42))),LEN(TRIM(RIGHT(B42,LEN(B42)-FIND(" ",B42))))-FIND(" ",TRIM(RIGHT(B42,LEN(B42)-FIND(" ",B42)))))),TRIM(RIGHT(B42,LEN(B42)-FIND(" ",B42))))))))-2))*1)) -> 1 | J41: =IF(B42="","Z",1*(TRIM(LEFT(B42,FIND(" ",B42))))) -> 2630 | L41: =IF(B42="","",IF(N41="","N","Y")) -> N | M41: =IF(G41="Approved on",IF(L41="","",IF(L41="Y",IF(N41+14<TODAY(),"Y","N"),"N")),IF(G41="Denied on",IF(H41+14<TODAY(),"Y","N"),"")) -> 
B42: 2630 1st AVE | C42: Taqueria Cantina | D42: 4' X 38' | E42: 340898 | F42: Comment period thru 4/27/2017 | G42: Comment Period thru | H42: 2017-04-27 | I42: =IF(B43="","Z",IF(ISERROR((LEFT(TRIM(LEFT(IF(FIND(" ",TRIM(RIGHT(B43,LEN(B43)-FIND(" ",B43))))<4,TRIM(RIGHT(TRIM(RIGHT(B43,LEN(B43)-FIND(" ",B43))),LEN(TRIM(RIGHT(B43,LEN(B43)-FIND(" ",B43))))-FIND(" ",TRIM(RIGHT(B43,LEN(B43)-FIND(" ",B43)))))),TRIM(RIGHT(B43,LEN(B43)-FIND(" ",B43)))),FIND(" ",IF(FIND(" ",TRIM(RIGHT(B43,LEN(B43)-FIND(" ",B43))))<4,TRIM(RIGHT(TRIM(RIGHT(B43,LEN(B43)-FIND(" ",B43))),LEN(TRIM(RIGHT(B43,LEN(B43)-FIND(" ",B43))))-FIND(" ",TRIM(RIGHT(B43,LEN(B43)-FIND(" ",B43)))))),TRIM(RIGHT(B43,LEN(B43)-FIND(" ",B43))))))),LEN(TRIM(LEFT(IF(FIND(" ",TRIM(RIGHT(B43,LEN(B43)-FIND(" ",B43))))<4,TRIM(RIGHT(TRIM(RIGHT(B43,LEN(B43)-FIND(" ",B43))),LEN(TRIM(RIGHT(B43,LEN(B43)-FIND(" ",B43))))-FIND(" ",TRIM(RIGHT(B43,LEN(B43)-FIND(" ",B43)))))),TRIM(RIGHT(B43,LEN(B43)-FIND(" ",B43)))),FIND(" ",IF(FIND(" ",TRIM(RIGHT(B43,LEN(B43)-FIND(" ",B43))))<4,TRIM(RIGHT(TRIM(RIGHT(B43,LEN(B43)-FIND(" ",B43))),LEN(TRIM(RIGHT(B43,LEN(B43)-FIND(" ",B43))))-FIND(" ",TRIM(RIGHT(B43,LEN(B43)-FIND(" ",B43)))))),TRIM(RIGHT(B43,LEN(B43)-FIND(" ",B43))))))))-2))*1),TRIM(LEFT(IF(FIND(" ",TRIM(RIGHT(B43,LEN(B43)-FIND(" ",B43))))<4,TRIM(RIGHT(TRIM(RIGHT(B43,LEN(B43)-FIND(" ",B43))),LEN(TRIM(RIGHT(B43,LEN(B43)-FIND(" ",B43))))-FIND(" ",TRIM(RIGHT(B43,LEN(B43)-FIND(" ",B43)))))),TRIM(RIGHT(B43,LEN(B43)-FIND(" ",B43)))),FIND(" ",IF(FIND(" ",TRIM(RIGHT(B43,LEN(B43)-FIND(" ",B43))))<4,TRIM(RIGHT(TRIM(RIGHT(B43,LEN(B43)-FIND(" ",B43))),LEN(TRIM(RIGHT(B43,LEN(B43)-FIND(" ",B43))))-FIND(" ",TRIM(RIGHT(B43,LEN(B43)-FIND(" ",B43)))))),TRIM(RIGHT(B43,LEN(B43)-FIND(" ",B43))))))),(LEFT(TRIM(LEFT(IF(FIND(" ",TRIM(RIGHT(B43,LEN(B43)-FIND(" ",B43))))<4,TRIM(RIGHT(TRIM(RIGHT(B43,LEN(B43)-FIND(" ",B43))),LEN(TRIM(RIGHT(B43,LEN(B43)-FIND(" ",B43))))-FIND(" ",TRIM(RIGHT(B43,LEN(B43)-FIND(" ",B43)))))),TRIM(RIGHT(B43,LEN(B43)-FIND(" ",B43)))),FIND(" ",IF(FIND(" ",TRIM(RIGHT(B43,LEN(B43)-FIND(" ",B43))))<4,TRIM(RIGHT(TRIM(RIGHT(B43,LEN(B43)-FIND(" ",B43))),LEN(TRIM(RIGHT(B43,LEN(B43)-FIND(" ",B43))))-FIND(" ",TRIM(RIGHT(B43,LEN(B43)-FIND(" ",B43)))))),TRIM(RIGHT(B43,LEN(B43)-FIND(" ",B43))))))),LEN(TRIM(LEFT(IF(FIND(" ",TRIM(RIGHT(B43,LEN(B43)-FIND(" ",B43))))<4,TRIM(RIGHT(TRIM(RIGHT(B43,LEN(B43)-FIND(" ",B43))),LEN(TRIM(RIGHT(B43,LEN(B43)-FIND(" ",B43))))-FIND(" ",TRIM(RIGHT(B43,LEN(B43)-FIND(" ",B43)))))),TRIM(RIGHT(B43,LEN(B43)-FIND(" ",B43)))),FIND(" ",IF(FIND(" ",TRIM(RIGHT(B43,LEN(B43)-FIND(" ",B43))))<4,TRIM(RIGHT(TRIM(RIGHT(B43,LEN(B43)-FIND(" ",B43))),LEN(TRIM(RIGHT(B43,LEN(B43)-FIND(" ",B43))))-FIND(" ",TRIM(RIGHT(B43,LEN(B43)-FIND(" ",B43)))))),TRIM(RIGHT(B43,LEN(B43)-FIND(" ",B43))))))))-2))*1)) -> Westlake | J42: =IF(B43="","Z",1*(TRIM(LEFT(B43,FIND(" ",B43))))) -> 116 | L42: =IF(B43="","",IF(N42="","N","Y")) -> N | M42: =IF(G42="Approved on",IF(L42="","",IF(L42="Y",IF(N42+14<TODAY(),"Y","N"),"N")),IF(G42="Denied on",IF(H42+14<TODAY(),"Y","N"),"")) -> 
B43: 116 Westlake AVE N | C43: La Toscanella | D43: 20.5' X 5.5" | E43: 312350 | F43: comment period thru 08/09/16 | G43: Comment Period thru | H43: 2016-08-09 | I43: =IF(B44="","Z",IF(ISERROR((LEFT(TRIM(LEFT(IF(FIND(" ",TRIM(RIGHT(B44,LEN(B44)-FIND(" ",B44))))<4,TRIM(RIGHT(TRIM(RIGHT(B44,LEN(B44)-FIND(" ",B44))),LEN(TRIM(RIGHT(B44,LEN(B44)-FIND(" ",B44))))-FIND(" ",TRIM(RIGHT(B44,LEN(B44)-FIND(" ",B44)))))),TRIM(RIGHT(B44,LEN(B44)-FIND(" ",B44)))),FIND(" ",IF(FIND(" ",TRIM(RIGHT(B44,LEN(B44)-FIND(" ",B44))))<4,TRIM(RIGHT(TRIM(RIGHT(B44,LEN(B44)-FIND(" ",B44))),LEN(TRIM(RIGHT(B44,LEN(B44)-FIND(" ",B44))))-FIND(" ",TRIM(RIGHT(B44,LEN(B44)-FIND(" ",B44)))))),TRIM(RIGHT(B44,LEN(B44)-FIND(" ",B44))))))),LEN(TRIM(LEFT(IF(FIND(" ",TRIM(RIGHT(B44,LEN(B44)-FIND(" ",B44))))<4,TRIM(RIGHT(TRIM(RIGHT(B44,LEN(B44)-FIND(" ",B44))),LEN(TRIM(RIGHT(B44,LEN(B44)-FIND(" ",B44))))-FIND(" ",TRIM(RIGHT(B44,LEN(B44)-FIND(" ",B44)))))),TRIM(RIGHT(B44,LEN(B44)-FIND(" ",B44)))),FIND(" ",IF(FIND(" ",TRIM(RIGHT(B44,LEN(B44)-FIND(" ",B44))))<4,TRIM(RIGHT(TRIM(RIGHT(B44,LEN(B44)-FIND(" ",B44))),LEN(TRIM(RIGHT(B44,LEN(B44)-FIND(" ",B44))))-FIND(" ",TRIM(RIGHT(B44,LEN(B44)-FIND(" ",B44)))))),TRIM(RIGHT(B44,LEN(B44)-FIND(" ",B44))))))))-2))*1),TRIM(LEFT(IF(FIND(" ",TRIM(RIGHT(B44,LEN(B44)-FIND(" ",B44))))<4,TRIM(RIGHT(TRIM(RIGHT(B44,LEN(B44)-FIND(" ",B44))),LEN(TRIM(RIGHT(B44,LEN(B44)-FIND(" ",B44))))-FIND(" ",TRIM(RIGHT(B44,LEN(B44)-FIND(" ",B44)))))),TRIM(RIGHT(B44,LEN(B44)-FIND(" ",B44)))),FIND(" ",IF(FIND(" ",TRIM(RIGHT(B44,LEN(B44)-FIND(" ",B44))))<4,TRIM(RIGHT(TRIM(RIGHT(B44,LEN(B44)-FIND(" ",B44))),LEN(TRIM(RIGHT(B44,LEN(B44)-FIND(" ",B44))))-FIND(" ",TRIM(RIGHT(B44,LEN(B44)-FIND(" ",B44)))))),TRIM(RIGHT(B44,LEN(B44)-FIND(" ",B44))))))),(LEFT(TRIM(LEFT(IF(FIND(" ",TRIM(RIGHT(B44,LEN(B44)-FIND(" ",B44))))<4,TRIM(RIGHT(TRIM(RIGHT(B44,LEN(B44)-FIND(" ",B44))),LEN(TRIM(RIGHT(B44,LEN(B44)-FIND(" ",B44))))-FIND(" ",TRIM(RIGHT(B44,LEN(B44)-FIND(" ",B44)))))),TRIM(RIGHT(B44,LEN(B44)-FIND(" ",B44)))),FIND(" ",IF(FIND(" ",TRIM(RIGHT(B44,LEN(B44)-FIND(" ",B44))))<4,TRIM(RIGHT(TRIM(RIGHT(B44,LEN(B44)-FIND(" ",B44))),LEN(TRIM(RIGHT(B44,LEN(B44)-FIND(" ",B44))))-FIND(" ",TRIM(RIGHT(B44,LEN(B44)-FIND(" ",B44)))))),TRIM(RIGHT(B44,LEN(B44)-FIND(" ",B44))))))),LEN(TRIM(LEFT(IF(FIND(" ",TRIM(RIGHT(B44,LEN(B44)-FIND(" ",B44))))<4,TRIM(RIGHT(TRIM(RIGHT(B44,LEN(B44)-FIND(" ",B44))),LEN(TRIM(RIGHT(B44,LEN(B44)-FIND(" ",B44))))-FIND(" ",TRIM(RIGHT(B44,LEN(B44)-FIND(" ",B44)))))),TRIM(RIGHT(B44,LEN(B44)-FIND(" ",B44)))),FIND(" ",IF(FIND(" ",TRIM(RIGHT(B44,LEN(B44)-FIND(" ",B44))))<4,TRIM(RIGHT(TRIM(RIGHT(B44,LEN(B44)-FIND(" ",B44))),LEN(TRIM(RIGHT(B44,LEN(B44)-FIND(" ",B44))))-FIND(" ",TRIM(RIGHT(B44,LEN(B44)-FIND(" ",B44)))))),TRIM(RIGHT(B44,LEN(B44)-FIND(" ",B44))))))))-2))*1)) -> 45 | J43: =IF(B44="","Z",1*(TRIM(LEFT(B44,FIND(" ",B44))))) -> 2200 | L43: =IF(B44="","",IF(N43="","N","Y")) -> N | M43: =IF(G43="Approved on",IF(L43="","",IF(L43="Y",IF(N43+14<TODAY(),"Y","N"),"N")),IF(G43="Denied on",IF(H43+14<TODAY(),"Y","N"),"")) -> 
B44: 2200 N 45th St | C44: Seamonster Lounge | D44: 7' x 46' | E44: 288994 | F44: =IF(G44="","",IF(H44="",G44,G44&" "&TEXT(H44,"m/d/yyyy"))) -> Approved on 6/14/2016 | G44: Approved on | H44: 2016-06-14 | I44: =IF(B44="","Z",IF(ISERROR((LEFT(TRIM(LEFT(IF(FIND(" ",TRIM(RIGHT(B44,LEN(B44)-FIND(" ",B44))))<4,TRIM(RIGHT(TRIM(RIGHT(B44,LEN(B44)-FIND(" ",B44))),LEN(TRIM(RIGHT(B44,LEN(B44)-FIND(" ",B44))))-FIND(" ",TRIM(RIGHT(B44,LEN(B44)-FIND(" ",B44)))))),TRIM(RIGHT(B44,LEN(B44)-FIND(" ",B44)))),FIND(" ",IF(FIND(" ",TRIM(RIGHT(B44,LEN(B44)-FIND(" ",B44))))<4,TRIM(RIGHT(TRIM(RIGHT(B44,LEN(B44)-FIND(" ",B44))),LEN(TRIM(RIGHT(B44,LEN(B44)-FIND(" ",B44))))-FIND(" ",TRIM(RIGHT(B44,LEN(B44)-FIND(" ",B44)))))),TRIM(RIGHT(B44,LEN(B44)-FIND(" ",B44))))))),LEN(TRIM(LEFT(IF(FIND(" ",TRIM(RIGHT(B44,LEN(B44)-FIND(" ",B44))))<4,TRIM(RIGHT(TRIM(RIGHT(B44,LEN(B44)-FIND(" ",B44))),LEN(TRIM(RIGHT(B44,LEN(B44)-FIND(" ",B44))))-FIND(" ",TRIM(RIGHT(B44,LEN(B44)-FIND(" ",B44)))))),TRIM(RIGHT(B44,LEN(B44)-FIND(" ",B44)))),FIND(" ",IF(FIND(" ",TRIM(RIGHT(B44,LEN(B44)-FIND(" ",B44))))<4,TRIM(RIGHT(TRIM(RIGHT(B44,LEN(B44)-FIND(" ",B44))),LEN(TRIM(RIGHT(B44,LEN(B44)-FIND(" ",B44))))-FIND(" ",TRIM(RIGHT(B44,LEN(B44)-FIND(" ",B44)))))),TRIM(RIGHT(B44,LEN(B44)-FIND(" ",B44))))))))-2))*1),TRIM(LEFT(IF(FIND(" ",TRIM(RIGHT(B44,LEN(B44)-FIND(" ",B44))))<4,TRIM(RIGHT(TRIM(RIGHT(B44,LEN(B44)-FIND(" ",B44))),LEN(TRIM(RIGHT(B44,LEN(B44)-FIND(" ",B44))))-FIND(" ",TRIM(RIGHT(B44,LEN(B44)-FIND(" ",B44)))))),TRIM(RIGHT(B44,LEN(B44)-FIND(" ",B44)))),FIND(" ",IF(FIND(" ",TRIM(RIGHT(B44,LEN(B44)-FIND(" ",B44))))<4,TRIM(RIGHT(TRIM(RIGHT(B44,LEN(B44)-FIND(" ",B44))),LEN(TRIM(RIGHT(B44,LEN(B44)-FIND(" ",B44))))-FIND(" ",TRIM(RIGHT(B44,LEN(B44)-FIND(" ",B44)))))),TRIM(RIGHT(B44,LEN(B44)-FIND(" ",B44))))))),(LEFT(TRIM(LEFT(IF(FIND(" ",TRIM(RIGHT(B44,LEN(B44)-FIND(" ",B44))))<4,TRIM(RIGHT(TRIM(RIGHT(B44,LEN(B44)-FIND(" ",B44))),LEN(TRIM(RIGHT(B44,LEN(B44)-FIND(" ",B44))))-FIND(" ",TRIM(RIGHT(B44,LEN(B44)-FIND(" ",B44)))))),TRIM(RIGHT(B44,LEN(B44)-FIND(" ",B44)))),FIND(" ",IF(FIND(" ",TRIM(RIGHT(B44,LEN(B44)-FIND(" ",B44))))<4,TRIM(RIGHT(TRIM(RIGHT(B44,LEN(B44)-FIND(" ",B44))),LEN(TRIM(RIGHT(B44,LEN(B44)-FIND(" ",B44))))-FIND(" ",TRIM(RIGHT(B44,LEN(B44)-FIND(" ",B44)))))),TRIM(RIGHT(B44,LEN(B44)-FIND(" ",B44))))))),LEN(TRIM(LEFT(IF(FIND(" ",TRIM(RIGHT(B44,LEN(B44)-FIND(" ",B44))))<4,TRIM(RIGHT(TRIM(RIGHT(B44,LEN(B44)-FIND(" ",B44))),LEN(TRIM(RIGHT(B44,LEN(B44)-FIND(" ",B44))))-FIND(" ",TRIM(RIGHT(B44,LEN(B44)-FIND(" ",B44)))))),TRIM(RIGHT(B44,LEN(B44)-FIND(" ",B44)))),FIND(" ",IF(FIND(" ",TRIM(RIGHT(B44,LEN(B44)-FIND(" ",B44))))<4,TRIM(RIGHT(TRIM(RIGHT(B44,LEN(B44)-FIND(" ",B44))),LEN(TRIM(RIGHT(B44,LEN(B44)-FIND(" ",B44))))-FIND(" ",TRIM(RIGHT(B44,LEN(B44)-FIND(" ",B44)))))),TRIM(RIGHT(B44,LEN(B44)-FIND(" ",B44))))))))-2))*1)) -> 45 | J44: =IF(B44="","Z",1*(TRIM(LEFT(B44,FIND(" ",B44))))) -> 2200 | L44: Y | M44: =IF(G44="Approved on",IF(L44="","",IF(L44="Y",IF(N44+14<TODAY(),"Y","N"),"N")),IF(G44="Denied on",IF(H44+14<TODAY(),"Y","N"),"")) -> Y | N44: 2016-06-14
B45: 5813 Airport Way S | C45: Atelier Coffee Company | D45: 3' x 11'-3" | E45: 330867 | F45: =IF(G45="","",IF(H45="",G45,G45&" "&TEXT(H45,"m/d/yyyy"))) -> Approved on 9/6/2017 | G45: Approved on | H45: 2017-09-06 | I45: =IF(B46="","Z",IF(ISERROR((LEFT(TRIM(LEFT(IF(FIND(" ",TRIM(RIGHT(B46,LEN(B46)-FIND(" ",B46))))<4,TRIM(RIGHT(TRIM(RIGHT(B46,LEN(B46)-FIND(" ",B46))),LEN(TRIM(RIGHT(B46,LEN(B46)-FIND(" ",B46))))-FIND(" ",TRIM(RIGHT(B46,LEN(B46)-FIND(" ",B46)))))),TRIM(RIGHT(B46,LEN(B46)-FIND(" ",B46)))),FIND(" ",IF(FIND(" ",TRIM(RIGHT(B46,LEN(B46)-FIND(" ",B46))))<4,TRIM(RIGHT(TRIM(RIGHT(B46,LEN(B46)-FIND(" ",B46))),LEN(TRIM(RIGHT(B46,LEN(B46)-FIND(" ",B46))))-FIND(" ",TRIM(RIGHT(B46,LEN(B46)-FIND(" ",B46)))))),TRIM(RIGHT(B46,LEN(B46)-FIND(" ",B46))))))),LEN(TRIM(LEFT(IF(FIND(" ",TRIM(RIGHT(B46,LEN(B46)-FIND(" ",B46))))<4,TRIM(RIGHT(TRIM(RIGHT(B46,LEN(B46)-FIND(" ",B46))),LEN(TRIM(RIGHT(B46,LEN(B46)-FIND(" ",B46))))-FIND(" ",TRIM(RIGHT(B46,LEN(B46)-FIND(" ",B46)))))),TRIM(RIGHT(B46,LEN(B46)-FIND(" ",B46)))),FIND(" ",IF(FIND(" ",TRIM(RIGHT(B46,LEN(B46)-FIND(" ",B46))))<4,TRIM(RIGHT(TRIM(RIGHT(B46,LEN(B46)-FIND(" ",B46))),LEN(TRIM(RIGHT(B46,LEN(B46)-FIND(" ",B46))))-FIND(" ",TRIM(RIGHT(B46,LEN(B46)-FIND(" ",B46)))))),TRIM(RIGHT(B46,LEN(B46)-FIND(" ",B46))))))))-2))*1),TRIM(LEFT(IF(FIND(" ",TRIM(RIGHT(B46,LEN(B46)-FIND(" ",B46))))<4,TRIM(RIGHT(TRIM(RIGHT(B46,LEN(B46)-FIND(" ",B46))),LEN(TRIM(RIGHT(B46,LEN(B46)-FIND(" ",B46))))-FIND(" ",TRIM(RIGHT(B46,LEN(B46)-FIND(" ",B46)))))),TRIM(RIGHT(B46,LEN(B46)-FIND(" ",B46)))),FIND(" ",IF(FIND(" ",TRIM(RIGHT(B46,LEN(B46)-FIND(" ",B46))))<4,TRIM(RIGHT(TRIM(RIGHT(B46,LEN(B46)-FIND(" ",B46))),LEN(TRIM(RIGHT(B46,LEN(B46)-FIND(" ",B46))))-FIND(" ",TRIM(RIGHT(B46,LEN(B46)-FIND(" ",B46)))))),TRIM(RIGHT(B46,LEN(B46)-FIND(" ",B46))))))),(LEFT(TRIM(LEFT(IF(FIND(" ",TRIM(RIGHT(B46,LEN(B46)-FIND(" ",B46))))<4,TRIM(RIGHT(TRIM(RIGHT(B46,LEN(B46)-FIND(" ",B46))),LEN(TRIM(RIGHT(B46,LEN(B46)-FIND(" ",B46))))-FIND(" ",TRIM(RIGHT(B46,LEN(B46)-FIND(" ",B46)))))),TRIM(RIGHT(B46,LEN(B46)-FIND(" ",B46)))),FIND(" ",IF(FIND(" ",TRIM(RIGHT(B46,LEN(B46)-FIND(" ",B46))))<4,TRIM(RIGHT(TRIM(RIGHT(B46,LEN(B46)-FIND(" ",B46))),LEN(TRIM(RIGHT(B46,LEN(B46)-FIND(" ",B46))))-FIND(" ",TRIM(RIGHT(B46,LEN(B46)-FIND(" ",B46)))))),TRIM(RIGHT(B46,LEN(B46)-FIND(" ",B46))))))),LEN(TRIM(LEFT(IF(FIND(" ",TRIM(RIGHT(B46,LEN(B46)-FIND(" ",B46))))<4,TRIM(RIGHT(TRIM(RIGHT(B46,LEN(B46)-FIND(" ",B46))),LEN(TRIM(RIGHT(B46,LEN(B46)-FIND(" ",B46))))-FIND(" ",TRIM(RIGHT(B46,LEN(B46)-FIND(" ",B46)))))),TRIM(RIGHT(B46,LEN(B46)-FIND(" ",B46)))),FIND(" ",IF(FIND(" ",TRIM(RIGHT(B46,LEN(B46)-FIND(" ",B46))))<4,TRIM(RIGHT(TRIM(RIGHT(B46,LEN(B46)-FIND(" ",B46))),LEN(TRIM(RIGHT(B46,LEN(B46)-FIND(" ",B46))))-FIND(" ",TRIM(RIGHT(B46,LEN(B46)-FIND(" ",B46)))))),TRIM(RIGHT(B46,LEN(B46)-FIND(" ",B46))))))))-2))*1)) -> Boston | J45: =IF(B46="","Z",1*(TRIM(LEFT(B46,FIND(" ",B46))))) -> 12 | L45: N | M45: =IF(G45="Approved on",IF(L45="","",IF(L45="Y",IF(N45+14<TODAY(),"Y","N"),"N")),IF(G45="Denied on",IF(H45+14<TODAY(),"Y","N"),"")) -> N | N45: 2017-09-11
B46: 12 Boston st | C46: Ping Chong co | D46: 6' 8" X 25' | E46: 309335 | F46: comment period thru 08/02/16 | G46: Approved on | H46: 2016-09-12 | I46: =IF(B47="","Z",IF(ISERROR((LEFT(TRIM(LEFT(IF(FIND(" ",TRIM(RIGHT(B47,LEN(B47)-FIND(" ",B47))))<4,TRIM(RIGHT(TRIM(RIGHT(B47,LEN(B47)-FIND(" ",B47))),LEN(TRIM(RIGHT(B47,LEN(B47)-FIND(" ",B47))))-FIND(" ",TRIM(RIGHT(B47,LEN(B47)-FIND(" ",B47)))))),TRIM(RIGHT(B47,LEN(B47)-FIND(" ",B47)))),FIND(" ",IF(FIND(" ",TRIM(RIGHT(B47,LEN(B47)-FIND(" ",B47))))<4,TRIM(RIGHT(TRIM(RIGHT(B47,LEN(B47)-FIND(" ",B47))),LEN(TRIM(RIGHT(B47,LEN(B47)-FIND(" ",B47))))-FIND(" ",TRIM(RIGHT(B47,LEN(B47)-FIND(" ",B47)))))),TRIM(RIGHT(B47,LEN(B47)-FIND(" ",B47))))))),LEN(TRIM(LEFT(IF(FIND(" ",TRIM(RIGHT(B47,LEN(B47)-FIND(" ",B47))))<4,TRIM(RIGHT(TRIM(RIGHT(B47,LEN(B47)-FIND(" ",B47))),LEN(TRIM(RIGHT(B47,LEN(B47)-FIND(" ",B47))))-FIND(" ",TRIM(RIGHT(B47,LEN(B47)-FIND(" ",B47)))))),TRIM(RIGHT(B47,LEN(B47)-FIND(" ",B47)))),FIND(" ",IF(FIND(" ",TRIM(RIGHT(B47,LEN(B47)-FIND(" ",B47))))<4,TRIM(RIGHT(TRIM(RIGHT(B47,LEN(B47)-FIND(" ",B47))),LEN(TRIM(RIGHT(B47,LEN(B47)-FIND(" ",B47))))-FIND(" ",TRIM(RIGHT(B47,LEN(B47)-FIND(" ",B47)))))),TRIM(RIGHT(B47,LEN(B47)-FIND(" ",B47))))))))-2))*1),TRIM(LEFT(IF(FIND(" ",TRIM(RIGHT(B47,LEN(B47)-FIND(" ",B47))))<4,TRIM(RIGHT(TRIM(RIGHT(B47,LEN(B47)-FIND(" ",B47))),LEN(TRIM(RIGHT(B47,LEN(B47)-FIND(" ",B47))))-FIND(" ",TRIM(RIGHT(B47,LEN(B47)-FIND(" ",B47)))))),TRIM(RIGHT(B47,LEN(B47)-FIND(" ",B47)))),FIND(" ",IF(FIND(" ",TRIM(RIGHT(B47,LEN(B47)-FIND(" ",B47))))<4,TRIM(RIGHT(TRIM(RIGHT(B47,LEN(B47)-FIND(" ",B47))),LEN(TRIM(RIGHT(B47,LEN(B47)-FIND(" ",B47))))-FIND(" ",TRIM(RIGHT(B47,LEN(B47)-FIND(" ",B47)))))),TRIM(RIGHT(B47,LEN(B47)-FIND(" ",B47))))))),(LEFT(TRIM(LEFT(IF(FIND(" ",TRIM(RIGHT(B47,LEN(B47)-FIND(" ",B47))))<4,TRIM(RIGHT(TRIM(RIGHT(B47,LEN(B47)-FIND(" ",B47))),LEN(TRIM(RIGHT(B47,LEN(B47)-FIND(" ",B47))))-FIND(" ",TRIM(RIGHT(B47,LEN(B47)-FIND(" ",B47)))))),TRIM(RIGHT(B47,LEN(B47)-FIND(" ",B47)))),FIND(" ",IF(FIND(" ",TRIM(RIGHT(B47,LEN(B47)-FIND(" ",B47))))<4,TRIM(RIGHT(TRIM(RIGHT(B47,LEN(B47)-FIND(" ",B47))),LEN(TRIM(RIGHT(B47,LEN(B47)-FIND(" ",B47))))-FIND(" ",TRIM(RIGHT(B47,LEN(B47)-FIND(" ",B47)))))),TRIM(RIGHT(B47,LEN(B47)-FIND(" ",B47))))))),LEN(TRIM(LEFT(IF(FIND(" ",TRIM(RIGHT(B47,LEN(B47)-FIND(" ",B47))))<4,TRIM(RIGHT(TRIM(RIGHT(B47,LEN(B47)-FIND(" ",B47))),LEN(TRIM(RIGHT(B47,LEN(B47)-FIND(" ",B47))))-FIND(" ",TRIM(RIGHT(B47,LEN(B47)-FIND(" ",B47)))))),TRIM(RIGHT(B47,LEN(B47)-FIND(" ",B47)))),FIND(" ",IF(FIND(" ",TRIM(RIGHT(B47,LEN(B47)-FIND(" ",B47))))<4,TRIM(RIGHT(TRIM(RIGHT(B47,LEN(B47)-FIND(" ",B47))),LEN(TRIM(RIGHT(B47,LEN(B47)-FIND(" ",B47))))-FIND(" ",TRIM(RIGHT(B47,LEN(B47)-FIND(" ",B47)))))),TRIM(RIGHT(B47,LEN(B47)-FIND(" ",B47))))))))-2))*1)) -> Green | J46: =IF(B47="","Z",1*(TRIM(LEFT(B47,FIND(" ",B47))))) -> 7900 | L46: Y | M46: =IF(G46="Approved on",IF(L46="","",IF(L46="Y",IF(N46+14<TODAY(),"Y","N"),"N")),IF(G46="Denied on",IF(H46+14<TODAY(),"Y","N"),"")) -> Y | N46: 2016-09-12
B47: 7900 E Green Lake Dr N | C47: Green Lake Alehouse | D47: 3'X 27' on Green lake | E47: 305669 | F47: Comment period thru 05/09/17 | G47: Comment Period thru | H47: 2017-05-09 | I47: =IF(B48="","Z",IF(ISERROR((LEFT(TRIM(LEFT(IF(FIND(" ",TRIM(RIGHT(B48,LEN(B48)-FIND(" ",B48))))<4,TRIM(RIGHT(TRIM(RIGHT(B48,LEN(B48)-FIND(" ",B48))),LEN(TRIM(RIGHT(B48,LEN(B48)-FIND(" ",B48))))-FIND(" ",TRIM(RIGHT(B48,LEN(B48)-FIND(" ",B48)))))),TRIM(RIGHT(B48,LEN(B48)-FIND(" ",B48)))),FIND(" ",IF(FIND(" ",TRIM(RIGHT(B48,LEN(B48)-FIND(" ",B48))))<4,TRIM(RIGHT(TRIM(RIGHT(B48,LEN(B48)-FIND(" ",B48))),LEN(TRIM(RIGHT(B48,LEN(B48)-FIND(" ",B48))))-FIND(" ",TRIM(RIGHT(B48,LEN(B48)-FIND(" ",B48)))))),TRIM(RIGHT(B48,LEN(B48)-FIND(" ",B48))))))),LEN(TRIM(LEFT(IF(FIND(" ",TRIM(RIGHT(B48,LEN(B48)-FIND(" ",B48))))<4,TRIM(RIGHT(TRIM(RIGHT(B48,LEN(B48)-FIND(" ",B48))),LEN(TRIM(RIGHT(B48,LEN(B48)-FIND(" ",B48))))-FIND(" ",TRIM(RIGHT(B48,LEN(B48)-FIND(" ",B48)))))),TRIM(RIGHT(B48,LEN(B48)-FIND(" ",B48)))),FIND(" ",IF(FIND(" ",TRIM(RIGHT(B48,LEN(B48)-FIND(" ",B48))))<4,TRIM(RIGHT(TRIM(RIGHT(B48,LEN(B48)-FIND(" ",B48))),LEN(TRIM(RIGHT(B48,LEN(B48)-FIND(" ",B48))))-FIND(" ",TRIM(RIGHT(B48,LEN(B48)-FIND(" ",B48)))))),TRIM(RIGHT(B48,LEN(B48)-FIND(" ",B48))))))))-2))*1),TRIM(LEFT(IF(FIND(" ",TRIM(RIGHT(B48,LEN(B48)-FIND(" ",B48))))<4,TRIM(RIGHT(TRIM(RIGHT(B48,LEN(B48)-FIND(" ",B48))),LEN(TRIM(RIGHT(B48,LEN(B48)-FIND(" ",B48))))-FIND(" ",TRIM(RIGHT(B48,LEN(B48)-FIND(" ",B48)))))),TRIM(RIGHT(B48,LEN(B48)-FIND(" ",B48)))),FIND(" ",IF(FIND(" ",TRIM(RIGHT(B48,LEN(B48)-FIND(" ",B48))))<4,TRIM(RIGHT(TRIM(RIGHT(B48,LEN(B48)-FIND(" ",B48))),LEN(TRIM(RIGHT(B48,LEN(B48)-FIND(" ",B48))))-FIND(" ",TRIM(RIGHT(B48,LEN(B48)-FIND(" ",B48)))))),TRIM(RIGHT(B48,LEN(B48)-FIND(" ",B48))))))),(LEFT(TRIM(LEFT(IF(FIND(" ",TRIM(RIGHT(B48,LEN(B48)-FIND(" ",B48))))<4,TRIM(RIGHT(TRIM(RIGHT(B48,LEN(B48)-FIND(" ",B48))),LEN(TRIM(RIGHT(B48,LEN(B48)-FIND(" ",B48))))-FIND(" ",TRIM(RIGHT(B48,LEN(B48)-FIND(" ",B48)))))),TRIM(RIGHT(B48,LEN(B48)-FIND(" ",B48)))),FIND(" ",IF(FIND(" ",TRIM(RIGHT(B48,LEN(B48)-FIND(" ",B48))))<4,TRIM(RIGHT(TRIM(RIGHT(B48,LEN(B48)-FIND(" ",B48))),LEN(TRIM(RIGHT(B48,LEN(B48)-FIND(" ",B48))))-FIND(" ",TRIM(RIGHT(B48,LEN(B48)-FIND(" ",B48)))))),TRIM(RIGHT(B48,LEN(B48)-FIND(" ",B48))))))),LEN(TRIM(LEFT(IF(FIND(" ",TRIM(RIGHT(B48,LEN(B48)-FIND(" ",B48))))<4,TRIM(RIGHT(TRIM(RIGHT(B48,LEN(B48)-FIND(" ",B48))),LEN(TRIM(RIGHT(B48,LEN(B48)-FIND(" ",B48))))-FIND(" ",TRIM(RIGHT(B48,LEN(B48)-FIND(" ",B48)))))),TRIM(RIGHT(B48,LEN(B48)-FIND(" ",B48)))),FIND(" ",IF(FIND(" ",TRIM(RIGHT(B48,LEN(B48)-FIND(" ",B48))))<4,TRIM(RIGHT(TRIM(RIGHT(B48,LEN(B48)-FIND(" ",B48))),LEN(TRIM(RIGHT(B48,LEN(B48)-FIND(" ",B48))))-FIND(" ",TRIM(RIGHT(B48,LEN(B48)-FIND(" ",B48)))))),TRIM(RIGHT(B48,LEN(B48)-FIND(" ",B48))))))))-2))*1)) -> 1 | J47: =IF(B48="","Z",1*(TRIM(LEFT(B48,FIND(" ",B48))))) -> 1950 | L47: =IF(B48="","",IF(N47="","N","Y")) -> N | M47: =IF(G47="Approved on",IF(L47="","",IF(L47="Y",IF(N47+14<TODAY(),"Y","N"),"N")),IF(G47="Denied on",IF(H47+14<TODAY(),"Y","N"),"")) -> 
B48: 1950 1st Ave S | C48: Eden | D48: 8' x 48' | E48: 354421 | F48: Comment Period thru 8/3/2017 | I48: =IF(B49="","Z",IF(ISERROR((LEFT(TRIM(LEFT(IF(FIND(" ",TRIM(RIGHT(B49,LEN(B49)-FIND(" ",B49))))<4,TRIM(RIGHT(TRIM(RIGHT(B49,LEN(B49)-FIND(" ",B49))),LEN(TRIM(RIGHT(B49,LEN(B49)-FIND(" ",B49))))-FIND(" ",TRIM(RIGHT(B49,LEN(B49)-FIND(" ",B49)))))),TRIM(RIGHT(B49,LEN(B49)-FIND(" ",B49)))),FIND(" ",IF(FIND(" ",TRIM(RIGHT(B49,LEN(B49)-FIND(" ",B49))))<4,TRIM(RIGHT(TRIM(RIGHT(B49,LEN(B49)-FIND(" ",B49))),LEN(TRIM(RIGHT(B49,LEN(B49)-FIND(" ",B49))))-FIND(" ",TRIM(RIGHT(B49,LEN(B49)-FIND(" ",B49)))))),TRIM(RIGHT(B49,LEN(B49)-FIND(" ",B49))))))),LEN(TRIM(LEFT(IF(FIND(" ",TRIM(RIGHT(B49,LEN(B49)-FIND(" ",B49))))<4,TRIM(RIGHT(TRIM(RIGHT(B49,LEN(B49)-FIND(" ",B49))),LEN(TRIM(RIGHT(B49,LEN(B49)-FIND(" ",B49))))-FIND(" ",TRIM(RIGHT(B49,LEN(B49)-FIND(" ",B49)))))),TRIM(RIGHT(B49,LEN(B49)-FIND(" ",B49)))),FIND(" ",IF(FIND(" ",TRIM(RIGHT(B49,LEN(B49)-FIND(" ",B49))))<4,TRIM(RIGHT(TRIM(RIGHT(B49,LEN(B49)-FIND(" ",B49))),LEN(TRIM(RIGHT(B49,LEN(B49)-FIND(" ",B49))))-FIND(" ",TRIM(RIGHT(B49,LEN(B49)-FIND(" ",B49)))))),TRIM(RIGHT(B49,LEN(B49)-FIND(" ",B49))))))))-2))*1),TRIM(LEFT(IF(FIND(" ",TRIM(RIGHT(B49,LEN(B49)-FIND(" ",B49))))<4,TRIM(RIGHT(TRIM(RIGHT(B49,LEN(B49)-FIND(" ",B49))),LEN(TRIM(RIGHT(B49,LEN(B49)-FIND(" ",B49))))-FIND(" ",TRIM(RIGHT(B49,LEN(B49)-FIND(" ",B49)))))),TRIM(RIGHT(B49,LEN(B49)-FIND(" ",B49)))),FIND(" ",IF(FIND(" ",TRIM(RIGHT(B49,LEN(B49)-FIND(" ",B49))))<4,TRIM(RIGHT(TRIM(RIGHT(B49,LEN(B49)-FIND(" ",B49))),LEN(TRIM(RIGHT(B49,LEN(B49)-FIND(" ",B49))))-FIND(" ",TRIM(RIGHT(B49,LEN(B49)-FIND(" ",B49)))))),TRIM(RIGHT(B49,LEN(B49)-FIND(" ",B49))))))),(LEFT(TRIM(LEFT(IF(FIND(" ",TRIM(RIGHT(B49,LEN(B49)-FIND(" ",B49))))<4,TRIM(RIGHT(TRIM(RIGHT(B49,LEN(B49)-FIND(" ",B49))),LEN(TRIM(RIGHT(B49,LEN(B49)-FIND(" ",B49))))-FIND(" ",TRIM(RIGHT(B49,LEN(B49)-FIND(" ",B49)))))),TRIM(RIGHT(B49,LEN(B49)-FIND(" ",B49)))),FIND(" ",IF(FIND(" ",TRIM(RIGHT(B49,LEN(B49)-FIND(" ",B49))))<4,TRIM(RIGHT(TRIM(RIGHT(B49,LEN(B49)-FIND(" ",B49))),LEN(TRIM(RIGHT(B49,LEN(B49)-FIND(" ",B49))))-FIND(" ",TRIM(RIGHT(B49,LEN(B49)-FIND(" ",B49)))))),TRIM(RIGHT(B49,LEN(B49)-FIND(" ",B49))))))),LEN(TRIM(LEFT(IF(FIND(" ",TRIM(RIGHT(B49,LEN(B49)-FIND(" ",B49))))<4,TRIM(RIGHT(TRIM(RIGHT(B49,LEN(B49)-FIND(" ",B49))),LEN(TRIM(RIGHT(B49,LEN(B49)-FIND(" ",B49))))-FIND(" ",TRIM(RIGHT(B49,LEN(B49)-FIND(" ",B49)))))),TRIM(RIGHT(B49,LEN(B49)-FIND(" ",B49)))),FIND(" ",IF(FIND(" ",TRIM(RIGHT(B49,LEN(B49)-FIND(" ",B49))))<4,TRIM(RIGHT(TRIM(RIGHT(B49,LEN(B49)-FIND(" ",B49))),LEN(TRIM(RIGHT(B49,LEN(B49)-FIND(" ",B49))))-FIND(" ",TRIM(RIGHT(B49,LEN(B49)-FIND(" ",B49)))))),TRIM(RIGHT(B49,LEN(B49)-FIND(" ",B49))))))))-2))*1)) -> Pine | J48: =IF(B49="","Z",1*(TRIM(LEFT(B49,FIND(" ",B49))))) -> 611 | L48: =IF(B49="","",IF(N48="","N","Y")) -> N | M48: =IF(G48="Approved on",IF(L48="","",IF(L48="Y",IF(N48+14<TODAY(),"Y","N"),"N")),IF(G48="Denied on",IF(H48+14<TODAY(),"Y","N"),"")) -> 
B49: 611 E Pine ST | C49: Suika Seattle | D49: 4'7" X 40' 11" | E49: 338871 | F49: comment period thru 4/6/17 | G49: Approved on | H49: 2017-04-27 | I49: =IF(B50="","Z",IF(ISERROR((LEFT(TRIM(LEFT(IF(FIND(" ",TRIM(RIGHT(B50,LEN(B50)-FIND(" ",B50))))<4,TRIM(RIGHT(TRIM(RIGHT(B50,LEN(B50)-FIND(" ",B50))),LEN(TRIM(RIGHT(B50,LEN(B50)-FIND(" ",B50))))-FIND(" ",TRIM(RIGHT(B50,LEN(B50)-FIND(" ",B50)))))),TRIM(RIGHT(B50,LEN(B50)-FIND(" ",B50)))),FIND(" ",IF(FIND(" ",TRIM(RIGHT(B50,LEN(B50)-FIND(" ",B50))))<4,TRIM(RIGHT(TRIM(RIGHT(B50,LEN(B50)-FIND(" ",B50))),LEN(TRIM(RIGHT(B50,LEN(B50)-FIND(" ",B50))))-FIND(" ",TRIM(RIGHT(B50,LEN(B50)-FIND(" ",B50)))))),TRIM(RIGHT(B50,LEN(B50)-FIND(" ",B50))))))),LEN(TRIM(LEFT(IF(FIND(" ",TRIM(RIGHT(B50,LEN(B50)-FIND(" ",B50))))<4,TRIM(RIGHT(TRIM(RIGHT(B50,LEN(B50)-FIND(" ",B50))),LEN(TRIM(RIGHT(B50,LEN(B50)-FIND(" ",B50))))-FIND(" ",TRIM(RIGHT(B50,LEN(B50)-FIND(" ",B50)))))),TRIM(RIGHT(B50,LEN(B50)-FIND(" ",B50)))),FIND(" ",IF(FIND(" ",TRIM(RIGHT(B50,LEN(B50)-FIND(" ",B50))))<4,TRIM(RIGHT(TRIM(RIGHT(B50,LEN(B50)-FIND(" ",B50))),LEN(TRIM(RIGHT(B50,LEN(B50)-FIND(" ",B50))))-FIND(" ",TRIM(RIGHT(B50,LEN(B50)-FIND(" ",B50)))))),TRIM(RIGHT(B50,LEN(B50)-FIND(" ",B50))))))))-2))*1),TRIM(LEFT(IF(FIND(" ",TRIM(RIGHT(B50,LEN(B50)-FIND(" ",B50))))<4,TRIM(RIGHT(TRIM(RIGHT(B50,LEN(B50)-FIND(" ",B50))),LEN(TRIM(RIGHT(B50,LEN(B50)-FIND(" ",B50))))-FIND(" ",TRIM(RIGHT(B50,LEN(B50)-FIND(" ",B50)))))),TRIM(RIGHT(B50,LEN(B50)-FIND(" ",B50)))),FIND(" ",IF(FIND(" ",TRIM(RIGHT(B50,LEN(B50)-FIND(" ",B50))))<4,TRIM(RIGHT(TRIM(RIGHT(B50,LEN(B50)-FIND(" ",B50))),LEN(TRIM(RIGHT(B50,LEN(B50)-FIND(" ",B50))))-FIND(" ",TRIM(RIGHT(B50,LEN(B50)-FIND(" ",B50)))))),TRIM(RIGHT(B50,LEN(B50)-FIND(" ",B50))))))),(LEFT(TRIM(LEFT(IF(FIND(" ",TRIM(RIGHT(B50,LEN(B50)-FIND(" ",B50))))<4,TRIM(RIGHT(TRIM(RIGHT(B50,LEN(B50)-FIND(" ",B50))),LEN(TRIM(RIGHT(B50,LEN(B50)-FIND(" ",B50))))-FIND(" ",TRIM(RIGHT(B50,LEN(B50)-FIND(" ",B50)))))),TRIM(RIGHT(B50,LEN(B50)-FIND(" ",B50)))),FIND(" ",IF(FIND(" ",TRIM(RIGHT(B50,LEN(B50)-FIND(" ",B50))))<4,TRIM(RIGHT(TRIM(RIGHT(B50,LEN(B50)-FIND(" ",B50))),LEN(TRIM(RIGHT(B50,LEN(B50)-FIND(" ",B50))))-FIND(" ",TRIM(RIGHT(B50,LEN(B50)-FIND(" ",B50)))))),TRIM(RIGHT(B50,LEN(B50)-FIND(" ",B50))))))),LEN(TRIM(LEFT(IF(FIND(" ",TRIM(RIGHT(B50,LEN(B50)-FIND(" ",B50))))<4,TRIM(RIGHT(TRIM(RIGHT(B50,LEN(B50)-FIND(" ",B50))),LEN(TRIM(RIGHT(B50,LEN(B50)-FIND(" ",B50))))-FIND(" ",TRIM(RIGHT(B50,LEN(B50)-FIND(" ",B50)))))),TRIM(RIGHT(B50,LEN(B50)-FIND(" ",B50)))),FIND(" ",IF(FIND(" ",TRIM(RIGHT(B50,LEN(B50)-FIND(" ",B50))))<4,TRIM(RIGHT(TRIM(RIGHT(B50,LEN(B50)-FIND(" ",B50))),LEN(TRIM(RIGHT(B50,LEN(B50)-FIND(" ",B50))))-FIND(" ",TRIM(RIGHT(B50,LEN(B50)-FIND(" ",B50)))))),TRIM(RIGHT(B50,LEN(B50)-FIND(" ",B50))))))))-2))*1)) -> Alki | J49: =IF(B50="","Z",1*(TRIM(LEFT(B50,FIND(" ",B50))))) -> 2738 | L49: =IF(B50="","",IF(N49="","N","Y")) -> Y | M49: =IF(G49="Approved on",IF(L49="","",IF(L49="Y",IF(N49+14<TODAY(),"Y","N"),"N")),IF(G49="Denied on",IF(H49+14<TODAY(),"Y","N"),"")) -> Y | N49: 2017-05-03
